Workbook

Sheet Caratula
A2: Informe de Avance Trimestral
A10: Unidad Responsable del Gasto: Dirección General de Obras y Desarrollo Urbano
F17: Período:
A26: Titular : | K26: Responsable :
E27: Arq. Yuritzi Contreras Fuentes Directora General de Obras y Desarrollo Urbano | M27: Ing. Eligio Orozco Estudillo Encargado del Despacho de la Dirección de Planeación y Control de Obras

Sheet Matriz
B2: MATRIZ DE CONTROL DEL INFORME DE AVANCE TRIMESTRAL
B3: Unidad Responsable del Gasto:
B4: Período: | C4: =Caratula!I17 -> 
B5: Fecha de Elaboración:
B7: FORMATO | C7: NOMBRE | D7: ENTREGABLE | H7: OBSERVACIÓN
D8: FORMATOS FÍSICOS | F8: MEDIO MAGNÉTICO
D9: APLICA | E9: NO APLICA | F9: EXCEL | G9: PDF
B10: CARÁTULA | C10: CARATULA DEL INFORME DE AVANCE TRIMESTRAL | D10: X | F10: X
B11: RESUMEN EJECUTIVO | C11: RESUMEN EJECUTIVO DEL INFORME DE AVANCE TRIMESTRAL | D11: X | F11: X
B12: ECG | C12: EVOLUCIÓN PRESUPUESTAL POR CAPÍTULO DE GASTO
B13: EPC | C13: EVOLUCIÓN PRESUPUESTAL DE PARTIDAS CENTRALIZADAS O CONSOLIDADAS
B14: PPI | C14: PROGRAMAS Y PROYECTOS DE INVERSIÓN | D14: X | F14: X
B15: A-PP | C15: ADECUACIONES A PROGRAMAS PRESUPUESTARIOS | D15: X
B16: ADS-1 | C16: AYUDAS, DONATIVOS Y SUBSIDIOS
B17: ADS-2 | C17: AYUDAS, DONATIVOS Y SUBSIDIOS A FIDEICOMISOS
B18: SAP | C18: PROGRAMAS QUE OTORGAN SUBSIDIOS Y APOYOS A LA POBLACIÓN
B19: FIC | C19: FIDEICOMISOS CONSTITUIDOS
B20: AP-FAFA | C20: AVANCE PRESUPUESTAL DEL FONDO ADICIONAL DE FINANCIAMIENTO DE LAS ALCALDÍAS
B21: PPA | C21: PRESUPUESTO PARTICIPATIVO PARA LAS ALCALDÍAS | D21: X | F21: X
B22: 6d | C22: ESTADO ANALÍTICO DEL EJERCICIO DEL PRESUPUESTO DE EGRESOS DETALLADO – LDF- (CLASIFICACIÓN DE SERVICIOS PERSONALES POR CATEGORÍA)
B25: Elaboró: | E25: Autorizó :
C26: Nombre, Cargo y Firma | F26: Nombre, Cargo y Firma

Sheet Hoja1 (hidden)
A1: UR | B1: GCI | C1: CAP | D1: OPT SEL
A2: =Caratula!$A$13 -> 0 | B2: C | C2: =ECG!B$10 -> 1000 | D2: =ECG!L10 -> 0
A3: =Caratula!$A$13 -> 0 | B3: C | C3: =ECG!B$10 -> 1000 | D3: =ECG!L11 -> 0
A4: =Caratula!$A$13 -> 0 | B4: C | C4: =ECG!B$10 -> 1000 | D4: =ECG!L12 -> 0
A5: =Caratula!$A$13 -> 0 | B5: C | C5: =ECG!B$13 -> 2000 | D5: =ECG!L13 -> 0
A6: =Caratula!$A$13 -> 0 | B6: C | C6: =ECG!B$13 -> 2000 | D6: =ECG!L14 -> 0
A7: =Caratula!$A$13 -> 0 | B7: C | C7: =ECG!B$13 -> 2000 | D7: =ECG!L15 -> 0
A8: =Caratula!$A$13 -> 0 | B8: C | C8: =ECG!B$16 -> 3000 | D8: =ECG!L16 -> 0
A9: =Caratula!$A$13 -> 0 | B9: C | C9: =ECG!B$16 -> 3000 | D9: =ECG!L17 -> 0
A10: =Caratula!$A$13 -> 0 | B10: C | C10: =ECG!B$16 -> 3000 | D10: =ECG!L18 -> 0
A11: =Caratula!$A$13 -> 0 | B11: C | C11: =ECG!B$19 -> 4000 | D11: =ECG!L19 -> 0
A12: =Caratula!$A$13 -> 0 | B12: C | C12: =ECG!B$19 -> 4000 | D12: =ECG!L20 -> 0
A13: =Caratula!$A$13 -> 0 | B13: C | C13: =ECG!B$19 -> 4000 | D13: =ECG!L21 -> 0
A14: =Caratula!$A$13 -> 0 | B14: C | C14: =ECG!B$31 -> 8000 | D14: =ECG!L32 -> 0
A15: =Caratula!$A$13 -> 0 | B15: C | C15: =ECG!B$33 -> 9000 | D15: =ECG!L35 -> 0
A16: =Caratula!$A$13 -> 0 | B16: I | C16: =ECG!B$37 -> 1000 | D16: =ECG!L37 -> 0
A17: =Caratula!$A$13 -> 0 | B17: I | C17: =ECG!B$37 -> 1000 | D17: =ECG!L38 -> 0
A18: =Caratula!$A$13 -> 0 | B18: I | C18: =ECG!B$37 -> 1000 | D18: =ECG!L39 -> 0
A19: =Caratula!$A$13 -> 0 | B19: I | C19: =ECG!B$40 -> 2000 | D19: =ECG!L40 -> 0
A20: =Caratula!$A$13 -> 0 | B20: I | C20: =ECG!B$40 -> 2000 | D20: =ECG!L41 -> 0
A21: =Caratula!$A$13 -> 0 | B21: I | C21: =ECG!B$40 -> 2000 | D21: =ECG!L42 -> 0
A22: =Caratula!$A$13 -> 0 | B22: I | C22: =ECG!B$43 -> 3000 | D22: =ECG!L43 -> 0
A23: =Caratula!$A$13 -> 0 | B23: I | C23: =ECG!B$43 -> 3000 | D23: =ECG!L44 -> 0
A24: =Caratula!$A$13 -> 0 | B24: I | C24: =ECG!B$43 -> 3000 | D24: =ECG!L45 -> 0
A25: =Caratula!$A$13 -> 0 | B25: I | C25: =ECG!B$46 -> 4000 | D25: =ECG!L46 -> 0
A26: =Caratula!$A$13 -> 0 | B26: I | C26: =ECG!B$46 -> 4000 | D26: =ECG!L47 -> 0
A27: =Caratula!$A$13 -> 0 | B27: I | C27: =ECG!B$46 -> 4000 | D27: =ECG!L48 -> 0
A28: =Caratula!$A$13 -> 0 | B28: I | C28: =ECG!B$49 -> 5000 | D28: =ECG!L49 -> 0
A29: =Caratula!$A$13 -> 0 | B29: I | C29: =ECG!B$49 -> 5000 | D29: =ECG!L50 -> 0
A30: =Caratula!$A$13 -> 0 | B30: I | C30: =ECG!B$49 -> 5000 | D30: =ECG!L51 -> 0
A31: =Caratula!$A$13 -> 0 | B31: I | C31: =ECG!B$52 -> 6000 | D31: =ECG!L52 -> 0
A32: =Caratula!$A$13 -> 0 | B32: I | C32: =ECG!B$52 -> 6000 | D32: =ECG!L54 -> 0
A33: =Caratula!$A$13 -> 0 | B33: I | C33: =ECG!B$55 -> 7000 | D33: =ECG!L55 -> 0
A34: =Caratula!$A$13 -> 0 | B34: I | C34: =ECG!B$58 -> 8000 | D34: =ECG!L59 -> 0

Sheet AP_RF FISCALES
B2: AP-RF AVANCE PRESUPUESTAL DE RECURSOS DE ORIGEN FEDERAL
B3: FONDO, CONVENIO, SUBSIDIO O PARTICIPACIÓN: (1)
B5: Unidad Responsable de Gasto: | F5: DIRECCIÓN GENERAL DE OBRAS Y DESARROLLO URBANO
B6: Período: | F6: Enero-Diciembre 2021
B8: FONDO | F8: NO ETIQUETADO RECURSOS FISCALES-FISCALES-FISCALES-2021-ORIGINAL DE LA URG
B10: R E S U L T A D O S
B11: PRESUPUESTO (Pesos con dos decimales) | I11: AVANCE %
B12: APROBADO | C12: MODIFICADO | D12: PROGRAMADO | E12: SALDO DEL COMPROMISO | F12: DEVENGADO | G12: EJERCIDO | H12: PAGADO | I12: (DEVENGADO / APROBADO)*100 | J12: (DEVENGADO / MODIFICADO)*100 | K12: (EJERCIDO / APROBADO)*100 | L12: (EJERCIDO / MODIFICADO)*100
B13: 265768060 | C13: =148380229.5+3091546.87 -> 151471776.4 | D13: =146272470+3091546.87 -> 149364016.9 | E13: =146272470+3091546.87 -> 149364016.9 | F13: =146272470+3091546.87 -> 149364016.9 | G13: 86871687.41 | H13: 86871687.41 | I13: 13.08809066 | J13: 13.08809066 | K13: 13.08809066 | L13: 16.96304062
I15: =IFERROR((#REF!/#REF!)*100,"") ->  | J15: =IFERROR((#REF!/#REF!)*100,"") ->  | K15: =IFERROR((#REF!/#REF!)*100,"") ->  | L15: =IFERROR((#REF!/#REF!)*100,"") -> 
I16: =IFERROR((#REF!/#REF!)*100,"") ->  | J16: =IFERROR((#REF!/#REF!)*100,"") ->  | K16: =IFERROR((#REF!/#REF!)*100,"") ->  | L16: =IFERROR((#REF!/#REF!)*100,"") -> 
B17: =IFERROR(VLOOKUP($C17,#REF!,3,FALSE),"") ->  | G17: =IFERROR(F17/C17,"") ->  | H17: =IFERROR((F17/D17*100),"") ->  | I17: =IFERROR((#REF!/#REF!)*100,"") ->  | J17: =IFERROR((#REF!/#REF!)*100,"") ->  | K17: =IFERROR((#REF!/#REF!)*100,"") ->  | L17: =IFERROR((#REF!/#REF!)*100,"") -> 
B18: =IFERROR(VLOOKUP($C18,#REF!,3,FALSE),"") ->  | I18: =IFERROR((#REF!/#REF!)*100,"") ->  | J18: =IFERROR((#REF!/#REF!)*100,"") ->  | K18: =IFERROR((#REF!/#REF!)*100,"") ->  | L18: =IFERROR((#REF!/#REF!)*100,"") -> 
B19: =IFERROR(VLOOKUP($C19,#REF!,3,FALSE),"") ->  | I19: =IFERROR((#REF!/#REF!)*100,"") ->  | J19: =IFERROR((#REF!/#REF!)*100,"") ->  | K19: =IFERROR((#REF!/#REF!)*100,"") ->  | L19: =IFERROR((#REF!/#REF!)*100,"") -> 
B20: =IFERROR(VLOOKUP($C20,#REF!,3,FALSE),"") ->  | I20: =IFERROR((#REF!/#REF!)*100,"") ->  | J20: =IFERROR((#REF!/#REF!)*100,"") ->  | K20: =IFERROR((#REF!/#REF!)*100,"") ->  | L20: =IFERROR((#REF!/#REF!)*100,"") -> 
B21: =IFERROR(VLOOKUP($C21,#REF!,3,FALSE),"") ->  | I21: =IFERROR((#REF!/#REF!)*100,"") ->  | J21: =IFERROR((#REF!/#REF!)*100,"") ->  | K21: =IFERROR((#REF!/#REF!)*100,"") ->  | L21: =IFERROR((#REF!/#REF!)*100,"") -> 
B22: =IFERROR(VLOOKUP($C22,#REF!,3,FALSE),"") ->  | I22: =IFERROR((#REF!/#REF!)*100,"") ->  | J22: =IFERROR((#REF!/#REF!)*100,"") ->  | K22: =IFERROR((#REF!/#REF!)*100,"") ->  | L22: =IFERROR((#REF!/#REF!)*100,"") -> 
B23: =IFERROR(VLOOKUP($C23,#REF!,3,FALSE),"") ->  | I23: =IFERROR((#REF!/#REF!)*100,"") ->  | J23: =IFERROR((#REF!/#REF!)*100,"") ->  | K23: =IFERROR((#REF!/#REF!)*100,"") ->  | L23: =IFERROR((#REF!/#REF!)*100,"") -> 
B24: =IFERROR(VLOOKUP($C24,#REF!,3,FALSE),"") ->  | I24: =IFERROR((#REF!/#REF!)*100,"") ->  | J24: =IFERROR((#REF!/#REF!)*100,"") ->  | K24: =IFERROR((#REF!/#REF!)*100,"") ->  | L24: =IFERROR((#REF!/#REF!)*100,"") -> 
B25: =IFERROR(VLOOKUP($C25,#REF!,3,FALSE),"") ->  | I25: =IFERROR((#REF!/#REF!)*100,"") ->  | J25: =IFERROR((#REF!/#REF!)*100,"") ->  | K25: =IFERROR((#REF!/#REF!)*100,"") ->  | L25: =IFERROR((#REF!/#REF!)*100,"") -> 
B26: =IFERROR(VLOOKUP($C26,#REF!,3,FALSE),"") ->  | I26: =IFERROR((#REF!/#REF!)*100,"") ->  | J26: =IFERROR((#REF!/#REF!)*100,"") ->  | K26: =IFERROR((#REF!/#REF!)*100,"") ->  | L26: =IFERROR((#REF!/#REF!)*100,"") -> 
B27: =IFERROR(VLOOKUP($C27,#REF!,3,FALSE),"") ->  | I27: =IFERROR((#REF!/#REF!)*100,"") ->  | J27: =IFERROR((#REF!/#REF!)*100,"") ->  | K27: =IFERROR((#REF!/#REF!)*100,"") ->  | L27: =IFERROR((#REF!/#REF!)*100,"") -> 
B28: =IFERROR(VLOOKUP($C28,#REF!,3,FALSE),"") ->  | I28: =IFERROR((#REF!/#REF!)*100,"") ->  | J28: =IFERROR((#REF!/#REF!)*100,"") ->  | K28: =IFERROR((#REF!/#REF!)*100,"") ->  | L28: =IFERROR((#REF!/#REF!)*100,"") -> 
B29: =IFERROR(VLOOKUP($C29,#REF!,3,FALSE),"") ->  | I29: =IFERROR((#REF!/#REF!)*100,"") ->  | J29: =IFERROR((#REF!/#REF!)*100,"") ->  | K29: =IFERROR((#REF!/#REF!)*100,"") ->  | L29: =IFERROR((#REF!/#REF!)*100,"") -> 
B30: =IFERROR(VLOOKUP($C30,#REF!,3,FALSE),"") ->  | I30: =IFERROR((#REF!/#REF!)*100,"") ->  | J30: =IFERROR((#REF!/#REF!)*100,"") ->  | K30: =IFERROR((#REF!/#REF!)*100,"") ->  | L30: =IFERROR((#REF!/#REF!)*100,"") -> 
B31: =IFERROR(VLOOKUP($C31,#REF!,3,FALSE),"") ->  | I31: =IFERROR((#REF!/#REF!)*100,"") ->  | J31: =IFERROR((#REF!/#REF!)*100,"") ->  | K31: =IFERROR((#REF!/#REF!)*100,"") ->  | L31: =IFERROR((#REF!/#REF!)*100,"") -> 
B32: =IFERROR(VLOOKUP($C32,#REF!,3,FALSE),"") ->  | I32: =IFERROR((#REF!/#REF!)*100,"") ->  | J32: =IFERROR((#REF!/#REF!)*100,"") ->  | K32: =IFERROR((#REF!/#REF!)*100,"") ->  | L32: =IFERROR((#REF!/#REF!)*100,"") -> 
B33: =IFERROR(VLOOKUP($C33,#REF!,3,FALSE),"") ->  | I33: =IFERROR((#REF!/#REF!)*100,"") ->  | J33: =IFERROR((#REF!/#REF!)*100,"") ->  | K33: =IFERROR((#REF!/#REF!)*100,"") ->  | L33: =IFERROR((#REF!/#REF!)*100,"") -> 
B34: =IFERROR(VLOOKUP($C34,#REF!,3,FALSE),"") ->  | I34: =IFERROR((#REF!/#REF!)*100,"") ->  | J34: =IFERROR((#REF!/#REF!)*100,"") ->  | K34: =IFERROR((#REF!/#REF!)*100,"") ->  | L34: =IFERROR((#REF!/#REF!)*100,"") -> 
B35: =IFERROR(VLOOKUP($C35,#REF!,3,FALSE),"") ->  | I35: =IFERROR((#REF!/#REF!)*100,"") ->  | J35: =IFERROR((#REF!/#REF!)*100,"") ->  | K35: =IFERROR((#REF!/#REF!)*100,"") ->  | L35: =IFERROR((#REF!/#REF!)*100,"") -> 
B36: =IFERROR(VLOOKUP($C36,#REF!,3,FALSE),"") ->  | I36: =IFERROR((#REF!/#REF!)*100,"") ->  | J36: =IFERROR((#REF!/#REF!)*100,"") ->  | K36: =IFERROR((#REF!/#REF!)*100,"") ->  | L36: =IFERROR((#REF!/#REF!)*100,"") -> 
B37: =IFERROR(VLOOKUP($C37,#REF!,3,FALSE),"") ->  | I37: =IFERROR((#REF!/#REF!)*100,"") ->  | J37: =IFERROR((#REF!/#REF!)*100,"") ->  | K37: =IFERROR((#REF!/#REF!)*100,"") ->  | L37: =IFERROR((#REF!/#REF!)*100,"") -> 
B38: =IFERROR(VLOOKUP($C38,#REF!,3,FALSE),"") ->  | I38: =IFERROR((#REF!/#REF!)*100,"") ->  | J38: =IFERROR((#REF!/#REF!)*100,"") ->  | K38: =IFERROR((#REF!/#REF!)*100,"") ->  | L38: =IFERROR((#REF!/#REF!)*100,"") -> 
B39: =IFERROR(VLOOKUP($C39,#REF!,3,FALSE),"") ->  | I39: =IFERROR((#REF!/#REF!)*100,"") ->  | J39: =IFERROR((#REF!/#REF!)*100,"") ->  | K39: =IFERROR((#REF!/#REF!)*100,"") ->  | L39: =IFERROR((#REF!/#REF!)*100,"") -> 
B40: =IFERROR(VLOOKUP($C40,#REF!,3,FALSE),"") ->  | I40: =IFERROR((#REF!/#REF!)*100,"") ->  | J40: =IFERROR((#REF!/#REF!)*100,"") ->  | K40: =IFERROR((#REF!/#REF!)*100,"") ->  | L40: =IFERROR((#REF!/#REF!)*100,"") -> 
B41: =IFERROR(VLOOKUP($C41,#REF!,3,FALSE),"") ->  | I41: =IFERROR((#REF!/#REF!)*100,"") ->  | J41: =IFERROR((#REF!/#REF!)*100,"") ->  | K41: =IFERROR((#REF!/#REF!)*100,"") ->  | L41: =IFERROR((#REF!/#REF!)*100,"") -> 
B42: =IFERROR(VLOOKUP($C42,#REF!,3,FALSE),"") ->  | I42: =IFERROR((#REF!/#REF!)*100,"") ->  | J42: =IFERROR((#REF!/#REF!)*100,"") ->  | K42: =IFERROR((#REF!/#REF!)*100,"") ->  | L42: =IFERROR((#REF!/#REF!)*100,"") -> 
B43: =IFERROR(VLOOKUP($C43,#REF!,3,FALSE),"") ->  | I43: =IFERROR((#REF!/#REF!)*100,"") ->  | J43: =IFERROR((#REF!/#REF!)*100,"") ->  | K43: =IFERROR((#REF!/#REF!)*100,"") ->  | L43: =IFERROR((#REF!/#REF!)*100,"") -> 
B44: =IFERROR(VLOOKUP($C44,#REF!,3,FALSE),"") ->  | I44: =IFERROR((#REF!/#REF!)*100,"") ->  | J44: =IFERROR((#REF!/#REF!)*100,"") ->  | K44: =IFERROR((#REF!/#REF!)*100,"") ->  | L44: =IFERROR((#REF!/#REF!)*100,"") -> 
B45: =IFERROR(VLOOKUP($C45,#REF!,3,FALSE),"") ->  | I45: =IFERROR((#REF!/#REF!)*100,"") ->  | J45: =IFERROR((#REF!/#REF!)*100,"") ->  | K45: =IFERROR((#REF!/#REF!)*100,"") ->  | L45: =IFERROR((#REF!/#REF!)*100,"") -> 
B46: =IFERROR(VLOOKUP($C46,#REF!,3,FALSE),"") ->  | I46: =IFERROR((#REF!/#REF!)*100,"") ->  | J46: =IFERROR((#REF!/#REF!)*100,"") ->  | K46: =IFERROR((#REF!/#REF!)*100,"") ->  | L46: =IFERROR((#REF!/#REF!)*100,"") -> 
B47: =IFERROR(VLOOKUP($C47,#REF!,3,FALSE),"") ->  | I47: =IFERROR((#REF!/#REF!)*100,"") ->  | J47: =IFERROR((#REF!/#REF!)*100,"") ->  | K47: =IFERROR((#REF!/#REF!)*100,"") ->  | L47: =IFERROR((#REF!/#REF!)*100,"") -> 
B50: PRINCIPALES ACCIONES REALIZADAS CON RECURSOS DE ORIGEN FEDERAL:
B51: 221 024 K015-Construcción de Infraestructura Pública;A través de la Obra por contrato se realizaron los siguientes trabajos en los proyectos denominados:Conservación y Rehabilitación de Espacios Públicos 1.-Estabilización de talud en la colonia San Nicolás ll, con una superficie de 108.24 m3, 2.-Estabilización de talud en la colonia Cantera Puente de Piedra y Ampliación Isidro Fabela,con una superficie de 20.00 m3, 3.-Estabilización de talud en la colonia Comuneros de Santa Úrsula, con una superficie de 130.00 m3 Trabajos realizados en cada frente: Trazo y nivelación, excavación, cimbra, compacatación del terreno, filtros para drenes,trabajos con plantilla de concreto hidrahulico y trabajos de acero, así como el barrido y la limpieza del área. | AA51: corte y/o demolición de la carpeta asfáltica, excavación de la zanja hasta la profundidad que se encuentre la grieta, proteccion de las paredes de la zanja, extraccion del agua de la zanja, construcción de coladeras(todos los tipos), bocas de tormenta, Construcción de muros de mampostería,Suministro y colocación de acero de refuerzo, Cimbra para Losa Tapa de Concreto Armado, Colado de Concreto, Relleno de las zanjas con material de banco, compactación de terreno, reconstrucción de pavimento, Decimbrado de Losa tapa, acarreos, limpieza de rejillas y estructuras que contengan azolve, retiro de material del sitio y limpieza final.
B52: Se realizaron 15 inmuebles en el proyecto denominado: Construir y Adecuar Planteles Educativos del Nivel Básico en los siguientes planteles educativos: Jardín de Niños: 1.-Itzcalli, ubicada en calle Guadalajara s/n, Col. Miguel Hidalgo 1a sección, Trabajos realizados: construcción de techumbre, 2.-Kantuni, ubicada en calle lmani y Dzemul, S/N, Col. Pedregal de San Nicolás 4a Seccion, Trabajos realizados: construcción de techumbre, 3.-Año Internacional del Niño, ubicada en calle Hacienda San Nicolás Tolentino s/n, Col. Prado Coapa 3ra. Sección, Trabajos realizados: restructuración de pasillos, aplicación de pintura e impermeabilización, 4.-Año de la República Federal, ubicada en calle María Hernández Zarco y Roque Estrada, Col. Fraccionamiento Belisario Domínguez, Trabajos realizados: construcción de techumbre, 5.-Ana María Navarro Becerra, ubiada en calle Nahoas esquina Otomies S/N, Col. Tlalcoligía,Trabajos realziados: construcción de sanitarios e impermeabilización, 6.-Tzinti, ubicada en calle Cuauhtemoc S/N, Pueblo Quieto, Trabajos realizados: construcción de techumbre Escuelas Primarias: 7-Luis de la Brena, ubicada en calle Reforma No. 1, Pueblo San Miguel Xicalco, Trabajos realizados: reconstrucción de edificio de aulas, tiene un avance físico del 50%, por convenio de ampliación de tiempo,8.-Lázaro Cárdenas, ubicada en Club Deportivo Universidad No. 300, Col. Fraccionamiento Villa Lázaro Cárdenas, Trabajos realizados:construcción de techumbre, 9-Niger, ubicadad en Calle Torreón S/N, Manzana 7, Unidad Habitacional Narciso Mendoza Super Manzana 7, Trabajos realizados: construcción de techumbre, 10.-De Participáción Social No. 5, ubicada en Avenida San Fernando No. 12, Col. Centro de Tlalpan, Trabajos realizados: sustitución de cancelería y puertas, aplicación de pintura, construcción de consultorio médico,11.-Somalia, ubicada en Avenida el Fortín # 46 y Andador 9 No. 3, Unidad Habitacional Narciso Mendoza Supermanzana 3, Trabajos realizados: construcción de techumbre y aplicación de pintura, 12.-Vidal Alcocer, ubicada en Calle Magisterio Nacional No. 102, Col. Centro de Tlalpan, Río Pánuco, Col. Toriello Guerra,Trabajos realizados: construcción de techumbre 13.-Río Panuco, ubicada en calle Puente de Piedra No. 72, Col. Toriello Guerra, Trabajos realizados: construcción de techumbre. Escuelas Secundarias: 14.-Técnica No. 96, ubicada en calle Guadalupe Victoria s/n, Pueblo Santo Tomás Ajusco, Trabajos realziados: construcción de rampas y loseta.15.-No. 155, ubicada en Callejón Zapote No. 148, Col. Isidro Fabela,Trabajos realizados: construcción de techumbre, 16.-No. 173, ubicada en calle Querétaro s/n, Col. Miguel Hidalgo 1a sección, Trabajos realizados: construcción de bebederos y pisos de loseta.
B53: Se realizó 1 inmueble en el proyecto denominado: Construcción, Ampliación de Infraestructura Social 1.-Construcción de la 2da. etapa del Auditorio Comunal de la Magdalena Petlacalco, Trabajos realizados: albañilería,azotea,instalación sanitaria,instalacion hidráulica,instalación eléctrica,herrería, carpintería,acabados.
B54: Se lleva el avance Físico del 50% en el inmueble del proyecto denominado: Construcción y Ampliación de Edificios Públicos 1.-Construcción 2do Piso de la Subdelegación de Santo Tomás Ajusco Trabajos realziados: trazo y nivelación, preliminares, elementos de concreto reforzado, albañilerías, habilitado de cimbra y acero de refuerzo
B55: 221 049 E124 Programa Integral de Movilidad Inteligente; Al periodo a través de la Obra por Contrato, se realizaron 20,785.39 m2, en el proyecto denominado: Mantenimiento, Conservación y Rehabilitación en Vialidades Secundarias en las siguientes colonias: 1.-San Andrés Totoltepec, 2.-Héroes de Padierna, 3.-Miguel Hidalgo Trabajos realizados en cada uno de los frentes: trazo y nivelación, fresado, brocales, barrido de la base para aplicar el riego de liga, carpeta de mezcla asfáltica, etc.
B56: Se realizaron 1,398.92 metros cuadrados en el proyecto denominado: Conservación y Rehabilitación de Banquetas en las siguientes colonias: 1.-Isidro Fabela, 2.-Miguel Hidalgo. Trabajos realizados:Trazo y nivelación, Extracción manual de tocón, Demolición por medios manuales de guarniciones y banquetas de concreto simple, preparación, conformación y compactación de subrasante para banquetas, Suministro y colocación de tepetate de 10 cm de espesor, Banqueta de 10 cm de espesor de concreto hidráulico. Acabado con volteador en las aristas de banquetas, Guarnición de concreto hidráulico, renivelación de rejillas de registro.
B57: Se relizó la colocación de luminarias 50 luminarias en el proyecto denominado: Colocación de luminarias en la colonia: 1.-Pueblo San Miguel Ajusco Trabajos realziados: Trazo y nivelación; suministro y colocación de tubos y coples conduit; suministro e instalación de cable; conexiones y pruebas; instalación de lámparas; suministro e instalación de pruebas de luminarias completas; construcción de cimiento para poste; construcción de registro; suministro, instalación y pintura de postes; corte con sierra de pavimento, demolición, carga y acarreo producto de la demolición; excavación y relleno; piso de concreto hidráulico
B58: 221 274 K016 Rehabilitación y Mantenimiento de Infraestructura Pública-A través de la Obra por Contrato se relizaron 4 inmuebles en el proyecto denominado: Conservación y Rehabilitación de Espacios Deportivos en las siguientes ubicaciones: 1.-Deportivo CEFORMA, Col. Fuentes Brotantes, U.H. Fuentes Brotantes, Trabajos realizados: Rehabilitación de baños y exteriores, trabajos de iluminación interior y exterior, rehabilitación y cambio depisos, trabajos de herrería y para evitar acceso a palomas, aplicación de pintura en interiores y exteriores, 2.-Deportivo Parres el Guarda, Col. Parres el Guarda, Trabajos realizados: rehabilitación cancha de furbol soccer, , malla ciclónica e instalación eléctrica, 3.-Deportivo San Andrés Totoltepec, Pueblo San Andrés Totoltepec, Trabajos realizados: techumbre en alberca y panel solar, 4.-Deportivo Guayacanes, Col. Bosques del Pedregal, Trabajos realizados: Techumbre,estructura metálica,alumbrado publico,mantenimiento al area de juegos infantiles, aplicación de pintura,reconstrucción de muro.
B59: 223 202 K014 -Infraestructura de Agua Potable; Alcantarillado y Saneamiento-A través de la Obra por Contrato se realizaron los siguientes trabajos: Con 10 piezas en el proyecto denominado Construcción y Rehabilitación de Resumideros, con trabajos para la construcción de Resumideros en las siguientes colonias: 1.- Cultura Maya, 2.-Pueblo San Andrés Totoltepec, 4.-Pedregal de San Nicolas 2a. Sección, 5.- Pedregal de San Nicolás 3a sección, 7.-Torres de Padierna, 9.-Miguel Hidalgo 3ra. Sección,11.- Héroes de Padierna, 12.- Lomas de Padierna,13.-Pedregal de San Nicolas 1a. Sección, Trabajos terminados en cada uno de los frentes: Trazo y nivelación,corte y/o demolición de la carpeta asfáltica,excavación de la zanja hasta la profundidad que se encuentre la grieta, proteccion de las paredes de la zanja, extraccion del agua de la zanja, construcción de coladeras(todos los tipos), bocas de tormenta, construcción de muros de mampostería,suministro y colocación de acero de refuerzo, cimbra para losa tapa de concreto armado, colado de concreto, relleno de las zanjas con material de banco, compactación de terreno, reconstrucción de pavimento, decimbrado de losa tapa, acarreos, limpieza de rejillas y estructuras que contengan azolve, retiro de material del sitio y limpieza final.
B60: Se realizaron 78.20 metros lineales en el proyecto denominado Construcción y Ampliación de Infraestructura de Agua Potable en el: 1.-Pueblo de San Pedro Mártir Trabajos realizados: instalación de tuberia de P.A.D. y tomas domiciliarias
B61: Se realizaron 3,429.95 metros Rehabilitación a la Red de Agua Potable en las siguientes colonias: 1.-Tlalmille, 2.-Cruz del Farol, 3.-Los encinos, 4.-Torres de Padierna, 5.-Cultura Maya, 6.-Miguel Hidalgo 3ra. Sección, 7.-Héroes de Padierna, 8.-Miguel Hidalgo 2da Sección, 9.-San Andrés Totoltepec. Trabajos realizados: Trazo y nivelación, demoliciones, excavaciones, rellenos, cambio de tubería de polietileno de alta densidad de diferentes diámetros, construcción y/o sustitución de cajas de válvulas, trabajos de bacheo y Reparación de fugas de diversos diámetros, en válvulas y tubería de diferentes materiales.
B62: Se realizaron 0.678 kilómetros en el proyecto denominado: Construcción y Ampliación de la Infraestructura del Sistema de Drenaje 1.-Pueblo San Andrés Totoltepec, 2.- Cultura Maya. trabajos realziados: introducción de la Red de Drenaje, tendido de tubería,relleno y compactación, bacheo, retiro de material,producto de compactación.
B63: Se realizaron 4,571.07 metros en el proyecto denominado: Desazolve de la Red del Sistema de Drenaje en las siguientes colonias: 1.-Héroes de Padierna, 2.Cuchilla de Padierna, 3.-Torres de Padierna, 4.-Miguel Hidalgo 3a. Sección, 5.-Miguel Hidalgo 4a. Sección, 6.-Pedregal de San Nicolás 2a. Sección, 7.-Pedregal de San Nicolás 3a. Sección, 8.-Bosques del Pedregal, 9.-Cultura Maya, 10.-La Primavera, 11.-Popular Santa Teresa, 12.-Lomas de Padierna, 13.-Miguel Hidalgo 1a. Sección, 14.- Miguel Hidalgo 2a. Sección, 15.-Jardines del Ajusco Trabajos realizados: Limpieza del sistema de alcantarillado sanitario, pluvial o combinado, considerando todos sus elementos de captación como pueden ser albañales, bocas de tormenta, rejillas, coladeras, tuberías, pozos de visita, cajas rompedoras de presión, canales encofrados o canales a cielo abierto, resumideros, etc., en los cuales se llevara a cabo el retiro de todo el azolve generado por tierra y basura que fue arrastrada por las lluvias, resumideros limpieza de la grieta natural por la cual el agua se filtra hasta los mantos acuíferos, y para la red secundaria se limpiaron las tuberías y pozos de visita realizando el desazolve por medios mecánicos, con el uso de malacates y del Camión Vactor.
B64: Se ejercieron recursos en la Construcción, Rehabilitación y Proyecto Ejecutivo de Cárcamos para la Infraestructura del Sistema de Drenaje: Los recursos ejercidos refieren al Proyecto Ejecutivo de Cárcamos para la Infraestructura del Sistema de Drenaje en las colonias: 1.-Cantera Puente de Piedra, 2.-Isidro Fabela, 3.- El Zapote, 4.-Ejidos de San Pedro Mártir Trabajos realizados: levantamientos físicos de necesidades en los 3 cárcamos para rehabilitar y la construcción de 1 cárcamo nuevo, realización de memoria descriptiva,memoria de cálculo deacuerdo con los requerimientos de cada cárcamo,planos ejecutivos.
B65: 311 148 E150 Programa Integral de Movilidad Inteligente; A través de la Obra por Contrato se relizaron los trabajos en el proyecto denominado: Mantenimiento y Rehabilitación a Mercados con 4 inmuebles 1.-Mercado Flores San Fernando, ubicado en Calzada de Tlalpan y avenida San Fernando, Colonia Barrio de Niño Jesús, Trabajos realizados: instalación eléctrica interna, módulos, instalación eléctrica exterior 2.-Mercado Fuentes Brotantes, ubicado en Interior del Parque Nacional Fuentes Brotantes, colonia Fuentes Brotantes, Trabajos realizados: instalación eléctrica, sistema de drenaje, ampliación de baños, áreas verdes y juegos, 3.-Mercado Villa Coapa, ubicado en Avenida canal de Miramontes s/n entre avenida Acoxpa y Caporal, colonia Villa Coapa, Trabajos realizados: sustitución de luminaria led, alimentadores a locales, alimentador a hidroneumático, alumbrado exterior, alimentadores en baja tensión CCTV y telefonía, extracción de aire, 4.-Mercado Plaza Mexicana del Sur, ubicado en Avenida Acoxpa, entre Calzada de Tlalpan y Viaducto Tlalpan, Col. San Lorenzo Huipulco, Trabajos realizados: instalación eléctrica
B66: Al periodo se redujeron los recursos para reorientarlos a los capítulos 2,000, 3,000 y 4,000 de diferentes Programas Presupuestarios para poder cumplir con las necesidades la Alcadía de Tlalpan, adicionalmente se aperturaron los proyectos del Presupuesto Participativo con DG: 65 del Ejercicio 2021, para ver los movimientos presupuestales, ver los formatos de ADECUACIONES PRESUPUESTALES, por cada Programa Presupuestario, cabe mencionar que también se señalan por cada uno los frentes que se dejaron de atender por cada proyecto denominado.
B67: 223 202 K014-Se adicionan recursos en la partida refacciones y accesorios con DG:65 Presupuesto Participativo 2021 los cuales no pertenecen a la DGODU, el seguimiento lo llevará acabo la Dirección General de Participación Ciudadana. La Obra por Administración para realizar los trabajos de rehabilitación y mantenimiento de Agua Potable, Drenaje y Desazolve, la meta se verá reflejada en el Fondo NO ETIQUETADO RECURSOS FEDERALES-PARTICIPACIONES A ENTIDADES FEDERATIVAS Y MUNICIPIOS- PARTICIPACIONES EN EL IMPUESTO ESPECIAL SOBRE PRODUCCIÓN Y SERVICIOS-2022-ORIGINAL DE LA URG (15O410),
B68: 223 202 K014-Se adicionan recursos en la partida Material de limpieza la cual es partida centralizada, adicionalmente se amplían recursos en las siguientes partidas: material eléctrico, materiales complementarios, materiales de construcción, plásticos y derivados con DG:65 Presupuesto Participativo 2021 los cuales no pertenecen a la DGODU, el seguimiento lo llevará acabo la Dirección General de Participación Ciudadana. La Obra por Administración para realizar los trabajos de mantenimiento y rehabilitación a Inmuebles Públicos, se reflejará su meta en el fondo NO ETIQUETADO RECURSOS FEDERALES-PARTICIPACIONES A ENTIDADES FEDERATIVAS Y MUNICIPIOS-FONDO DE COMPENSACIÓN DEL IMPUESTO DE AUTOMÓVILES NUEVOS (ISAN) -2022-ORIGINAL DE LA URG (15OC10)
B69: 311 148 E150- En este programa presupuestario se aperturó el proyecto denominado Mantenimiento y Rehabilitación a Mercados con 4 inmuebles realizados,mismos que cuentan con tres Fuentes de Financiamiento:No etiquetado recursos fiscales-fiscales-fiscales-2021-original de la urg (Fiscales), Etiquetado Recursos Federales-Aportaciones Federales para Entidades Federativas y Municipios-Fondo de Aportaciones para el Fortalecimiento de las Entidades Federativas (FAFEF)-2021-Original de la URG, No Etiquetado Recursos Federales-Participaciones a Entidades Federativas y Municipios- Participaciones en el Impuesto Sobre Automóviles Nuevos-2021-Original de la URG, en dodnde se verán rfelejada la meta ejecutada., en dodnde se verán rfelejada la meta ejecutada.
B70: 124 004 P002-En este programa presupuestario se adicionan recursos para la repartición de agua potable através de los camiones tipo pipas, los cuales serán complemento a la meta que se verá reflejada en el Fondo ETIQUETADO RECURSOS FEDERALES-APORTACIONES FEDERALES PARA ENTIDADES FEDERATIVAS Y MUNICIPIOS-FONDO DE APORTACIONES PARA EL FORTALECIMIENTO DE LOS MUNICIPIOS Y LAS DEMARCACIONES TERRITORIALES DEL DISTRITO FEDERAL (FORTAMUN)-2021-ORIGINAL DE LA URG, en este mismo programa presupuestario.
B71: 221 049 E124-Se adicionan recursos en este Fondo para cubrir los trabajos de la Obra por Administración, misma que no tenía recursos para realizar su meta la cual se refleja en el Fondo NO ETIQUETADO RECURSOS FEDERALES-PARTICIPACIONES A ENTIDADES FEDERATIVAS Y MUNICIPIOS-FONDO GENERAL DE PARTICIPACIONES-2021-ORIGINAL DE LA URG, en las partidas: combustible, lubricantes y aditivios, mezcla asfáltica y artículos para la construcción, en beneficio de la población tlalpense, para los trabajos de de mantenimiento a vialidades secundarias, mantenimiento a banquetas y trabajos de balizamiento.
B72: FRENTES CANCELADOS POR PROGRAMA PRESUPUESTARIO Y PROYECTO DENOMINADO 223 202 K014 -Infraestructura de Agua Potable, Alcantarillado y Saneamiento-Frentes cancelados en los siguientes proyectos denominados: Construcción y Rehabilitación de Resumideros 1- Pueblo San Miguel Topilejo, 2.-Pedregal Santa Ú+67:68rsula Xitla, 3.-Pedregal de San Nicolás 4a sección, 4.- Lomas Hidalgo, 5.-Popular Santa Teresa, 6.- Miguel Hidalgo 4a. Seccion, 7.- Miguel Hidalgo 2a. Seccion, debido a que sus rcursos se transfirieron a otros capítulo :2000,3000 y 4000, para realizar trabajos prioritarios de la Alcadía de Tlalpan Desazolve de la Red del Sistema de Drenaje 1.-Pedregal de San Nicolás 1a. Sección,2.-Pedregal de San Nicolás 4a. Sección,3.-Lomas Altas de Padierna,4.-Lomas Hidalgo,5.-San Pedro Martir,6.-Cruz del Farol,7.-Zacatón,8.-2 de Octubre,9.-San Andrés Totoltepec,10.-Pueblo de San Miguel Xicalco,11.-Pueblo San Miguel Topilejo,12.-La Lonja, 13.-Cantera Puente de Piedra, 14.-Pedregal de Santa Úrsula Xitla,15.-Talcoligía,16.-San Pedro Apostol, los recursos se reorientaron para atender presupuesto participativo de los capitulos 6000, 2000, 3000 y 4000 Construcción, Rehabilitación y Proyecto Ejecutivo de Cárcamos para la Infraestructura del Sistema de Drenaje Se dejaron de atender los trabajos para la Construcción, Rehabilitación para la Infraestructura del Sistema de Drenaje en las colonias: 1.-Cantera Puente de Piedra, 2.-Isidro Fabela, 3.- El Zapote, 4.-Ejidos de San Pedro Mártir, debido a la reducción de recursos, los cuales se reorientaron a los capítulos: 2000, 3000 Y 4000 y así poder cubrir con las necesidades prioritarias de la Alcaldía. Construcción y Ampliación de la Infraestructura del Sistema de Drenaje 1.-Miguel Hidalgo 4ta. sección, 2.-Manantial Peña Pobre, 3.- Pueblo Chimalcoyoc, debido a que los recursos se reorientaron a los capítulos: 2000, 3000 Y 4000, Construcción, Rehabilitación y Proyecto Ejecutivo de Cárcamos para la Infraestructura del Sistema de Drenaje: Se dejaron de atender los trabajos para la Construcción, Rehabilitación para la Infraestructura del Sistema de Drenaje en las colonias: 1.-Cantera Puente de Piedra, 2.-Isidro Fabela, 3.- El Zapote, 4.-Ejidos de San Pedro Mártir, debido a la reducción de recursos, los cuales se reorientaron a los capítulos: 2000, 3000 Y 4000 y así poder cubrir con las necesidades prioritarias de la Alcaldía, los recursos se reorientaron para atender presupuesto participativo de los capitulos 6000, 2000, 3000 y 4000
B73: 221 024 K015-Construcción de Infraestructura Pública-Frentes cancelados en los siguientes proyectos denominados: Construcción, Ampliación de Infraestructura Social (Se dejaron de atender 7 inmuebles) 1.-Construcción de Centro comunitario en la colonia Paraje Tecorral,2.-Construcción de la Casa del Adulto Mayor en el Pueblo San Miguel Ajusco,3.-Centro Integral de Esparcimiento Lúdico y Orientación en la colonia Isidro Fabela, 4.-Conclución de techo de la cancha de usos múltiples en la colonia Diamante,5.-Proyección y Construcción del CAO de la colonia Pedregal de San Nicolás 3ra. Sección,6.-Ampliación del CEDIC Cultura Maya,7.-Centro Comunitario Santo Tomás Ajusco, los recursos se reorientaron a los capitulo 2000, 3000 y 4000. Conservación y Rehabilitación de Espacios Públicos 4.-Construcción del Arco de Identidad del Pueblo Magdalena Petlacalco FRENTE CANCELADO (TERMINACIÓN ANTICIPADA)POR PROBLEMAS DE OPOSICIÓN VECINAL. Construcción y Ampliación de Edificios Públicos 1.-Ampliación de la Sede del Consejo Comunitario en Pueblo San Andrés Totoltepec,2.-Construcción a la 2a etapa del Campamento Limantitla,3.-Construcción de Arco de identidad Magdalena Petlacalco., los recursos se reorientaron a los capitulos 2000, 3000 y 4000

Sheet AP_RF FORTAMUN
B2: AP-RF AVANCE PRESUPUESTAL DE RECURSOS DE ORIGEN FEDERAL
B3: FONDO, CONVENIO, SUBSIDIO O PARTICIPACIÓN: (1)
B5: Unidad Responsable de Gasto: | F5: DIRECCIÓN GENERAL DE OBRAS Y DESARROLLO URBANO
B6: Período: | F6: Enero-Diciembre 2021
B8: FONDO | F8: ETIQUETADO RECURSOS FEDERALES-APORTACIONES FEDERALES PARA ENTIDADES FEDERATIVAS Y MUNICIPIOS-FONDO DE APORTACIONES PARA EL FORTALECIMIENTO DE LOS MUNICIPIOS Y LAS DEMARCACIONES TERRITORIALES DEL DISTRITO FEDERAL (FORTAMUN)-2021-ORIGINAL DE LA URG
B10: R E S U L T A D O S
B11: PRESUPUESTO (Pesos con dos decimales) | I11: AVANCE %
B12: APROBADO | C12: MODIFICADO | D12: PROGRAMADO | E12: SALDO DEL COMPROMISO | F12: DEVENGADO | G12: EJERCIDO | H12: PAGADO | I12: (DEVENGADO / APROBADO)*100 | J12: (DEVENGADO / MODIFICADO)*100 | K12: (EJERCIDO / APROBADO)*100 | L12: (EJERCIDO / MODIFICADO)*100
B13: 77961280 | C13: 85407920.33 | D13: 83203463.33 | E13: 83203463.33 | F13: 83203463.33 | G13: 69946836.57 | H13: 69946836.57 | I13: =IFERROR(($F13/$B13)*100,"") -> 106.7240858 | J13: =IFERROR(($F13/$B13)*100,"") -> 106.7240858 | K13: =IFERROR(($G13/$B13)*100,"") -> 89.71996941 | L13: =IFERROR(($G13/$C13)*100,"") -> 81.89736537
I15: =IFERROR((#REF!/#REF!)*100,"") ->  | J15: =IFERROR((#REF!/#REF!)*100,"") ->  | K15: =IFERROR((#REF!/#REF!)*100,"") ->  | L15: =IFERROR((#REF!/#REF!)*100,"") -> 
I16: =IFERROR((#REF!/#REF!)*100,"") ->  | J16: =IFERROR((#REF!/#REF!)*100,"") ->  | K16: =IFERROR((#REF!/#REF!)*100,"") ->  | L16: =IFERROR((#REF!/#REF!)*100,"") -> 
B17: =IFERROR(VLOOKUP($C17,#REF!,3,FALSE),"") ->  | G17: =IFERROR(F17/C17,"") ->  | H17: =IFERROR((F17/D17*100),"") ->  | I17: =IFERROR((#REF!/#REF!)*100,"") ->  | J17: =IFERROR((#REF!/#REF!)*100,"") ->  | K17: =IFERROR((#REF!/#REF!)*100,"") ->  | L17: =IFERROR((#REF!/#REF!)*100,"") -> 
B18: =IFERROR(VLOOKUP($C18,#REF!,3,FALSE),"") ->  | I18: =IFERROR((#REF!/#REF!)*100,"") ->  | J18: =IFERROR((#REF!/#REF!)*100,"") ->  | K18: =IFERROR((#REF!/#REF!)*100,"") ->  | L18: =IFERROR((#REF!/#REF!)*100,"") -> 
B19: =IFERROR(VLOOKUP($C19,#REF!,3,FALSE),"") ->  | I19: =IFERROR((#REF!/#REF!)*100,"") ->  | J19: =IFERROR((#REF!/#REF!)*100,"") ->  | K19: =IFERROR((#REF!/#REF!)*100,"") ->  | L19: =IFERROR((#REF!/#REF!)*100,"") -> 
B20: =IFERROR(VLOOKUP($C20,#REF!,3,FALSE),"") ->  | I20: =IFERROR((#REF!/#REF!)*100,"") ->  | J20: =IFERROR((#REF!/#REF!)*100,"") ->  | K20: =IFERROR((#REF!/#REF!)*100,"") ->  | L20: =IFERROR((#REF!/#REF!)*100,"") -> 
B21: =IFERROR(VLOOKUP($C21,#REF!,3,FALSE),"") ->  | I21: =IFERROR((#REF!/#REF!)*100,"") ->  | J21: =IFERROR((#REF!/#REF!)*100,"") ->  | K21: =IFERROR((#REF!/#REF!)*100,"") ->  | L21: =IFERROR((#REF!/#REF!)*100,"") -> 
B22: =IFERROR(VLOOKUP($C22,#REF!,3,FALSE),"") ->  | I22: =IFERROR((#REF!/#REF!)*100,"") ->  | J22: =IFERROR((#REF!/#REF!)*100,"") ->  | K22: =IFERROR((#REF!/#REF!)*100,"") ->  | L22: =IFERROR((#REF!/#REF!)*100,"") -> 
B23: =IFERROR(VLOOKUP($C23,#REF!,3,FALSE),"") ->  | I23: =IFERROR((#REF!/#REF!)*100,"") ->  | J23: =IFERROR((#REF!/#REF!)*100,"") ->  | K23: =IFERROR((#REF!/#REF!)*100,"") ->  | L23: =IFERROR((#REF!/#REF!)*100,"") -> 
B24: =IFERROR(VLOOKUP($C24,#REF!,3,FALSE),"") ->  | I24: =IFERROR((#REF!/#REF!)*100,"") ->  | J24: =IFERROR((#REF!/#REF!)*100,"") ->  | K24: =IFERROR((#REF!/#REF!)*100,"") ->  | L24: =IFERROR((#REF!/#REF!)*100,"") -> 
B25: =IFERROR(VLOOKUP($C25,#REF!,3,FALSE),"") ->  | I25: =IFERROR((#REF!/#REF!)*100,"") ->  | J25: =IFERROR((#REF!/#REF!)*100,"") ->  | K25: =IFERROR((#REF!/#REF!)*100,"") ->  | L25: =IFERROR((#REF!/#REF!)*100,"") -> 
B26: =IFERROR(VLOOKUP($C26,#REF!,3,FALSE),"") ->  | I26: =IFERROR((#REF!/#REF!)*100,"") ->  | J26: =IFERROR((#REF!/#REF!)*100,"") ->  | K26: =IFERROR((#REF!/#REF!)*100,"") ->  | L26: =IFERROR((#REF!/#REF!)*100,"") -> 
B27: =IFERROR(VLOOKUP($C27,#REF!,3,FALSE),"") ->  | I27: =IFERROR((#REF!/#REF!)*100,"") ->  | J27: =IFERROR((#REF!/#REF!)*100,"") ->  | K27: =IFERROR((#REF!/#REF!)*100,"") ->  | L27: =IFERROR((#REF!/#REF!)*100,"") -> 
B28: =IFERROR(VLOOKUP($C28,#REF!,3,FALSE),"") ->  | I28: =IFERROR((#REF!/#REF!)*100,"") ->  | J28: =IFERROR((#REF!/#REF!)*100,"") ->  | K28: =IFERROR((#REF!/#REF!)*100,"") ->  | L28: =IFERROR((#REF!/#REF!)*100,"") -> 
B29: =IFERROR(VLOOKUP($C29,#REF!,3,FALSE),"") ->  | I29: =IFERROR((#REF!/#REF!)*100,"") ->  | J29: =IFERROR((#REF!/#REF!)*100,"") ->  | K29: =IFERROR((#REF!/#REF!)*100,"") ->  | L29: =IFERROR((#REF!/#REF!)*100,"") -> 
B30: =IFERROR(VLOOKUP($C30,#REF!,3,FALSE),"") ->  | I30: =IFERROR((#REF!/#REF!)*100,"") ->  | J30: =IFERROR((#REF!/#REF!)*100,"") ->  | K30: =IFERROR((#REF!/#REF!)*100,"") ->  | L30: =IFERROR((#REF!/#REF!)*100,"") -> 
B31: =IFERROR(VLOOKUP($C31,#REF!,3,FALSE),"") ->  | I31: =IFERROR((#REF!/#REF!)*100,"") ->  | J31: =IFERROR((#REF!/#REF!)*100,"") ->  | K31: =IFERROR((#REF!/#REF!)*100,"") ->  | L31: =IFERROR((#REF!/#REF!)*100,"") -> 
B32: =IFERROR(VLOOKUP($C32,#REF!,3,FALSE),"") ->  | I32: =IFERROR((#REF!/#REF!)*100,"") ->  | J32: =IFERROR((#REF!/#REF!)*100,"") ->  | K32: =IFERROR((#REF!/#REF!)*100,"") ->  | L32: =IFERROR((#REF!/#REF!)*100,"") -> 
B33: =IFERROR(VLOOKUP($C33,#REF!,3,FALSE),"") ->  | I33: =IFERROR((#REF!/#REF!)*100,"") ->  | J33: =IFERROR((#REF!/#REF!)*100,"") ->  | K33: =IFERROR((#REF!/#REF!)*100,"") ->  | L33: =IFERROR((#REF!/#REF!)*100,"") -> 
B34: =IFERROR(VLOOKUP($C34,#REF!,3,FALSE),"") ->  | I34: =IFERROR((#REF!/#REF!)*100,"") ->  | J34: =IFERROR((#REF!/#REF!)*100,"") ->  | K34: =IFERROR((#REF!/#REF!)*100,"") ->  | L34: =IFERROR((#REF!/#REF!)*100,"") -> 
B35: =IFERROR(VLOOKUP($C35,#REF!,3,FALSE),"") ->  | I35: =IFERROR((#REF!/#REF!)*100,"") ->  | J35: =IFERROR((#REF!/#REF!)*100,"") ->  | K35: =IFERROR((#REF!/#REF!)*100,"") ->  | L35: =IFERROR((#REF!/#REF!)*100,"") -> 
B36: =IFERROR(VLOOKUP($C36,#REF!,3,FALSE),"") ->  | I36: =IFERROR((#REF!/#REF!)*100,"") ->  | J36: =IFERROR((#REF!/#REF!)*100,"") ->  | K36: =IFERROR((#REF!/#REF!)*100,"") ->  | L36: =IFERROR((#REF!/#REF!)*100,"") -> 
B37: =IFERROR(VLOOKUP($C37,#REF!,3,FALSE),"") ->  | I37: =IFERROR((#REF!/#REF!)*100,"") ->  | J37: =IFERROR((#REF!/#REF!)*100,"") ->  | K37: =IFERROR((#REF!/#REF!)*100,"") ->  | L37: =IFERROR((#REF!/#REF!)*100,"") -> 
B38: =IFERROR(VLOOKUP($C38,#REF!,3,FALSE),"") ->  | I38: =IFERROR((#REF!/#REF!)*100,"") ->  | J38: =IFERROR((#REF!/#REF!)*100,"") ->  | K38: =IFERROR((#REF!/#REF!)*100,"") ->  | L38: =IFERROR((#REF!/#REF!)*100,"") -> 
B39: =IFERROR(VLOOKUP($C39,#REF!,3,FALSE),"") ->  | I39: =IFERROR((#REF!/#REF!)*100,"") ->  | J39: =IFERROR((#REF!/#REF!)*100,"") ->  | K39: =IFERROR((#REF!/#REF!)*100,"") ->  | L39: =IFERROR((#REF!/#REF!)*100,"") -> 
B40: =IFERROR(VLOOKUP($C40,#REF!,3,FALSE),"") ->  | I40: =IFERROR((#REF!/#REF!)*100,"") ->  | J40: =IFERROR((#REF!/#REF!)*100,"") ->  | K40: =IFERROR((#REF!/#REF!)*100,"") ->  | L40: =IFERROR((#REF!/#REF!)*100,"") -> 
B41: =IFERROR(VLOOKUP($C41,#REF!,3,FALSE),"") ->  | I41: =IFERROR((#REF!/#REF!)*100,"") ->  | J41: =IFERROR((#REF!/#REF!)*100,"") ->  | K41: =IFERROR((#REF!/#REF!)*100,"") ->  | L41: =IFERROR((#REF!/#REF!)*100,"") -> 
B42: =IFERROR(VLOOKUP($C42,#REF!,3,FALSE),"") ->  | I42: =IFERROR((#REF!/#REF!)*100,"") ->  | J42: =IFERROR((#REF!/#REF!)*100,"") ->  | K42: =IFERROR((#REF!/#REF!)*100,"") ->  | L42: =IFERROR((#REF!/#REF!)*100,"") -> 
B43: =IFERROR(VLOOKUP($C43,#REF!,3,FALSE),"") ->  | I43: =IFERROR((#REF!/#REF!)*100,"") ->  | J43: =IFERROR((#REF!/#REF!)*100,"") ->  | K43: =IFERROR((#REF!/#REF!)*100,"") ->  | L43: =IFERROR((#REF!/#REF!)*100,"") -> 
B44: =IFERROR(VLOOKUP($C44,#REF!,3,FALSE),"") ->  | I44: =IFERROR((#REF!/#REF!)*100,"") ->  | J44: =IFERROR((#REF!/#REF!)*100,"") ->  | K44: =IFERROR((#REF!/#REF!)*100,"") ->  | L44: =IFERROR((#REF!/#REF!)*100,"") -> 
B45: =IFERROR(VLOOKUP($C45,#REF!,3,FALSE),"") ->  | I45: =IFERROR((#REF!/#REF!)*100,"") ->  | J45: =IFERROR((#REF!/#REF!)*100,"") ->  | K45: =IFERROR((#REF!/#REF!)*100,"") ->  | L45: =IFERROR((#REF!/#REF!)*100,"") -> 
B46: =IFERROR(VLOOKUP($C46,#REF!,3,FALSE),"") ->  | I46: =IFERROR((#REF!/#REF!)*100,"") ->  | J46: =IFERROR((#REF!/#REF!)*100,"") ->  | K46: =IFERROR((#REF!/#REF!)*100,"") ->  | L46: =IFERROR((#REF!/#REF!)*100,"") -> 
B47: =IFERROR(VLOOKUP($C47,#REF!,3,FALSE),"") ->  | I47: =IFERROR((#REF!/#REF!)*100,"") ->  | J47: =IFERROR((#REF!/#REF!)*100,"") ->  | K47: =IFERROR((#REF!/#REF!)*100,"") ->  | L47: =IFERROR((#REF!/#REF!)*100,"") -> 
B50: PRINCIPALES ACCIONES REALIZADAS CON RECURSOS DE ORIGEN FEDERAL:
B51: 124 004 P002-Promoción Integral para el Cumplimiento de los Derechos Humanos; A través de la Obra por Administración se realizaron los trabajos en la repartición de agua potable a través de los camiones tipo Pipas, con un acumulado de 1,501,885.00 m3 en las siguientes garzas: 1. GARZA HUIPULCO. En las siguientes colonias: 3 de Mayo, Achichipilco, Ahuacatitla, Altos Tepetlica, Amalillo, Ampliación Ayocatitla, Ampliación Guadalupana, Ampliación la Magdalena Petlacalco, Ampliación la Venta, Ampliación Lomas de Texcalatlaco, Ampliación Oriente, Ampliación Parres, Ampliación Plan de Ayala, Ampliación Tezontitla, Arenal, Atocpa, Ayocatitla, Ayometitla, Bosques de Tepeximilpa, Colinas de Tepuente, Colonial del Valle, Cuanejaque, Cuauhtenco, Diamante, Dolores Tlalli, Ejidos de San Pedro Mártir, El Arenal Tlahuepa, El Calvario, El Cantil, El Divisadero, El Mirador, Encinos del Pedregal, Estrella Mora, Fuentes de Tepepan, Héroes de 1910, Huinisco, Ixtlahuaca, Izpangologuia, Jardines de San Juan, La Concepción, La Faja, La Guadalupana, La Joyita, La Libertad, La Palma, La Pedrera, La Presa, La Quinta, La Venta, Las Flores, Las Margaritas, Lomas de Tepuente, Lomas de Texcalatlaco, Lomas del Capulín, Los Ángeles, Los Arcos, Los Volcanes, Magdalena Petlacalco, Magueyera, Mesa los Hornos, Miguel Hidalgo 1a Secc., Mirador del Colibrí, Nueva Renacimiento de Axalco, Ocotes Parres, Ocotla, Oyameyo, Paraje Huinizco, Paraje La Cima, Paraje La Herradura, Paraje las Maravillas, Paraje Tenancatitla, Paraje Tlaquexpa, Parres El Guarda, Pedregal de Aminco, Pedregal de las Águilas, Piedra Larga, Plan de Ayala, Plan de Ayala 2a Secc. (Ampliación), Progreso Tlalpan, San Andrés Totoltepec, San Bartolo el Chico, San Buenaventura (Pueblo San Andrés Totoltepec), San Miguel Ajusco, San Miguel Tehuizco, San Miguel Topilejo, San Miguel Toxiac, San Miguel Xicalco, San Pedro Mártir, Santa Ana, Santa Cruz, Santa Úrsula Xitla, Santo Tomás Ajusco, Tepetitla, Tepetlica, Teposanes, Tepuente, Tetexaloca, Tezontitla, Tlaxopan, Tlaxopan Norte, U.H. Hueytlalpan, Valle Verde, Vista Hermosa, Vistas Del Valle, Viveros de Coatectlan, Viveros de Cuernavaca, Xaltipac, Xaxalco, Xilinimoco. Acumulado x Garza 374,540.00m3. 2. GARZA FLACSO. En las siguientes colonias: 2 de Octubre, Achichipilco, Ampliación la Venta, Ampliación Miguel Hidalgo, Belvedere, Bosques, Bosques del Pedregal, Chichicaspatl, Chimilli, Cruz del Farol, Cuchilla de Padierna, Cuilotepec, Cuilotepec II, Cultura Maya, Ejidos de San Andrés, Ejidos de San Andrés Totoltepec, El Mirador, Estación la Venta, Héroes de 1910, Héroes de Padierna, Jardines de San Juan, La Joya (Ajusco), La Magueyera, La Quinta, La Venta, Lomas de Cuilotepec, Lomas de Padierna, Lomas de Padierna II, Lomas de Padierna Sur, Lomas de Tepemecatl, Lomas de Texcalatlaco, Lomas del Capulín, Lomas del Pedregal, Lomas Hidalgo, Los Encinos, Miguel Hidalgo 1a Secc., Miguel Hidalgo 2a Secc., Miguel Hidalgo 3a Secc., Miguel Hidalgo 4a. Secc., Mirador 1a Secc., Mirador 2a Secc., Mirador 3a Secc., Mirador I, Mirador II, Paraje 38, Paraje del Conejo, Paraje la Herradura, Paraje la Joya, Pedregal de San Nicolás, Primavera, San Miguel Ajusco, San Miguel Tehuizco, San Miguel Toxiac, San Nicolás II, Santa Cruz, Santo Tomas Ajusco, Tequimila, Torres de Padierna, Vistas del Pedregal, Zacatón, Zorros Solidaridad. Acumulado x Garza 403,948.00 m3. 3. GARZA POZO XOCHIMILCO 30. En las siguientes colonias:2 de Octubre, 3 de Mayo, 3 de Mayo (Ampliación), Achichipilco, Ahuacatitla, Altos Tepetlica, Amalillo, Ampliación Ayocatitla, Ampliacion Guadalupana, Ampliación la Venta, Ampliación Lomas de Texcalatlaco, Ampliación los Ángeles, Ampliación Oriente, Ampliación Parres, Ampliación Plan de Ayala, Arenal, Atocpa, Ayocatitla, Ayometitla, Colonial del Valle, Cuanejaque, Diamante, Dolores Tlalli, El Calvario, El Divisadero, El Mirador, Estrella Mora, Fuentes de Tepepan, Huinisco, Ixtlahuaca, Izpangologuia, Jardines de San Juan, La Concepción, La Faja, La Guadalupana, La Joya, La Joya (Ajusco), La Joyita, La Libertad, La Magueyera, La Palma, La Pedrera, La Venta, Las Flores, Las Margaritas, Lomas de Coatectlan, Lomas de Tepuente, Lomas de Texcalatlaco, Lomas del Capulín, Los Ángeles, Los Volcanes, Magdalena Petlacalco, Magueyera, María Esther Zuno de Echeverría, Mesa los Hornos, Mirador del Colibrí, Mirador del Valle, Mirador del Valle(Pueblo de la Magdalena Petlacalco), Nueva Renacimiento de Axalco, Ocotes Parres, Ocotla, Oyameyo, Paraje Huinizco, Paraje la Cima, Paraje la Herradura, Paraje las Maravillas, Paraje Loloigque, Paraje Texcalatlaco, Paraje Tlaquexpa, Parajes: La Joya, La Magueyera, La Faja, La Joyita y La Pedrera, Parres el Guarda, Pedregal de Aminco, Pedregal del Topilejo, Piedra Larga, Plan de Ayala, San Andrés Totoltepec, San Miguel Ajusco, San Miguel Tehuizco, San Miguel Topilejo, San Miguel Toxiac, San Miguel Xicalco, San Pedro Mártir, Santa Cruz, Santa Úrsula Xitla, Santo Tomás Ajusco, Tecorral, Tepetitla, Tepetlica, Tepuente, Tezontitla, Tlalcoligia, Tlalpan Centro 1, Tlaxopan, U.H. Hueytlalpan, Valle Verde, Vista Hermosa, Vistas del Valle, Viveros de Coatectlan, Xaltipac, Xaxalco, Xaxalipac. Acumulado x Garza 351,248.00 m3. 4. GARZA TULYEHUALCO 13. En las siguientes colonias: 2 de Octubre, 3 de Mayo, 3 de Mayo (Ampliación), Achichipilco, Achichipisco, Ahuacatitla, Altos , epetlica, Amalillo, Ampliación Ayocatitla, Ampliación Guadalupana, Ampliación la Magdalena Petlacalco, Ampliación Lomas de Texcalatlaco, Ampliación Oriente, Ampliación Parres, Ampliación Plan de Ayala, Ampliación Tezontitla, Arenal, Atocpa, Ayocatitla, Ayometitla, Buenavista, Colonial del Valle, Cuanejaque, Cuauhtenco, Diamante, Dolores Tlalli, El Divisadero, El Mirador, Encinos del Pedregal, Huinisco, Jardines de San Juan, La Concepción, La Faja, La Fama, La Guadalupana, La Joyita, La Libertad, La Magueyera, La Palma, La Palma 1a Secc., La Venta, Las Flores, Las Margaritas, Lomas de Coatectlan, Lomas de Tepuente, Lomas de Texcalatlaco, Lomas del Capulín, Los Ángeles, Magdalena Petlacalco, Magueyera, María Esther Zuno de Echeverría, Mesa los Hornos, Mirador del Colibrí, Nueva Renacimiento de Axalco, Ocotla, Paraje Huinizco, Paraje la Raíz, Paraje las Maravillas, Paraje Loloigque, Paraje Tlaquexpa, Parres el Guarda, Pedregal de San Francisco, Pedregal de Santa Úrsula Xitla, Pepeloncoztla, Piedra Larga, Plan de Ayala, Progreso Tlalpan, Rinconada El Mirador, San Andrés Totoltepec, San Miguel Ajusco, San Miguel Tehuizco, San Miguel Topilejo, San Miguel Toxiac, San Miguel Xicalco, San Pedro Mártir, Santa Ana, Santa Cruz, Tepetlica, Teposanes, Tepuente, Tetecala, Tetexaloca, Tezontitla, Tlalpan Centro 1, Tlalpuente, Tlaxopan, U.H. Hueytlalpan, Valle Verde, Vista Hermosa, Vistas del Valle, Viveros de Coatectlan, Xacaltitla, Xaltipac, Xaxalco, Xaxalipac, Xilinimoco. Acumulado x Garza 313,085.00 m3. 5.-GARZA TORIELLO GUERRA : 2 de Octubre, Bosques del Pedregal, Chichicaspatl, Héroes de Padierna, Jardines de San Juan, Lomas de Cuilotepec, San Miguel Ajusco, San Nicolás II, Santo Tomás Ajusco, Zacatón, Zorros Solidaridad. Acumulado x Garza 59,064.00 m3 | Z51: =246922+266900+234648+204048+38393 -> 990911
A58: Al periodo y por instrucción de la Dirección de Administración se llevan a acabo los trabajos de Repartición de Agua Potable atavés de los camiones tipo pipas, en el programa presupuestario Promoción Integral para el Cumplimiento de los Derechos Humanos, en los cuales se adicionaron recursos debido a que el monto orginal fué insuficiente para atender la demanda ciudadana por la pandemia del COVID-19, por lo que cuenta con 4 fondos los cuales son: NO ETIQUETADO RECURSOS FISCALES-FISCALES-FISCALES-2021-ORIGINAL DE LA URG, NO ETIQUETADO RECURSOS FEDERALES-PARTICIPACIONES A ENTIDADES FEDERATIVAS Y MUNICIPIOS-FONDO GENERAL DE PARTICIPACIONES-2021-ORIGINAL DE LA URG, NO ETIQUETADO RECURSOS FEDERALES-PARTICIPACIONES A ENTIDADES FEDERATIVAS Y MUNICIPIOS-PARTICIPACIONES A LA VENTA FINAL DE GASOLINA Y DIESEL-2022-ORIGINAL DE LA URG (15O610) y FORTAMUN en este último se verá reflejada la meta ejecutada.
A59: 221 049 E124-Se autorizaron recursos de la partida 2611 para la compra de Combustible,lubricantes y aditivos la cual es una partida centralizada; En este programa presupuestal no se reflejará meta realizada a través de la Obra por Administración, la cual se realziará en su totalidad en el Fondo Participaciones Federales 15O210..
B60: 223 202 K014-Se autorizaron recursos de la partida 2611 para la compra de Combustible,lubricantes y aditivos y 2961 para la compra de Refacciones y accesorios de equipo de transporte, las cuales son partidas centralizadas; En este programa presupuestal no se reflejará meta realizada la cual se llevará en el Fondo Participaciones Federales 15O410 para los trabajos de Mantenimiento y rehabilitación de Agua Potable, Drenaje y Desazolve.
B61: 221 274 K016-Se autorizaron recursos que refieren al capítulo 2000 partidas 2411 mezcla asfáltica, 2421 compra de cemento, 2511 productos químicos, los cuales son apoyo para la meta que se ve refeljada en el fondo 15OC10 para la atención de mantenimiento a la infraestructura pública (Edificios Públicos). Por otro lado a través de la Obra por contrato se aperturó el proyecto denominado: Pavimentación asfáltica de todas las calles del Pueblo de San Miguel Topilejo con clave 12-157, con recursos del Presupuesto Participativo DG:65 el cual cuenta con 2 fondos de financiamiento el cual es Fiscales será complemento a la meta ejecutada en este fondo.

Sheet AP_RF FORTAMUN 25P114
B2: AP-RF AVANCE PRESUPUESTAL DE RECURSOS DE ORIGEN FEDERAL
B3: FONDO, CONVENIO, SUBSIDIO O PARTICIPACIÓN: (1)
B5: Unidad Responsable de Gasto: | F5: DIRECCIÓN GENERAL DE OBRAS Y DESARROLLO URBANO
B6: Período: | F6: Enero-Diciembre 2021
B8: FONDO | F8: PARTICIPACIONES A ENTIDADES FEDERATIVAS Y MUNICIPIOS (15OZ04)
B10: R E S U L T A D O S
B11: PRESUPUESTO (Pesos con dos decimales) | I11: AVANCE %
B12: APROBADO | C12: MODIFICADO | D12: PROGRAMADO | E12: SALDO DEL COMPROMISO | F12: DEVENGADO | G12: EJERCIDO | H12: PAGADO | I12: (DEVENGADO / APROBADO)*100 | J12: (DEVENGADO / MODIFICADO)*100 | K12: (EJERCIDO / APROBADO)*100 | L12: (EJERCIDO / MODIFICADO)*100
B13: 0 | C13: =14200+17421.14 -> 31621.14 | D13: =14200+17421.14 -> 31621.14 | E13: =14200+17421.14 -> 31621.14 | F13: =14200+17421.14 -> 31621.14 | G13: 0 | H13: 0 | I13: 0 | J13: =IFERROR(($F13/$B13)*100,"") ->  | K13: =IFERROR(($G13/$B13)*100,"") ->  | L13: =IFERROR(($G13/$C13)*100,"") -> 0
I15: =IFERROR((#REF!/#REF!)*100,"") ->  | J15: =IFERROR((#REF!/#REF!)*100,"") ->  | K15: =IFERROR((#REF!/#REF!)*100,"") ->  | L15: =IFERROR((#REF!/#REF!)*100,"") -> 
I16: =IFERROR((#REF!/#REF!)*100,"") ->  | J16: =IFERROR((#REF!/#REF!)*100,"") ->  | K16: =IFERROR((#REF!/#REF!)*100,"") ->  | L16: =IFERROR((#REF!/#REF!)*100,"") -> 
B17: =IFERROR(VLOOKUP($C17,#REF!,3,FALSE),"") ->  | G17: =IFERROR(F17/C17,"") ->  | H17: =IFERROR((F17/D17*100),"") ->  | I17: =IFERROR((#REF!/#REF!)*100,"") ->  | J17: =IFERROR((#REF!/#REF!)*100,"") ->  | K17: =IFERROR((#REF!/#REF!)*100,"") ->  | L17: =IFERROR((#REF!/#REF!)*100,"") -> 
B18: =IFERROR(VLOOKUP($C18,#REF!,3,FALSE),"") ->  | I18: =IFERROR((#REF!/#REF!)*100,"") ->  | J18: =IFERROR((#REF!/#REF!)*100,"") ->  | K18: =IFERROR((#REF!/#REF!)*100,"") ->  | L18: =IFERROR((#REF!/#REF!)*100,"") -> 
B19: =IFERROR(VLOOKUP($C19,#REF!,3,FALSE),"") ->  | I19: =IFERROR((#REF!/#REF!)*100,"") ->  | J19: =IFERROR((#REF!/#REF!)*100,"") ->  | K19: =IFERROR((#REF!/#REF!)*100,"") ->  | L19: =IFERROR((#REF!/#REF!)*100,"") -> 
B20: =IFERROR(VLOOKUP($C20,#REF!,3,FALSE),"") ->  | I20: =IFERROR((#REF!/#REF!)*100,"") ->  | J20: =IFERROR((#REF!/#REF!)*100,"") ->  | K20: =IFERROR((#REF!/#REF!)*100,"") ->  | L20: =IFERROR((#REF!/#REF!)*100,"") -> 
B21: =IFERROR(VLOOKUP($C21,#REF!,3,FALSE),"") ->  | I21: =IFERROR((#REF!/#REF!)*100,"") ->  | J21: =IFERROR((#REF!/#REF!)*100,"") ->  | K21: =IFERROR((#REF!/#REF!)*100,"") ->  | L21: =IFERROR((#REF!/#REF!)*100,"") -> 
B22: =IFERROR(VLOOKUP($C22,#REF!,3,FALSE),"") ->  | I22: =IFERROR((#REF!/#REF!)*100,"") ->  | J22: =IFERROR((#REF!/#REF!)*100,"") ->  | K22: =IFERROR((#REF!/#REF!)*100,"") ->  | L22: =IFERROR((#REF!/#REF!)*100,"") -> 
B23: =IFERROR(VLOOKUP($C23,#REF!,3,FALSE),"") ->  | I23: =IFERROR((#REF!/#REF!)*100,"") ->  | J23: =IFERROR((#REF!/#REF!)*100,"") ->  | K23: =IFERROR((#REF!/#REF!)*100,"") ->  | L23: =IFERROR((#REF!/#REF!)*100,"") -> 
B24: =IFERROR(VLOOKUP($C24,#REF!,3,FALSE),"") ->  | I24: =IFERROR((#REF!/#REF!)*100,"") ->  | J24: =IFERROR((#REF!/#REF!)*100,"") ->  | K24: =IFERROR((#REF!/#REF!)*100,"") ->  | L24: =IFERROR((#REF!/#REF!)*100,"") -> 
B25: =IFERROR(VLOOKUP($C25,#REF!,3,FALSE),"") ->  | I25: =IFERROR((#REF!/#REF!)*100,"") ->  | J25: =IFERROR((#REF!/#REF!)*100,"") ->  | K25: =IFERROR((#REF!/#REF!)*100,"") ->  | L25: =IFERROR((#REF!/#REF!)*100,"") -> 
B26: =IFERROR(VLOOKUP($C26,#REF!,3,FALSE),"") ->  | I26: =IFERROR((#REF!/#REF!)*100,"") ->  | J26: =IFERROR((#REF!/#REF!)*100,"") ->  | K26: =IFERROR((#REF!/#REF!)*100,"") ->  | L26: =IFERROR((#REF!/#REF!)*100,"") -> 
B27: =IFERROR(VLOOKUP($C27,#REF!,3,FALSE),"") ->  | I27: =IFERROR((#REF!/#REF!)*100,"") ->  | J27: =IFERROR((#REF!/#REF!)*100,"") ->  | K27: =IFERROR((#REF!/#REF!)*100,"") ->  | L27: =IFERROR((#REF!/#REF!)*100,"") -> 
B28: =IFERROR(VLOOKUP($C28,#REF!,3,FALSE),"") ->  | I28: =IFERROR((#REF!/#REF!)*100,"") ->  | J28: =IFERROR((#REF!/#REF!)*100,"") ->  | K28: =IFERROR((#REF!/#REF!)*100,"") ->  | L28: =IFERROR((#REF!/#REF!)*100,"") -> 
B29: =IFERROR(VLOOKUP($C29,#REF!,3,FALSE),"") ->  | I29: =IFERROR((#REF!/#REF!)*100,"") ->  | J29: =IFERROR((#REF!/#REF!)*100,"") ->  | K29: =IFERROR((#REF!/#REF!)*100,"") ->  | L29: =IFERROR((#REF!/#REF!)*100,"") -> 
B30: =IFERROR(VLOOKUP($C30,#REF!,3,FALSE),"") ->  | I30: =IFERROR((#REF!/#REF!)*100,"") ->  | J30: =IFERROR((#REF!/#REF!)*100,"") ->  | K30: =IFERROR((#REF!/#REF!)*100,"") ->  | L30: =IFERROR((#REF!/#REF!)*100,"") -> 
B31: =IFERROR(VLOOKUP($C31,#REF!,3,FALSE),"") ->  | I31: =IFERROR((#REF!/#REF!)*100,"") ->  | J31: =IFERROR((#REF!/#REF!)*100,"") ->  | K31: =IFERROR((#REF!/#REF!)*100,"") ->  | L31: =IFERROR((#REF!/#REF!)*100,"") -> 
B32: =IFERROR(VLOOKUP($C32,#REF!,3,FALSE),"") ->  | I32: =IFERROR((#REF!/#REF!)*100,"") ->  | J32: =IFERROR((#REF!/#REF!)*100,"") ->  | K32: =IFERROR((#REF!/#REF!)*100,"") ->  | L32: =IFERROR((#REF!/#REF!)*100,"") -> 
B33: =IFERROR(VLOOKUP($C33,#REF!,3,FALSE),"") ->  | I33: =IFERROR((#REF!/#REF!)*100,"") ->  | J33: =IFERROR((#REF!/#REF!)*100,"") ->  | K33: =IFERROR((#REF!/#REF!)*100,"") ->  | L33: =IFERROR((#REF!/#REF!)*100,"") -> 
B34: =IFERROR(VLOOKUP($C34,#REF!,3,FALSE),"") ->  | I34: =IFERROR((#REF!/#REF!)*100,"") ->  | J34: =IFERROR((#REF!/#REF!)*100,"") ->  | K34: =IFERROR((#REF!/#REF!)*100,"") ->  | L34: =IFERROR((#REF!/#REF!)*100,"") -> 
B35: =IFERROR(VLOOKUP($C35,#REF!,3,FALSE),"") ->  | I35: =IFERROR((#REF!/#REF!)*100,"") ->  | J35: =IFERROR((#REF!/#REF!)*100,"") ->  | K35: =IFERROR((#REF!/#REF!)*100,"") ->  | L35: =IFERROR((#REF!/#REF!)*100,"") -> 
B36: =IFERROR(VLOOKUP($C36,#REF!,3,FALSE),"") ->  | I36: =IFERROR((#REF!/#REF!)*100,"") ->  | J36: =IFERROR((#REF!/#REF!)*100,"") ->  | K36: =IFERROR((#REF!/#REF!)*100,"") ->  | L36: =IFERROR((#REF!/#REF!)*100,"") -> 
B37: =IFERROR(VLOOKUP($C37,#REF!,3,FALSE),"") ->  | I37: =IFERROR((#REF!/#REF!)*100,"") ->  | J37: =IFERROR((#REF!/#REF!)*100,"") ->  | K37: =IFERROR((#REF!/#REF!)*100,"") ->  | L37: =IFERROR((#REF!/#REF!)*100,"") -> 
B38: =IFERROR(VLOOKUP($C38,#REF!,3,FALSE),"") ->  | I38: =IFERROR((#REF!/#REF!)*100,"") ->  | J38: =IFERROR((#REF!/#REF!)*100,"") ->  | K38: =IFERROR((#REF!/#REF!)*100,"") ->  | L38: =IFERROR((#REF!/#REF!)*100,"") -> 
B39: =IFERROR(VLOOKUP($C39,#REF!,3,FALSE),"") ->  | I39: =IFERROR((#REF!/#REF!)*100,"") ->  | J39: =IFERROR((#REF!/#REF!)*100,"") ->  | K39: =IFERROR((#REF!/#REF!)*100,"") ->  | L39: =IFERROR((#REF!/#REF!)*100,"") -> 
B40: =IFERROR(VLOOKUP($C40,#REF!,3,FALSE),"") ->  | I40: =IFERROR((#REF!/#REF!)*100,"") ->  | J40: =IFERROR((#REF!/#REF!)*100,"") ->  | K40: =IFERROR((#REF!/#REF!)*100,"") ->  | L40: =IFERROR((#REF!/#REF!)*100,"") -> 
B41: =IFERROR(VLOOKUP($C41,#REF!,3,FALSE),"") ->  | I41: =IFERROR((#REF!/#REF!)*100,"") ->  | J41: =IFERROR((#REF!/#REF!)*100,"") ->  | K41: =IFERROR((#REF!/#REF!)*100,"") ->  | L41: =IFERROR((#REF!/#REF!)*100,"") -> 
B42: =IFERROR(VLOOKUP($C42,#REF!,3,FALSE),"") ->  | I42: =IFERROR((#REF!/#REF!)*100,"") ->  | J42: =IFERROR((#REF!/#REF!)*100,"") ->  | K42: =IFERROR((#REF!/#REF!)*100,"") ->  | L42: =IFERROR((#REF!/#REF!)*100,"") -> 
B43: =IFERROR(VLOOKUP($C43,#REF!,3,FALSE),"") ->  | I43: =IFERROR((#REF!/#REF!)*100,"") ->  | J43: =IFERROR((#REF!/#REF!)*100,"") ->  | K43: =IFERROR((#REF!/#REF!)*100,"") ->  | L43: =IFERROR((#REF!/#REF!)*100,"") -> 
B44: =IFERROR(VLOOKUP($C44,#REF!,3,FALSE),"") ->  | I44: =IFERROR((#REF!/#REF!)*100,"") ->  | J44: =IFERROR((#REF!/#REF!)*100,"") ->  | K44: =IFERROR((#REF!/#REF!)*100,"") ->  | L44: =IFERROR((#REF!/#REF!)*100,"") -> 
B45: =IFERROR(VLOOKUP($C45,#REF!,3,FALSE),"") ->  | I45: =IFERROR((#REF!/#REF!)*100,"") ->  | J45: =IFERROR((#REF!/#REF!)*100,"") ->  | K45: =IFERROR((#REF!/#REF!)*100,"") ->  | L45: =IFERROR((#REF!/#REF!)*100,"") -> 
B46: =IFERROR(VLOOKUP($C46,#REF!,3,FALSE),"") ->  | I46: =IFERROR((#REF!/#REF!)*100,"") ->  | J46: =IFERROR((#REF!/#REF!)*100,"") ->  | K46: =IFERROR((#REF!/#REF!)*100,"") ->  | L46: =IFERROR((#REF!/#REF!)*100,"") -> 
B47: =IFERROR(VLOOKUP($C47,#REF!,3,FALSE),"") ->  | I47: =IFERROR((#REF!/#REF!)*100,"") ->  | J47: =IFERROR((#REF!/#REF!)*100,"") ->  | K47: =IFERROR((#REF!/#REF!)*100,"") ->  | L47: =IFERROR((#REF!/#REF!)*100,"") -> 
B50: PRINCIPALES ACCIONES REALIZADAS CON RECURSOS DE ORIGEN FEDERAL:
B51: Al periodo no hay acciones realizadas
B58: 221 274 K016-A través de la Obra por Administración se adicionan recusros del capítulo 2000, debido a que los de origen fueron insuficientes para realizar los trabajos de Matnimiento a diferentes tipos de inmuebles Públicos, las partidas autorizadas son: artículos para la construcción, material de limpieza la cual no pertenece a la DGODU, la meta ejecutada se verá reflejada en el fondo NO ETIQUETADO RECURSOS FEDERALES-PARTICIPACIONES A ENTIDADES FEDERATIVAS Y MUNICIPIOS-FONDO DE COMPENSACIÓN DEL IMPUESTO DE AUTOMÓVILES NUEVOS (ISAN) -2022-ORIGINAL DE LA URG (15OC10), ya que estos recursos son complemento.

Sheet AP_RF FAFEF 25P212
B2: AP-RF AVANCE PRESUPUESTAL DE RECURSOS DE ORIGEN FEDERAL
B3: FONDO, CONVENIO, SUBSIDIO O PARTICIPACIÓN: (1)
B5: Unidad Responsable de Gasto: | F5: DIRECCIÓN GENERAL DE OBRAS Y DESARROLLO URBANO
B6: Período: | F6: Enero-Diciembre 2021
B8: FONDO | F8: ETIQUETADO RECURSOS FEDERALES-APORTACIONES FEDERALES PARA ENTIDADES FEDERATIVAS Y MUNICIPIOS-FONDO DE APORTACIONES PARA EL FORTALECIMIENTO DE LAS ENTIDADES FEDERATIVAS (FAFEF)-2021-ORIGINAL DE LA URG
B10: R E S U L T A D O S
B11: PRESUPUESTO (Pesos con dos decimales) | I11: AVANCE %
B12: APROBADO | C12: MODIFICADO | D12: PROGRAMADO | E12: SALDO DEL COMPROMISO | F12: DEVENGADO | G12: EJERCIDO | H12: PAGADO | I12: (DEVENGADO / APROBADO)*100 | J12: (DEVENGADO / MODIFICADO)*100 | K12: (EJERCIDO / APROBADO)*100 | L12: (EJERCIDO / MODIFICADO)*100
B13: 0 | C13: 9124485 | D13: 8110653.34 | E13: 8110653.34 | F13: 8110653.34 | G13: 5040531.67 | H13: 0 | I13: 0 | J13: 0 | K13: 0 | L13: =IFERROR(($G13/$C13)*100,"") -> 55.24182099
I15: =IFERROR((#REF!/#REF!)*100,"") ->  | J15: =IFERROR((#REF!/#REF!)*100,"") ->  | K15: =IFERROR((#REF!/#REF!)*100,"") ->  | L15: =IFERROR((#REF!/#REF!)*100,"") -> 
I16: =IFERROR((#REF!/#REF!)*100,"") ->  | J16: =IFERROR((#REF!/#REF!)*100,"") ->  | K16: =IFERROR((#REF!/#REF!)*100,"") ->  | L16: =IFERROR((#REF!/#REF!)*100,"") -> 
B17: =IFERROR(VLOOKUP($C17,#REF!,3,FALSE),"") ->  | G17: =IFERROR(F17/C17,"") ->  | H17: =IFERROR((F17/D17*100),"") ->  | I17: =IFERROR((#REF!/#REF!)*100,"") ->  | J17: =IFERROR((#REF!/#REF!)*100,"") ->  | K17: =IFERROR((#REF!/#REF!)*100,"") ->  | L17: =IFERROR((#REF!/#REF!)*100,"") -> 
B18: =IFERROR(VLOOKUP($C18,#REF!,3,FALSE),"") ->  | I18: =IFERROR((#REF!/#REF!)*100,"") ->  | J18: =IFERROR((#REF!/#REF!)*100,"") ->  | K18: =IFERROR((#REF!/#REF!)*100,"") ->  | L18: =IFERROR((#REF!/#REF!)*100,"") -> 
B19: =IFERROR(VLOOKUP($C19,#REF!,3,FALSE),"") ->  | I19: =IFERROR((#REF!/#REF!)*100,"") ->  | J19: =IFERROR((#REF!/#REF!)*100,"") ->  | K19: =IFERROR((#REF!/#REF!)*100,"") ->  | L19: =IFERROR((#REF!/#REF!)*100,"") -> 
B20: =IFERROR(VLOOKUP($C20,#REF!,3,FALSE),"") ->  | I20: =IFERROR((#REF!/#REF!)*100,"") ->  | J20: =IFERROR((#REF!/#REF!)*100,"") ->  | K20: =IFERROR((#REF!/#REF!)*100,"") ->  | L20: =IFERROR((#REF!/#REF!)*100,"") -> 
B21: =IFERROR(VLOOKUP($C21,#REF!,3,FALSE),"") ->  | I21: =IFERROR((#REF!/#REF!)*100,"") ->  | J21: =IFERROR((#REF!/#REF!)*100,"") ->  | K21: =IFERROR((#REF!/#REF!)*100,"") ->  | L21: =IFERROR((#REF!/#REF!)*100,"") -> 
B22: =IFERROR(VLOOKUP($C22,#REF!,3,FALSE),"") ->  | I22: =IFERROR((#REF!/#REF!)*100,"") ->  | J22: =IFERROR((#REF!/#REF!)*100,"") ->  | K22: =IFERROR((#REF!/#REF!)*100,"") ->  | L22: =IFERROR((#REF!/#REF!)*100,"") -> 
B23: =IFERROR(VLOOKUP($C23,#REF!,3,FALSE),"") ->  | I23: =IFERROR((#REF!/#REF!)*100,"") ->  | J23: =IFERROR((#REF!/#REF!)*100,"") ->  | K23: =IFERROR((#REF!/#REF!)*100,"") ->  | L23: =IFERROR((#REF!/#REF!)*100,"") -> 
B24: =IFERROR(VLOOKUP($C24,#REF!,3,FALSE),"") ->  | I24: =IFERROR((#REF!/#REF!)*100,"") ->  | J24: =IFERROR((#REF!/#REF!)*100,"") ->  | K24: =IFERROR((#REF!/#REF!)*100,"") ->  | L24: =IFERROR((#REF!/#REF!)*100,"") -> 
B25: =IFERROR(VLOOKUP($C25,#REF!,3,FALSE),"") ->  | I25: =IFERROR((#REF!/#REF!)*100,"") ->  | J25: =IFERROR((#REF!/#REF!)*100,"") ->  | K25: =IFERROR((#REF!/#REF!)*100,"") ->  | L25: =IFERROR((#REF!/#REF!)*100,"") -> 
B26: =IFERROR(VLOOKUP($C26,#REF!,3,FALSE),"") ->  | I26: =IFERROR((#REF!/#REF!)*100,"") ->  | J26: =IFERROR((#REF!/#REF!)*100,"") ->  | K26: =IFERROR((#REF!/#REF!)*100,"") ->  | L26: =IFERROR((#REF!/#REF!)*100,"") -> 
B27: =IFERROR(VLOOKUP($C27,#REF!,3,FALSE),"") ->  | I27: =IFERROR((#REF!/#REF!)*100,"") ->  | J27: =IFERROR((#REF!/#REF!)*100,"") ->  | K27: =IFERROR((#REF!/#REF!)*100,"") ->  | L27: =IFERROR((#REF!/#REF!)*100,"") -> 
B28: =IFERROR(VLOOKUP($C28,#REF!,3,FALSE),"") ->  | I28: =IFERROR((#REF!/#REF!)*100,"") ->  | J28: =IFERROR((#REF!/#REF!)*100,"") ->  | K28: =IFERROR((#REF!/#REF!)*100,"") ->  | L28: =IFERROR((#REF!/#REF!)*100,"") -> 
B29: =IFERROR(VLOOKUP($C29,#REF!,3,FALSE),"") ->  | I29: =IFERROR((#REF!/#REF!)*100,"") ->  | J29: =IFERROR((#REF!/#REF!)*100,"") ->  | K29: =IFERROR((#REF!/#REF!)*100,"") ->  | L29: =IFERROR((#REF!/#REF!)*100,"") -> 
B30: =IFERROR(VLOOKUP($C30,#REF!,3,FALSE),"") ->  | I30: =IFERROR((#REF!/#REF!)*100,"") ->  | J30: =IFERROR((#REF!/#REF!)*100,"") ->  | K30: =IFERROR((#REF!/#REF!)*100,"") ->  | L30: =IFERROR((#REF!/#REF!)*100,"") -> 
B31: =IFERROR(VLOOKUP($C31,#REF!,3,FALSE),"") ->  | I31: =IFERROR((#REF!/#REF!)*100,"") ->  | J31: =IFERROR((#REF!/#REF!)*100,"") ->  | K31: =IFERROR((#REF!/#REF!)*100,"") ->  | L31: =IFERROR((#REF!/#REF!)*100,"") -> 
B32: =IFERROR(VLOOKUP($C32,#REF!,3,FALSE),"") ->  | I32: =IFERROR((#REF!/#REF!)*100,"") ->  | J32: =IFERROR((#REF!/#REF!)*100,"") ->  | K32: =IFERROR((#REF!/#REF!)*100,"") ->  | L32: =IFERROR((#REF!/#REF!)*100,"") -> 
B33: =IFERROR(VLOOKUP($C33,#REF!,3,FALSE),"") ->  | I33: =IFERROR((#REF!/#REF!)*100,"") ->  | J33: =IFERROR((#REF!/#REF!)*100,"") ->  | K33: =IFERROR((#REF!/#REF!)*100,"") ->  | L33: =IFERROR((#REF!/#REF!)*100,"") -> 
B34: =IFERROR(VLOOKUP($C34,#REF!,3,FALSE),"") ->  | I34: =IFERROR((#REF!/#REF!)*100,"") ->  | J34: =IFERROR((#REF!/#REF!)*100,"") ->  | K34: =IFERROR((#REF!/#REF!)*100,"") ->  | L34: =IFERROR((#REF!/#REF!)*100,"") -> 
B35: =IFERROR(VLOOKUP($C35,#REF!,3,FALSE),"") ->  | I35: =IFERROR((#REF!/#REF!)*100,"") ->  | J35: =IFERROR((#REF!/#REF!)*100,"") ->  | K35: =IFERROR((#REF!/#REF!)*100,"") ->  | L35: =IFERROR((#REF!/#REF!)*100,"") -> 
B36: =IFERROR(VLOOKUP($C36,#REF!,3,FALSE),"") ->  | I36: =IFERROR((#REF!/#REF!)*100,"") ->  | J36: =IFERROR((#REF!/#REF!)*100,"") ->  | K36: =IFERROR((#REF!/#REF!)*100,"") ->  | L36: =IFERROR((#REF!/#REF!)*100,"") -> 
B37: =IFERROR(VLOOKUP($C37,#REF!,3,FALSE),"") ->  | I37: =IFERROR((#REF!/#REF!)*100,"") ->  | J37: =IFERROR((#REF!/#REF!)*100,"") ->  | K37: =IFERROR((#REF!/#REF!)*100,"") ->  | L37: =IFERROR((#REF!/#REF!)*100,"") -> 
B38: =IFERROR(VLOOKUP($C38,#REF!,3,FALSE),"") ->  | I38: =IFERROR((#REF!/#REF!)*100,"") ->  | J38: =IFERROR((#REF!/#REF!)*100,"") ->  | K38: =IFERROR((#REF!/#REF!)*100,"") ->  | L38: =IFERROR((#REF!/#REF!)*100,"") -> 
B39: =IFERROR(VLOOKUP($C39,#REF!,3,FALSE),"") ->  | I39: =IFERROR((#REF!/#REF!)*100,"") ->  | J39: =IFERROR((#REF!/#REF!)*100,"") ->  | K39: =IFERROR((#REF!/#REF!)*100,"") ->  | L39: =IFERROR((#REF!/#REF!)*100,"") -> 
B40: =IFERROR(VLOOKUP($C40,#REF!,3,FALSE),"") ->  | I40: =IFERROR((#REF!/#REF!)*100,"") ->  | J40: =IFERROR((#REF!/#REF!)*100,"") ->  | K40: =IFERROR((#REF!/#REF!)*100,"") ->  | L40: =IFERROR((#REF!/#REF!)*100,"") -> 
B41: =IFERROR(VLOOKUP($C41,#REF!,3,FALSE),"") ->  | I41: =IFERROR((#REF!/#REF!)*100,"") ->  | J41: =IFERROR((#REF!/#REF!)*100,"") ->  | K41: =IFERROR((#REF!/#REF!)*100,"") ->  | L41: =IFERROR((#REF!/#REF!)*100,"") -> 
B42: =IFERROR(VLOOKUP($C42,#REF!,3,FALSE),"") ->  | I42: =IFERROR((#REF!/#REF!)*100,"") ->  | J42: =IFERROR((#REF!/#REF!)*100,"") ->  | K42: =IFERROR((#REF!/#REF!)*100,"") ->  | L42: =IFERROR((#REF!/#REF!)*100,"") -> 
B43: =IFERROR(VLOOKUP($C43,#REF!,3,FALSE),"") ->  | I43: =IFERROR((#REF!/#REF!)*100,"") ->  | J43: =IFERROR((#REF!/#REF!)*100,"") ->  | K43: =IFERROR((#REF!/#REF!)*100,"") ->  | L43: =IFERROR((#REF!/#REF!)*100,"") -> 
B44: =IFERROR(VLOOKUP($C44,#REF!,3,FALSE),"") ->  | I44: =IFERROR((#REF!/#REF!)*100,"") ->  | J44: =IFERROR((#REF!/#REF!)*100,"") ->  | K44: =IFERROR((#REF!/#REF!)*100,"") ->  | L44: =IFERROR((#REF!/#REF!)*100,"") -> 
B45: =IFERROR(VLOOKUP($C45,#REF!,3,FALSE),"") ->  | I45: =IFERROR((#REF!/#REF!)*100,"") ->  | J45: =IFERROR((#REF!/#REF!)*100,"") ->  | K45: =IFERROR((#REF!/#REF!)*100,"") ->  | L45: =IFERROR((#REF!/#REF!)*100,"") -> 
B46: =IFERROR(VLOOKUP($C46,#REF!,3,FALSE),"") ->  | I46: =IFERROR((#REF!/#REF!)*100,"") ->  | J46: =IFERROR((#REF!/#REF!)*100,"") ->  | K46: =IFERROR((#REF!/#REF!)*100,"") ->  | L46: =IFERROR((#REF!/#REF!)*100,"") -> 
B47: =IFERROR(VLOOKUP($C47,#REF!,3,FALSE),"") ->  | I47: =IFERROR((#REF!/#REF!)*100,"") ->  | J47: =IFERROR((#REF!/#REF!)*100,"") ->  | K47: =IFERROR((#REF!/#REF!)*100,"") ->  | L47: =IFERROR((#REF!/#REF!)*100,"") -> 
B50: PRINCIPALES ACCIONES REALIZADAS CON RECURSOS DE ORIGEN FEDERAL:
B51: 311 148 E150 Programa Integral de Movilidad Inteligente; A través de la Obra por Contrato se relizaron los trabajos en el proyecto denominado: Mantenimiento y Rehabilitación a Mercados con 4 inmuebles 1.-Mercado Flores San Fernando, ubicado en Calzada de Tlalpan y avenida San Fernando, Colonia Barrio de Niño Jesús, Trabajos realizados: instalación eléctrica interna, módulos, instalación eléctrica exterior, 2.-Mercado Fuentes Brotantes, ubicado en Interior del Parque Nacional Fuentes Brotantes, colonia Fuentes Brotantes, Trabajos realizados: instalación eléctrica, sistema de drenaje, ampliación de baños, áreas verdes y juegos, 3.-Mercado Villa Coapa, ubicado en Avenida canal de Miramontes s/n entre avenida Acoxpa y Caporal, colonia Villa Coapa, Trabajos realizados: sustitución de luminaria led, alimentadores a locales, alimentador a hidroneumático, alumbrado exterior, alimentadores en baja tensión CCTV y telefonía, extracción de aire, 4.-Mercado Plaza Mexicana del Sur, ubicado en Avenida Acoxpa, entre Calzada de Tlalpan y Viaducto Tlalpan, Col. San Lorenzo Huipulco, Trabajos realizados: instalación eléctrica
B57: 311 148 E150- En este programa presupuestario se aperturó el proyecto denominado Mantenimiento y Rehabilitación a Mercados con 4 inmuebles realizados,mismos que cuentan con tres Fuentes de Financiamiento:No etiquetado recursos fiscales-fiscales-fiscales-2021-original de la urg (Fiscales), Etiquetado Recursos Federales-Aportaciones Federales para Entidades Federativas y Municipios-Fondo de Aportaciones para el Fortalecimiento de las Entidades Federativas (FAFEF)-2021-Original de la URG, No Etiquetado Recursos Federales-Participaciones a Entidades Federativas y Municipios- Participaciones en el Impuesto Sobre Automóviles Nuevos-2021-Original de la URG, en dodnde se verán rfelejada la meta ejecutada., en dodnde se verán rfelejada la meta ejecutada, aún cuandolos frentes ya estan al 100%, se hace mención de uqe todavía se encuentran las estimacines en proceso de revisión y autorización de CLS.

Sheet AP_RF FAIS 25P610
B2: AP-RF AVANCE PRESUPUESTAL DE RECURSOS DE ORIGEN FEDERAL
B3: FONDO, CONVENIO, SUBSIDIO O PARTICIPACIÓN: (1)
B5: Unidad Responsable de Gasto: | F5: DIRECCIÓN GENERAL DE OBRAS Y DESARROLLO URBANO
B6: Período: | F6: Enero-Diciembre 2021
B8: FONDO | F8: ETIQUETADO RECURSOS FEDERALES-APORTACIONES FEDERALES PARA ENTIDADES FEDERATIVAS Y MUNICIPIOS-FONDO DE APORTACIONES PARA LA INFRAESTRUCTURA SOCIAL (FAIS)-2022-ORIGINAL DE LA URG
B10: R E S U L T A D O S
B11: PRESUPUESTO (Pesos con dos decimales) | I11: AVANCE %
B12: APROBADO | C12: MODIFICADO | D12: PROGRAMADO | E12: SALDO DEL COMPROMISO | F12: DEVENGADO | G12: EJERCIDO | H12: PAGADO | I12: (DEVENGADO / APROBADO)*100 | J12: (DEVENGADO / MODIFICADO)*100 | K12: (EJERCIDO / APROBADO)*100 | L12: (EJERCIDO / MODIFICADO)*100
B13: 94530581 | C13: 94530581 | D13: 93631908 | E13: 0 | F13: 0 | G13: 0 | H13: 0 | I13: 0 | J13: 0 | K13: 0 | L13: 0
I15: =IFERROR((#REF!/#REF!)*100,"") ->  | J15: =IFERROR((#REF!/#REF!)*100,"") ->  | K15: =IFERROR((#REF!/#REF!)*100,"") ->  | L15: =IFERROR((#REF!/#REF!)*100,"") -> 
I16: =IFERROR((#REF!/#REF!)*100,"") ->  | J16: =IFERROR((#REF!/#REF!)*100,"") ->  | K16: =IFERROR((#REF!/#REF!)*100,"") ->  | L16: =IFERROR((#REF!/#REF!)*100,"") -> 
B17: =IFERROR(VLOOKUP($C17,#REF!,3,FALSE),"") ->  | G17: =IFERROR(F17/C17,"") ->  | H17: =IFERROR((F17/D17*100),"") ->  | I17: =IFERROR((#REF!/#REF!)*100,"") ->  | J17: =IFERROR((#REF!/#REF!)*100,"") ->  | K17: =IFERROR((#REF!/#REF!)*100,"") ->  | L17: =IFERROR((#REF!/#REF!)*100,"") -> 
B18: =IFERROR(VLOOKUP($C18,#REF!,3,FALSE),"") ->  | I18: =IFERROR((#REF!/#REF!)*100,"") ->  | J18: =IFERROR((#REF!/#REF!)*100,"") ->  | K18: =IFERROR((#REF!/#REF!)*100,"") ->  | L18: =IFERROR((#REF!/#REF!)*100,"") -> 
B19: =IFERROR(VLOOKUP($C19,#REF!,3,FALSE),"") ->  | I19: =IFERROR((#REF!/#REF!)*100,"") ->  | J19: =IFERROR((#REF!/#REF!)*100,"") ->  | K19: =IFERROR((#REF!/#REF!)*100,"") ->  | L19: =IFERROR((#REF!/#REF!)*100,"") -> 
B20: =IFERROR(VLOOKUP($C20,#REF!,3,FALSE),"") ->  | I20: =IFERROR((#REF!/#REF!)*100,"") ->  | J20: =IFERROR((#REF!/#REF!)*100,"") ->  | K20: =IFERROR((#REF!/#REF!)*100,"") ->  | L20: =IFERROR((#REF!/#REF!)*100,"") -> 
B21: =IFERROR(VLOOKUP($C21,#REF!,3,FALSE),"") ->  | I21: =IFERROR((#REF!/#REF!)*100,"") ->  | J21: =IFERROR((#REF!/#REF!)*100,"") ->  | K21: =IFERROR((#REF!/#REF!)*100,"") ->  | L21: =IFERROR((#REF!/#REF!)*100,"") -> 
B22: =IFERROR(VLOOKUP($C22,#REF!,3,FALSE),"") ->  | I22: =IFERROR((#REF!/#REF!)*100,"") ->  | J22: =IFERROR((#REF!/#REF!)*100,"") ->  | K22: =IFERROR((#REF!/#REF!)*100,"") ->  | L22: =IFERROR((#REF!/#REF!)*100,"") -> 
B23: =IFERROR(VLOOKUP($C23,#REF!,3,FALSE),"") ->  | I23: =IFERROR((#REF!/#REF!)*100,"") ->  | J23: =IFERROR((#REF!/#REF!)*100,"") ->  | K23: =IFERROR((#REF!/#REF!)*100,"") ->  | L23: =IFERROR((#REF!/#REF!)*100,"") -> 
B24: =IFERROR(VLOOKUP($C24,#REF!,3,FALSE),"") ->  | I24: =IFERROR((#REF!/#REF!)*100,"") ->  | J24: =IFERROR((#REF!/#REF!)*100,"") ->  | K24: =IFERROR((#REF!/#REF!)*100,"") ->  | L24: =IFERROR((#REF!/#REF!)*100,"") -> 
B25: =IFERROR(VLOOKUP($C25,#REF!,3,FALSE),"") ->  | I25: =IFERROR((#REF!/#REF!)*100,"") ->  | J25: =IFERROR((#REF!/#REF!)*100,"") ->  | K25: =IFERROR((#REF!/#REF!)*100,"") ->  | L25: =IFERROR((#REF!/#REF!)*100,"") -> 
B26: =IFERROR(VLOOKUP($C26,#REF!,3,FALSE),"") ->  | I26: =IFERROR((#REF!/#REF!)*100,"") ->  | J26: =IFERROR((#REF!/#REF!)*100,"") ->  | K26: =IFERROR((#REF!/#REF!)*100,"") ->  | L26: =IFERROR((#REF!/#REF!)*100,"") -> 
B27: =IFERROR(VLOOKUP($C27,#REF!,3,FALSE),"") ->  | I27: =IFERROR((#REF!/#REF!)*100,"") ->  | J27: =IFERROR((#REF!/#REF!)*100,"") ->  | K27: =IFERROR((#REF!/#REF!)*100,"") ->  | L27: =IFERROR((#REF!/#REF!)*100,"") -> 
B28: =IFERROR(VLOOKUP($C28,#REF!,3,FALSE),"") ->  | I28: =IFERROR((#REF!/#REF!)*100,"") ->  | J28: =IFERROR((#REF!/#REF!)*100,"") ->  | K28: =IFERROR((#REF!/#REF!)*100,"") ->  | L28: =IFERROR((#REF!/#REF!)*100,"") -> 
B29: =IFERROR(VLOOKUP($C29,#REF!,3,FALSE),"") ->  | I29: =IFERROR((#REF!/#REF!)*100,"") ->  | J29: =IFERROR((#REF!/#REF!)*100,"") ->  | K29: =IFERROR((#REF!/#REF!)*100,"") ->  | L29: =IFERROR((#REF!/#REF!)*100,"") -> 
B30: =IFERROR(VLOOKUP($C30,#REF!,3,FALSE),"") ->  | I30: =IFERROR((#REF!/#REF!)*100,"") ->  | J30: =IFERROR((#REF!/#REF!)*100,"") ->  | K30: =IFERROR((#REF!/#REF!)*100,"") ->  | L30: =IFERROR((#REF!/#REF!)*100,"") -> 
B31: =IFERROR(VLOOKUP($C31,#REF!,3,FALSE),"") ->  | I31: =IFERROR((#REF!/#REF!)*100,"") ->  | J31: =IFERROR((#REF!/#REF!)*100,"") ->  | K31: =IFERROR((#REF!/#REF!)*100,"") ->  | L31: =IFERROR((#REF!/#REF!)*100,"") -> 
B32: =IFERROR(VLOOKUP($C32,#REF!,3,FALSE),"") ->  | I32: =IFERROR((#REF!/#REF!)*100,"") ->  | J32: =IFERROR((#REF!/#REF!)*100,"") ->  | K32: =IFERROR((#REF!/#REF!)*100,"") ->  | L32: =IFERROR((#REF!/#REF!)*100,"") -> 
B33: =IFERROR(VLOOKUP($C33,#REF!,3,FALSE),"") ->  | I33: =IFERROR((#REF!/#REF!)*100,"") ->  | J33: =IFERROR((#REF!/#REF!)*100,"") ->  | K33: =IFERROR((#REF!/#REF!)*100,"") ->  | L33: =IFERROR((#REF!/#REF!)*100,"") -> 
B34: =IFERROR(VLOOKUP($C34,#REF!,3,FALSE),"") ->  | I34: =IFERROR((#REF!/#REF!)*100,"") ->  | J34: =IFERROR((#REF!/#REF!)*100,"") ->  | K34: =IFERROR((#REF!/#REF!)*100,"") ->  | L34: =IFERROR((#REF!/#REF!)*100,"") -> 
B35: =IFERROR(VLOOKUP($C35,#REF!,3,FALSE),"") ->  | I35: =IFERROR((#REF!/#REF!)*100,"") ->  | J35: =IFERROR((#REF!/#REF!)*100,"") ->  | K35: =IFERROR((#REF!/#REF!)*100,"") ->  | L35: =IFERROR((#REF!/#REF!)*100,"") -> 
B36: =IFERROR(VLOOKUP($C36,#REF!,3,FALSE),"") ->  | I36: =IFERROR((#REF!/#REF!)*100,"") ->  | J36: =IFERROR((#REF!/#REF!)*100,"") ->  | K36: =IFERROR((#REF!/#REF!)*100,"") ->  | L36: =IFERROR((#REF!/#REF!)*100,"") -> 
B37: =IFERROR(VLOOKUP($C37,#REF!,3,FALSE),"") ->  | I37: =IFERROR((#REF!/#REF!)*100,"") ->  | J37: =IFERROR((#REF!/#REF!)*100,"") ->  | K37: =IFERROR((#REF!/#REF!)*100,"") ->  | L37: =IFERROR((#REF!/#REF!)*100,"") -> 
B38: =IFERROR(VLOOKUP($C38,#REF!,3,FALSE),"") ->  | I38: =IFERROR((#REF!/#REF!)*100,"") ->  | J38: =IFERROR((#REF!/#REF!)*100,"") ->  | K38: =IFERROR((#REF!/#REF!)*100,"") ->  | L38: =IFERROR((#REF!/#REF!)*100,"") -> 
B39: =IFERROR(VLOOKUP($C39,#REF!,3,FALSE),"") ->  | I39: =IFERROR((#REF!/#REF!)*100,"") ->  | J39: =IFERROR((#REF!/#REF!)*100,"") ->  | K39: =IFERROR((#REF!/#REF!)*100,"") ->  | L39: =IFERROR((#REF!/#REF!)*100,"") -> 
B40: =IFERROR(VLOOKUP($C40,#REF!,3,FALSE),"") ->  | I40: =IFERROR((#REF!/#REF!)*100,"") ->  | J40: =IFERROR((#REF!/#REF!)*100,"") ->  | K40: =IFERROR((#REF!/#REF!)*100,"") ->  | L40: =IFERROR((#REF!/#REF!)*100,"") -> 
B41: =IFERROR(VLOOKUP($C41,#REF!,3,FALSE),"") ->  | I41: =IFERROR((#REF!/#REF!)*100,"") ->  | J41: =IFERROR((#REF!/#REF!)*100,"") ->  | K41: =IFERROR((#REF!/#REF!)*100,"") ->  | L41: =IFERROR((#REF!/#REF!)*100,"") -> 
B42: =IFERROR(VLOOKUP($C42,#REF!,3,FALSE),"") ->  | I42: =IFERROR((#REF!/#REF!)*100,"") ->  | J42: =IFERROR((#REF!/#REF!)*100,"") ->  | K42: =IFERROR((#REF!/#REF!)*100,"") ->  | L42: =IFERROR((#REF!/#REF!)*100,"") -> 
B43: =IFERROR(VLOOKUP($C43,#REF!,3,FALSE),"") ->  | I43: =IFERROR((#REF!/#REF!)*100,"") ->  | J43: =IFERROR((#REF!/#REF!)*100,"") ->  | K43: =IFERROR((#REF!/#REF!)*100,"") ->  | L43: =IFERROR((#REF!/#REF!)*100,"") -> 
B44: =IFERROR(VLOOKUP($C44,#REF!,3,FALSE),"") ->  | I44: =IFERROR((#REF!/#REF!)*100,"") ->  | J44: =IFERROR((#REF!/#REF!)*100,"") ->  | K44: =IFERROR((#REF!/#REF!)*100,"") ->  | L44: =IFERROR((#REF!/#REF!)*100,"") -> 
B45: =IFERROR(VLOOKUP($C45,#REF!,3,FALSE),"") ->  | I45: =IFERROR((#REF!/#REF!)*100,"") ->  | J45: =IFERROR((#REF!/#REF!)*100,"") ->  | K45: =IFERROR((#REF!/#REF!)*100,"") ->  | L45: =IFERROR((#REF!/#REF!)*100,"") -> 
B46: =IFERROR(VLOOKUP($C46,#REF!,3,FALSE),"") ->  | I46: =IFERROR((#REF!/#REF!)*100,"") ->  | J46: =IFERROR((#REF!/#REF!)*100,"") ->  | K46: =IFERROR((#REF!/#REF!)*100,"") ->  | L46: =IFERROR((#REF!/#REF!)*100,"") -> 
B47: =IFERROR(VLOOKUP($C47,#REF!,3,FALSE),"") ->  | I47: =IFERROR((#REF!/#REF!)*100,"") ->  | J47: =IFERROR((#REF!/#REF!)*100,"") ->  | K47: =IFERROR((#REF!/#REF!)*100,"") ->  | L47: =IFERROR((#REF!/#REF!)*100,"") -> 
B50: PRINCIPALES ACCIONES REALIZADAS CON RECURSOS DE ORIGEN FEDERAL:
B51: Al periodo no hay acciones realizadas
B58: 221 274 K016-Se autorizaron recursos los cuales refieren al capítulo 6000 donde se aperturó el proyecto denominado: Mantener y Rehabilitar los Planteles Educativos del Nivel Básico este proyecto cuenta con 2 fondos Participaciones Federales 15O510 donde se relizarán 33 escuelas y en el fondo FAIS se tenía contemplado realizar 7 escuelas, sin embargo debido a que el FAIS tiene como objetivo fundamental el financiamiento de obras y acciones sociales básicas que beneficien directamente a sectores de población en condiciones de rezago social y pobreza extrema, los recursos fueron reorientados a la apertura de diferentes proyectos denominados: Rehabilitación del Sistema de Alumbrado Público, Rehabilitación de banquetas, Rehabilitacion de superficie de rodamiento (Repavimentación), Rehabilitación del Sistema de Alcantarillado Pluvial, Verificación y seguimiento de las obras (FISMDF)(SUPERVISIÓN DE OBRA), y Con recursos del Presupuesto Participativo DG:65 se aperturan los siguientes proyectos: Construcción de Resumidero, Construcción de Drenaje, Mantenimiento al Drenaje en toda la colonia, Construcción de Drenaje Pluvial con Pozo de Absorción o Cosecha de Agua, los cuales se verán reflejados al 100%, hasta el Cierre de la Cuenta Pública, razón por la cual no se tienen acciones realizadas al periodo ya que los proyectos antes mencionados se contrataron a afinales de noviembre.

Sheet AP_RF FAIS 25P614
B2: AP-RF AVANCE PRESUPUESTAL DE RECURSOS DE ORIGEN FEDERAL
B3: FONDO, CONVENIO, SUBSIDIO O PARTICIPACIÓN: (1)
B5: Unidad Responsable de Gasto: | F5: DIRECCIÓN GENERAL DE OBRAS Y DESARROLLO URBANO
B6: Período: | F6: Enero-Diciembre 2021
B8: FONDO | F8: ETIQUETADO RECURSOS FEDERALES-APORTACIONES FEDERALES PARA ENTIDADES FEDERATIVAS Y MUNICIPIOS-FONDO DE APORTACIONES PARA LA INFRAESTRUCTURA SOCIAL (FAIS)-2022-ORIGINAL DE LA URG ( 25P614)
B10: R E S U L T A D O S
B11: PRESUPUESTO (Pesos con dos decimales) | I11: AVANCE %
B12: APROBADO | C12: MODIFICADO | D12: PROGRAMADO | E12: SALDO DEL COMPROMISO | F12: DEVENGADO | G12: EJERCIDO | H12: PAGADO | I12: (DEVENGADO / APROBADO)*100 | J12: (DEVENGADO / MODIFICADO)*100 | K12: (EJERCIDO / APROBADO)*100 | L12: (EJERCIDO / MODIFICADO)*100
B13: 0 | C13: 1352218.3 | D13: 1352218.3 | E13: 0 | F13: 0 | G13: 0 | H13: 0 | I13: 0 | J13: 0 | K13: 0 | L13: 0
I15: =IFERROR((#REF!/#REF!)*100,"") ->  | J15: =IFERROR((#REF!/#REF!)*100,"") ->  | K15: =IFERROR((#REF!/#REF!)*100,"") ->  | L15: =IFERROR((#REF!/#REF!)*100,"") -> 
I16: =IFERROR((#REF!/#REF!)*100,"") ->  | J16: =IFERROR((#REF!/#REF!)*100,"") ->  | K16: =IFERROR((#REF!/#REF!)*100,"") ->  | L16: =IFERROR((#REF!/#REF!)*100,"") -> 
B17: =IFERROR(VLOOKUP($C17,#REF!,3,FALSE),"") ->  | G17: =IFERROR(F17/C17,"") ->  | H17: =IFERROR((F17/D17*100),"") ->  | I17: =IFERROR((#REF!/#REF!)*100,"") ->  | J17: =IFERROR((#REF!/#REF!)*100,"") ->  | K17: =IFERROR((#REF!/#REF!)*100,"") ->  | L17: =IFERROR((#REF!/#REF!)*100,"") -> 
B18: =IFERROR(VLOOKUP($C18,#REF!,3,FALSE),"") ->  | I18: =IFERROR((#REF!/#REF!)*100,"") ->  | J18: =IFERROR((#REF!/#REF!)*100,"") ->  | K18: =IFERROR((#REF!/#REF!)*100,"") ->  | L18: =IFERROR((#REF!/#REF!)*100,"") -> 
B19: =IFERROR(VLOOKUP($C19,#REF!,3,FALSE),"") ->  | I19: =IFERROR((#REF!/#REF!)*100,"") ->  | J19: =IFERROR((#REF!/#REF!)*100,"") ->  | K19: =IFERROR((#REF!/#REF!)*100,"") ->  | L19: =IFERROR((#REF!/#REF!)*100,"") -> 
B20: =IFERROR(VLOOKUP($C20,#REF!,3,FALSE),"") ->  | I20: =IFERROR((#REF!/#REF!)*100,"") ->  | J20: =IFERROR((#REF!/#REF!)*100,"") ->  | K20: =IFERROR((#REF!/#REF!)*100,"") ->  | L20: =IFERROR((#REF!/#REF!)*100,"") -> 
B21: =IFERROR(VLOOKUP($C21,#REF!,3,FALSE),"") ->  | I21: =IFERROR((#REF!/#REF!)*100,"") ->  | J21: =IFERROR((#REF!/#REF!)*100,"") ->  | K21: =IFERROR((#REF!/#REF!)*100,"") ->  | L21: =IFERROR((#REF!/#REF!)*100,"") -> 
B22: =IFERROR(VLOOKUP($C22,#REF!,3,FALSE),"") ->  | I22: =IFERROR((#REF!/#REF!)*100,"") ->  | J22: =IFERROR((#REF!/#REF!)*100,"") ->  | K22: =IFERROR((#REF!/#REF!)*100,"") ->  | L22: =IFERROR((#REF!/#REF!)*100,"") -> 
B23: =IFERROR(VLOOKUP($C23,#REF!,3,FALSE),"") ->  | I23: =IFERROR((#REF!/#REF!)*100,"") ->  | J23: =IFERROR((#REF!/#REF!)*100,"") ->  | K23: =IFERROR((#REF!/#REF!)*100,"") ->  | L23: =IFERROR((#REF!/#REF!)*100,"") -> 
B24: =IFERROR(VLOOKUP($C24,#REF!,3,FALSE),"") ->  | I24: =IFERROR((#REF!/#REF!)*100,"") ->  | J24: =IFERROR((#REF!/#REF!)*100,"") ->  | K24: =IFERROR((#REF!/#REF!)*100,"") ->  | L24: =IFERROR((#REF!/#REF!)*100,"") -> 
B25: =IFERROR(VLOOKUP($C25,#REF!,3,FALSE),"") ->  | I25: =IFERROR((#REF!/#REF!)*100,"") ->  | J25: =IFERROR((#REF!/#REF!)*100,"") ->  | K25: =IFERROR((#REF!/#REF!)*100,"") ->  | L25: =IFERROR((#REF!/#REF!)*100,"") -> 
B26: =IFERROR(VLOOKUP($C26,#REF!,3,FALSE),"") ->  | I26: =IFERROR((#REF!/#REF!)*100,"") ->  | J26: =IFERROR((#REF!/#REF!)*100,"") ->  | K26: =IFERROR((#REF!/#REF!)*100,"") ->  | L26: =IFERROR((#REF!/#REF!)*100,"") -> 
B27: =IFERROR(VLOOKUP($C27,#REF!,3,FALSE),"") ->  | I27: =IFERROR((#REF!/#REF!)*100,"") ->  | J27: =IFERROR((#REF!/#REF!)*100,"") ->  | K27: =IFERROR((#REF!/#REF!)*100,"") ->  | L27: =IFERROR((#REF!/#REF!)*100,"") -> 
B28: =IFERROR(VLOOKUP($C28,#REF!,3,FALSE),"") ->  | I28: =IFERROR((#REF!/#REF!)*100,"") ->  | J28: =IFERROR((#REF!/#REF!)*100,"") ->  | K28: =IFERROR((#REF!/#REF!)*100,"") ->  | L28: =IFERROR((#REF!/#REF!)*100,"") -> 
B29: =IFERROR(VLOOKUP($C29,#REF!,3,FALSE),"") ->  | I29: =IFERROR((#REF!/#REF!)*100,"") ->  | J29: =IFERROR((#REF!/#REF!)*100,"") ->  | K29: =IFERROR((#REF!/#REF!)*100,"") ->  | L29: =IFERROR((#REF!/#REF!)*100,"") -> 
B30: =IFERROR(VLOOKUP($C30,#REF!,3,FALSE),"") ->  | I30: =IFERROR((#REF!/#REF!)*100,"") ->  | J30: =IFERROR((#REF!/#REF!)*100,"") ->  | K30: =IFERROR((#REF!/#REF!)*100,"") ->  | L30: =IFERROR((#REF!/#REF!)*100,"") -> 
B31: =IFERROR(VLOOKUP($C31,#REF!,3,FALSE),"") ->  | I31: =IFERROR((#REF!/#REF!)*100,"") ->  | J31: =IFERROR((#REF!/#REF!)*100,"") ->  | K31: =IFERROR((#REF!/#REF!)*100,"") ->  | L31: =IFERROR((#REF!/#REF!)*100,"") -> 
B32: =IFERROR(VLOOKUP($C32,#REF!,3,FALSE),"") ->  | I32: =IFERROR((#REF!/#REF!)*100,"") ->  | J32: =IFERROR((#REF!/#REF!)*100,"") ->  | K32: =IFERROR((#REF!/#REF!)*100,"") ->  | L32: =IFERROR((#REF!/#REF!)*100,"") -> 
B33: =IFERROR(VLOOKUP($C33,#REF!,3,FALSE),"") ->  | I33: =IFERROR((#REF!/#REF!)*100,"") ->  | J33: =IFERROR((#REF!/#REF!)*100,"") ->  | K33: =IFERROR((#REF!/#REF!)*100,"") ->  | L33: =IFERROR((#REF!/#REF!)*100,"") -> 
B34: =IFERROR(VLOOKUP($C34,#REF!,3,FALSE),"") ->  | I34: =IFERROR((#REF!/#REF!)*100,"") ->  | J34: =IFERROR((#REF!/#REF!)*100,"") ->  | K34: =IFERROR((#REF!/#REF!)*100,"") ->  | L34: =IFERROR((#REF!/#REF!)*100,"") -> 
B35: =IFERROR(VLOOKUP($C35,#REF!,3,FALSE),"") ->  | I35: =IFERROR((#REF!/#REF!)*100,"") ->  | J35: =IFERROR((#REF!/#REF!)*100,"") ->  | K35: =IFERROR((#REF!/#REF!)*100,"") ->  | L35: =IFERROR((#REF!/#REF!)*100,"") -> 
B36: =IFERROR(VLOOKUP($C36,#REF!,3,FALSE),"") ->  | I36: =IFERROR((#REF!/#REF!)*100,"") ->  | J36: =IFERROR((#REF!/#REF!)*100,"") ->  | K36: =IFERROR((#REF!/#REF!)*100,"") ->  | L36: =IFERROR((#REF!/#REF!)*100,"") -> 
B37: =IFERROR(VLOOKUP($C37,#REF!,3,FALSE),"") ->  | I37: =IFERROR((#REF!/#REF!)*100,"") ->  | J37: =IFERROR((#REF!/#REF!)*100,"") ->  | K37: =IFERROR((#REF!/#REF!)*100,"") ->  | L37: =IFERROR((#REF!/#REF!)*100,"") -> 
B38: =IFERROR(VLOOKUP($C38,#REF!,3,FALSE),"") ->  | I38: =IFERROR((#REF!/#REF!)*100,"") ->  | J38: =IFERROR((#REF!/#REF!)*100,"") ->  | K38: =IFERROR((#REF!/#REF!)*100,"") ->  | L38: =IFERROR((#REF!/#REF!)*100,"") -> 
B39: =IFERROR(VLOOKUP($C39,#REF!,3,FALSE),"") ->  | I39: =IFERROR((#REF!/#REF!)*100,"") ->  | J39: =IFERROR((#REF!/#REF!)*100,"") ->  | K39: =IFERROR((#REF!/#REF!)*100,"") ->  | L39: =IFERROR((#REF!/#REF!)*100,"") -> 
B40: =IFERROR(VLOOKUP($C40,#REF!,3,FALSE),"") ->  | I40: =IFERROR((#REF!/#REF!)*100,"") ->  | J40: =IFERROR((#REF!/#REF!)*100,"") ->  | K40: =IFERROR((#REF!/#REF!)*100,"") ->  | L40: =IFERROR((#REF!/#REF!)*100,"") -> 
B41: =IFERROR(VLOOKUP($C41,#REF!,3,FALSE),"") ->  | I41: =IFERROR((#REF!/#REF!)*100,"") ->  | J41: =IFERROR((#REF!/#REF!)*100,"") ->  | K41: =IFERROR((#REF!/#REF!)*100,"") ->  | L41: =IFERROR((#REF!/#REF!)*100,"") -> 
B42: =IFERROR(VLOOKUP($C42,#REF!,3,FALSE),"") ->  | I42: =IFERROR((#REF!/#REF!)*100,"") ->  | J42: =IFERROR((#REF!/#REF!)*100,"") ->  | K42: =IFERROR((#REF!/#REF!)*100,"") ->  | L42: =IFERROR((#REF!/#REF!)*100,"") -> 
B43: =IFERROR(VLOOKUP($C43,#REF!,3,FALSE),"") ->  | I43: =IFERROR((#REF!/#REF!)*100,"") ->  | J43: =IFERROR((#REF!/#REF!)*100,"") ->  | K43: =IFERROR((#REF!/#REF!)*100,"") ->  | L43: =IFERROR((#REF!/#REF!)*100,"") -> 
B44: =IFERROR(VLOOKUP($C44,#REF!,3,FALSE),"") ->  | I44: =IFERROR((#REF!/#REF!)*100,"") ->  | J44: =IFERROR((#REF!/#REF!)*100,"") ->  | K44: =IFERROR((#REF!/#REF!)*100,"") ->  | L44: =IFERROR((#REF!/#REF!)*100,"") -> 
B45: =IFERROR(VLOOKUP($C45,#REF!,3,FALSE),"") ->  | I45: =IFERROR((#REF!/#REF!)*100,"") ->  | J45: =IFERROR((#REF!/#REF!)*100,"") ->  | K45: =IFERROR((#REF!/#REF!)*100,"") ->  | L45: =IFERROR((#REF!/#REF!)*100,"") -> 
B46: =IFERROR(VLOOKUP($C46,#REF!,3,FALSE),"") ->  | I46: =IFERROR((#REF!/#REF!)*100,"") ->  | J46: =IFERROR((#REF!/#REF!)*100,"") ->  | K46: =IFERROR((#REF!/#REF!)*100,"") ->  | L46: =IFERROR((#REF!/#REF!)*100,"") -> 
B47: =IFERROR(VLOOKUP($C47,#REF!,3,FALSE),"") ->  | I47: =IFERROR((#REF!/#REF!)*100,"") ->  | J47: =IFERROR((#REF!/#REF!)*100,"") ->  | K47: =IFERROR((#REF!/#REF!)*100,"") ->  | L47: =IFERROR((#REF!/#REF!)*100,"") -> 
B50: PRINCIPALES ACCIONES REALIZADAS CON RECURSOS DE ORIGEN FEDERAL:
B51: Al periodo no hay acciones realizadas
B58: 221 274 K016-Se aperturarom recursos del FAIS remanentes de ejercicios anteriores, donde se aperturó el proyecto denominado: Rehabilitacion de superficie de rodamiento (Repavimentación), el cual cuenta con 2 fondos y su meta se verá reflejada en el fondo ETIQUETADO RECURSOS FEDERALES-APORTACIONES FEDERALES PARA ENTIDADES FEDERATIVAS Y MUNICIPIOS-FONDO DE APORTACIONES PARA LA INFRAESTRUCTURA SOCIAL (FAIS)-2021-ORIGINAL DE LA URG, por lo que solo se consideran en este fondo complemento a la meta realziada.

Sheet AP_RF PART.FED 15O210
B2: AP-RF AVANCE PRESUPUESTAL DE RECURSOS DE ORIGEN FEDERAL
B3: FONDO, CONVENIO, SUBSIDIO O PARTICIPACIÓN: (1)
B5: Unidad Responsable de Gasto: | F5: DIRECCIÓN GENERAL DE OBRAS Y DESARROLLO URBANO
B6: Período: | F6: Enero-Diciembre 2021
B8: FONDO | F8: NO ETIQUETADO RECURSOS FEDERALES-PARTICIPACIONES A ENTIDADES FEDERATIVAS Y MUNICIPIOS-FONDO GENERAL DE PARTICIPACIONES-2021-ORIGINAL DE LA URG
B10: R E S U L T A D O S
B11: PRESUPUESTO (Pesos con dos decimales) | I11: AVANCE %
B12: APROBADO | C12: MODIFICADO | D12: PROGRAMADO | E12: SALDO DEL COMPROMISO | F12: DEVENGADO | G12: EJERCIDO | H12: PAGADO | I12: (DEVENGADO / APROBADO)*100 | J12: (DEVENGADO / MODIFICADO)*100 | K12: (EJERCIDO / APROBADO)*100 | L12: (EJERCIDO / MODIFICADO)*100
A13: 92923167 | B13: =91104466+29931107 -> 121035573 | C13: =42648546.49+25500000 -> 68148546.49 | D13: =41568868.49+25500000 -> 67068868.49 | E13: =41568868.49+25500000 -> 67068868.49 | F13: =41568868.49+25500000 -> 67068868.49 | G13: 25495917 | H13: 25495917 | I13: 25495917 | J13: =IFERROR(($F13/$B13)*100,"") -> 55.41252611 | K13: =IFERROR(($G13/$B13)*100,"") -> 21.0648129 | L13: =IFERROR(($G13/$C13)*100,"") -> 37.41226822
I15: =IFERROR((#REF!/#REF!)*100,"") ->  | J15: =IFERROR((#REF!/#REF!)*100,"") ->  | K15: =IFERROR((#REF!/#REF!)*100,"") ->  | L15: =IFERROR((#REF!/#REF!)*100,"") -> 
I16: =IFERROR((#REF!/#REF!)*100,"") ->  | J16: =IFERROR((#REF!/#REF!)*100,"") ->  | K16: =IFERROR((#REF!/#REF!)*100,"") ->  | L16: =IFERROR((#REF!/#REF!)*100,"") -> 
B17: =IFERROR(VLOOKUP($C17,#REF!,3,FALSE),"") ->  | G17: =IFERROR(F17/C17,"") ->  | H17: =IFERROR((F17/D17*100),"") ->  | I17: =IFERROR((#REF!/#REF!)*100,"") ->  | J17: =IFERROR((#REF!/#REF!)*100,"") ->  | K17: =IFERROR((#REF!/#REF!)*100,"") ->  | L17: =IFERROR((#REF!/#REF!)*100,"") -> 
B18: =IFERROR(VLOOKUP($C18,#REF!,3,FALSE),"") ->  | I18: =IFERROR((#REF!/#REF!)*100,"") ->  | J18: =IFERROR((#REF!/#REF!)*100,"") ->  | K18: =IFERROR((#REF!/#REF!)*100,"") ->  | L18: =IFERROR((#REF!/#REF!)*100,"") -> 
B19: =IFERROR(VLOOKUP($C19,#REF!,3,FALSE),"") ->  | I19: =IFERROR((#REF!/#REF!)*100,"") ->  | J19: =IFERROR((#REF!/#REF!)*100,"") ->  | K19: =IFERROR((#REF!/#REF!)*100,"") ->  | L19: =IFERROR((#REF!/#REF!)*100,"") -> 
B20: =IFERROR(VLOOKUP($C20,#REF!,3,FALSE),"") ->  | I20: =IFERROR((#REF!/#REF!)*100,"") ->  | J20: =IFERROR((#REF!/#REF!)*100,"") ->  | K20: =IFERROR((#REF!/#REF!)*100,"") ->  | L20: =IFERROR((#REF!/#REF!)*100,"") -> 
B21: =IFERROR(VLOOKUP($C21,#REF!,3,FALSE),"") ->  | I21: =IFERROR((#REF!/#REF!)*100,"") ->  | J21: =IFERROR((#REF!/#REF!)*100,"") ->  | K21: =IFERROR((#REF!/#REF!)*100,"") ->  | L21: =IFERROR((#REF!/#REF!)*100,"") -> 
B22: =IFERROR(VLOOKUP($C22,#REF!,3,FALSE),"") ->  | I22: =IFERROR((#REF!/#REF!)*100,"") ->  | J22: =IFERROR((#REF!/#REF!)*100,"") ->  | K22: =IFERROR((#REF!/#REF!)*100,"") ->  | L22: =IFERROR((#REF!/#REF!)*100,"") -> 
B23: =IFERROR(VLOOKUP($C23,#REF!,3,FALSE),"") ->  | I23: =IFERROR((#REF!/#REF!)*100,"") ->  | J23: =IFERROR((#REF!/#REF!)*100,"") ->  | K23: =IFERROR((#REF!/#REF!)*100,"") ->  | L23: =IFERROR((#REF!/#REF!)*100,"") -> 
B24: =IFERROR(VLOOKUP($C24,#REF!,3,FALSE),"") ->  | I24: =IFERROR((#REF!/#REF!)*100,"") ->  | J24: =IFERROR((#REF!/#REF!)*100,"") ->  | K24: =IFERROR((#REF!/#REF!)*100,"") ->  | L24: =IFERROR((#REF!/#REF!)*100,"") -> 
B25: =IFERROR(VLOOKUP($C25,#REF!,3,FALSE),"") ->  | I25: =IFERROR((#REF!/#REF!)*100,"") ->  | J25: =IFERROR((#REF!/#REF!)*100,"") ->  | K25: =IFERROR((#REF!/#REF!)*100,"") ->  | L25: =IFERROR((#REF!/#REF!)*100,"") -> 
B26: =IFERROR(VLOOKUP($C26,#REF!,3,FALSE),"") ->  | I26: =IFERROR((#REF!/#REF!)*100,"") ->  | J26: =IFERROR((#REF!/#REF!)*100,"") ->  | K26: =IFERROR((#REF!/#REF!)*100,"") ->  | L26: =IFERROR((#REF!/#REF!)*100,"") -> 
B27: =IFERROR(VLOOKUP($C27,#REF!,3,FALSE),"") ->  | I27: =IFERROR((#REF!/#REF!)*100,"") ->  | J27: =IFERROR((#REF!/#REF!)*100,"") ->  | K27: =IFERROR((#REF!/#REF!)*100,"") ->  | L27: =IFERROR((#REF!/#REF!)*100,"") -> 
B28: =IFERROR(VLOOKUP($C28,#REF!,3,FALSE),"") ->  | I28: =IFERROR((#REF!/#REF!)*100,"") ->  | J28: =IFERROR((#REF!/#REF!)*100,"") ->  | K28: =IFERROR((#REF!/#REF!)*100,"") ->  | L28: =IFERROR((#REF!/#REF!)*100,"") -> 
B29: =IFERROR(VLOOKUP($C29,#REF!,3,FALSE),"") ->  | I29: =IFERROR((#REF!/#REF!)*100,"") ->  | J29: =IFERROR((#REF!/#REF!)*100,"") ->  | K29: =IFERROR((#REF!/#REF!)*100,"") ->  | L29: =IFERROR((#REF!/#REF!)*100,"") -> 
B30: =IFERROR(VLOOKUP($C30,#REF!,3,FALSE),"") ->  | I30: =IFERROR((#REF!/#REF!)*100,"") ->  | J30: =IFERROR((#REF!/#REF!)*100,"") ->  | K30: =IFERROR((#REF!/#REF!)*100,"") ->  | L30: =IFERROR((#REF!/#REF!)*100,"") -> 
B31: =IFERROR(VLOOKUP($C31,#REF!,3,FALSE),"") ->  | I31: =IFERROR((#REF!/#REF!)*100,"") ->  | J31: =IFERROR((#REF!/#REF!)*100,"") ->  | K31: =IFERROR((#REF!/#REF!)*100,"") ->  | L31: =IFERROR((#REF!/#REF!)*100,"") -> 
B32: =IFERROR(VLOOKUP($C32,#REF!,3,FALSE),"") ->  | I32: =IFERROR((#REF!/#REF!)*100,"") ->  | J32: =IFERROR((#REF!/#REF!)*100,"") ->  | K32: =IFERROR((#REF!/#REF!)*100,"") ->  | L32: =IFERROR((#REF!/#REF!)*100,"") -> 
B33: =IFERROR(VLOOKUP($C33,#REF!,3,FALSE),"") ->  | I33: =IFERROR((#REF!/#REF!)*100,"") ->  | J33: =IFERROR((#REF!/#REF!)*100,"") ->  | K33: =IFERROR((#REF!/#REF!)*100,"") ->  | L33: =IFERROR((#REF!/#REF!)*100,"") -> 
B34: =IFERROR(VLOOKUP($C34,#REF!,3,FALSE),"") ->  | I34: =IFERROR((#REF!/#REF!)*100,"") ->  | J34: =IFERROR((#REF!/#REF!)*100,"") ->  | K34: =IFERROR((#REF!/#REF!)*100,"") ->  | L34: =IFERROR((#REF!/#REF!)*100,"") -> 
B35: =IFERROR(VLOOKUP($C35,#REF!,3,FALSE),"") ->  | I35: =IFERROR((#REF!/#REF!)*100,"") ->  | J35: =IFERROR((#REF!/#REF!)*100,"") ->  | K35: =IFERROR((#REF!/#REF!)*100,"") ->  | L35: =IFERROR((#REF!/#REF!)*100,"") -> 
B36: =IFERROR(VLOOKUP($C36,#REF!,3,FALSE),"") ->  | I36: =IFERROR((#REF!/#REF!)*100,"") ->  | J36: =IFERROR((#REF!/#REF!)*100,"") ->  | K36: =IFERROR((#REF!/#REF!)*100,"") ->  | L36: =IFERROR((#REF!/#REF!)*100,"") -> 
B37: =IFERROR(VLOOKUP($C37,#REF!,3,FALSE),"") ->  | I37: =IFERROR((#REF!/#REF!)*100,"") ->  | J37: =IFERROR((#REF!/#REF!)*100,"") ->  | K37: =IFERROR((#REF!/#REF!)*100,"") ->  | L37: =IFERROR((#REF!/#REF!)*100,"") -> 
B38: =IFERROR(VLOOKUP($C38,#REF!,3,FALSE),"") ->  | I38: =IFERROR((#REF!/#REF!)*100,"") ->  | J38: =IFERROR((#REF!/#REF!)*100,"") ->  | K38: =IFERROR((#REF!/#REF!)*100,"") ->  | L38: =IFERROR((#REF!/#REF!)*100,"") -> 
B39: =IFERROR(VLOOKUP($C39,#REF!,3,FALSE),"") ->  | I39: =IFERROR((#REF!/#REF!)*100,"") ->  | J39: =IFERROR((#REF!/#REF!)*100,"") ->  | K39: =IFERROR((#REF!/#REF!)*100,"") ->  | L39: =IFERROR((#REF!/#REF!)*100,"") -> 
B40: =IFERROR(VLOOKUP($C40,#REF!,3,FALSE),"") ->  | I40: =IFERROR((#REF!/#REF!)*100,"") ->  | J40: =IFERROR((#REF!/#REF!)*100,"") ->  | K40: =IFERROR((#REF!/#REF!)*100,"") ->  | L40: =IFERROR((#REF!/#REF!)*100,"") -> 
B41: =IFERROR(VLOOKUP($C41,#REF!,3,FALSE),"") ->  | I41: =IFERROR((#REF!/#REF!)*100,"") ->  | J41: =IFERROR((#REF!/#REF!)*100,"") ->  | K41: =IFERROR((#REF!/#REF!)*100,"") ->  | L41: =IFERROR((#REF!/#REF!)*100,"") -> 
B42: =IFERROR(VLOOKUP($C42,#REF!,3,FALSE),"") ->  | I42: =IFERROR((#REF!/#REF!)*100,"") ->  | J42: =IFERROR((#REF!/#REF!)*100,"") ->  | K42: =IFERROR((#REF!/#REF!)*100,"") ->  | L42: =IFERROR((#REF!/#REF!)*100,"") -> 
B43: =IFERROR(VLOOKUP($C43,#REF!,3,FALSE),"") ->  | I43: =IFERROR((#REF!/#REF!)*100,"") ->  | J43: =IFERROR((#REF!/#REF!)*100,"") ->  | K43: =IFERROR((#REF!/#REF!)*100,"") ->  | L43: =IFERROR((#REF!/#REF!)*100,"") -> 
B44: =IFERROR(VLOOKUP($C44,#REF!,3,FALSE),"") ->  | I44: =IFERROR((#REF!/#REF!)*100,"") ->  | J44: =IFERROR((#REF!/#REF!)*100,"") ->  | K44: =IFERROR((#REF!/#REF!)*100,"") ->  | L44: =IFERROR((#REF!/#REF!)*100,"") -> 
B45: =IFERROR(VLOOKUP($C45,#REF!,3,FALSE),"") ->  | I45: =IFERROR((#REF!/#REF!)*100,"") ->  | J45: =IFERROR((#REF!/#REF!)*100,"") ->  | K45: =IFERROR((#REF!/#REF!)*100,"") ->  | L45: =IFERROR((#REF!/#REF!)*100,"") -> 
B46: =IFERROR(VLOOKUP($C46,#REF!,3,FALSE),"") ->  | I46: =IFERROR((#REF!/#REF!)*100,"") ->  | J46: =IFERROR((#REF!/#REF!)*100,"") ->  | K46: =IFERROR((#REF!/#REF!)*100,"") ->  | L46: =IFERROR((#REF!/#REF!)*100,"") -> 
B47: =IFERROR(VLOOKUP($C47,#REF!,3,FALSE),"") ->  | I47: =IFERROR((#REF!/#REF!)*100,"") ->  | J47: =IFERROR((#REF!/#REF!)*100,"") ->  | K47: =IFERROR((#REF!/#REF!)*100,"") ->  | L47: =IFERROR((#REF!/#REF!)*100,"") -> 
B50: PRINCIPALES ACCIONES REALIZADAS CON RECURSOS DE ORIGEN FEDERAL:
B51: 221 049 E124-Programa Integral de Movilidad Inteligente Al periodo se realizaron a través de la Obra por Administración los siguientes trabajos: Se realizaron 120,000.00 m2 para el Mantenimiento de la Carpeta Asfáltica con: Trabajos de Bacheo con 103,304.38 m2 en las siguientes colonias: A.m.s.a, Ampliación Oriente, Arboledas del Sur, Arenal Tepepan, Barrio El Capulín, Barrio La Fama, Barrio Niño Jesús ,Barrio San Pedro Apóstol, Belisario Domínguez Sección XVI, Belvedere, Bosques de Tepeximilpa , Bosques del Pedregal , Cantera Puente de Piedra, Centro de Tlalpan, Chimalcoyotl, Chimilli, Cruz del Farol , Cultura Maya , Cuchilla de Padierna, Divisadero, Dos de Octubre , Ejidos de San Pedro Mártir , El Diamante, El Tecorral , El Mirador 3ra Sección, Fraccionamiento Ex Hacienda San Juan de Dios, Fraccionamiento Granjas Coapa ,Fraccionamiento Hacienda Coapa , Fraccionamiento Jardines de Villa Coapa, Fraccionamiento Magisterial Coapa, Fraccionamiento Prados Coapa 1a sección, Fraccionamiento Prados Coapa 2a. sección , Fraccionamiento Residencial Coapa ,Fraccionamiento Residencial Miramontes, Fraccionamiento Residencial Villa Coapa S.M.4., Fraccionamiento Residencial Villa Coapa S.M. 5 , Fraccionamiento Rinconada Coapa 1a Sección, Fraccionamiento Vergel de Coyoacán, Fraccionamiento Villa Lázaro Cárdenas , Fuentes Brotantes , Fuentes del Pedregal, Fuentes de Tepepan, Guadalupe Tlalpan y San Lorenzo Huipulco , Héroes de 1910, Héroes de Padierna , Isidro Fabela, Jardínes del Ajusco, Juventud Unida, La Joya, La Palma, La Primavera, Lomas Altas de Padierna, Lomas de Padierna, Lomas Hidalgo, Los Encinos, La Santísima Trinidad, Los Volcanes, María Esther Zuno , Mesa los Hornos, Miguel Hidalgo 1a. sección, Miguel Hidalgo 2a. sección , Miguel Hidalgo 3a. sección , Miguel Hidalgo 4a. sección ,Nuevo Renacimiento de Axalco, Parques del Pedregal, Pedregal de las Águilas, Pedregal de San Nicolás 1ra Sección, Pedregal de San Nicolás 2a. sección , Pedregal de San Nicolás 3a. sección, Pedregal de San Nicolás 4a. sección , Pedregal de Santa Úrsula Xitla , Plan de Ayala, Popular Santa Teresa, Pueblo de La Magdalena Petlacalco , Pueblo San Andrés Totoltepec, Pueblo San Pedro Mártir, Pueblo de Parres el Guarda, Pueblo de San Miguel Topilejo, Pueblo de San Miguel Xicalco, Pueblo de Santo Tomás Ajusco, Rincón del Mirador II, San Juan Tepeximilpa, San Lorenzo Huipulco, Tlalmille, Temaxtitla, Texcaltenco La Mesa, Tlalcoligia, Tlalmille, Torriello Guerra, Torres de Padierna, Unidad Habitacional Fovissste Fuentes Brotantes, Unidad Habitacional Narciso Mendoza S.M. 2, Unidad Habitacional Narciso Mendoza S.M. 8, Unidad Habitacional Hueso Periférico "Dr. Ignacio Chávez" e Infonavit Tenorios, Unidad Habitacional Sauzales Cebadales, Vistas del Pedregal, Viveros de Coactetlán. Trabajos de Carpeta Nueva con 9,429.00 m2 en las siguientes colonias: Fuentes del Pedregal, María Esther Zuno , Miguel Hidalgo 2a. Sección , Pueblo de San Andrés Totoltepec, Pueblo de la Magdalena Petlacalco, Pueblo de San Miguel Ajusco, Pueblo de San Miguel Topilejo, Pueblo de San Miguel Xicalco. Trabajos de Reencarpetado con 7,266.62 m2 en las siguientes colonias: Fraccionamiento Rinconada Coapa 1ra Sección, Infonavit Tenorios, Pueblo de San Miguel Ajusco, Toriello Guerra, Unidad Habitacional Hueso Periférico "Dr. Ignacio Chávez" Carpeta nueva: Fuentes del Pedregal, María Esther Zuno , Miguel Hidalgo 2a. Sección , Pueblo de San Andrés Totoltepec, Pueblo de la Magdalena Petlacalco, Pueblo de San Miguel Ajusco, Pueblo de San Miguel Topilejo, Pueblo de San Miguel Xicalco. Se relizaron 3,000.90 m2 para los trabajos de mantenimiento a Banquetas en las siguientes colonias: Cantera Puente de Piedra,Chimalcoyotl, Ejidos de San Pedro Mártir, Fraccionamiento Ex Hacienda San Juan de Dios, Fraccionamiento Floresta Coyoacán, Fraccionamiento Magisterial Coapa, Fraccionamiento Residencial Acoxpa, Fraccionamiento Vergel de Coyoacán, Fraccionamiento Vergel del Sur, Héroes de Padierna, Isidro Fabela, La Joya, La Santísima Trinidad, Lomas de Padierna, Miguel Hidalgo 3ra Sección, Miguel Hidalgo 4ta Sección, Pedregal de San Nicolás 4ta Sección, Pueblo de San Pedro Mártir, Pueblo de San Andrés Totoltepec, Tlalcoligia, Unidad Habitacional Narciso Mendoza S.M.2. Se realizaron 85,000.00 ml para los trabajos de Balizamiento a Vialidades Secundarias en las siguientes colonias: A.M.S.A., Arenal Guadalupe, Belisario Domínguez Sección XVI, Cumbres de Tepetongo,Fraccionamiento Magisterio Coapa, Fraccionamiento Rinconada Coapa 1ra Sección, Fraccionamiento Nueva Orienta Coapa, Fraccionamiento Vergel de Coyoacán, Fraccionamiento Villa Lázaro Cárdenas, Fuetes Brotantes, Guadalupe Tlalpan, Isidro Fabela, Loreto y Peña Pobre, Lomas Hidalgo, Lomas de Padierna, Miguel Hidalgo 3a., Miguel Hidalgo 4ta Sección, Nuevo Renacimiento de Axalco, Pedregal de las Aguilas,Pueblo de San Andrés Totoltepec, Pueblo Magdalena Petlacalco, Pueblo de San Miguel Topilejo, Pueblo de San Pedro Mártir, Pueblo de Santo Tomás Ajusco, San Lorenzo Huipulco, Unidad Habitacional El Zapote, Unidad Habitacional Narciso Mendoza S.M.1, Unidad Habitacional Narciso Mendoza S.M. 7.
A60: Al periodo se aperturan los proyectos denominados: Obras en el Marco del Presupuesto Participativo EJERCICIO 2020 y Obras en el Marco del Presupuesto Participativo EJERCICIO 2021 de los cuales en este fondo se aperturan los proyectos del Presupuesto Participativo en cada uno de sus rubros autorizados de los cuales no se tienen ningún avance físico, por lo cual se verán reflejados hasta el cierre de la Cuenta Pública, donde se verá la ejecución de la meta. Por otro lado la reducción de los recursos refiere a que se aperturaron en otros programas presupuestarios el Presupuesto Participativo quedando en varios fondos presupuestales.
B61: 223 202 K014-Al periodo se programó 1 acción la cual se cumple al 100% refiere a la Obra por Administración con los trabajos de repartición de Agua potable a través de los camiones tipo pipas en el capítulo 3000 sin embargo por instrucciones de la Dirección General de Administración y a través de afectaciones presupuestales se reorientan los trabajos realizados al programa 124 004 P002 al fondo FORTAMUN donde se reporta la meta realizada y en este fondo quedan recursos complementarios a la meta. Lo que refiere al Capítulo 2000, para realizar los trabajos a través de la Obra por Administración, donde se informa que se autorizaron partidas que no requiere la Dirección General de Obras y Desarrollo Urbano. Izamiento.
A62: 221 049 E124-Se cumplen los objetivos institucionales referentes a la Obra por Administración, cabe hacer mención que se adicionan recursos debido a que no se contempló presupuesto de origen para realizar los trabajos de mantenimiento a vialidades secundarias, mantenimiento a banquetas y trabajos de balizamiento, por lo que en este programa presupuestario cuenta con FISCALES, PARTICIPACIONES FEDERALES donde se refleja la meta ejecutada, NO ETIQUETADO RECURSOS FEDERALES-PARTICIPACIONES A ENTIDADES FEDERATIVAS Y MUNICIPIOS-FONDO DE COMPENSACIÓN DEL IMPUESTO DE AUTOMÓVILES NUEVOS (ISAN) -2022-ORIGINAL DE LA URG (15OC10) y FORTAMUN
A63: 221 274 K016- Se autorizaron recursos del capítulo 6000 con los proyectos denominados: Obras en el Marco del Presupuesto Participativo EJERCICIO 2020 y Obras en el Marco del Presupuesto Participativo EJERCICIO 2021; al periodo ya se cuentan con contrtatos los cuales se realizaron a finales de noviembre, por lo que los trabajos a realizar, se encuentran en proceso de ejecución, la cual se reflejará hasta la Cuenta Pública del Ejercicio 2021. Por otro lado se adicionan recursos. Adionalmente rse ampían recursos para el capítulo 2000 partidas: Material eléctrico, material para construcción, Herramientas menores y refacciones y accesorios con Presupuesto Participativo DG:80 Ejercicio 2020, los cuales no pertenecen a la DGODU y el control lo llevará acabo la Dirección General de Participación Ciudadana.
A64: 124 004 P002- Al periodo se autorizan recursos de para los trabajos de repartición de agua potable (PIPAS), los cuales son complemento a la meta que se lleva a cabo en el Fondo FORTAMUN

Sheet AP_RF PART.FED 15O310
B2: AP-RF AVANCE PRESUPUESTAL DE RECURSOS DE ORIGEN FEDERAL
B3: FONDO, CONVENIO, SUBSIDIO O PARTICIPACIÓN: (1)
B5: Unidad Responsable de Gasto: | F5: DIRECCIÓN GENERAL DE OBRAS Y DESARROLLO URBANO
B6: Período: | F6: Enero-Diciembre 2021
B8: FONDO | F8: NO ETIQUETADO RECURSOS FEDERALES-PARTICIPACIONES A ENTIDADES FEDERATIVAS Y MUNICIPIOS-FONDO DE FOMENTO MUNICIPAL-2022-ORIGINAL DE LA URG (15O310)
B10: R E S U L T A D O S
B11: PRESUPUESTO (Pesos con dos decimales) | I11: AVANCE %
B12: APROBADO | C12: MODIFICADO | D12: PROGRAMADO | E12: SALDO DEL COMPROMISO | F12: DEVENGADO | G12: EJERCIDO | H12: PAGADO | I12: (DEVENGADO / APROBADO)*100 | J12: (DEVENGADO / MODIFICADO)*100 | K12: (EJERCIDO / APROBADO)*100 | L12: (EJERCIDO / MODIFICADO)*100
B13: 23057 | C13: 23057 | D13: 23057 | E13: 23057 | F13: 23057 | G13: 23057 | H13: 23057 | I13: =IFERROR(($F13/$B13)*100,"") -> 100 | J13: =IFERROR(($F13/$B13)*100,"") -> 100 | K13: =IFERROR(($G13/$B13)*100,"") -> 100 | L13: =IFERROR(($G13/$C13)*100,"") -> 100
I15: =IFERROR((#REF!/#REF!)*100,"") ->  | J15: =IFERROR((#REF!/#REF!)*100,"") ->  | K15: =IFERROR((#REF!/#REF!)*100,"") ->  | L15: =IFERROR((#REF!/#REF!)*100,"") -> 
I16: =IFERROR((#REF!/#REF!)*100,"") ->  | J16: =IFERROR((#REF!/#REF!)*100,"") ->  | K16: =IFERROR((#REF!/#REF!)*100,"") ->  | L16: =IFERROR((#REF!/#REF!)*100,"") -> 
B17: =IFERROR(VLOOKUP($C17,#REF!,3,FALSE),"") ->  | G17: =IFERROR(F17/C17,"") ->  | H17: =IFERROR((F17/D17*100),"") ->  | I17: =IFERROR((#REF!/#REF!)*100,"") ->  | J17: =IFERROR((#REF!/#REF!)*100,"") ->  | K17: =IFERROR((#REF!/#REF!)*100,"") ->  | L17: =IFERROR((#REF!/#REF!)*100,"") -> 
B18: =IFERROR(VLOOKUP($C18,#REF!,3,FALSE),"") ->  | I18: =IFERROR((#REF!/#REF!)*100,"") ->  | J18: =IFERROR((#REF!/#REF!)*100,"") ->  | K18: =IFERROR((#REF!/#REF!)*100,"") ->  | L18: =IFERROR((#REF!/#REF!)*100,"") -> 
B19: =IFERROR(VLOOKUP($C19,#REF!,3,FALSE),"") ->  | I19: =IFERROR((#REF!/#REF!)*100,"") ->  | J19: =IFERROR((#REF!/#REF!)*100,"") ->  | K19: =IFERROR((#REF!/#REF!)*100,"") ->  | L19: =IFERROR((#REF!/#REF!)*100,"") -> 
B20: =IFERROR(VLOOKUP($C20,#REF!,3,FALSE),"") ->  | I20: =IFERROR((#REF!/#REF!)*100,"") ->  | J20: =IFERROR((#REF!/#REF!)*100,"") ->  | K20: =IFERROR((#REF!/#REF!)*100,"") ->  | L20: =IFERROR((#REF!/#REF!)*100,"") -> 
B21: =IFERROR(VLOOKUP($C21,#REF!,3,FALSE),"") ->  | I21: =IFERROR((#REF!/#REF!)*100,"") ->  | J21: =IFERROR((#REF!/#REF!)*100,"") ->  | K21: =IFERROR((#REF!/#REF!)*100,"") ->  | L21: =IFERROR((#REF!/#REF!)*100,"") -> 
B22: =IFERROR(VLOOKUP($C22,#REF!,3,FALSE),"") ->  | I22: =IFERROR((#REF!/#REF!)*100,"") ->  | J22: =IFERROR((#REF!/#REF!)*100,"") ->  | K22: =IFERROR((#REF!/#REF!)*100,"") ->  | L22: =IFERROR((#REF!/#REF!)*100,"") -> 
B23: =IFERROR(VLOOKUP($C23,#REF!,3,FALSE),"") ->  | I23: =IFERROR((#REF!/#REF!)*100,"") ->  | J23: =IFERROR((#REF!/#REF!)*100,"") ->  | K23: =IFERROR((#REF!/#REF!)*100,"") ->  | L23: =IFERROR((#REF!/#REF!)*100,"") -> 
B24: =IFERROR(VLOOKUP($C24,#REF!,3,FALSE),"") ->  | I24: =IFERROR((#REF!/#REF!)*100,"") ->  | J24: =IFERROR((#REF!/#REF!)*100,"") ->  | K24: =IFERROR((#REF!/#REF!)*100,"") ->  | L24: =IFERROR((#REF!/#REF!)*100,"") -> 
B25: =IFERROR(VLOOKUP($C25,#REF!,3,FALSE),"") ->  | I25: =IFERROR((#REF!/#REF!)*100,"") ->  | J25: =IFERROR((#REF!/#REF!)*100,"") ->  | K25: =IFERROR((#REF!/#REF!)*100,"") ->  | L25: =IFERROR((#REF!/#REF!)*100,"") -> 
B26: =IFERROR(VLOOKUP($C26,#REF!,3,FALSE),"") ->  | I26: =IFERROR((#REF!/#REF!)*100,"") ->  | J26: =IFERROR((#REF!/#REF!)*100,"") ->  | K26: =IFERROR((#REF!/#REF!)*100,"") ->  | L26: =IFERROR((#REF!/#REF!)*100,"") -> 
B27: =IFERROR(VLOOKUP($C27,#REF!,3,FALSE),"") ->  | I27: =IFERROR((#REF!/#REF!)*100,"") ->  | J27: =IFERROR((#REF!/#REF!)*100,"") ->  | K27: =IFERROR((#REF!/#REF!)*100,"") ->  | L27: =IFERROR((#REF!/#REF!)*100,"") -> 
B28: =IFERROR(VLOOKUP($C28,#REF!,3,FALSE),"") ->  | I28: =IFERROR((#REF!/#REF!)*100,"") ->  | J28: =IFERROR((#REF!/#REF!)*100,"") ->  | K28: =IFERROR((#REF!/#REF!)*100,"") ->  | L28: =IFERROR((#REF!/#REF!)*100,"") -> 
B29: =IFERROR(VLOOKUP($C29,#REF!,3,FALSE),"") ->  | I29: =IFERROR((#REF!/#REF!)*100,"") ->  | J29: =IFERROR((#REF!/#REF!)*100,"") ->  | K29: =IFERROR((#REF!/#REF!)*100,"") ->  | L29: =IFERROR((#REF!/#REF!)*100,"") -> 
B30: =IFERROR(VLOOKUP($C30,#REF!,3,FALSE),"") ->  | I30: =IFERROR((#REF!/#REF!)*100,"") ->  | J30: =IFERROR((#REF!/#REF!)*100,"") ->  | K30: =IFERROR((#REF!/#REF!)*100,"") ->  | L30: =IFERROR((#REF!/#REF!)*100,"") -> 
B31: =IFERROR(VLOOKUP($C31,#REF!,3,FALSE),"") ->  | I31: =IFERROR((#REF!/#REF!)*100,"") ->  | J31: =IFERROR((#REF!/#REF!)*100,"") ->  | K31: =IFERROR((#REF!/#REF!)*100,"") ->  | L31: =IFERROR((#REF!/#REF!)*100,"") -> 
B32: =IFERROR(VLOOKUP($C32,#REF!,3,FALSE),"") ->  | I32: =IFERROR((#REF!/#REF!)*100,"") ->  | J32: =IFERROR((#REF!/#REF!)*100,"") ->  | K32: =IFERROR((#REF!/#REF!)*100,"") ->  | L32: =IFERROR((#REF!/#REF!)*100,"") -> 
B33: =IFERROR(VLOOKUP($C33,#REF!,3,FALSE),"") ->  | I33: =IFERROR((#REF!/#REF!)*100,"") ->  | J33: =IFERROR((#REF!/#REF!)*100,"") ->  | K33: =IFERROR((#REF!/#REF!)*100,"") ->  | L33: =IFERROR((#REF!/#REF!)*100,"") -> 
B34: =IFERROR(VLOOKUP($C34,#REF!,3,FALSE),"") ->  | I34: =IFERROR((#REF!/#REF!)*100,"") ->  | J34: =IFERROR((#REF!/#REF!)*100,"") ->  | K34: =IFERROR((#REF!/#REF!)*100,"") ->  | L34: =IFERROR((#REF!/#REF!)*100,"") -> 
B35: =IFERROR(VLOOKUP($C35,#REF!,3,FALSE),"") ->  | I35: =IFERROR((#REF!/#REF!)*100,"") ->  | J35: =IFERROR((#REF!/#REF!)*100,"") ->  | K35: =IFERROR((#REF!/#REF!)*100,"") ->  | L35: =IFERROR((#REF!/#REF!)*100,"") -> 
B36: =IFERROR(VLOOKUP($C36,#REF!,3,FALSE),"") ->  | I36: =IFERROR((#REF!/#REF!)*100,"") ->  | J36: =IFERROR((#REF!/#REF!)*100,"") ->  | K36: =IFERROR((#REF!/#REF!)*100,"") ->  | L36: =IFERROR((#REF!/#REF!)*100,"") -> 
B37: =IFERROR(VLOOKUP($C37,#REF!,3,FALSE),"") ->  | I37: =IFERROR((#REF!/#REF!)*100,"") ->  | J37: =IFERROR((#REF!/#REF!)*100,"") ->  | K37: =IFERROR((#REF!/#REF!)*100,"") ->  | L37: =IFERROR((#REF!/#REF!)*100,"") -> 
B38: =IFERROR(VLOOKUP($C38,#REF!,3,FALSE),"") ->  | I38: =IFERROR((#REF!/#REF!)*100,"") ->  | J38: =IFERROR((#REF!/#REF!)*100,"") ->  | K38: =IFERROR((#REF!/#REF!)*100,"") ->  | L38: =IFERROR((#REF!/#REF!)*100,"") -> 
B39: =IFERROR(VLOOKUP($C39,#REF!,3,FALSE),"") ->  | I39: =IFERROR((#REF!/#REF!)*100,"") ->  | J39: =IFERROR((#REF!/#REF!)*100,"") ->  | K39: =IFERROR((#REF!/#REF!)*100,"") ->  | L39: =IFERROR((#REF!/#REF!)*100,"") -> 
B40: =IFERROR(VLOOKUP($C40,#REF!,3,FALSE),"") ->  | I40: =IFERROR((#REF!/#REF!)*100,"") ->  | J40: =IFERROR((#REF!/#REF!)*100,"") ->  | K40: =IFERROR((#REF!/#REF!)*100,"") ->  | L40: =IFERROR((#REF!/#REF!)*100,"") -> 
B41: =IFERROR(VLOOKUP($C41,#REF!,3,FALSE),"") ->  | I41: =IFERROR((#REF!/#REF!)*100,"") ->  | J41: =IFERROR((#REF!/#REF!)*100,"") ->  | K41: =IFERROR((#REF!/#REF!)*100,"") ->  | L41: =IFERROR((#REF!/#REF!)*100,"") -> 
B42: =IFERROR(VLOOKUP($C42,#REF!,3,FALSE),"") ->  | I42: =IFERROR((#REF!/#REF!)*100,"") ->  | J42: =IFERROR((#REF!/#REF!)*100,"") ->  | K42: =IFERROR((#REF!/#REF!)*100,"") ->  | L42: =IFERROR((#REF!/#REF!)*100,"") -> 
B43: =IFERROR(VLOOKUP($C43,#REF!,3,FALSE),"") ->  | I43: =IFERROR((#REF!/#REF!)*100,"") ->  | J43: =IFERROR((#REF!/#REF!)*100,"") ->  | K43: =IFERROR((#REF!/#REF!)*100,"") ->  | L43: =IFERROR((#REF!/#REF!)*100,"") -> 
B44: =IFERROR(VLOOKUP($C44,#REF!,3,FALSE),"") ->  | I44: =IFERROR((#REF!/#REF!)*100,"") ->  | J44: =IFERROR((#REF!/#REF!)*100,"") ->  | K44: =IFERROR((#REF!/#REF!)*100,"") ->  | L44: =IFERROR((#REF!/#REF!)*100,"") -> 
B45: =IFERROR(VLOOKUP($C45,#REF!,3,FALSE),"") ->  | I45: =IFERROR((#REF!/#REF!)*100,"") ->  | J45: =IFERROR((#REF!/#REF!)*100,"") ->  | K45: =IFERROR((#REF!/#REF!)*100,"") ->  | L45: =IFERROR((#REF!/#REF!)*100,"") -> 
B46: =IFERROR(VLOOKUP($C46,#REF!,3,FALSE),"") ->  | I46: =IFERROR((#REF!/#REF!)*100,"") ->  | J46: =IFERROR((#REF!/#REF!)*100,"") ->  | K46: =IFERROR((#REF!/#REF!)*100,"") ->  | L46: =IFERROR((#REF!/#REF!)*100,"") -> 
B47: =IFERROR(VLOOKUP($C47,#REF!,3,FALSE),"") ->  | I47: =IFERROR((#REF!/#REF!)*100,"") ->  | J47: =IFERROR((#REF!/#REF!)*100,"") ->  | K47: =IFERROR((#REF!/#REF!)*100,"") ->  | L47: =IFERROR((#REF!/#REF!)*100,"") -> 
B50: PRINCIPALES ACCIONES REALIZADAS CON RECURSOS DE ORIGEN FEDERAL:
B51: Al periodo no hay acciones realizadas
B58: 223 202 K014- Se autorizaron recursos del capítulo 2000 partida 2441 para compra de Madera y productos de madera la cual es controlada por la Dirección General de Administración.

Sheet AP_RF PART.FED 15O410
B2: AP-RF AVANCE PRESUPUESTAL DE RECURSOS DE ORIGEN FEDERAL
B3: FONDO, CONVENIO, SUBSIDIO O PARTICIPACIÓN: (1)
B5: Unidad Responsable de Gasto: | F5: DIRECCIÓN GENERAL DE OBRAS Y DESARROLLO URBANO
B6: Período: | F6: Enero-Diciembre 2021
B8: FONDO | F8: NO ETIQUETADO RECURSOS FEDERALES-PARTICIPACIONES A ENTIDADES FEDERATIVAS Y MUNICIPIOS- PARTICIPACIONES EN EL IMPUESTO ESPECIAL SOBRE PRODUCCIÓN Y SERVICIOS-2022-ORIGINAL DE LA URG (15O410)
B10: R E S U L T A D O S
B11: PRESUPUESTO (Pesos con dos decimales) | I11: AVANCE %
B12: APROBADO | C12: MODIFICADO | D12: PROGRAMADO | E12: SALDO DEL COMPROMISO | F12: DEVENGADO | G12: EJERCIDO | H12: PAGADO | I12: (DEVENGADO / APROBADO)*100 | J12: (DEVENGADO / MODIFICADO)*100 | K12: (EJERCIDO / APROBADO)*100 | L12: (EJERCIDO / MODIFICADO)*100
B13: 528943 | C13: 689145.43 | D13: 647482.43 | E13: 647482.43 | F13: 647482.43 | G13: 528885.02 | H13: 528885.02 | I13: 0 | J13: =IFERROR(($F13/$B13)*100,"") -> 122.4106246 | K13: =IFERROR(($G13/$B13)*100,"") -> 99.98903852 | L13: =IFERROR(($G13/$C13)*100,"") -> 76.7450522
I15: =IFERROR((#REF!/#REF!)*100,"") ->  | J15: =IFERROR((#REF!/#REF!)*100,"") ->  | K15: =IFERROR((#REF!/#REF!)*100,"") ->  | L15: =IFERROR((#REF!/#REF!)*100,"") -> 
I16: =IFERROR((#REF!/#REF!)*100,"") ->  | J16: =IFERROR((#REF!/#REF!)*100,"") ->  | K16: =IFERROR((#REF!/#REF!)*100,"") ->  | L16: =IFERROR((#REF!/#REF!)*100,"") -> 
B17: =IFERROR(VLOOKUP($C17,#REF!,3,FALSE),"") ->  | G17: =IFERROR(F17/C17,"") ->  | H17: =IFERROR((F17/D17*100),"") ->  | I17: =IFERROR((#REF!/#REF!)*100,"") ->  | J17: =IFERROR((#REF!/#REF!)*100,"") ->  | K17: =IFERROR((#REF!/#REF!)*100,"") ->  | L17: =IFERROR((#REF!/#REF!)*100,"") -> 
B18: =IFERROR(VLOOKUP($C18,#REF!,3,FALSE),"") ->  | I18: =IFERROR((#REF!/#REF!)*100,"") ->  | J18: =IFERROR((#REF!/#REF!)*100,"") ->  | K18: =IFERROR((#REF!/#REF!)*100,"") ->  | L18: =IFERROR((#REF!/#REF!)*100,"") -> 
B19: =IFERROR(VLOOKUP($C19,#REF!,3,FALSE),"") ->  | I19: =IFERROR((#REF!/#REF!)*100,"") ->  | J19: =IFERROR((#REF!/#REF!)*100,"") ->  | K19: =IFERROR((#REF!/#REF!)*100,"") ->  | L19: =IFERROR((#REF!/#REF!)*100,"") -> 
B20: =IFERROR(VLOOKUP($C20,#REF!,3,FALSE),"") ->  | I20: =IFERROR((#REF!/#REF!)*100,"") ->  | J20: =IFERROR((#REF!/#REF!)*100,"") ->  | K20: =IFERROR((#REF!/#REF!)*100,"") ->  | L20: =IFERROR((#REF!/#REF!)*100,"") -> 
B21: =IFERROR(VLOOKUP($C21,#REF!,3,FALSE),"") ->  | I21: =IFERROR((#REF!/#REF!)*100,"") ->  | J21: =IFERROR((#REF!/#REF!)*100,"") ->  | K21: =IFERROR((#REF!/#REF!)*100,"") ->  | L21: =IFERROR((#REF!/#REF!)*100,"") -> 
B22: =IFERROR(VLOOKUP($C22,#REF!,3,FALSE),"") ->  | I22: =IFERROR((#REF!/#REF!)*100,"") ->  | J22: =IFERROR((#REF!/#REF!)*100,"") ->  | K22: =IFERROR((#REF!/#REF!)*100,"") ->  | L22: =IFERROR((#REF!/#REF!)*100,"") -> 
B23: =IFERROR(VLOOKUP($C23,#REF!,3,FALSE),"") ->  | I23: =IFERROR((#REF!/#REF!)*100,"") ->  | J23: =IFERROR((#REF!/#REF!)*100,"") ->  | K23: =IFERROR((#REF!/#REF!)*100,"") ->  | L23: =IFERROR((#REF!/#REF!)*100,"") -> 
B24: =IFERROR(VLOOKUP($C24,#REF!,3,FALSE),"") ->  | I24: =IFERROR((#REF!/#REF!)*100,"") ->  | J24: =IFERROR((#REF!/#REF!)*100,"") ->  | K24: =IFERROR((#REF!/#REF!)*100,"") ->  | L24: =IFERROR((#REF!/#REF!)*100,"") -> 
B25: =IFERROR(VLOOKUP($C25,#REF!,3,FALSE),"") ->  | I25: =IFERROR((#REF!/#REF!)*100,"") ->  | J25: =IFERROR((#REF!/#REF!)*100,"") ->  | K25: =IFERROR((#REF!/#REF!)*100,"") ->  | L25: =IFERROR((#REF!/#REF!)*100,"") -> 
B26: =IFERROR(VLOOKUP($C26,#REF!,3,FALSE),"") ->  | I26: =IFERROR((#REF!/#REF!)*100,"") ->  | J26: =IFERROR((#REF!/#REF!)*100,"") ->  | K26: =IFERROR((#REF!/#REF!)*100,"") ->  | L26: =IFERROR((#REF!/#REF!)*100,"") -> 
B27: =IFERROR(VLOOKUP($C27,#REF!,3,FALSE),"") ->  | I27: =IFERROR((#REF!/#REF!)*100,"") ->  | J27: =IFERROR((#REF!/#REF!)*100,"") ->  | K27: =IFERROR((#REF!/#REF!)*100,"") ->  | L27: =IFERROR((#REF!/#REF!)*100,"") -> 
B28: =IFERROR(VLOOKUP($C28,#REF!,3,FALSE),"") ->  | I28: =IFERROR((#REF!/#REF!)*100,"") ->  | J28: =IFERROR((#REF!/#REF!)*100,"") ->  | K28: =IFERROR((#REF!/#REF!)*100,"") ->  | L28: =IFERROR((#REF!/#REF!)*100,"") -> 
B29: =IFERROR(VLOOKUP($C29,#REF!,3,FALSE),"") ->  | I29: =IFERROR((#REF!/#REF!)*100,"") ->  | J29: =IFERROR((#REF!/#REF!)*100,"") ->  | K29: =IFERROR((#REF!/#REF!)*100,"") ->  | L29: =IFERROR((#REF!/#REF!)*100,"") -> 
B30: =IFERROR(VLOOKUP($C30,#REF!,3,FALSE),"") ->  | I30: =IFERROR((#REF!/#REF!)*100,"") ->  | J30: =IFERROR((#REF!/#REF!)*100,"") ->  | K30: =IFERROR((#REF!/#REF!)*100,"") ->  | L30: =IFERROR((#REF!/#REF!)*100,"") -> 
B31: =IFERROR(VLOOKUP($C31,#REF!,3,FALSE),"") ->  | I31: =IFERROR((#REF!/#REF!)*100,"") ->  | J31: =IFERROR((#REF!/#REF!)*100,"") ->  | K31: =IFERROR((#REF!/#REF!)*100,"") ->  | L31: =IFERROR((#REF!/#REF!)*100,"") -> 
B32: =IFERROR(VLOOKUP($C32,#REF!,3,FALSE),"") ->  | I32: =IFERROR((#REF!/#REF!)*100,"") ->  | J32: =IFERROR((#REF!/#REF!)*100,"") ->  | K32: =IFERROR((#REF!/#REF!)*100,"") ->  | L32: =IFERROR((#REF!/#REF!)*100,"") -> 
B33: =IFERROR(VLOOKUP($C33,#REF!,3,FALSE),"") ->  | I33: =IFERROR((#REF!/#REF!)*100,"") ->  | J33: =IFERROR((#REF!/#REF!)*100,"") ->  | K33: =IFERROR((#REF!/#REF!)*100,"") ->  | L33: =IFERROR((#REF!/#REF!)*100,"") -> 
B34: =IFERROR(VLOOKUP($C34,#REF!,3,FALSE),"") ->  | I34: =IFERROR((#REF!/#REF!)*100,"") ->  | J34: =IFERROR((#REF!/#REF!)*100,"") ->  | K34: =IFERROR((#REF!/#REF!)*100,"") ->  | L34: =IFERROR((#REF!/#REF!)*100,"") -> 
B35: =IFERROR(VLOOKUP($C35,#REF!,3,FALSE),"") ->  | I35: =IFERROR((#REF!/#REF!)*100,"") ->  | J35: =IFERROR((#REF!/#REF!)*100,"") ->  | K35: =IFERROR((#REF!/#REF!)*100,"") ->  | L35: =IFERROR((#REF!/#REF!)*100,"") -> 
B36: =IFERROR(VLOOKUP($C36,#REF!,3,FALSE),"") ->  | I36: =IFERROR((#REF!/#REF!)*100,"") ->  | J36: =IFERROR((#REF!/#REF!)*100,"") ->  | K36: =IFERROR((#REF!/#REF!)*100,"") ->  | L36: =IFERROR((#REF!/#REF!)*100,"") -> 
B37: =IFERROR(VLOOKUP($C37,#REF!,3,FALSE),"") ->  | I37: =IFERROR((#REF!/#REF!)*100,"") ->  | J37: =IFERROR((#REF!/#REF!)*100,"") ->  | K37: =IFERROR((#REF!/#REF!)*100,"") ->  | L37: =IFERROR((#REF!/#REF!)*100,"") -> 
B38: =IFERROR(VLOOKUP($C38,#REF!,3,FALSE),"") ->  | I38: =IFERROR((#REF!/#REF!)*100,"") ->  | J38: =IFERROR((#REF!/#REF!)*100,"") ->  | K38: =IFERROR((#REF!/#REF!)*100,"") ->  | L38: =IFERROR((#REF!/#REF!)*100,"") -> 
B39: =IFERROR(VLOOKUP($C39,#REF!,3,FALSE),"") ->  | I39: =IFERROR((#REF!/#REF!)*100,"") ->  | J39: =IFERROR((#REF!/#REF!)*100,"") ->  | K39: =IFERROR((#REF!/#REF!)*100,"") ->  | L39: =IFERROR((#REF!/#REF!)*100,"") -> 
B40: =IFERROR(VLOOKUP($C40,#REF!,3,FALSE),"") ->  | I40: =IFERROR((#REF!/#REF!)*100,"") ->  | J40: =IFERROR((#REF!/#REF!)*100,"") ->  | K40: =IFERROR((#REF!/#REF!)*100,"") ->  | L40: =IFERROR((#REF!/#REF!)*100,"") -> 
B41: =IFERROR(VLOOKUP($C41,#REF!,3,FALSE),"") ->  | I41: =IFERROR((#REF!/#REF!)*100,"") ->  | J41: =IFERROR((#REF!/#REF!)*100,"") ->  | K41: =IFERROR((#REF!/#REF!)*100,"") ->  | L41: =IFERROR((#REF!/#REF!)*100,"") -> 
B42: =IFERROR(VLOOKUP($C42,#REF!,3,FALSE),"") ->  | I42: =IFERROR((#REF!/#REF!)*100,"") ->  | J42: =IFERROR((#REF!/#REF!)*100,"") ->  | K42: =IFERROR((#REF!/#REF!)*100,"") ->  | L42: =IFERROR((#REF!/#REF!)*100,"") -> 
B43: =IFERROR(VLOOKUP($C43,#REF!,3,FALSE),"") ->  | I43: =IFERROR((#REF!/#REF!)*100,"") ->  | J43: =IFERROR((#REF!/#REF!)*100,"") ->  | K43: =IFERROR((#REF!/#REF!)*100,"") ->  | L43: =IFERROR((#REF!/#REF!)*100,"") -> 
B44: =IFERROR(VLOOKUP($C44,#REF!,3,FALSE),"") ->  | I44: =IFERROR((#REF!/#REF!)*100,"") ->  | J44: =IFERROR((#REF!/#REF!)*100,"") ->  | K44: =IFERROR((#REF!/#REF!)*100,"") ->  | L44: =IFERROR((#REF!/#REF!)*100,"") -> 
B45: =IFERROR(VLOOKUP($C45,#REF!,3,FALSE),"") ->  | I45: =IFERROR((#REF!/#REF!)*100,"") ->  | J45: =IFERROR((#REF!/#REF!)*100,"") ->  | K45: =IFERROR((#REF!/#REF!)*100,"") ->  | L45: =IFERROR((#REF!/#REF!)*100,"") -> 
B46: =IFERROR(VLOOKUP($C46,#REF!,3,FALSE),"") ->  | I46: =IFERROR((#REF!/#REF!)*100,"") ->  | J46: =IFERROR((#REF!/#REF!)*100,"") ->  | K46: =IFERROR((#REF!/#REF!)*100,"") ->  | L46: =IFERROR((#REF!/#REF!)*100,"") -> 
B47: =IFERROR(VLOOKUP($C47,#REF!,3,FALSE),"") ->  | I47: =IFERROR((#REF!/#REF!)*100,"") ->  | J47: =IFERROR((#REF!/#REF!)*100,"") ->  | K47: =IFERROR((#REF!/#REF!)*100,"") ->  | L47: =IFERROR((#REF!/#REF!)*100,"") -> 
B50: PRINCIPALES ACCIONES REALIZADAS CON RECURSOS DE ORIGEN FEDERAL:
B51: 223 202 K014-Infraestructura de Agua Potable; Alcantarillado y Saneamiento A través de la Obra por Administración al perido se realizaron 159,401.00 ml para el Mantenimiento a la red de Agua Potable en las siguientes colonias : 2 De Octubre ,Actopan, Ampl. Miguel Hidalgo, Ampl. Miguel Hidalgo 2da Secc,Ampl. Miguel Hidalgo 3era Secc,Ampl. Miguel Hidalgo 4ta Secc,Ampliación Oriente, Ampliación Plan de Ayala, Ampliación Tepeximilpa, Arboledas Del Sur , Barrio El Capulín, Barrio del niño Jesús, Belisario Domínguez, Belvedere, Bosques del Pedregal, Cantera Puente de Piedra, Chimilli,Chitchitcaspatl ,Cultura Maya, Cruz Del Farol , Cumbres de Tepetongo, Diamante, Divisadero, Ejidos de San Lorenzo Huipulco, Ejidos De San Pedro Mártir, El Mirador, El Mirador 3era Sección, Ex Hacienda Coapa, Ex Hacienda San Juan de Dios, Floresta Coyoacan,Fracc. Javier Ramos Millán ,Fuentes Brotantes ,Fuentes De Tepepan , Fuentes del Pedregal, Guadalupe Tlalpan, Granjas Coapa, Hacienda San Juan De Dios ,Héroes De Padierna ,Isidro Fabela , ISSSFAM, Jardines Del Ajusco ,Jardines de la Montaña, Juventud Unida, La Joya , La Fama, La Palma, La Palma 1era Secc., La Palma 2da Secc , La Tortuga Xolalpan, Lomas Altas De Padierna Sur ,Lomas De Padierna, Lomas Hidalgo, Lomas de Cuilotepec, Los Encinos ,Ma. Esther Zuno de Echeverría, Magdalena Petlacalco, Mesa Los Hornos, Miguel Hidalgo 1era Secc., Miguel Hidalgo 2da Secc ,Miguel Hidalgo 3era Secc ,Miguel Hidalgo 4ta Secc ,Miguel hidalgo ,Mirador, Mirador 1era Secc., Mirador 2da Secc., Mirador del Valle, Mirador I, Mirador II, Movimiento Organizado, Nueva Oriental Coapa, Nuevo Renacimiento De Axalco ,Paraje 38 ,Paraje Tetenco, Parres el Guarda, Parques Del Pedregal ,Pedregal De Las Águilas ,Pedregal De San Nicolás ,Pedregal De San Nicolás 1a Secc ,Pedregal De San Nicolás 3era Secc ,Pedregal De San Nicolás 4a Secc ,Pedregal de Santa Úrsula Xitla, Pedregal De Tepepan ,Peña Pobre ,Plan de Ayala, Popular Santa Teresa ,Prados Coapa 1era Secc., Prados Coapa 2da Secc., Primavera, Progreso Tlalpan, Pueblo Quieto ,Residencial Acoxpa, Residencial Chimalli ,Residencial Villa Coapa , Rincón del Pedregal, Rinconada Coapa, Rinconada del Mirador, San Andrés Totoltepec ,San Bartolo el Chico, San Juan Tepeximilpa ,San Lorenzo Huipulco, San Miguel Ajusco , San Miguel Topilejo ,San Miguel Xicalco, San Pedro Mártir ,Santa Úrsula Xitla ,Santo Tomas Ajusco ,Santísima Trinidad, Tecorral, Tenorios, Tepetitla el Alto, Tlalcoligia, Tlalmille, Tlalpan Centro, Tlaxcaltenco la Mesa, Toriello Guerra ,Torres De Padierna , Tortuga Xolalpan , U.Hab ISSSFAM, U. Hab Narcizo Mendoza ,Valle Escondido ,Verano ,Vergel Coapa ,Villa Charros Del Pedregal ,Villa Coapa , Villa Lázaro Cárdenas, Vistas del Pedregal, Viveros de Coactectlán, Volcanes . Adicionalmente se realizaron trabajos en la reparación de 2,627.00 Fugas en las siguientes colonias: 2 De Octubre ,3 de Mayo, Ampl. Isidro Fabela,Ampl. Miguel Hidalgo,Ampl. Miguel Hidalgo 2da Secc,Ampl. Miguel Hidalgo 3era Secc, Ampl. Miguel Hidalgo 4ta Secc., Ampl. Tepeximilpa, Ampl. San Juan Tepeximilpa, Arboledas Del Sur,Arenal Tepepan, Amsa, Anexo Mesa los Hornos, Arenal Guadalupe, Barrio Del Niño Jesus,Belizario Dominguez,Belvedere,Bosques De Tepeximilpa,Cantera Puente De Piedra,Chimalcoyotl,Chimilli,Chitchitcaspatl,Club De Golf Mexico,Comuneros de Santa Úrsula Xitla, Cruz Del Farol,Cuchilla De Padierna,Cultura Maya,Diamante,Ejidos De San Pedro Martir,El Capulin,Ex Hacienda Coapa, Ex Hacienda San Juan De Dios, El Mirador 1era Secc., El Mirador 2da Secc., El Mirador 3era Secc., Fracc Gabriel Ramos Millan, Fovissste, Fuentes Brotantes,Fuentes De Tepepan, Fuentes Del Pedregal, Granjas Coapa, Guadalupe Tlalpan, Hacienda San Juan De Dios,Heroes De Padierna, Isidro Fabela, ISSSFAM, Jardines Del Ajusco, Juventud Unida, La Joya, La Fama, La Palma, La Palma 1era Secc, Loma Bonita, Los Encinos, Lomas Altas De Padierna Sur, Lomas De Padierna, Lomas Hidalgo, Ma. Esther Zuno de Echeverría, Magisterial Coapa, Magdalena Petlacalco, Mesa Los Hornos, Miguel Hidalgo, Miguel Hidalgo 1era Secc,Miguel Hidalgo 2da Secc,Miguel Hidalgo 3era Secc, Miguel Hidalgo 4ta Secc., Mirador, Mirador 1era Secc., Mirador 2da Secc,Mirador 3era Secc,Mirador II, Nuevo Renacimiento de Axalco, Oriental Coapa, Paraje 38,Paraje Tetenco,Parques Del Pedregal, Pedregal de Santa Úrsula Xitla, Pedregal De Las Aguilas,Pedregal De San Nicolas,Pedregal de San Nicolás 1era Secc., Pedregal de San Nicolás 2da Secc., Pedregal de San Nicolás 3era Secc., Pedregal De San Nicolás 4ta Secc,Peña Pobre, Pequeña Tepeximilpa,Popular Santa Teresa, Prado Coapa, Prado Coapa 1era Secc,Prado Coapa 2da Secc,Prados Coapa, Primavera, Pueblo Quieto, Residencial Hacienda Coapa, Residencial Villa Coapa, San Andrés Totoltepec, San Bartolo el Chico, San Juan Tepeximilpa, San Lorenzo Huipulco, San Miguel Ajusco 9, Santo Tomas Ajusco, San Miguel Topilejo, San Miguel Xicalco, San Pedro Apostol,San Pedro Martir,Santa Úrsula Xitla, Sección XVII, Tlalcoligia,Tlalmille,Tlalpan Centro,Tlaxcaltenco La Mesa,Tecorrales,Tepeximilpa, Toriello Guerra, Torres De Padierna,U. Hab Fuentes Brotantes,U. Hab Narciso Mendoza, Verano, Vergel Del Sur, Vergel de Coyoacán, Villa Charros Del Pedregal, Verano, Villa Coapa, Villa Lázaro Cardenas,Vistas de Cuilotepec, Viveros De Coactetlan. Se realizaron 292.54 kms para Mantener la Red Primaria y Secundaria de Drenaje Sanitario en las siguientes colonias: 2 de Octubre, Amsa, Ampliación Isidro Fabela, Ampl. Miguel Hidalgo 2da. Sección,Ampl. Miguel Hidalgo 3ra. Sección,Ampl. Miguel Hidalgo 4ta Sección, Ampliacion Tepeximilpa, Arboledas del Sur, Arenal de Tepepan, Barrio Las Camisetas, Barrio Niño Jesus, Bosques de Tepeximilpa, Bosques Del Pedregal, Cantera Puente de Piedra, Chichicaspatl, Chimalcoyotl,Cuchilla De Padierna, Cultura Maya, Ejidos de San Pedro Mártir, Ex Hacienda San Juan de Dios, Floresta Coyoacán, Fuentes del Pedregal, Fuentes De Tepepan, Granjas Coapa, Héroes de Padierna, Isidro Fabela, La Fama, La Joya, La Tortuga Xolalpa, Lomas de Padierna, Lomas Altas de Padierna Sur, María Esther Zuno de Echeverría, Magisterial Coapa, Magdalena Petlacalco, Mesa los Hornos, Miguel Hidalgo 1ra. Sección, Mirador 1ra. Sección, Mirador 2da Sección, Nueva Oriental Coapa, Parres el Guarda, Prados Coapa, Prados Coapa 1ra Secc., Prados Coapa 2da. Sección, Prados Coapa 3ra Secc., Pedregal de las Águilas, Pedregal De Chichicaspatl, Pedregal de Santa Úrsula Xitla, Pedregal de San Nicolás 1ra Sección, Pedregal de San Nicolás 4ta Sección, Pueblo Quieto, Residencial Acoxpa, Residencial Villa Coapa, Rinconada Las Hadas, Rinconada El Mirador, Rinconada Coapa, Rinconada Coapa 1ra Sección, Rómulo Sánchez Mireles, San Andrés Totoltepec, San Bartolo el Chico, San Lorenzo Huipulco, San Juan Tepeximilpa,San Miguel Ajusco,San Miguel Topilejo, San Miguel Xicalco,San Pedro Mártir, San Pedro Apóstol, Santa Úrsula Xitla, Santo Tomas Ajusco, Sector XVII, Tlalmille, Tlalpan Centro, Tenorios Fovissste, Tecorral, Tlalcoligia, Torriello Guerra, Torres de Padierna, U. H. Cuemanco I,U. H. Cuemanco II,U. H. Cuemanco III,U. H. Cuemanco IV,U.H.Narciso Mendoza SM.2., U. H. Narciso Mendoza Sm7, U.H. Fuentes Brotantes,U.H. Tenorios, Villa Olímpica, Villa Lázaro Cárdenas, Valle de Tepepan, Vergel de Coyoacán, Villa Coapa, Villa del Puente, Villa Lázaro Cárdenas, Volcanes.
B68: Se realizaron 81,480.00 ml para el Desazolve de la Red Secundaria de Drenaje Sanitario en las siguientes colonias: Arenal Tepepan, Actopa, Ampliación Isidro Fabela, Ampl. Miguel Hidalgo 2da. Sección, Ampl. Miguel Hidalgo 3ra Sección, Ampl. Miguel Hidalgo 4ta. Sección, Arboledas del Sur, Barrio las Camisetas, Bosques del Pedregal,Bosques de Tepeximilpa, Cantera Puente de Piedra, Chimalcoyotl, Cultura Maya,Cruz del Farol, Ex Hacienda Coapa, Ejidos De San Pedro Mártir, El Mirador 1ra Sección, Granjas Coapa, Heroes de Padierna, Isidro Fabela, Jardines del Ajusco, Juventud Unida, La Joya, Lomas De Padierna, Lomas Altas de Padierna, Ma. Esther Zuno de Echeverria, Magdalena Petlacalco,Mesa los Hornos, Mirador 1ra Secc., Mirador 2da Secc., Miguel Hidalgo 1ra. Sección,Movimiento Organizado, Paraje Tecorral, Parres el Guarda, Pedregal de Chichiscaspatl, Pedregal de las Aguilas, Pedregal De San Nicolas 1ra Sección, Pedregal De San Nicolás 2da. Sección,Pedregal De San Nicolás 3ra. Sección, Pedregal de San Nicolas 4ta Secc., Prados Coapa 2da. Sección, Primavera, Pueblo Quieto, Rinconada las Hadas, Romulo Sanchez Mireles, San Andres Totoltepec, San Lorenzo Huipulco, San Pedro Martir, San Miguel Topilejo, San Miguel Ajusco, Santo Tomas Ajusco,San Miguel Xicalco, San Pedro Apostol, Santa Ursula Xitla, Tlalpan Centro, Tlalcoligia, Torres de Padierna, U. H. Cuemanco I, U. H. Cuemanco II,U. H. Cuemanco III, U. H. Cuemanco IV, U.H.Fuentes Brotantes, U. H. Narciso Mendoza Sm7, U.H. Zapote, Vergel de Coyoacan, Villa Coapa, Villa Lazaro Cardenas,Viveros de Coactetlan, Volcanes. Sí mismo se realizaron trabajos de limpieza de 416 Fosas Sépticas.
B87: 221 274 K016-Se autorizaron recursos para el Presupuesto Participativo capítulo 2000 DG:65, el cual no pertenece a la Dirección General de Obras y Desarrollo Urbano.
B88: 223 202 K014- Se adicionan recursos del capitulo 2000 en las partidas: Materiales para construcción, Herramientas menores, los cuales se requirieon ya que los recursos de origen fueron insuficientes para seguir llevando los trabajos de Mantenimiento y Rehabilitación de Drenaje, Agua Potable y Desazolve en este fondo se llevará la meta ejecutada ya que cuenta con 4 fondos los cuales son FISCALES; PARTICIPACIONES FEDERALES 15O310, PARTICIPACIONES FEDERALES 15O410 y FORTAMUN.

Sheet AP_RF PART.FED 15O510
B2: AP-RF AVANCE PRESUPUESTAL DE RECURSOS DE ORIGEN FEDERAL
B3: FONDO, CONVENIO, SUBSIDIO O PARTICIPACIÓN: (1)
B5: Unidad Responsable de Gasto: | F5: DIRECCIÓN GENERAL DE OBRAS Y DESARROLLO URBANO
B6: Período: | F6: Enero-Diciembre 2021
B8: FONDO | F8: NO ETIQUETADO RECURSOS FEDERALES-PARTICIPACIONES A ENTIDADES FEDERATIVAS Y MUNICIPIOS- FONDO DE FISCALIZACIÓN Y RECAUDACIÓN-2022-ORIGINAL DE LA URG (15O510)
B10: R E S U L T A D O S
B11: PRESUPUESTO (Pesos con dos decimales) | I11: AVANCE %
B12: APROBADO | C12: MODIFICADO | D12: PROGRAMADO | E12: SALDO DEL COMPROMISO | F12: DEVENGADO | G12: EJERCIDO | H12: PAGADO | I12: (DEVENGADO / APROBADO)*100 | J12: (DEVENGADO / MODIFICADO)*100 | K12: (EJERCIDO / APROBADO)*100 | L12: (EJERCIDO / MODIFICADO)*100
B13: 43468008 | C13: 25608420.3 | D13: 25608420.3 | E13: 25608420.3 | F13: 25608420.3 | G13: 24903925.76 | H13: 24903925.76 | I13: 0 | J13: =IFERROR(($F13/$B13)*100,"") -> 58.91325938 | K13: =IFERROR(($G13/$B13)*100,"") -> 57.29253975 | L13: =IFERROR(($G13/$C13)*100,"") -> 97.24897307
I15: =IFERROR((#REF!/#REF!)*100,"") ->  | J15: =IFERROR((#REF!/#REF!)*100,"") ->  | K15: =IFERROR((#REF!/#REF!)*100,"") ->  | L15: =IFERROR((#REF!/#REF!)*100,"") -> 
I16: =IFERROR((#REF!/#REF!)*100,"") ->  | J16: =IFERROR((#REF!/#REF!)*100,"") ->  | K16: =IFERROR((#REF!/#REF!)*100,"") ->  | L16: =IFERROR((#REF!/#REF!)*100,"") -> 
B17: =IFERROR(VLOOKUP($C17,#REF!,3,FALSE),"") ->  | G17: =IFERROR(F17/C17,"") ->  | H17: =IFERROR((F17/D17*100),"") ->  | I17: =IFERROR((#REF!/#REF!)*100,"") ->  | J17: =IFERROR((#REF!/#REF!)*100,"") ->  | K17: =IFERROR((#REF!/#REF!)*100,"") ->  | L17: =IFERROR((#REF!/#REF!)*100,"") -> 
B18: =IFERROR(VLOOKUP($C18,#REF!,3,FALSE),"") ->  | I18: =IFERROR((#REF!/#REF!)*100,"") ->  | J18: =IFERROR((#REF!/#REF!)*100,"") ->  | K18: =IFERROR((#REF!/#REF!)*100,"") ->  | L18: =IFERROR((#REF!/#REF!)*100,"") -> 
B19: =IFERROR(VLOOKUP($C19,#REF!,3,FALSE),"") ->  | I19: =IFERROR((#REF!/#REF!)*100,"") ->  | J19: =IFERROR((#REF!/#REF!)*100,"") ->  | K19: =IFERROR((#REF!/#REF!)*100,"") ->  | L19: =IFERROR((#REF!/#REF!)*100,"") -> 
B20: =IFERROR(VLOOKUP($C20,#REF!,3,FALSE),"") ->  | I20: =IFERROR((#REF!/#REF!)*100,"") ->  | J20: =IFERROR((#REF!/#REF!)*100,"") ->  | K20: =IFERROR((#REF!/#REF!)*100,"") ->  | L20: =IFERROR((#REF!/#REF!)*100,"") -> 
B21: =IFERROR(VLOOKUP($C21,#REF!,3,FALSE),"") ->  | I21: =IFERROR((#REF!/#REF!)*100,"") ->  | J21: =IFERROR((#REF!/#REF!)*100,"") ->  | K21: =IFERROR((#REF!/#REF!)*100,"") ->  | L21: =IFERROR((#REF!/#REF!)*100,"") -> 
B22: =IFERROR(VLOOKUP($C22,#REF!,3,FALSE),"") ->  | I22: =IFERROR((#REF!/#REF!)*100,"") ->  | J22: =IFERROR((#REF!/#REF!)*100,"") ->  | K22: =IFERROR((#REF!/#REF!)*100,"") ->  | L22: =IFERROR((#REF!/#REF!)*100,"") -> 
B23: =IFERROR(VLOOKUP($C23,#REF!,3,FALSE),"") ->  | I23: =IFERROR((#REF!/#REF!)*100,"") ->  | J23: =IFERROR((#REF!/#REF!)*100,"") ->  | K23: =IFERROR((#REF!/#REF!)*100,"") ->  | L23: =IFERROR((#REF!/#REF!)*100,"") -> 
B24: =IFERROR(VLOOKUP($C24,#REF!,3,FALSE),"") ->  | I24: =IFERROR((#REF!/#REF!)*100,"") ->  | J24: =IFERROR((#REF!/#REF!)*100,"") ->  | K24: =IFERROR((#REF!/#REF!)*100,"") ->  | L24: =IFERROR((#REF!/#REF!)*100,"") -> 
B25: =IFERROR(VLOOKUP($C25,#REF!,3,FALSE),"") ->  | I25: =IFERROR((#REF!/#REF!)*100,"") ->  | J25: =IFERROR((#REF!/#REF!)*100,"") ->  | K25: =IFERROR((#REF!/#REF!)*100,"") ->  | L25: =IFERROR((#REF!/#REF!)*100,"") -> 
B26: =IFERROR(VLOOKUP($C26,#REF!,3,FALSE),"") ->  | I26: =IFERROR((#REF!/#REF!)*100,"") ->  | J26: =IFERROR((#REF!/#REF!)*100,"") ->  | K26: =IFERROR((#REF!/#REF!)*100,"") ->  | L26: =IFERROR((#REF!/#REF!)*100,"") -> 
B27: =IFERROR(VLOOKUP($C27,#REF!,3,FALSE),"") ->  | I27: =IFERROR((#REF!/#REF!)*100,"") ->  | J27: =IFERROR((#REF!/#REF!)*100,"") ->  | K27: =IFERROR((#REF!/#REF!)*100,"") ->  | L27: =IFERROR((#REF!/#REF!)*100,"") -> 
B28: =IFERROR(VLOOKUP($C28,#REF!,3,FALSE),"") ->  | I28: =IFERROR((#REF!/#REF!)*100,"") ->  | J28: =IFERROR((#REF!/#REF!)*100,"") ->  | K28: =IFERROR((#REF!/#REF!)*100,"") ->  | L28: =IFERROR((#REF!/#REF!)*100,"") -> 
B29: =IFERROR(VLOOKUP($C29,#REF!,3,FALSE),"") ->  | I29: =IFERROR((#REF!/#REF!)*100,"") ->  | J29: =IFERROR((#REF!/#REF!)*100,"") ->  | K29: =IFERROR((#REF!/#REF!)*100,"") ->  | L29: =IFERROR((#REF!/#REF!)*100,"") -> 
B30: =IFERROR(VLOOKUP($C30,#REF!,3,FALSE),"") ->  | I30: =IFERROR((#REF!/#REF!)*100,"") ->  | J30: =IFERROR((#REF!/#REF!)*100,"") ->  | K30: =IFERROR((#REF!/#REF!)*100,"") ->  | L30: =IFERROR((#REF!/#REF!)*100,"") -> 
B31: =IFERROR(VLOOKUP($C31,#REF!,3,FALSE),"") ->  | I31: =IFERROR((#REF!/#REF!)*100,"") ->  | J31: =IFERROR((#REF!/#REF!)*100,"") ->  | K31: =IFERROR((#REF!/#REF!)*100,"") ->  | L31: =IFERROR((#REF!/#REF!)*100,"") -> 
B32: =IFERROR(VLOOKUP($C32,#REF!,3,FALSE),"") ->  | I32: =IFERROR((#REF!/#REF!)*100,"") ->  | J32: =IFERROR((#REF!/#REF!)*100,"") ->  | K32: =IFERROR((#REF!/#REF!)*100,"") ->  | L32: =IFERROR((#REF!/#REF!)*100,"") -> 
B33: =IFERROR(VLOOKUP($C33,#REF!,3,FALSE),"") ->  | I33: =IFERROR((#REF!/#REF!)*100,"") ->  | J33: =IFERROR((#REF!/#REF!)*100,"") ->  | K33: =IFERROR((#REF!/#REF!)*100,"") ->  | L33: =IFERROR((#REF!/#REF!)*100,"") -> 
B34: =IFERROR(VLOOKUP($C34,#REF!,3,FALSE),"") ->  | I34: =IFERROR((#REF!/#REF!)*100,"") ->  | J34: =IFERROR((#REF!/#REF!)*100,"") ->  | K34: =IFERROR((#REF!/#REF!)*100,"") ->  | L34: =IFERROR((#REF!/#REF!)*100,"") -> 
B35: =IFERROR(VLOOKUP($C35,#REF!,3,FALSE),"") ->  | I35: =IFERROR((#REF!/#REF!)*100,"") ->  | J35: =IFERROR((#REF!/#REF!)*100,"") ->  | K35: =IFERROR((#REF!/#REF!)*100,"") ->  | L35: =IFERROR((#REF!/#REF!)*100,"") -> 
B36: =IFERROR(VLOOKUP($C36,#REF!,3,FALSE),"") ->  | I36: =IFERROR((#REF!/#REF!)*100,"") ->  | J36: =IFERROR((#REF!/#REF!)*100,"") ->  | K36: =IFERROR((#REF!/#REF!)*100,"") ->  | L36: =IFERROR((#REF!/#REF!)*100,"") -> 
B37: =IFERROR(VLOOKUP($C37,#REF!,3,FALSE),"") ->  | I37: =IFERROR((#REF!/#REF!)*100,"") ->  | J37: =IFERROR((#REF!/#REF!)*100,"") ->  | K37: =IFERROR((#REF!/#REF!)*100,"") ->  | L37: =IFERROR((#REF!/#REF!)*100,"") -> 
B38: =IFERROR(VLOOKUP($C38,#REF!,3,FALSE),"") ->  | I38: =IFERROR((#REF!/#REF!)*100,"") ->  | J38: =IFERROR((#REF!/#REF!)*100,"") ->  | K38: =IFERROR((#REF!/#REF!)*100,"") ->  | L38: =IFERROR((#REF!/#REF!)*100,"") -> 
B39: =IFERROR(VLOOKUP($C39,#REF!,3,FALSE),"") ->  | I39: =IFERROR((#REF!/#REF!)*100,"") ->  | J39: =IFERROR((#REF!/#REF!)*100,"") ->  | K39: =IFERROR((#REF!/#REF!)*100,"") ->  | L39: =IFERROR((#REF!/#REF!)*100,"") -> 
B40: =IFERROR(VLOOKUP($C40,#REF!,3,FALSE),"") ->  | I40: =IFERROR((#REF!/#REF!)*100,"") ->  | J40: =IFERROR((#REF!/#REF!)*100,"") ->  | K40: =IFERROR((#REF!/#REF!)*100,"") ->  | L40: =IFERROR((#REF!/#REF!)*100,"") -> 
B41: =IFERROR(VLOOKUP($C41,#REF!,3,FALSE),"") ->  | I41: =IFERROR((#REF!/#REF!)*100,"") ->  | J41: =IFERROR((#REF!/#REF!)*100,"") ->  | K41: =IFERROR((#REF!/#REF!)*100,"") ->  | L41: =IFERROR((#REF!/#REF!)*100,"") -> 
B42: =IFERROR(VLOOKUP($C42,#REF!,3,FALSE),"") ->  | I42: =IFERROR((#REF!/#REF!)*100,"") ->  | J42: =IFERROR((#REF!/#REF!)*100,"") ->  | K42: =IFERROR((#REF!/#REF!)*100,"") ->  | L42: =IFERROR((#REF!/#REF!)*100,"") -> 
B43: =IFERROR(VLOOKUP($C43,#REF!,3,FALSE),"") ->  | I43: =IFERROR((#REF!/#REF!)*100,"") ->  | J43: =IFERROR((#REF!/#REF!)*100,"") ->  | K43: =IFERROR((#REF!/#REF!)*100,"") ->  | L43: =IFERROR((#REF!/#REF!)*100,"") -> 
B44: =IFERROR(VLOOKUP($C44,#REF!,3,FALSE),"") ->  | I44: =IFERROR((#REF!/#REF!)*100,"") ->  | J44: =IFERROR((#REF!/#REF!)*100,"") ->  | K44: =IFERROR((#REF!/#REF!)*100,"") ->  | L44: =IFERROR((#REF!/#REF!)*100,"") -> 
B45: =IFERROR(VLOOKUP($C45,#REF!,3,FALSE),"") ->  | I45: =IFERROR((#REF!/#REF!)*100,"") ->  | J45: =IFERROR((#REF!/#REF!)*100,"") ->  | K45: =IFERROR((#REF!/#REF!)*100,"") ->  | L45: =IFERROR((#REF!/#REF!)*100,"") -> 
B46: =IFERROR(VLOOKUP($C46,#REF!,3,FALSE),"") ->  | I46: =IFERROR((#REF!/#REF!)*100,"") ->  | J46: =IFERROR((#REF!/#REF!)*100,"") ->  | K46: =IFERROR((#REF!/#REF!)*100,"") ->  | L46: =IFERROR((#REF!/#REF!)*100,"") -> 
B47: =IFERROR(VLOOKUP($C47,#REF!,3,FALSE),"") ->  | I47: =IFERROR((#REF!/#REF!)*100,"") ->  | J47: =IFERROR((#REF!/#REF!)*100,"") ->  | K47: =IFERROR((#REF!/#REF!)*100,"") ->  | L47: =IFERROR((#REF!/#REF!)*100,"") -> 
B50: PRINCIPALES ACCIONES REALIZADAS CON RECURSOS DE ORIGEN FEDERAL:
B51: 221 274 K016 Rehabilitación y Mantenimiento de Infraestructura Pública; Al periodo a través de la Obra por Contrato se realizaron 33 inmuebles para los trabajos referentes al proyecto denominado: Mantener y Rehabilitar los Planteles Educativos del Nivel Básico en: Jardines de Niños: 1.-Fidencio Soria Barajas, lote 326, mz 3, Fortín y Farol U.H. Narciso Mendoza SP.M. 3, Col. Villa Coapa, Trabajos realizados: Impermeabilización, aplicación de pintura, 2.-Salvador M. Lima, Avenida Acoxpa andador 68 mz. 6, Unidad Habitacional Narciso Mendoza SPM. 6, Col. Villa Coapa,Trabajos realizados: Impermeabilización, aplicación de pintura, 3.-Cámara Junior, San Juan Bosco No.1, Col. San Lorenzo Huipulco, 4.-Xochicalpilli, Av. Altillos s/n, Unidad Habitacional Narciso Mendoza Supermanzana 1,Trabajos realizados: Impermeabilización, aplicación de pintura, 5.-Chimalcoyotl,Cristobal Colón no. 12, Colonia Chimalcoyotl,Trabajos realizados: Impermeabilización, aplicación de pintura, 6.-Miguel Hidalgo, Avenida las Torres y Jesús Lecuona, Col. Miguel Hidalgo 2a Sección, Trabajos realizados:Sustitución de ciclopista, aplicación de pintura, impermeabilizante, mantenimiento a sanitarios,7.-Alberto Lenz Sr.,Calzada Zaragoza s/n.Colonia Miguel Hidalgo 1a Sección,Trabajos realizados: impermeabilización, aplicación de pintura, 8.-Tonalli, Tepozan 114, lt.5, Col. Pedregal de San Nicolás 1a seccion, Trabajos realizados: firmes de conreto, sustitución de luminarias,trabajos de herrería, 9.-Miauhatzintli, Club Deportivo Universidad s/n,Fracc. Villa Lázaro Cárdenas,Trabajos realizados: sustitución de firmes de concreto, cambio de luminarias, aplicación de pintura,10.-Miguel Angel Buonarroti, Tenorios No. 222, Unidad Habitacional Tenorios INFONAVIT 1, Col. Ex Hacienda Coapa, Trabajos realizados: Aplicación de pintura, sustitución de firmes de concreto, sustitución de mamparas y luminarias, 11.-Rotarios de Tlalpan, 4° poniente s/n, Colonia Isidro Fabela,Trabajos realizados: impermeabilización y aplicación de pintura, 12.-República de Argentina, Morelos No. 4, Colonia Centro de Tlalpan,Trabajos realizados:Construcción de esacaleras de emergencia, impermeabilización,13.-Tlalli, Unidad Habitacional Fuentes Brotantes,Trabajos realizados: Cambio de cancelería y Luminarias. Primarias: 14.-Estado de San Luis Potosí, Acueducto y San Juan Bosco, Col. San Lorenzo Huipulco, Trabajos realizados: Sustitución de firme de concreto,15.-Arabia Saudita, Avenida Silios No 34 super mza. 1, Unidad Habitacional Narciso Mendoza Supermanzana 1, Trabajos realizados: Impermeabilización, aplicación de pintura, 16.-Martina Islas, Enseñanza No. 3, Pueblo San Pedro Mártir, Trabajos realizados: sustitución de cancelería, 17.-Patria y Libertad, atrás del bloque I, Unidad Habitacional Fuentes Brotantes, Trabajos realizados:aplicación de pintura, sustitución de luminarias, 18.-Amanda Palafox, Monte Elbruz No. 15, Col. Los Volcanes,Trabajos realizados:Impermeabilización, aplicación de pintura, 19.-Isaac Ochoterena, Cristobal Colón No. 24, Col. Chimalcoyotl,Trabajos realizados:Impermeabilización, aplicación de pintura interior y exterior, 20.-Manuel Gallardo Zamora, Lacandones esq. Huastecos no. 6, Col. Pedregal de las Aguilas, Trabajos realizados:Impermeabilización, aplicación de pintura, 21.-Estado de Querétaro, Avenida Santa Úrsula no. 22, Colonia Santa Úrsula Xitla,Trabajos realizados: Impermeabilización,sustitución de luminarias, cambio de puertas, cambio de loseta,aplicación de pintura, 22.-Alfredo V.Bonfil, Alfredo V. Bonfil no. 151, mza. 10, Colonia. Miguel Hidalgo 3a Sección, Trabajos realizados: camnio de luminarias y pisos de loseta, 23.-Teófilo Álvarez Borboa, Escuela No. 127, Colonia Ex Hacienda de San Juan de Dios,Trabajos realizados: cambio de malla ciclónica, lámparas y tanque de gas, aplicación de pintura, 24.-Dra. María del Carmen Millán, Tenorios no. 222, Unidad Habitacional Tenorios INFONAVIT 1,Trabajos realziados: aplicación de pintura,impermeabilizante y cambio de luminarias, 25.-Héroes de Chapultepec, Otomies y Tepehuanos, Col. Tlalcoligia, Tconstrucción de techumbres y firme de concreto, 26.-Ignacio Rodríguez Galván, Magisterio Nacional y Morelos No. 118, Colonia Centro de Tlalpan,Trabajos realizados: Aplicación de pintura e impermeabilización, 27.-Felipe Ángeles, John F. Kennedy No. 1, Col. Isidro Fabela, trabajos realizados: aplicación de pintura y cambio de impermeabilizante y luminarias, 28.-Niño Artillero, Hidalgo y Magisterio No. 80,Colonia Centro de Tlalpan,Trabajos realizados:impermeabilizante, aplicación de pintura, sustitución de luminarias y firme de concreto, mantenimiento a equipo hidroneumático. Secundarias: 29.-No.181, Kantunil y Tixmehuac, Colonia Pedregal de San Nicolas 4a Sección, Trabajos realizados: impermeabilización y aplicación de pintura, 30.-Técnica No.19, Ruiseñor s/n. y Yucantepec, Col. Rincón del Mirador II, Trabajos realizados: sustitución de cancelería,cambio de lámparas, aplicación de pintura e impermeabilización, 31.-No. 230, Ing. Jesús Gómez González, Unidad Habitacional Jardines Villa Coapa, Trabajos realizados: cambio de multitecho, impermeabilizanterehabilitación de núcleos sanitarios, 32.-No. 276,Tarasco frenta a Chontales, Col.a Tlalcoligía, Trabajos realizados: Impermeabilización y cambio de luminarias. Centro de Atención Múltiples: 33.-CAM 15, San Buenaventura No. 86, Colonia Belizario Dominguez, Trabajos realizados: Sustitución de cancelería, construcción de techumbre.
B52: Se relizaron los trabajos en el proyecto denominado: Mantenimiento y Rehabilitación a Mercados con 4 inmuebles el cuenta con 4 fondos, mismos que serán reflejados su meta realizada: 1.-Mercado Flores San Fernando, ubicado en Calzada de Tlalpan y avenida San Fernando, Colonia Barrio de Niño Jesús, Trabajos realizados: instalación eléctrica interna, módulos, instalación eléctrica exterior, 2.-Mercado Fuentes Brotantes, ubicado en Interior del Parque Nacional Fuentes Brotantes, colonia Fuentes Brotantes, Trabajos realizados: instalación eléctrica, sistema de drenaje, ampliación de baños, áreas verdes y juegos, 3.-Mercado Villa Coapa, ubicado en Avenida canal de Miramontes s/n entre avenida Acoxpa y Caporal, colonia Villa Coapa, Trabajos realizados: sustitución de luminaria led, alimentadores a locales, alimentador a hidroneumático, alumbrado exterior, alimentadores en baja tensión CCTV y telefonía, extracción de aire, 4.-Mercado Plaza Mexicana del Sur, ubicado en Avenida Acoxpa, entre Calzada de Tlalpan y Viaducto Tlalpan, Col. San Lorenzo Huipulco, Trabajos realizados: instalación eléctrica LOS RECURSOS DE ESTE FONDO REFIEREN A LOS TRABAJOS DE SUPERVISIÓN
AA55: =33/40*100 -> 82.5
B58: 221 049 E124-Se autorizaron recursos que refieren al Capítulo 2000 partida 2161 la cual es controlada por la Dirección General de Administración.
B59: 221 274 K016-Al perido se reporta una meta ejecutada del 82 %, en el proyecto denominado: Mantener y Rehabilitar los Planteles Educativos del Nivel Básico, la meta de dicho proyecto no se cumplió en su totalidad, debido a que contaba con recursos del FAIS, por lo que se habían considerado atender 7 inmuebles los cuales eran: 1.-Carlos Pellicer Cámara,Col. Lomas de Padierna, 2.-Elvira Jímenez Villa Fuerte, Col. Lomas de Padierna, 3.-Sebastián Lerdo de Tejada, Col. Miguel Hidalgo 4a Sección, 4.- No.93, U.H. Emilio Portes Gil, 5.-No. 112, Col. Vistas del Pedregal, 6.-Técnica No. 119, Col.Miguel Hidalgo 4a Sección, 7.-No.281, Col. Cuchilla de Padierna, sin embargo debido a que el FAIS tiene como objetivo fundamental el financiamiento de obras y acciones sociales básicas que beneficien directamente a sectores de población en condiciones de rezago social y pobreza extrema, los recursos fueron reorientados a la apertura de diferentes proyectos denominados: Rehabilitación del Sistema de Alumbrado Público, Rehabilitación de banquetas, Rehabilitacion de superficie de rodamiento (Repavimentación), Rehabilitación del Sistema de Alcantarillado Pluvial. Por otro lado referente al py denominado: Mantenimiento y Rehabilitación a Mercados en este fondo cuenta con recursos ejercidos los cuales refieren al pago se trabajos de Supervisión de Obra, así mismo se informa que dicho proyecto cuenta con 4 fondos financieros los cuales son: Participaciones Federales 15O510 y 15OB10, Fiscales y FAFEF. El proyecto denominado: Construcción y/o Adecuación de Infraestructura Cultural, se cancela sus recursos se reorientan al Capítulo 2000 a las partidas: 2461 Material eléctrico y electrónico, 2471 Artículos metálicos para la construcción, 2481 Materiales complementarios, 2491 Otros materiales y artículos de construcción y reparación, 2541 Materiales, accesorios y suministro médico, 2561 Fibras sintéticas, hules, plásticos y derivados, 2911 Herramientas menores, por un importe de $6,119,000.00 y al capítulo 3000 partida. 3391 Servicios profesionales, científicos, técnicos integrales y otros, por un importe de $164,540.00
A60: 221 274 K016- En este programa presupuestario se aperturó el proyecto denominado Mantenimiento y Rehabilitación a Mercados con 4 inmuebles realizados,mismos que cuentan con tres Fuentes de Financiamiento:No etiquetado recursos fiscales-fiscales-fiscales-2021-original de la urg (Fiscales), Etiquetado Recursos Federales-Aportaciones Federales para Entidades Federativas y Municipios-Fondo de Aportaciones para el Fortalecimiento de las Entidades Federativas (FAFEF)-2021-Original de la URG, No Etiquetado Recursos Federales-Participaciones a Entidades Federativas y Municipios- Participaciones en el Impuesto Sobre Automóviles Nuevos-2021-Original de la URG, en dodnde se verán rfelejada la meta ejecutada., en dodnde se verán rfelejada la meta ejecutada.

Sheet AP_RF PART.FED 15O610
B2: AP-RF AVANCE PRESUPUESTAL DE RECURSOS DE ORIGEN FEDERAL
B3: FONDO, CONVENIO, SUBSIDIO O PARTICIPACIÓN: (1)
B5: Unidad Responsable de Gasto: | F5: DIRECCIÓN GENERAL DE OBRAS Y DESARROLLO URBANO
B6: Período: | F6: Enero-Diciembre 2021
B8: FONDO | F8: NO ETIQUETADO RECURSOS FEDERALES-PARTICIPACIONES A ENTIDADES FEDERATIVAS Y MUNICIPIOS-PARTICIPACIONES A LA VENTA FINAL DE GASOLINA Y DIESEL-2022-ORIGINAL DE LA URG (15O610)
B10: R E S U L T A D O S
B11: PRESUPUESTO (Pesos con dos decimales) | I11: AVANCE %
B12: APROBADO | C12: MODIFICADO | D12: PROGRAMADO | E12: SALDO DEL COMPROMISO | F12: DEVENGADO | G12: EJERCIDO | H12: PAGADO | I12: (DEVENGADO / APROBADO)*100 | J12: (DEVENGADO / MODIFICADO)*100 | K12: (EJERCIDO / APROBADO)*100 | L12: (EJERCIDO / MODIFICADO)*100
B13: 5675778 | C13: 5675778 | D13: 3385735.01 | E13: 0 | F13: 0 | G13: 0 | H13: 0 | I13: 0 | J13: =IFERROR(($F13/$B13)*100,"") -> 0 | K13: =IFERROR(($G13/$B13)*100,"") -> 0 | L13: =IFERROR(($G13/$C13)*100,"") -> 0
I15: =IFERROR((#REF!/#REF!)*100,"") ->  | J15: =IFERROR((#REF!/#REF!)*100,"") ->  | K15: =IFERROR((#REF!/#REF!)*100,"") ->  | L15: =IFERROR((#REF!/#REF!)*100,"") -> 
I16: =IFERROR((#REF!/#REF!)*100,"") ->  | J16: =IFERROR((#REF!/#REF!)*100,"") ->  | K16: =IFERROR((#REF!/#REF!)*100,"") ->  | L16: =IFERROR((#REF!/#REF!)*100,"") -> 
B17: =IFERROR(VLOOKUP($C17,#REF!,3,FALSE),"") ->  | G17: =IFERROR(F17/C17,"") ->  | H17: =IFERROR((F17/D17*100),"") ->  | I17: =IFERROR((#REF!/#REF!)*100,"") ->  | J17: =IFERROR((#REF!/#REF!)*100,"") ->  | K17: =IFERROR((#REF!/#REF!)*100,"") ->  | L17: =IFERROR((#REF!/#REF!)*100,"") -> 
B18: =IFERROR(VLOOKUP($C18,#REF!,3,FALSE),"") ->  | I18: =IFERROR((#REF!/#REF!)*100,"") ->  | J18: =IFERROR((#REF!/#REF!)*100,"") ->  | K18: =IFERROR((#REF!/#REF!)*100,"") ->  | L18: =IFERROR((#REF!/#REF!)*100,"") -> 
B19: =IFERROR(VLOOKUP($C19,#REF!,3,FALSE),"") ->  | I19: =IFERROR((#REF!/#REF!)*100,"") ->  | J19: =IFERROR((#REF!/#REF!)*100,"") ->  | K19: =IFERROR((#REF!/#REF!)*100,"") ->  | L19: =IFERROR((#REF!/#REF!)*100,"") -> 
B20: =IFERROR(VLOOKUP($C20,#REF!,3,FALSE),"") ->  | I20: =IFERROR((#REF!/#REF!)*100,"") ->  | J20: =IFERROR((#REF!/#REF!)*100,"") ->  | K20: =IFERROR((#REF!/#REF!)*100,"") ->  | L20: =IFERROR((#REF!/#REF!)*100,"") -> 
B21: =IFERROR(VLOOKUP($C21,#REF!,3,FALSE),"") ->  | I21: =IFERROR((#REF!/#REF!)*100,"") ->  | J21: =IFERROR((#REF!/#REF!)*100,"") ->  | K21: =IFERROR((#REF!/#REF!)*100,"") ->  | L21: =IFERROR((#REF!/#REF!)*100,"") -> 
B22: =IFERROR(VLOOKUP($C22,#REF!,3,FALSE),"") ->  | I22: =IFERROR((#REF!/#REF!)*100,"") ->  | J22: =IFERROR((#REF!/#REF!)*100,"") ->  | K22: =IFERROR((#REF!/#REF!)*100,"") ->  | L22: =IFERROR((#REF!/#REF!)*100,"") -> 
B23: =IFERROR(VLOOKUP($C23,#REF!,3,FALSE),"") ->  | I23: =IFERROR((#REF!/#REF!)*100,"") ->  | J23: =IFERROR((#REF!/#REF!)*100,"") ->  | K23: =IFERROR((#REF!/#REF!)*100,"") ->  | L23: =IFERROR((#REF!/#REF!)*100,"") -> 
B24: =IFERROR(VLOOKUP($C24,#REF!,3,FALSE),"") ->  | I24: =IFERROR((#REF!/#REF!)*100,"") ->  | J24: =IFERROR((#REF!/#REF!)*100,"") ->  | K24: =IFERROR((#REF!/#REF!)*100,"") ->  | L24: =IFERROR((#REF!/#REF!)*100,"") -> 
B25: =IFERROR(VLOOKUP($C25,#REF!,3,FALSE),"") ->  | I25: =IFERROR((#REF!/#REF!)*100,"") ->  | J25: =IFERROR((#REF!/#REF!)*100,"") ->  | K25: =IFERROR((#REF!/#REF!)*100,"") ->  | L25: =IFERROR((#REF!/#REF!)*100,"") -> 
B26: =IFERROR(VLOOKUP($C26,#REF!,3,FALSE),"") ->  | I26: =IFERROR((#REF!/#REF!)*100,"") ->  | J26: =IFERROR((#REF!/#REF!)*100,"") ->  | K26: =IFERROR((#REF!/#REF!)*100,"") ->  | L26: =IFERROR((#REF!/#REF!)*100,"") -> 
B27: =IFERROR(VLOOKUP($C27,#REF!,3,FALSE),"") ->  | I27: =IFERROR((#REF!/#REF!)*100,"") ->  | J27: =IFERROR((#REF!/#REF!)*100,"") ->  | K27: =IFERROR((#REF!/#REF!)*100,"") ->  | L27: =IFERROR((#REF!/#REF!)*100,"") -> 
B28: =IFERROR(VLOOKUP($C28,#REF!,3,FALSE),"") ->  | I28: =IFERROR((#REF!/#REF!)*100,"") ->  | J28: =IFERROR((#REF!/#REF!)*100,"") ->  | K28: =IFERROR((#REF!/#REF!)*100,"") ->  | L28: =IFERROR((#REF!/#REF!)*100,"") -> 
B29: =IFERROR(VLOOKUP($C29,#REF!,3,FALSE),"") ->  | I29: =IFERROR((#REF!/#REF!)*100,"") ->  | J29: =IFERROR((#REF!/#REF!)*100,"") ->  | K29: =IFERROR((#REF!/#REF!)*100,"") ->  | L29: =IFERROR((#REF!/#REF!)*100,"") -> 
B30: =IFERROR(VLOOKUP($C30,#REF!,3,FALSE),"") ->  | I30: =IFERROR((#REF!/#REF!)*100,"") ->  | J30: =IFERROR((#REF!/#REF!)*100,"") ->  | K30: =IFERROR((#REF!/#REF!)*100,"") ->  | L30: =IFERROR((#REF!/#REF!)*100,"") -> 
B31: =IFERROR(VLOOKUP($C31,#REF!,3,FALSE),"") ->  | I31: =IFERROR((#REF!/#REF!)*100,"") ->  | J31: =IFERROR((#REF!/#REF!)*100,"") ->  | K31: =IFERROR((#REF!/#REF!)*100,"") ->  | L31: =IFERROR((#REF!/#REF!)*100,"") -> 
B32: =IFERROR(VLOOKUP($C32,#REF!,3,FALSE),"") ->  | I32: =IFERROR((#REF!/#REF!)*100,"") ->  | J32: =IFERROR((#REF!/#REF!)*100,"") ->  | K32: =IFERROR((#REF!/#REF!)*100,"") ->  | L32: =IFERROR((#REF!/#REF!)*100,"") -> 
B33: =IFERROR(VLOOKUP($C33,#REF!,3,FALSE),"") ->  | I33: =IFERROR((#REF!/#REF!)*100,"") ->  | J33: =IFERROR((#REF!/#REF!)*100,"") ->  | K33: =IFERROR((#REF!/#REF!)*100,"") ->  | L33: =IFERROR((#REF!/#REF!)*100,"") -> 
B34: =IFERROR(VLOOKUP($C34,#REF!,3,FALSE),"") ->  | I34: =IFERROR((#REF!/#REF!)*100,"") ->  | J34: =IFERROR((#REF!/#REF!)*100,"") ->  | K34: =IFERROR((#REF!/#REF!)*100,"") ->  | L34: =IFERROR((#REF!/#REF!)*100,"") -> 
B35: =IFERROR(VLOOKUP($C35,#REF!,3,FALSE),"") ->  | I35: =IFERROR((#REF!/#REF!)*100,"") ->  | J35: =IFERROR((#REF!/#REF!)*100,"") ->  | K35: =IFERROR((#REF!/#REF!)*100,"") ->  | L35: =IFERROR((#REF!/#REF!)*100,"") -> 
B36: =IFERROR(VLOOKUP($C36,#REF!,3,FALSE),"") ->  | I36: =IFERROR((#REF!/#REF!)*100,"") ->  | J36: =IFERROR((#REF!/#REF!)*100,"") ->  | K36: =IFERROR((#REF!/#REF!)*100,"") ->  | L36: =IFERROR((#REF!/#REF!)*100,"") -> 
B37: =IFERROR(VLOOKUP($C37,#REF!,3,FALSE),"") ->  | I37: =IFERROR((#REF!/#REF!)*100,"") ->  | J37: =IFERROR((#REF!/#REF!)*100,"") ->  | K37: =IFERROR((#REF!/#REF!)*100,"") ->  | L37: =IFERROR((#REF!/#REF!)*100,"") -> 
B38: =IFERROR(VLOOKUP($C38,#REF!,3,FALSE),"") ->  | I38: =IFERROR((#REF!/#REF!)*100,"") ->  | J38: =IFERROR((#REF!/#REF!)*100,"") ->  | K38: =IFERROR((#REF!/#REF!)*100,"") ->  | L38: =IFERROR((#REF!/#REF!)*100,"") -> 
B39: =IFERROR(VLOOKUP($C39,#REF!,3,FALSE),"") ->  | I39: =IFERROR((#REF!/#REF!)*100,"") ->  | J39: =IFERROR((#REF!/#REF!)*100,"") ->  | K39: =IFERROR((#REF!/#REF!)*100,"") ->  | L39: =IFERROR((#REF!/#REF!)*100,"") -> 
B40: =IFERROR(VLOOKUP($C40,#REF!,3,FALSE),"") ->  | I40: =IFERROR((#REF!/#REF!)*100,"") ->  | J40: =IFERROR((#REF!/#REF!)*100,"") ->  | K40: =IFERROR((#REF!/#REF!)*100,"") ->  | L40: =IFERROR((#REF!/#REF!)*100,"") -> 
B41: =IFERROR(VLOOKUP($C41,#REF!,3,FALSE),"") ->  | I41: =IFERROR((#REF!/#REF!)*100,"") ->  | J41: =IFERROR((#REF!/#REF!)*100,"") ->  | K41: =IFERROR((#REF!/#REF!)*100,"") ->  | L41: =IFERROR((#REF!/#REF!)*100,"") -> 
B42: =IFERROR(VLOOKUP($C42,#REF!,3,FALSE),"") ->  | I42: =IFERROR((#REF!/#REF!)*100,"") ->  | J42: =IFERROR((#REF!/#REF!)*100,"") ->  | K42: =IFERROR((#REF!/#REF!)*100,"") ->  | L42: =IFERROR((#REF!/#REF!)*100,"") -> 
B43: =IFERROR(VLOOKUP($C43,#REF!,3,FALSE),"") ->  | I43: =IFERROR((#REF!/#REF!)*100,"") ->  | J43: =IFERROR((#REF!/#REF!)*100,"") ->  | K43: =IFERROR((#REF!/#REF!)*100,"") ->  | L43: =IFERROR((#REF!/#REF!)*100,"") -> 
B44: =IFERROR(VLOOKUP($C44,#REF!,3,FALSE),"") ->  | I44: =IFERROR((#REF!/#REF!)*100,"") ->  | J44: =IFERROR((#REF!/#REF!)*100,"") ->  | K44: =IFERROR((#REF!/#REF!)*100,"") ->  | L44: =IFERROR((#REF!/#REF!)*100,"") -> 
B45: =IFERROR(VLOOKUP($C45,#REF!,3,FALSE),"") ->  | I45: =IFERROR((#REF!/#REF!)*100,"") ->  | J45: =IFERROR((#REF!/#REF!)*100,"") ->  | K45: =IFERROR((#REF!/#REF!)*100,"") ->  | L45: =IFERROR((#REF!/#REF!)*100,"") -> 
B46: =IFERROR(VLOOKUP($C46,#REF!,3,FALSE),"") ->  | I46: =IFERROR((#REF!/#REF!)*100,"") ->  | J46: =IFERROR((#REF!/#REF!)*100,"") ->  | K46: =IFERROR((#REF!/#REF!)*100,"") ->  | L46: =IFERROR((#REF!/#REF!)*100,"") -> 
B47: =IFERROR(VLOOKUP($C47,#REF!,3,FALSE),"") ->  | I47: =IFERROR((#REF!/#REF!)*100,"") ->  | J47: =IFERROR((#REF!/#REF!)*100,"") ->  | K47: =IFERROR((#REF!/#REF!)*100,"") ->  | L47: =IFERROR((#REF!/#REF!)*100,"") -> 
B50: PRINCIPALES ACCIONES REALIZADAS CON RECURSOS DE ORIGEN FEDERAL:
B51: Al periodo no hay acciones realizadas
B58: 124 004 P002- Al periodo se autorizan recursos de para los trabajos de repartición de agua potable (PIPAS), los cuales son complemento a la meta que se lleva a cabo en el Fondo FORTAMUN, donde se reporta la meta realizada y en este fondo quedan recursos complementarios a la meta.
B59: 221 049 E124- Al periodo se tienen recursos autorizados en la partida: Materiales de Limpieza la cual es una partida centralizada y es controlada pr la Dirección General de Administración.

Sheet AP_RF PART.FED 15OB10
B2: AP-RF AVANCE PRESUPUESTAL DE RECURSOS DE ORIGEN FEDERAL
B3: FONDO, CONVENIO, SUBSIDIO O PARTICIPACIÓN: (1)
B5: Unidad Responsable de Gasto: | F5: DIRECCIÓN GENERAL DE OBRAS Y DESARROLLO URBANO
B6: Período: | F6: Enero-Diciembre 2021
B8: FONDO | F8: NO ETIQUETADO RECURSOS FEDERALES-PARTICIPACIONES A ENTIDADES FEDERATIVAS Y MUNICIPIOS- PARTICIPACIONES EN EL IMPUESTO SOBRE AUTOMÓVILES NUEVOS-2022-ORIGINAL DE LA URG (15OB10)
B10: R E S U L T A D O S
B11: PRESUPUESTO (Pesos con dos decimales) | I11: AVANCE %
B12: APROBADO | C12: MODIFICADO | D12: PROGRAMADO | E12: SALDO DEL COMPROMISO | F12: DEVENGADO | G12: EJERCIDO | H12: PAGADO | I12: (DEVENGADO / APROBADO)*100 | J12: (DEVENGADO / MODIFICADO)*100 | K12: (EJERCIDO / APROBADO)*100 | L12: (EJERCIDO / MODIFICADO)*100
B13: 14064219 | C13: 14064219 | D13: 868234.74 | E13: 868234.74 | F13: 868234.74 | G13: 868234.74 | H13: 868234.74 | I13: 0 | J13: =IFERROR(($F13/$B13)*100,"") -> 6.173359075 | K13: =IFERROR(($G13/$B13)*100,"") -> 6.173359075 | L13: =IFERROR(($G13/$C13)*100,"") -> 6.173359075
I15: =IFERROR((#REF!/#REF!)*100,"") ->  | J15: =IFERROR((#REF!/#REF!)*100,"") ->  | K15: =IFERROR((#REF!/#REF!)*100,"") ->  | L15: =IFERROR((#REF!/#REF!)*100,"") -> 
I16: =IFERROR((#REF!/#REF!)*100,"") ->  | J16: =IFERROR((#REF!/#REF!)*100,"") ->  | K16: =IFERROR((#REF!/#REF!)*100,"") ->  | L16: =IFERROR((#REF!/#REF!)*100,"") -> 
B17: =IFERROR(VLOOKUP($C17,#REF!,3,FALSE),"") ->  | G17: =IFERROR(F17/C17,"") ->  | H17: =IFERROR((F17/D17*100),"") ->  | I17: =IFERROR((#REF!/#REF!)*100,"") ->  | J17: =IFERROR((#REF!/#REF!)*100,"") ->  | K17: =IFERROR((#REF!/#REF!)*100,"") ->  | L17: =IFERROR((#REF!/#REF!)*100,"") -> 
B18: =IFERROR(VLOOKUP($C18,#REF!,3,FALSE),"") ->  | I18: =IFERROR((#REF!/#REF!)*100,"") ->  | J18: =IFERROR((#REF!/#REF!)*100,"") ->  | K18: =IFERROR((#REF!/#REF!)*100,"") ->  | L18: =IFERROR((#REF!/#REF!)*100,"") -> 
B19: =IFERROR(VLOOKUP($C19,#REF!,3,FALSE),"") ->  | I19: =IFERROR((#REF!/#REF!)*100,"") ->  | J19: =IFERROR((#REF!/#REF!)*100,"") ->  | K19: =IFERROR((#REF!/#REF!)*100,"") ->  | L19: =IFERROR((#REF!/#REF!)*100,"") -> 
B20: =IFERROR(VLOOKUP($C20,#REF!,3,FALSE),"") ->  | I20: =IFERROR((#REF!/#REF!)*100,"") ->  | J20: =IFERROR((#REF!/#REF!)*100,"") ->  | K20: =IFERROR((#REF!/#REF!)*100,"") ->  | L20: =IFERROR((#REF!/#REF!)*100,"") -> 
B21: =IFERROR(VLOOKUP($C21,#REF!,3,FALSE),"") ->  | I21: =IFERROR((#REF!/#REF!)*100,"") ->  | J21: =IFERROR((#REF!/#REF!)*100,"") ->  | K21: =IFERROR((#REF!/#REF!)*100,"") ->  | L21: =IFERROR((#REF!/#REF!)*100,"") -> 
B22: =IFERROR(VLOOKUP($C22,#REF!,3,FALSE),"") ->  | I22: =IFERROR((#REF!/#REF!)*100,"") ->  | J22: =IFERROR((#REF!/#REF!)*100,"") ->  | K22: =IFERROR((#REF!/#REF!)*100,"") ->  | L22: =IFERROR((#REF!/#REF!)*100,"") -> 
B23: =IFERROR(VLOOKUP($C23,#REF!,3,FALSE),"") ->  | I23: =IFERROR((#REF!/#REF!)*100,"") ->  | J23: =IFERROR((#REF!/#REF!)*100,"") ->  | K23: =IFERROR((#REF!/#REF!)*100,"") ->  | L23: =IFERROR((#REF!/#REF!)*100,"") -> 
B24: =IFERROR(VLOOKUP($C24,#REF!,3,FALSE),"") ->  | I24: =IFERROR((#REF!/#REF!)*100,"") ->  | J24: =IFERROR((#REF!/#REF!)*100,"") ->  | K24: =IFERROR((#REF!/#REF!)*100,"") ->  | L24: =IFERROR((#REF!/#REF!)*100,"") -> 
B25: =IFERROR(VLOOKUP($C25,#REF!,3,FALSE),"") ->  | I25: =IFERROR((#REF!/#REF!)*100,"") ->  | J25: =IFERROR((#REF!/#REF!)*100,"") ->  | K25: =IFERROR((#REF!/#REF!)*100,"") ->  | L25: =IFERROR((#REF!/#REF!)*100,"") -> 
B26: =IFERROR(VLOOKUP($C26,#REF!,3,FALSE),"") ->  | I26: =IFERROR((#REF!/#REF!)*100,"") ->  | J26: =IFERROR((#REF!/#REF!)*100,"") ->  | K26: =IFERROR((#REF!/#REF!)*100,"") ->  | L26: =IFERROR((#REF!/#REF!)*100,"") -> 
B27: =IFERROR(VLOOKUP($C27,#REF!,3,FALSE),"") ->  | I27: =IFERROR((#REF!/#REF!)*100,"") ->  | J27: =IFERROR((#REF!/#REF!)*100,"") ->  | K27: =IFERROR((#REF!/#REF!)*100,"") ->  | L27: =IFERROR((#REF!/#REF!)*100,"") -> 
B28: =IFERROR(VLOOKUP($C28,#REF!,3,FALSE),"") ->  | I28: =IFERROR((#REF!/#REF!)*100,"") ->  | J28: =IFERROR((#REF!/#REF!)*100,"") ->  | K28: =IFERROR((#REF!/#REF!)*100,"") ->  | L28: =IFERROR((#REF!/#REF!)*100,"") -> 
B29: =IFERROR(VLOOKUP($C29,#REF!,3,FALSE),"") ->  | I29: =IFERROR((#REF!/#REF!)*100,"") ->  | J29: =IFERROR((#REF!/#REF!)*100,"") ->  | K29: =IFERROR((#REF!/#REF!)*100,"") ->  | L29: =IFERROR((#REF!/#REF!)*100,"") -> 
B30: =IFERROR(VLOOKUP($C30,#REF!,3,FALSE),"") ->  | I30: =IFERROR((#REF!/#REF!)*100,"") ->  | J30: =IFERROR((#REF!/#REF!)*100,"") ->  | K30: =IFERROR((#REF!/#REF!)*100,"") ->  | L30: =IFERROR((#REF!/#REF!)*100,"") -> 
B31: =IFERROR(VLOOKUP($C31,#REF!,3,FALSE),"") ->  | I31: =IFERROR((#REF!/#REF!)*100,"") ->  | J31: =IFERROR((#REF!/#REF!)*100,"") ->  | K31: =IFERROR((#REF!/#REF!)*100,"") ->  | L31: =IFERROR((#REF!/#REF!)*100,"") -> 
B32: =IFERROR(VLOOKUP($C32,#REF!,3,FALSE),"") ->  | I32: =IFERROR((#REF!/#REF!)*100,"") ->  | J32: =IFERROR((#REF!/#REF!)*100,"") ->  | K32: =IFERROR((#REF!/#REF!)*100,"") ->  | L32: =IFERROR((#REF!/#REF!)*100,"") -> 
B33: =IFERROR(VLOOKUP($C33,#REF!,3,FALSE),"") ->  | I33: =IFERROR((#REF!/#REF!)*100,"") ->  | J33: =IFERROR((#REF!/#REF!)*100,"") ->  | K33: =IFERROR((#REF!/#REF!)*100,"") ->  | L33: =IFERROR((#REF!/#REF!)*100,"") -> 
B34: =IFERROR(VLOOKUP($C34,#REF!,3,FALSE),"") ->  | I34: =IFERROR((#REF!/#REF!)*100,"") ->  | J34: =IFERROR((#REF!/#REF!)*100,"") ->  | K34: =IFERROR((#REF!/#REF!)*100,"") ->  | L34: =IFERROR((#REF!/#REF!)*100,"") -> 
B35: =IFERROR(VLOOKUP($C35,#REF!,3,FALSE),"") ->  | I35: =IFERROR((#REF!/#REF!)*100,"") ->  | J35: =IFERROR((#REF!/#REF!)*100,"") ->  | K35: =IFERROR((#REF!/#REF!)*100,"") ->  | L35: =IFERROR((#REF!/#REF!)*100,"") -> 
B36: =IFERROR(VLOOKUP($C36,#REF!,3,FALSE),"") ->  | I36: =IFERROR((#REF!/#REF!)*100,"") ->  | J36: =IFERROR((#REF!/#REF!)*100,"") ->  | K36: =IFERROR((#REF!/#REF!)*100,"") ->  | L36: =IFERROR((#REF!/#REF!)*100,"") -> 
B37: =IFERROR(VLOOKUP($C37,#REF!,3,FALSE),"") ->  | I37: =IFERROR((#REF!/#REF!)*100,"") ->  | J37: =IFERROR((#REF!/#REF!)*100,"") ->  | K37: =IFERROR((#REF!/#REF!)*100,"") ->  | L37: =IFERROR((#REF!/#REF!)*100,"") -> 
B38: =IFERROR(VLOOKUP($C38,#REF!,3,FALSE),"") ->  | I38: =IFERROR((#REF!/#REF!)*100,"") ->  | J38: =IFERROR((#REF!/#REF!)*100,"") ->  | K38: =IFERROR((#REF!/#REF!)*100,"") ->  | L38: =IFERROR((#REF!/#REF!)*100,"") -> 
B39: =IFERROR(VLOOKUP($C39,#REF!,3,FALSE),"") ->  | I39: =IFERROR((#REF!/#REF!)*100,"") ->  | J39: =IFERROR((#REF!/#REF!)*100,"") ->  | K39: =IFERROR((#REF!/#REF!)*100,"") ->  | L39: =IFERROR((#REF!/#REF!)*100,"") -> 
B40: =IFERROR(VLOOKUP($C40,#REF!,3,FALSE),"") ->  | I40: =IFERROR((#REF!/#REF!)*100,"") ->  | J40: =IFERROR((#REF!/#REF!)*100,"") ->  | K40: =IFERROR((#REF!/#REF!)*100,"") ->  | L40: =IFERROR((#REF!/#REF!)*100,"") -> 
B41: =IFERROR(VLOOKUP($C41,#REF!,3,FALSE),"") ->  | I41: =IFERROR((#REF!/#REF!)*100,"") ->  | J41: =IFERROR((#REF!/#REF!)*100,"") ->  | K41: =IFERROR((#REF!/#REF!)*100,"") ->  | L41: =IFERROR((#REF!/#REF!)*100,"") -> 
B42: =IFERROR(VLOOKUP($C42,#REF!,3,FALSE),"") ->  | I42: =IFERROR((#REF!/#REF!)*100,"") ->  | J42: =IFERROR((#REF!/#REF!)*100,"") ->  | K42: =IFERROR((#REF!/#REF!)*100,"") ->  | L42: =IFERROR((#REF!/#REF!)*100,"") -> 
B43: =IFERROR(VLOOKUP($C43,#REF!,3,FALSE),"") ->  | I43: =IFERROR((#REF!/#REF!)*100,"") ->  | J43: =IFERROR((#REF!/#REF!)*100,"") ->  | K43: =IFERROR((#REF!/#REF!)*100,"") ->  | L43: =IFERROR((#REF!/#REF!)*100,"") -> 
B44: =IFERROR(VLOOKUP($C44,#REF!,3,FALSE),"") ->  | I44: =IFERROR((#REF!/#REF!)*100,"") ->  | J44: =IFERROR((#REF!/#REF!)*100,"") ->  | K44: =IFERROR((#REF!/#REF!)*100,"") ->  | L44: =IFERROR((#REF!/#REF!)*100,"") -> 
B45: =IFERROR(VLOOKUP($C45,#REF!,3,FALSE),"") ->  | I45: =IFERROR((#REF!/#REF!)*100,"") ->  | J45: =IFERROR((#REF!/#REF!)*100,"") ->  | K45: =IFERROR((#REF!/#REF!)*100,"") ->  | L45: =IFERROR((#REF!/#REF!)*100,"") -> 
B46: =IFERROR(VLOOKUP($C46,#REF!,3,FALSE),"") ->  | I46: =IFERROR((#REF!/#REF!)*100,"") ->  | J46: =IFERROR((#REF!/#REF!)*100,"") ->  | K46: =IFERROR((#REF!/#REF!)*100,"") ->  | L46: =IFERROR((#REF!/#REF!)*100,"") -> 
B47: =IFERROR(VLOOKUP($C47,#REF!,3,FALSE),"") ->  | I47: =IFERROR((#REF!/#REF!)*100,"") ->  | J47: =IFERROR((#REF!/#REF!)*100,"") ->  | K47: =IFERROR((#REF!/#REF!)*100,"") ->  | L47: =IFERROR((#REF!/#REF!)*100,"") -> 
B50: PRINCIPALES ACCIONES REALIZADAS CON RECURSOS DE ORIGEN FEDERAL:
B51: 221 274 K016- Rehabilitación y Mantenimiento de Infraestructura Pública; A través de la Obra por contrato se realizó 1 inmueble con el proyecto denominado: Mantenimiento, Conservación y Rehabilitación a Centros de Desarrollo Social en : 1.-Centro de Servicios de Atención Ciudadana, ubicado adentro del Deportivo Vivanco ubicado en Calle Moneda 64, Tlalpan Centro I. Trabajos realizados: trabajos preliminares, albañileria, acabados, impermeabilización.
B52: Se realizó 2 inmubles en el proyecto denominado: Mantenimiento, Conservación y Rehabilitación a Edificios Públicos en: 1.- Panteón de San Agustin Pueblo San Andrés Totoltepec, ubicado en Km 23.5 Carretera Federal a Cuernavaca, Pueblo San Andrés Totoltepec, Trabajos realizados: Trabajos generales, albañilería y acabados en general, 2.-2da. Etapa al Campamento Limantitla, Col.Tlalpan Centro, Trabajos realizados:trazo y nivelación, albañilería, estructura de concreto reforzado, instalaciones eléctricas, instalaciones hidráulicas, instalaciones sanitarias, acabados, cancelerías
B53: Se tienen recursos ejercidos referentes a 3 proyectos ejecutivos los cuales no crean meta ya que son servicios de obras y están denominados: 1.-Realizar 7 Proyectos Ejecutivos para la elaboración de la Construcción de los Proyectos de Obra para los siguientes frentes : Proyecto Ejecutivo de la Casa del adulto Mayor y construcción de Biblioteca en el Pueblo de San Miguel Ajusco, 2.Proyecto ejecutivo para la Construcción de Módulos Sanitarios en la colonia Santísima Trinidad, 3.-Proyecto Ejecutivo para la construcción del Centro de Artes y Oficios de la colonia Pedregal de San Nicolás 3ra. Sección, 4.-Proyecto Ejecutivo para la Construcción del Centro Comunitario en el Pueblo Santo Tomás Ajusco, 5.-Proyecto Ejecutivo para la construcción del 2do piso de la subdelegación del Pueblo Santo Tomás Ajusco, 6.-Proyecto Ejecutivo para la construcción del Centro de Artes y Oficios de la colonia Tecorral, 7.-Proyecto Ejecutivo para la construcción del Centro de Desarrollo Integral Comunitario en la colonia Cultura Maya. Los proyectos consisten en la elaboración de: estudio mecánica de suelos,proyecto arquitectónico,proyecto estructural con aval de DRO, proyecto de instalaciones eléctricas con aval de corresponsal,proyecto de instalaciones hidráulicas, sanitarias y pluviales con aval de corresponsal. Trabajos realizados: Proyecto arquitectónico, proyecto estructural con aval de DRO, proyecto de instalaciones eléctricas con aval de corresponsal 2.-Elaboración de 4 Proyectos Ejecutivos para Obras de Rehabilitación y Mantenimiento en la imagen Urbana dentro del perímetro de la Alcaldía de Tlalpan: Elaboración de los proyectos de obra para la rehabilitación y mantenimiento de las obras públicas en: 1- Arco de Identidad en el Pueblo Magdalena Petlacalco, 2.- San Nicolás II, 3.- Comuneros de Santa Ursula y 4.- Parque Morelos dentro del perímetro de la Alcaldía Tlalpan.Trabajos realziados: proyecto arquitectónico,proyecto estructural con aval de DRO,proyecto de instalaciones eléctricas con aval de corresponsal. 3.-Realización de Proyectos Ejecutivos y Eléctricos para 6 Mercados: 1.-Proyecto Eléctrico para el Mercado Plaza Mexicana del Sur, 2.-Proyecto Eléctrico para el Mercado Flores San Fernando, 3.-Proyecto Ejecutivo para la Construcción del Mercado Topilejo Pueblo San Miguel Topilejo, 4.-Proyecto Ejecutivo para la Construcción del Mercado Concentración 10 de Mayo 5.-Proyecto Eléctrico para el Mercado Villa Coapa, 6.- Proyecto Eléctrico para el Mercado Fuentes Brotantes. Los Proyectos Eléctricos consisten en: Desarrollo Eléctrico (Diagrama unifilar, Cuadros de carga, Distribución de circuitos, Análisis Sistema de alumbrado, Sistema de tierras, Cálculo de circuitos alimentadores (conductores, caídas de tensión, canalizaciones, conductor de puesta a tierra, protecciones), Cálculo de circuitos derivados (conductores, caídas de tensión, canalizaciones, conductor de puesta a tierra, protecciones), Firma de los planos que integran el proyecto eléctrico por un ingeniero electricista con cédula profesional, revisión y firma de planos por unidad verificadora de instalaciones eléctricas. (UVIE). Los Proyectos Ejecutivos consisten en: elaboración de Levantamiento Topográfico, Levantamiento Arquitectónico, Estudios de Mécanica de Suelos, Estudio de mecánica de suelos geofisicos-geoelectricos , Proyecto Arquitectónico (Planta de conjunto, Planos de plantas arquitectónicas, Planos de elevaciones arquitectónicas o alzados, Plano de cortes arquitectónicos o secciones, Planos de detalles arquitectónicos, Calculo Estructural con firma de DRO, Proyecto Eléctrico, Cálculo de circuitos alimentadores, Cálculo de circuitos derivados, Firma de los planos que integran el proyecto eléctrico por un ingeniero electricista con cédula profesional, revisión y firma de planos por unidad verificadora de instalaciones eléctricas. (UVIE), Proyecto de Instalaciones Hidráulicas y Proyecto de Instalación Sanitaria.
B54: 311 148 E150 Programa Integral de Movilidad Inteligente; A través de la Obra por Contrato se relizaron los trabajos en el proyecto denominado: Mantenimiento y Rehabilitación a Mercados con 4 inmuebles 1.-Mercado Flores San Fernando, ubicado en Calzada de Tlalpan y avenida San Fernando, Colonia Barrio de Niño Jesús, Trabajos realizados: instalación eléctrica interna, módulos, instalación eléctrica exterior, 2.-Mercado Fuentes Brotantes, ubicado en Interior del Parque Nacional Fuentes Brotantes, colonia Fuentes Brotantes, Trabajos realizados: instalación eléctrica, sistema de drenaje, ampliación de baños, áreas verdes y juegos, 3.-Mercado Villa Coapa, ubicado en Avenida canal de Miramontes s/n entre avenida Acoxpa y Caporal, colonia Villa Coapa, Trabajos realizados: sustitución de luminaria led, alimentadores a locales, alimentador a hidroneumático, alumbrado exterior, alimentadores en baja tensión CCTV y telefonía, extracción de aire, 4.-Mercado Plaza Mexicana del Sur, ubicado en Avenida Acoxpa, entre Calzada de Tlalpan y Viaducto Tlalpan, Col. San Lorenzo Huipulco, Trabajos realizados: instalación eléctrica
A57: 221 274 K016- Al periodo en el proyecto denominado: Mantenimiento, Conservación y Rehabilitación a Edificios Públicos se cumplió con la meta programada y el cual cuenta con dos fondos 15OB10 y 15OC10 Por otro lado se tienen recursos ejercidos referentes a los proyectos ejecutivos denominados Elaboración de Proyectos Ejecutivos para Obras de Rehabilitación y Mantenimiento en la imagen Urbana dentro del perímetro de la Alcaldía de Tlalpan y Realizar 6 Proyectos Ejecutivos para la elaboración de la Construcción de los Proyectos de Obra de Mercados Públicos, los cuales no crean meta ya que son considerados servicios de obra. Se apertura el proyecto denominado Pavimentación de todas las calles del Pueblo de San Andrés Totoltepec con clave 12-147, el cual refiere al Presupuesto Particicpativo DG: 65, el cual se verá al 100% para el Cierre de la Cuenta Pública del Ejercicio 2021, debido a que se contrato a finales del mes de noviembre.
A58: 311 148 E150- Se aperturan recursos del proyecto denominado: Mantenimiento y Rehabilitación a Mercados con recursos del Fondo Etiquetado PARIPASSSU, mismos que cuentan con tres Fuentes de Financiamiento:No etiquetado recursos fiscales-fiscales-fiscales-2021-original de la urg (Fiscales), Etiquetado Recursos Federales-Aportaciones Federales para Entidades Federativas y Municipios-Fondo de Aportaciones para el Fortalecimiento de las Entidades Federativas (FAFEF)-2021-Original de la URG, No Etiquetado Recursos Federales-Participaciones a Entidades Federativas y Municipios- Participaciones en el Impuesto Sobre Automóviles Nuevos-2021-Original de la URG, en dodnde se verán rfelejada la meta ejecutada., en dodnde se verán rfelejada la meta ejecutada.
B61: ETIQUETADO RECURSOS FEDERALES-APORTACIONES FEDERALES PARA ENTIDADES FEDERATIVAS Y MUNICIPIOS-FONDO DE APORTACIONES PARA EL FORTALECIMIENTO DE LAS ENTIDADES FEDERATIVAS (FAFEF)-2021-ORIGINAL DE LA URG

Sheet AP_RF PART.FED 15OC10
B2: AP-RF AVANCE PRESUPUESTAL DE RECURSOS DE ORIGEN FEDERAL
B3: FONDO, CONVENIO, SUBSIDIO O PARTICIPACIÓN: (1)
B5: Unidad Responsable de Gasto: | F5: DIRECCIÓN GENERAL DE OBRAS Y DESARROLLO URBANO
B6: Período: | F6: Enero-Diciembre 2021
B8: FONDO | F8: NO ETIQUETADO RECURSOS FEDERALES-PARTICIPACIONES A ENTIDADES FEDERATIVAS Y MUNICIPIOS-FONDO DE COMPENSACIÓN DEL IMPUESTO DE AUTOMÓVILES NUEVOS (ISAN) -2022-ORIGINAL DE LA URG (15OC10)
B10: R E S U L T A D O S
B11: PRESUPUESTO (Pesos con dos decimales) | I11: AVANCE %
B12: APROBADO | C12: MODIFICADO | D12: PROGRAMADO | E12: SALDO DEL COMPROMISO | F12: DEVENGADO | G12: EJERCIDO | H12: PAGADO | I12: (DEVENGADO / APROBADO)*100 | J12: (DEVENGADO / MODIFICADO)*100 | K12: (EJERCIDO / APROBADO)*100 | L12: (EJERCIDO / MODIFICADO)*100
B13: 6862127 | C13: 6862127 | D13: 4087340.58 | E13: 4087340.58 | F13: 4087340.58 | G13: 4087340.58 | H13: 4087340.58 | I13: 0 | J13: =IFERROR(($F13/$B13)*100,"") -> 59.56375596 | K13: =IFERROR(($G13/$B13)*100,"") -> 59.56375596 | L13: =IFERROR(($G13/$C13)*100,"") -> 59.56375596
I15: =IFERROR((#REF!/#REF!)*100,"") ->  | J15: =IFERROR((#REF!/#REF!)*100,"") ->  | K15: =IFERROR((#REF!/#REF!)*100,"") ->  | L15: =IFERROR((#REF!/#REF!)*100,"") -> 
I16: =IFERROR((#REF!/#REF!)*100,"") ->  | J16: =IFERROR((#REF!/#REF!)*100,"") ->  | K16: =IFERROR((#REF!/#REF!)*100,"") ->  | L16: =IFERROR((#REF!/#REF!)*100,"") -> 
B17: =IFERROR(VLOOKUP($C17,#REF!,3,FALSE),"") ->  | G17: =IFERROR(F17/C17,"") ->  | H17: =IFERROR((F17/D17*100),"") ->  | I17: =IFERROR((#REF!/#REF!)*100,"") ->  | J17: =IFERROR((#REF!/#REF!)*100,"") ->  | K17: =IFERROR((#REF!/#REF!)*100,"") ->  | L17: =IFERROR((#REF!/#REF!)*100,"") -> 
B18: =IFERROR(VLOOKUP($C18,#REF!,3,FALSE),"") ->  | I18: =IFERROR((#REF!/#REF!)*100,"") ->  | J18: =IFERROR((#REF!/#REF!)*100,"") ->  | K18: =IFERROR((#REF!/#REF!)*100,"") ->  | L18: =IFERROR((#REF!/#REF!)*100,"") -> 
B19: =IFERROR(VLOOKUP($C19,#REF!,3,FALSE),"") ->  | I19: =IFERROR((#REF!/#REF!)*100,"") ->  | J19: =IFERROR((#REF!/#REF!)*100,"") ->  | K19: =IFERROR((#REF!/#REF!)*100,"") ->  | L19: =IFERROR((#REF!/#REF!)*100,"") -> 
B20: =IFERROR(VLOOKUP($C20,#REF!,3,FALSE),"") ->  | I20: =IFERROR((#REF!/#REF!)*100,"") ->  | J20: =IFERROR((#REF!/#REF!)*100,"") ->  | K20: =IFERROR((#REF!/#REF!)*100,"") ->  | L20: =IFERROR((#REF!/#REF!)*100,"") -> 
B21: =IFERROR(VLOOKUP($C21,#REF!,3,FALSE),"") ->  | I21: =IFERROR((#REF!/#REF!)*100,"") ->  | J21: =IFERROR((#REF!/#REF!)*100,"") ->  | K21: =IFERROR((#REF!/#REF!)*100,"") ->  | L21: =IFERROR((#REF!/#REF!)*100,"") -> 
B22: =IFERROR(VLOOKUP($C22,#REF!,3,FALSE),"") ->  | I22: =IFERROR((#REF!/#REF!)*100,"") ->  | J22: =IFERROR((#REF!/#REF!)*100,"") ->  | K22: =IFERROR((#REF!/#REF!)*100,"") ->  | L22: =IFERROR((#REF!/#REF!)*100,"") -> 
B23: =IFERROR(VLOOKUP($C23,#REF!,3,FALSE),"") ->  | I23: =IFERROR((#REF!/#REF!)*100,"") ->  | J23: =IFERROR((#REF!/#REF!)*100,"") ->  | K23: =IFERROR((#REF!/#REF!)*100,"") ->  | L23: =IFERROR((#REF!/#REF!)*100,"") -> 
B24: =IFERROR(VLOOKUP($C24,#REF!,3,FALSE),"") ->  | I24: =IFERROR((#REF!/#REF!)*100,"") ->  | J24: =IFERROR((#REF!/#REF!)*100,"") ->  | K24: =IFERROR((#REF!/#REF!)*100,"") ->  | L24: =IFERROR((#REF!/#REF!)*100,"") -> 
B25: =IFERROR(VLOOKUP($C25,#REF!,3,FALSE),"") ->  | I25: =IFERROR((#REF!/#REF!)*100,"") ->  | J25: =IFERROR((#REF!/#REF!)*100,"") ->  | K25: =IFERROR((#REF!/#REF!)*100,"") ->  | L25: =IFERROR((#REF!/#REF!)*100,"") -> 
B26: =IFERROR(VLOOKUP($C26,#REF!,3,FALSE),"") ->  | I26: =IFERROR((#REF!/#REF!)*100,"") ->  | J26: =IFERROR((#REF!/#REF!)*100,"") ->  | K26: =IFERROR((#REF!/#REF!)*100,"") ->  | L26: =IFERROR((#REF!/#REF!)*100,"") -> 
B27: =IFERROR(VLOOKUP($C27,#REF!,3,FALSE),"") ->  | I27: =IFERROR((#REF!/#REF!)*100,"") ->  | J27: =IFERROR((#REF!/#REF!)*100,"") ->  | K27: =IFERROR((#REF!/#REF!)*100,"") ->  | L27: =IFERROR((#REF!/#REF!)*100,"") -> 
B28: =IFERROR(VLOOKUP($C28,#REF!,3,FALSE),"") ->  | I28: =IFERROR((#REF!/#REF!)*100,"") ->  | J28: =IFERROR((#REF!/#REF!)*100,"") ->  | K28: =IFERROR((#REF!/#REF!)*100,"") ->  | L28: =IFERROR((#REF!/#REF!)*100,"") -> 
B29: =IFERROR(VLOOKUP($C29,#REF!,3,FALSE),"") ->  | I29: =IFERROR((#REF!/#REF!)*100,"") ->  | J29: =IFERROR((#REF!/#REF!)*100,"") ->  | K29: =IFERROR((#REF!/#REF!)*100,"") ->  | L29: =IFERROR((#REF!/#REF!)*100,"") -> 
B30: =IFERROR(VLOOKUP($C30,#REF!,3,FALSE),"") ->  | I30: =IFERROR((#REF!/#REF!)*100,"") ->  | J30: =IFERROR((#REF!/#REF!)*100,"") ->  | K30: =IFERROR((#REF!/#REF!)*100,"") ->  | L30: =IFERROR((#REF!/#REF!)*100,"") -> 
B31: =IFERROR(VLOOKUP($C31,#REF!,3,FALSE),"") ->  | I31: =IFERROR((#REF!/#REF!)*100,"") ->  | J31: =IFERROR((#REF!/#REF!)*100,"") ->  | K31: =IFERROR((#REF!/#REF!)*100,"") ->  | L31: =IFERROR((#REF!/#REF!)*100,"") -> 
B32: =IFERROR(VLOOKUP($C32,#REF!,3,FALSE),"") ->  | I32: =IFERROR((#REF!/#REF!)*100,"") ->  | J32: =IFERROR((#REF!/#REF!)*100,"") ->  | K32: =IFERROR((#REF!/#REF!)*100,"") ->  | L32: =IFERROR((#REF!/#REF!)*100,"") -> 
B33: =IFERROR(VLOOKUP($C33,#REF!,3,FALSE),"") ->  | I33: =IFERROR((#REF!/#REF!)*100,"") ->  | J33: =IFERROR((#REF!/#REF!)*100,"") ->  | K33: =IFERROR((#REF!/#REF!)*100,"") ->  | L33: =IFERROR((#REF!/#REF!)*100,"") -> 
B34: =IFERROR(VLOOKUP($C34,#REF!,3,FALSE),"") ->  | I34: =IFERROR((#REF!/#REF!)*100,"") ->  | J34: =IFERROR((#REF!/#REF!)*100,"") ->  | K34: =IFERROR((#REF!/#REF!)*100,"") ->  | L34: =IFERROR((#REF!/#REF!)*100,"") -> 
B35: =IFERROR(VLOOKUP($C35,#REF!,3,FALSE),"") ->  | I35: =IFERROR((#REF!/#REF!)*100,"") ->  | J35: =IFERROR((#REF!/#REF!)*100,"") ->  | K35: =IFERROR((#REF!/#REF!)*100,"") ->  | L35: =IFERROR((#REF!/#REF!)*100,"") -> 
B36: =IFERROR(VLOOKUP($C36,#REF!,3,FALSE),"") ->  | I36: =IFERROR((#REF!/#REF!)*100,"") ->  | J36: =IFERROR((#REF!/#REF!)*100,"") ->  | K36: =IFERROR((#REF!/#REF!)*100,"") ->  | L36: =IFERROR((#REF!/#REF!)*100,"") -> 
B37: =IFERROR(VLOOKUP($C37,#REF!,3,FALSE),"") ->  | I37: =IFERROR((#REF!/#REF!)*100,"") ->  | J37: =IFERROR((#REF!/#REF!)*100,"") ->  | K37: =IFERROR((#REF!/#REF!)*100,"") ->  | L37: =IFERROR((#REF!/#REF!)*100,"") -> 
B38: =IFERROR(VLOOKUP($C38,#REF!,3,FALSE),"") ->  | I38: =IFERROR((#REF!/#REF!)*100,"") ->  | J38: =IFERROR((#REF!/#REF!)*100,"") ->  | K38: =IFERROR((#REF!/#REF!)*100,"") ->  | L38: =IFERROR((#REF!/#REF!)*100,"") -> 
B39: =IFERROR(VLOOKUP($C39,#REF!,3,FALSE),"") ->  | I39: =IFERROR((#REF!/#REF!)*100,"") ->  | J39: =IFERROR((#REF!/#REF!)*100,"") ->  | K39: =IFERROR((#REF!/#REF!)*100,"") ->  | L39: =IFERROR((#REF!/#REF!)*100,"") -> 
B40: =IFERROR(VLOOKUP($C40,#REF!,3,FALSE),"") ->  | I40: =IFERROR((#REF!/#REF!)*100,"") ->  | J40: =IFERROR((#REF!/#REF!)*100,"") ->  | K40: =IFERROR((#REF!/#REF!)*100,"") ->  | L40: =IFERROR((#REF!/#REF!)*100,"") -> 
B41: =IFERROR(VLOOKUP($C41,#REF!,3,FALSE),"") ->  | I41: =IFERROR((#REF!/#REF!)*100,"") ->  | J41: =IFERROR((#REF!/#REF!)*100,"") ->  | K41: =IFERROR((#REF!/#REF!)*100,"") ->  | L41: =IFERROR((#REF!/#REF!)*100,"") -> 
B42: =IFERROR(VLOOKUP($C42,#REF!,3,FALSE),"") ->  | I42: =IFERROR((#REF!/#REF!)*100,"") ->  | J42: =IFERROR((#REF!/#REF!)*100,"") ->  | K42: =IFERROR((#REF!/#REF!)*100,"") ->  | L42: =IFERROR((#REF!/#REF!)*100,"") -> 
B43: =IFERROR(VLOOKUP($C43,#REF!,3,FALSE),"") ->  | I43: =IFERROR((#REF!/#REF!)*100,"") ->  | J43: =IFERROR((#REF!/#REF!)*100,"") ->  | K43: =IFERROR((#REF!/#REF!)*100,"") ->  | L43: =IFERROR((#REF!/#REF!)*100,"") -> 
B44: =IFERROR(VLOOKUP($C44,#REF!,3,FALSE),"") ->  | I44: =IFERROR((#REF!/#REF!)*100,"") ->  | J44: =IFERROR((#REF!/#REF!)*100,"") ->  | K44: =IFERROR((#REF!/#REF!)*100,"") ->  | L44: =IFERROR((#REF!/#REF!)*100,"") -> 
B45: =IFERROR(VLOOKUP($C45,#REF!,3,FALSE),"") ->  | I45: =IFERROR((#REF!/#REF!)*100,"") ->  | J45: =IFERROR((#REF!/#REF!)*100,"") ->  | K45: =IFERROR((#REF!/#REF!)*100,"") ->  | L45: =IFERROR((#REF!/#REF!)*100,"") -> 
B46: =IFERROR(VLOOKUP($C46,#REF!,3,FALSE),"") ->  | I46: =IFERROR((#REF!/#REF!)*100,"") ->  | J46: =IFERROR((#REF!/#REF!)*100,"") ->  | K46: =IFERROR((#REF!/#REF!)*100,"") ->  | L46: =IFERROR((#REF!/#REF!)*100,"") -> 
B47: =IFERROR(VLOOKUP($C47,#REF!,3,FALSE),"") ->  | I47: =IFERROR((#REF!/#REF!)*100,"") ->  | J47: =IFERROR((#REF!/#REF!)*100,"") ->  | K47: =IFERROR((#REF!/#REF!)*100,"") ->  | L47: =IFERROR((#REF!/#REF!)*100,"") -> 
B50: PRINCIPALES ACCIONES REALIZADAS CON RECURSOS DE ORIGEN FEDERAL:
B51: 221 274 K016- Rehabilitación y Mantenimiento de Infraestructura Pública; A través de la Obra por Administración se realizaron 76 inmuebles para llevar a cabo la Rehabilitación y Mantenimiento de Infraestructura Pública con los siguientes trabajos: Se realizaron 30 inmuebles para el Mantenimiento a Escuelas del Nivel Básico en : JARDIN DE NIÑOS: 1.- Jardín de niños "Xochiconetl". Ubicación: Avenida 7 s/n, MZ 1127 LT 146, entre Avenida 3 y Artes Flamencos, Colonia Miguel Hidalgo 3a. sección Trabajos Realizados: herrería ; 2.- Jardín de Niños "Coronel Felipe Santiago Xicotencatl". Ubicación Diamantinos no. 176-1 esquina Segundo Retorno de Pergoleros, Pueblo de San Andrés Totoltepec, Trabajos Realizados: albañilería y colocación de losetas; 3.- Jardín de Niños "Cuauhtémoc". Ubicación: Reforma entre 5 de Mayo y 16 de Septiembre, Pueblo de San Andrés Totoltepec. Trabajos Realizados: Reparación y mantenimiento en instalaciones hidrosanitarias y de bombeo; 4.- Jardín de Niños "Parres". Ubicación: Avenida Juárez esquina Carretera Federal a Cuernavaca, Pueblo de Parres El Guarda. Trabajos Realizados: herreria, trabajos de reparación y mantenimiento en redes de drenaje y desazolve; 5.- Jardín de Niños "Topilli". Ubicación: Santa Cruz no. 33 esquina Progreso, Pueblo de San Miguel Topilejo. Trabajos Realizados: Mantenimiento y reparación en azoteas y marquesinas, trabajos de desazolve, reparación de instalaciones eléctricas; 6.- Jardín de Niños "Magdalena Contreras Millán". Ubicación: Enseñanza s/n entre Laurel y Cinco de Mayo, Pueblo de San Pedro Mártir. Trabajos Realizados: Reparación y mantenimiento en instalaciones de bombeo, cisternas y tinacos; 7.-Jardín de Niños "Taviche". Ubicación: Avenida Hidalgo s/n entre Matamoros e Hidalgo, Pueblo de San Miguel Ajusco. Trabajos Realizados: Albañilería resanado de plafón y marquesina, aplicación de pintura en muros, plafones, marquesinas, castillos, trabes y zahuán. ESCUELAS PRIMARIAS: 8.- Escuela Primaria "Profa. Emma Godoy". Ubicación: Chanab no. 10, entre Contoy y Chapultenango, Colonia Cuchilla de Padierna, Trabajos Realizados: Aplicación de impermeabilizante a tres edificios, 9.- Escuela Primaria "Prof. Hermilo Zavalza del Valle. Ubicación: Yobain no. 659 esquina Bolonche, Colonia Cultura Maya, Trabajos Realizados: Mantenimiento y reparación en sistemas de bombeo y cisternas. 10.- Escuela Primaria "Efrén Núñez Mata". Ubicación: Querétaro no. 45 entre Leona Vicario y Guadalajara, Colonia Miguel Hidalgo 2a. sección, Trabajos Realizados: Reparación y mantenimiento en instalaciones eléctricas e hidrosanitarias 11.- Escuela Primaria "Everardo Cruz Salmerón". Ubicación: Cerro Tetenco no. 1 esquina La Troje, Colonia María Esther Zuno, Trabajos Realizados: Reparación y mantenimiento de instalaciones hidrosanitarias y de bombeo12.- Escuela Primaria "José Azueta". Ubicación: Parque Nacional Fuentes Brotantes no. 36 entre Fuentes Brotantes e Insurgentes Sur, Colonia Fuentes Brotantes, Trabajos Realizados: balizamiento en patios, canchas, pasillos y perímetros exterior e interior (1567.10 ML.) 13.- Escuela Primaria "Tiburcio Montiel". Ubicación: Cinco de Mayo no. 55 entre Juárez y Reforma, Pueblo de San Andrés Totoltepec.Trabajos Realizados: Reparación y mantenimiento en instalaciones eléctricas e hidrosanitarias 14.-Escuela Primaria "Antonio Sánchez Molina". Ubicación: Chicoasen s/n entre Chemax y Sinanche, Colonia Pedregal de San Nicolás 1a. sección.Trabajos Realizados: Acabados y albañilería, instalación de malla ciclónica, 15.- Escuela Primaria "Eliseo Bandala Fernández". Ubicación Sinanché no. 10 entre Kantunil y Maní, Colonia Pedregal de San Nicolás 1a. sección.Trabajos Realizados: Reparación y mantenimiento en cisternas, tinacos y baños. 16.- Escuela Primaria "Martín de la Cruz". Ubicación: Avenida La Carreta no. 72 entre Prol. Div. del Norte y Canal de Miramontes, Unidad Habitacional Narciso Mendoza S.M. Trabajos Realizados: Reparación y mantenimiento en cisternas y tinacos, 17.- Escuela Primaria "Primero de Mayo" Ubicación: Fuentes no. 16 esquina Avenida San Fernando, colonia Centro de Tlalpan. Trabajos Realizados: reparación y mantenimiento en cisternas y tinacos. 18.- Escuela Primaria "Prof. Abel Ortega Flores". Ubicación 5 de Mayo esquina Cuauhtémoc, pueblo de San Pedro Mártir. Trabajos Realizados: Reparación y mantenimiento en instalaciones eléctricas, hidrosanitarias y de bombeo. 19.- Escuela Primaria "Ucrania". Ubicación Avenida Acoxpa Andador 62 esquina Av. La Troje, unidad habitacional Narciso Mendoza S.M. 6. Trabajos Realizados: Reparación y mantenimiento en instalaciones hidrosanitarias, cisternas y tinacos, 20.- Escuela Primaria "Domingo Martínez Paredes". Ubicación: Hopelchen no. 642 entre Tepakan y Peto, Colonia Cultura Maya. Trabajos Realizados: reparación y mantenimiento en equipos de bombeo, trabajos de herrería; 21.- Escuela Primaria "Estado de Nayarit". Ubicación: Valle de Los Ángeles no. 22 esquina Juárez, pueblo de Parres El Guarda. Trabajos Realizados: reparación y mantenimiento en tinacos, cisternas y sistema de bombeo; 22.- Escuela Primaria "Fuerzas Armadas de México". Ubicación: Reforma Agraria no. 1 esquina Circuito Pergoleros, unidad habitacional Issfam San Pedro Mártir. Trabajos Realizados: Aplicación de pintura en muros (53.30 M2.), en puerta de 1.87 x 0.87 y en 2 ventanas de 1.75 x 0.87, aplicación de impermeabilizante (22.60 M2.); 23.- Escuela Primaria "Mauritania". Ubicación: Av. Santa Cruz no. 6 entre Tetenco y Progreso, Pueblo de San Miguel Topilejo. Trabajos Realizados: Reparación y mantenimiento en instalaciones hidrosanitarias de cisternas y tinacos; 24.- Escuela Primaria "Salvador Trejo Escobedo". Ubicación: Guerrero no. 23 entre Morelos y Zaragoza, Pueblo de San Miguel Topilejo. Trabajos Realizados: Mantenimiento y reparación instalaciones hidrosanitrias, 25.-Escuela Primaria "Cuicuilco". Ubicación: Callejón de El Zapote s/n entre Av. San Fernando y Piedra Filosofal, colonia Isidro Fabela. Trabajos Realizados: Mantenimiento y reparación instalaciones de bombeo, cisternas y tinacos, 26.-Escuela Primaria "Legión Americana". Ubicación: Avenida México Ajusco no. 25 entre Av. del Trabajo y Av. de Las Cruces, Pueblo de La Magdalena Petlacalco. Trabajos Realizados: Reparación y mantenimiento en equipos de bombeo, cisternas y tinacos. ESCUELAS SECUNDARIAS: 27.- Escuela Secundaria Técnica No. 54 "Jaime Torres Bodet". Ubicación: Diligencias s/n esquina Violeta, pueblo de San Pedro Mártir, Trabajos Realizados: Reparación y mantenimiento en instalaciones hidrosanitarias y eléctricas. 28.- Escuela Secundaria no. 120. Ubicación: Miguel Hidalgo s/n esquina 20 de Noviembre Pueblo Parres. Trabajos Realizados: Reparación y mantenimiento en equipos de bombeo, trabajos de herrería en cisternas, 29.-Escuela Secundaria Técnica No. 40 "Virgilio Camacho Paniagua". Ubicación: El riego s/n esquina Arbolillo, Fraccionamiento Residencial Coapa. Trabajos Realizados: Reparación y mantenimiento en equipos de bombeo, cisternas y tinacos. CENTRO DE ATENCIÓN MÚLTIPLE (CAM) 30.- Centro de Atención Múltiple (CAM) no. 64. Ubicación: Yobain MZ 26 LT s/n entre Bochil y Labna, colonia Popular Santa Teresa. Trabajos Realizados: Reparación y mantenimiento en instalaciones hidrosanitarias y de bombeo. Adicionalmente se realizaron trabajos en la Secudaria No. 276 "Juventino Rosas". Ubicación: Tarascos s/n entre Chontales y Tepehuanos, Colonia Tlalcoligia, Trabajos Realizados: reparación y mantenimiento en instalaciones eléctricas, cambio de 26 lámparas y 11 balastras. | Z51: =16+2+12+2+2 -> 34
B52: Se realizaron 8 inmuebles para el Mantenimiento a Bibliotecas en: 1.- Biblioteca Pública "Belvedere", Ubicación: Yobain MZ 26 s/n esquina Peloponeso, colonia Belvedere. Trabajos Realizados: cerrajería y herrería en puerta principal y ventanas del inmueble. 2.- Biblioteca Central, Ubicación: Ignacio Allende no. 144, entre Juárez y Maderos, colonia Tlalpan Centro. Trabajos Realizados: de reparación y mantenimiento en instalaciones hidrosanitarias, 3.- Biblioteca Pública "Iztapapalotl". Ubicación: Lirios s/n esquina Azucenas, colonia Rincón del Mirador II. Trabajos Realizados: albañilería y aplicación de pintura en muros (161.50 M2.) y en herrería (50 ML.) a dos manos, 4.- Biblioteca Pública "La Tortuga Xolalpa". Ubicación: Avenida Fuente Buena s/n esquina Fuente de Tepepan, colonia Fuentes de Tepepan. Trabajos Realizados: Aplicación de impermeabilizante en techo y en vigilancia , aplicación de pintura en plafones y muros de caseta, 5.- Biblioteca Pública "Lomas de Cuilotepec". Ubicación: Cda. del Roble esquina Troya, colonia Lomas de Cuilotepec.Trabajos Realizados: reparación y mantenimiento en instalaciones eléctricas, trabajos de herrería, 6.- Biblioteca Pública "Valentín Gómez Farías". Ubicación: Mixtecos esquina Otomíes, colonia Pedregal de las Águilas. Trabajos Realizados: de reparación y mantenimiento en instalaciones eléctricas e hidrosanitarias, trabajos de cerrajería y herrería, 7.- Biblioteca Pública "Jaime Torres Bodet". Ubicación: Av. Hidalgo s/n esquina 16 de Septiembre, pueblo de Parres El Guarda. Realizado: Trabajos Realizados: reparación y mantenimiento en instalaciones eléctricas, cambio de bomba de 1 HP, reparación y mantenimiento, 8.-Biblioteca Pública "Dr. Roberto L. Mantilla Molina". Ubicación: Izamal s/n esquina Tekal, colonia Héroes de Padierna.Trabajos Realizados: albañilería aplicación de cemento en muros de concreto y en muros de tabla-roca, aplicación de pintura en muro y en franja .
B53: Se realizaron 28 inmuebles para realizar el Mantenimiento a Edificios Públicos en: 1.- Oficina de Relaciones Laborales, Ubicación: Congreso no. 50 esquina San Marcos, colonia Tlalpan Centro. Trabajos Realizados: herrería, aplicación de vaportite y membrana, aplicación de sellador en losa y en láminas, aplicación de pintura en oficinas, aplicación de pintura en herrería (2 ventanas y 1 puerta,pintura en plafones y muros,y en ventanas, trabajos de electricidad en tanque elevado. 2.- Oficinas de Seguridad Pública de la Alcaldía (deportivo Vivanco), Ubicación: Moneda s/n esquina Av. Insurgentes Sur, colonia Tlalpan Centro, Trabajos Realizado: Instalación de bomba de 1.5 HP, cambio de presostato, trabajos de reparación y mantenimiento en instalación eléctrica, instalación de 4 WC completos con accesorios, trabajos de herrería y plomería, instalación de tinaco, instalación de 6 lavabos con llaves, colocación de mamparas y puertas en baños. 3.- Oficinas locales de la Guardia Nacional "Parres".Ubicación: Av. Morelos esquina Miguel Hidalgo (cerca Kiosko), pueblo de Parres El Guarda, Trabajos Realizados: reparación y mantenimiento en instalación hidrosanitaria y obras de desazolve, aplicación de pintura en muros, castillos, plafones y trabes , instalación de motobomba, colocación de 4 gabinetes en dormitorio damas, 4.-Dirección de Regularización Territorial. Ubicación: Matamoros s/n entre Jojutla y Tezoquipa, colonia Tlalpan Centro. Trabajos realizados: Aplicación de pintura en 77 círculos de 18 cm. en patio de ventanillas; cambio de 4 lavabos con accesorios; cambio de apagador y trabajos de plomería y desazolve, 5.- Dirección General de Obras y Desarrollo Urbano. Ubicación: Avenida San Fernando no. 84 esquina Madero, Colonia Tlalpan Centro. Trabajos realizados: Trabajos de reparación y mantenimiento en instalaciones eléctricas e hidrosanitarias, trabajos de desazolve y albañilería (colocación y aplicación de pintura de muros de tabla-roca).6.- Unidad Departamental de Agua Potable Ubicación: Congreso no. 296 frente a panteón "20 de Noviembre", Colonia Tlalpan Centro. Trabajos realizados: Instalación de techumbre, trabajos de reparación y mantenimiento en instalaciones hidrosanitarias y eléctricas, trabajos de cerrajería y herrería. 7.- Campamento Villa Coapa. Ubicación: Canal de Miramontes no. 3755 esquina Cárcamo Unidad Habitacional Narciso Mendoza S.M. 2 Trabajos Realizado Aplicación de pintura en puertas, portón, cortinas, plafones, muros, columnas y través de campamento (536.47 M2.); aplicación de pintura en oficinas administrativas (180 M2.), 8.- Dirección General del Medio Ambiente y Desarrollo Sustentable. Ubicación: Juárez 68 entre Moneda y Allende, colonia Tlalpan Centro. Trabajos Realizados: reparación y mantenimiento en instalaciones eléctricas, 9.- Jefatura de Fomento a la Equidad de Género. Ubicación: Ajusco no. 96 esquina Coscomate colonia Toriello Guerra.Trabajos Realizados: de reparación y mantenimiento en instalaciones hidrosanitarias, 10.- Casa del Adulto Mayor. Ubicación: Cárcamo s/n esquina Canal de Miramontes, Unidad Habitacional Narciso Mendoza S.M. 2. Trabajos Realizados: reparación y mantenimientos en redes de agua potable y sistema de tinacos, aplicación de impermeabilizante en azotea dos manos (385 M2.), trabajos de carpintería y trabajos de reparación y mantenimiento en instalaciones eléctricas,11.- Juzgado Cívico TLP 4. Ubicación: Lateral Periférico Sur esquina Canal Nacional, Fraccionamiento Magisterial Coapa.Trabajos Realizados: de reparación y mantenimiento en instalaciones eléctricas e hidrosanitarias, cambio de lavabo, de mingitorio, lámparas (12) y sóquets (8), 12.- Oficinas Locales de la guardia Nacional Villa Olímpica. Ubicación: Avenida Insurgentes Sur esquina Periférico Sur, unidad habitacional Villa Olímpica, Trabajo Realizado: reparación y mantenimiento en instalaciones hidrosanitarias y eléctricas, 13.- Subdelegación de Chimalcoyotl. Ubicación: Cristóbal Colón no. 6, colonia Chimalcoyotl. Trabajos Realizados reparación y mantenimiento en instalaciones hidrosanitarias y reparación de techumbre (42 M2.),reparación y mantenimiento en instalación eléctrica, 14.- Oficina de Los Derechos Humanos. Ubicación: Moneda s/n esquina Insurgentes Sur, colonia Centro de Tlalpan. Trabajos Realizados: reparación y mantenimientos en instalaciones hidrosanitarias, trabajos de herrería (elaboración de reja y protecciones). 15.- Oficinas de Desarrollo Social y Deportes de la Alcaldía. Ubicación: Avenida Insurgentes Sur s/n casi esquina Periférico Sur, unidad habitacional Villa Olímpica. Trabajos Realizados: reparación y mantenimiento en instalaciones eléctricas, 16.- Subdelegación de Parres El Guarda. Ubicación: 16 de Septiembre no. 26 esquina Hidalgo, pueblo de Parres El Guarda.Trabajos Realizados reparación y mantenimiento en instalaciones eléctricas, aplicación de pintura en muros (60 M2.), aplicación de pintura en herrería (6 ventanas de 1.80x1.50, 1.50x1, 1.20x1, 1.80x1.50, 1.20x1, 1.80x1.50), 17.- Campamento de Desazolve C-2. Ubicación: San Francisco s/n esquina Viaducto Tlalpan, colonia San Lorenzo Huipulco. Trabajos Realizados: reparación y mantenimiento en instalaciones eléctricas. 18.- Centro Acuático "Parque Morelos". Ubicación: Lázaro Cárdenas no. 230 entre Jesús Lecuona y Toribio Alcaraz colonia Miguel Hidalgo 2a. sección. Trabajos Realizados: reparación y mantenimiento en instalaciones eléctricas y trabajos de albañilería, 19.- Oficina de Fomento Económico. Ubicación: Circuito Camino fuentes Brotantes, colonia Fuentes Brotantes. Trabajos Realizados: reparación y mantenimiento en instalaciones hidrosanitarias (baños ecológicos y normales), 20.- Oficinas Parque Juana de Asbaje. Ubicación: Moneda s/n entre Madero y Juárez, colonia Tlalpan Centro. Trabajos Realizados: herrería, colocación de tabla-rocas de 2.44 x 1.22, aplicación de pintura en muros, reparación y mantenimiento en instalación hidrosanitaria, mantenimiento instalación eléctrica, 21.- Dirección de Educación y Salud. Ubicación: Coscomate no. 90 esquina Puente de Piedra, Colonia Toriello Guerra. Trabajos Realizados: Reparación y mantenimientos en instalaciones hidrosanitarias y de bombeo, 22.- Edificio de la Alcaldía. Ubicación: Plaza de La Constitución no. 1 entre Moneda y Victoria, Colonia Tlalpan Centro. Trabajos Realizados: Albañilería (construcción de mesas y repisas con tabla-roca), reparación y mantenimiento en instalaciones eléctricas e hidrosanitarias, plomería en oficina de concejales, 23.- Juzgado 35 del Registro Civil. Ubicación: Tekal s/n esquina Izamal, Colonia Héroes de Padierna. Trabajos Realizados: Reparación y mantenimiento en instalaciones eléctricas,24.- Subdelegación de San Andrés. Ubicación: Reforma no. 22 esquina 16 de Septiembre, Pueblo de San Andrés Totoltepec. Trabajos Realizados: Reparación y mantenimiento en sistema de bombeo, 25.-Campamento de Imagen Urbana. Ubicación: Allende s/n esquina Callejón Carrasco, Colonia Centro de Tlalpan. Trabajos Realizados: Reparación y mantenimientos en instalaciones hidrosanitarias y de drenaje, colocación de tubería para drenaje , trabajos de albañilería aplanado de muro y colocacion de piso: 1.15 M2, 26.-Oficina de Enlace Brigada de Acción Inmediata Zona II. Ubicación: Canal de Miramontes s/n cerca Glorieta Vaqueritos, Unidad Habitacional Narciso Mendoza S.M. 2. Trabajos Realizados: Reparación y mantenimiento en instalaciones eléctricas, 27.-Oficinas Deportivo San Pedro Mártir. Ubicación: Dalia entre Mirasol y Mirador, Pueblo de San Pedro Mártir. Trabajos Realizados: Reparación y mantenimiento en azoteas, colocacion de vaportite y aplicación de impermeabilizante , 28.-Oficinas Deportivo Parres el Guarda. Ubicación: Guerrero s/n esquina Benito Juárez, Pueblo de Parres El Guarda. Trabajos Realizados: Reparación y mantenimiento instalaciones eléctricas, hidrosanitarias, y de bombeo, trabajos de herrería y cerrajería (colocación de protección en ventana y cambio de chapa), colocación de tanque elevado de 850 litros y colocación de puerta en acceso principal.
B54: Se realizaron 8 inmuebles para realizar el Mantenimiento de Desarrollo Social: 1.- Centro de Aprendizaje Virtual "Padierna".Ubicación: Yobain s/n esquina Tekal, colonia Héroes de Padierna, Trabajos Realizados: Reparación y mantenimiento de instalaciones eléctricas e hidrosanitarias. 2.- Centro de Aprendizaje Virtual "Acanceh". Ubicación: Acanceh esquina Izamal, Colonia Lomas de Padierna. Trabajos realizados: reparación y mantenimiento de instalaciones de bombeo y tinacos, lavado de cisternas y tinacos, 3.- Centro de Aprendizaje Virtual "Parres el Guarda". Ubicacion: Avenida Hidlago s/n esquina 16 de Septiembre, pueblo de Parres El Guarda. Trabajos Realizados: mantenimiento y reparación en instalaciones eléctricas, 4.- Centro de Aprendizaje Virtual "Santo Tomás Ajusco". Ubicación: José María Morelos s/n, interior Subdelegación Auxiliar, pueblo de Santo Tomás Ajusco. Trabajos Realizados: reparación y mantenimiento en instalaciones eléctricas, 5.- Centro de Aprendizaje Virtual "Magdalena Petlacalco". Ubicacion: Avenida México-Ajusco s/n esquina calle Del Trabajo, pueblo de La Magdalena Petlacalco. Trabajos Realizados: mantenimiento y reparación en instalaciones eléctricas, 6.- Centro de Desarrollo Comunitario Integral "Miguel Hidalgo". Ubicación: Alfredo V. Bonfil MZ 36 LT 224, colonia Miguel Hidalgo 3a. sección. Trabajos Realizados: reparación y mantenimiento en instalaciones eléctricas, 7.- Centro de Desarrollo Comunitario Integral "Parque Los Pinos". Ubicación: Av. Tetiz esquina Homún, colonia Pedregal de San Nicolás 3a. sección.Trabajos Realizados: Reparación y mantenimiento en instalaciones eléctricas, 8.-Centro de Aprendizaje Virtual "Parque Morelos". Ubicación: Izamal s/n esquina Tekal, colonia Héroes de Padierna. Trabajos Realizados: Albañilería colocación de muros de tabla-roca y colocación de cemento en muros, aplicación de pintura en muros en franjas de 0.30 X 6.00 y en 10 letras de 38X28X7 cm.
B55: Se realizaron 2 inmuebles para realizar el Mantenimiento a Mercados en: 1.- Mercado público "San Andrés" Trabajos Realizados: reparación y mantenimiento en instalaciones hidrosanitarias y eléctricas, trabajos de herrería. Ubicación: 16 de Septiembre esquina Reforma, pueblo de San Andrés Totoltepec. 2.-Mercado público "Villa Coapa". Ubicación: Calzada Acoxpa esquina Av. de Las Torres, Fraccionamiento Villa Lázaro Cárdenas. Trabajos realizados: Trabajos de balizamiento en estacionamiento (45 cajones, 265 ML.)
B59: 221 274 K016-A través de la Obra por Administración se adicionan recusros debido a que los de origen se autorizaron en la partida de mezcla Asfáltica la cual refiere para trabajos de vialidades, por lo cual se tuvieron que reducir recursos del capitulo 6000 y adicionar en este fondo con capitulo 2000 para realizar los trabajos de Mantenimiento a diferentes tipos de edificios públicos, los cuales se desaglozan en este formato; con las siguientes partidas: Productos no metálicos, Artículos metálicos, Materiales complementarios, fibras y hules, herramientas menores y Refacciones y accesorios, en beneficio de la población tlalpense. Cabe hacer mención que los trabajos de administración eneste fondo cuenta con mas fuentes d efinanciamiento, FISCALES, FORTAMUN 25P110 Y ADIONALES 25P114, FISCALES DG: 65, PART FEDERALES: 15O210,15O510,15OC10,15OZ0. Por otro lado el proyecto denominado Mantenimiento, Conservación y Rehabilitación a Edificios Públicos por capítulo 6000, el cual cuenta con 2 fuentes de financiamiento NO ETIQUETADO RECURSOS FEDERALES-PARTICIPACIONES A ENTIDADES FEDERATIVAS Y MUNICIPIOS- PARTICIPACIONES EN EL IMPUESTO SOBRE AUTOMÓVILES NUEVOS-2021-ORIGINAL DE LA URG y su meta se verá relizada con 2 inmuebles en el Fondo antes mencionado y en 15OC10 son recursos de complemento a la meta.
B60: 221 024K015- Se autorizaron recursos del capítulo 2000 partida 2481 Material como tapices, pisos, persianas, plantas y demas accesorios la cual es controlada por la Dirección General de Administración.
B61: 221 049 E124-Se autorizaron recursos que refieren al Capítulo 2000 partida 2541 Material, accesorios y suministro médico y 2721 Prendas de seguridad y protección personal, las cuales son controladas por la Dirección General de Administración

Sheet AP_RF PART.FED 15OZ04
B2: AP-RF AVANCE PRESUPUESTAL DE RECURSOS DE ORIGEN FEDERAL
B3: FONDO, CONVENIO, SUBSIDIO O PARTICIPACIÓN: (1)
B5: Unidad Responsable de Gasto: | F5: DIRECCIÓN GENERAL DE OBRAS Y DESARROLLO URBANO
B6: Período: | F6: Enero-Diciembre 2021
B8: FONDO | F8: PARTICIPACIONES A ENTIDADES FEDERATIVAS Y MUNICIPIOS (15OZ04)
B10: R E S U L T A D O S
B11: PRESUPUESTO (Pesos con dos decimales) | I11: AVANCE %
B12: APROBADO | C12: MODIFICADO | D12: PROGRAMADO | E12: SALDO DEL COMPROMISO | F12: DEVENGADO | G12: EJERCIDO | H12: PAGADO | I12: (DEVENGADO / APROBADO)*100 | J12: (DEVENGADO / MODIFICADO)*100 | K12: (EJERCIDO / APROBADO)*100 | L12: (EJERCIDO / MODIFICADO)*100
B13: 0 | C13: =127000+350000 -> 477000 | D13: =127000+350000 -> 477000 | E13: =127000+350000 -> 477000 | F13: =127000+350000 -> 477000 | G13: =126900.98+349835.37 -> 476736.35 | H13: =126900.98+349835.37 -> 476736.35 | I13: 0 | J13: =IFERROR(($F13/$B13)*100,"") ->  | K13: =IFERROR(($G13/$B13)*100,"") ->  | L13: =IFERROR(($G13/$C13)*100,"") -> 99.94472746
I15: =IFERROR((#REF!/#REF!)*100,"") ->  | J15: =IFERROR((#REF!/#REF!)*100,"") ->  | K15: =IFERROR((#REF!/#REF!)*100,"") ->  | L15: =IFERROR((#REF!/#REF!)*100,"") -> 
I16: =IFERROR((#REF!/#REF!)*100,"") ->  | J16: =IFERROR((#REF!/#REF!)*100,"") ->  | K16: =IFERROR((#REF!/#REF!)*100,"") ->  | L16: =IFERROR((#REF!/#REF!)*100,"") -> 
B17: =IFERROR(VLOOKUP($C17,#REF!,3,FALSE),"") ->  | G17: =IFERROR(F17/C17,"") ->  | H17: =IFERROR((F17/D17*100),"") ->  | I17: =IFERROR((#REF!/#REF!)*100,"") ->  | J17: =IFERROR((#REF!/#REF!)*100,"") ->  | K17: =IFERROR((#REF!/#REF!)*100,"") ->  | L17: =IFERROR((#REF!/#REF!)*100,"") -> 
B18: =IFERROR(VLOOKUP($C18,#REF!,3,FALSE),"") ->  | I18: =IFERROR((#REF!/#REF!)*100,"") ->  | J18: =IFERROR((#REF!/#REF!)*100,"") ->  | K18: =IFERROR((#REF!/#REF!)*100,"") ->  | L18: =IFERROR((#REF!/#REF!)*100,"") -> 
B19: =IFERROR(VLOOKUP($C19,#REF!,3,FALSE),"") ->  | I19: =IFERROR((#REF!/#REF!)*100,"") ->  | J19: =IFERROR((#REF!/#REF!)*100,"") ->  | K19: =IFERROR((#REF!/#REF!)*100,"") ->  | L19: =IFERROR((#REF!/#REF!)*100,"") -> 
B20: =IFERROR(VLOOKUP($C20,#REF!,3,FALSE),"") ->  | I20: =IFERROR((#REF!/#REF!)*100,"") ->  | J20: =IFERROR((#REF!/#REF!)*100,"") ->  | K20: =IFERROR((#REF!/#REF!)*100,"") ->  | L20: =IFERROR((#REF!/#REF!)*100,"") -> 
B21: =IFERROR(VLOOKUP($C21,#REF!,3,FALSE),"") ->  | I21: =IFERROR((#REF!/#REF!)*100,"") ->  | J21: =IFERROR((#REF!/#REF!)*100,"") ->  | K21: =IFERROR((#REF!/#REF!)*100,"") ->  | L21: =IFERROR((#REF!/#REF!)*100,"") -> 
B22: =IFERROR(VLOOKUP($C22,#REF!,3,FALSE),"") ->  | I22: =IFERROR((#REF!/#REF!)*100,"") ->  | J22: =IFERROR((#REF!/#REF!)*100,"") ->  | K22: =IFERROR((#REF!/#REF!)*100,"") ->  | L22: =IFERROR((#REF!/#REF!)*100,"") -> 
B23: =IFERROR(VLOOKUP($C23,#REF!,3,FALSE),"") ->  | I23: =IFERROR((#REF!/#REF!)*100,"") ->  | J23: =IFERROR((#REF!/#REF!)*100,"") ->  | K23: =IFERROR((#REF!/#REF!)*100,"") ->  | L23: =IFERROR((#REF!/#REF!)*100,"") -> 
B24: =IFERROR(VLOOKUP($C24,#REF!,3,FALSE),"") ->  | I24: =IFERROR((#REF!/#REF!)*100,"") ->  | J24: =IFERROR((#REF!/#REF!)*100,"") ->  | K24: =IFERROR((#REF!/#REF!)*100,"") ->  | L24: =IFERROR((#REF!/#REF!)*100,"") -> 
B25: =IFERROR(VLOOKUP($C25,#REF!,3,FALSE),"") ->  | I25: =IFERROR((#REF!/#REF!)*100,"") ->  | J25: =IFERROR((#REF!/#REF!)*100,"") ->  | K25: =IFERROR((#REF!/#REF!)*100,"") ->  | L25: =IFERROR((#REF!/#REF!)*100,"") -> 
B26: =IFERROR(VLOOKUP($C26,#REF!,3,FALSE),"") ->  | I26: =IFERROR((#REF!/#REF!)*100,"") ->  | J26: =IFERROR((#REF!/#REF!)*100,"") ->  | K26: =IFERROR((#REF!/#REF!)*100,"") ->  | L26: =IFERROR((#REF!/#REF!)*100,"") -> 
B27: =IFERROR(VLOOKUP($C27,#REF!,3,FALSE),"") ->  | I27: =IFERROR((#REF!/#REF!)*100,"") ->  | J27: =IFERROR((#REF!/#REF!)*100,"") ->  | K27: =IFERROR((#REF!/#REF!)*100,"") ->  | L27: =IFERROR((#REF!/#REF!)*100,"") -> 
B28: =IFERROR(VLOOKUP($C28,#REF!,3,FALSE),"") ->  | I28: =IFERROR((#REF!/#REF!)*100,"") ->  | J28: =IFERROR((#REF!/#REF!)*100,"") ->  | K28: =IFERROR((#REF!/#REF!)*100,"") ->  | L28: =IFERROR((#REF!/#REF!)*100,"") -> 
B29: =IFERROR(VLOOKUP($C29,#REF!,3,FALSE),"") ->  | I29: =IFERROR((#REF!/#REF!)*100,"") ->  | J29: =IFERROR((#REF!/#REF!)*100,"") ->  | K29: =IFERROR((#REF!/#REF!)*100,"") ->  | L29: =IFERROR((#REF!/#REF!)*100,"") -> 
B30: =IFERROR(VLOOKUP($C30,#REF!,3,FALSE),"") ->  | I30: =IFERROR((#REF!/#REF!)*100,"") ->  | J30: =IFERROR((#REF!/#REF!)*100,"") ->  | K30: =IFERROR((#REF!/#REF!)*100,"") ->  | L30: =IFERROR((#REF!/#REF!)*100,"") -> 
B31: =IFERROR(VLOOKUP($C31,#REF!,3,FALSE),"") ->  | I31: =IFERROR((#REF!/#REF!)*100,"") ->  | J31: =IFERROR((#REF!/#REF!)*100,"") ->  | K31: =IFERROR((#REF!/#REF!)*100,"") ->  | L31: =IFERROR((#REF!/#REF!)*100,"") -> 
B32: =IFERROR(VLOOKUP($C32,#REF!,3,FALSE),"") ->  | I32: =IFERROR((#REF!/#REF!)*100,"") ->  | J32: =IFERROR((#REF!/#REF!)*100,"") ->  | K32: =IFERROR((#REF!/#REF!)*100,"") ->  | L32: =IFERROR((#REF!/#REF!)*100,"") -> 
B33: =IFERROR(VLOOKUP($C33,#REF!,3,FALSE),"") ->  | I33: =IFERROR((#REF!/#REF!)*100,"") ->  | J33: =IFERROR((#REF!/#REF!)*100,"") ->  | K33: =IFERROR((#REF!/#REF!)*100,"") ->  | L33: =IFERROR((#REF!/#REF!)*100,"") -> 
B34: =IFERROR(VLOOKUP($C34,#REF!,3,FALSE),"") ->  | I34: =IFERROR((#REF!/#REF!)*100,"") ->  | J34: =IFERROR((#REF!/#REF!)*100,"") ->  | K34: =IFERROR((#REF!/#REF!)*100,"") ->  | L34: =IFERROR((#REF!/#REF!)*100,"") -> 
B35: =IFERROR(VLOOKUP($C35,#REF!,3,FALSE),"") ->  | I35: =IFERROR((#REF!/#REF!)*100,"") ->  | J35: =IFERROR((#REF!/#REF!)*100,"") ->  | K35: =IFERROR((#REF!/#REF!)*100,"") ->  | L35: =IFERROR((#REF!/#REF!)*100,"") -> 
B36: =IFERROR(VLOOKUP($C36,#REF!,3,FALSE),"") ->  | I36: =IFERROR((#REF!/#REF!)*100,"") ->  | J36: =IFERROR((#REF!/#REF!)*100,"") ->  | K36: =IFERROR((#REF!/#REF!)*100,"") ->  | L36: =IFERROR((#REF!/#REF!)*100,"") -> 
B37: =IFERROR(VLOOKUP($C37,#REF!,3,FALSE),"") ->  | I37: =IFERROR((#REF!/#REF!)*100,"") ->  | J37: =IFERROR((#REF!/#REF!)*100,"") ->  | K37: =IFERROR((#REF!/#REF!)*100,"") ->  | L37: =IFERROR((#REF!/#REF!)*100,"") -> 
B38: =IFERROR(VLOOKUP($C38,#REF!,3,FALSE),"") ->  | I38: =IFERROR((#REF!/#REF!)*100,"") ->  | J38: =IFERROR((#REF!/#REF!)*100,"") ->  | K38: =IFERROR((#REF!/#REF!)*100,"") ->  | L38: =IFERROR((#REF!/#REF!)*100,"") -> 
B39: =IFERROR(VLOOKUP($C39,#REF!,3,FALSE),"") ->  | I39: =IFERROR((#REF!/#REF!)*100,"") ->  | J39: =IFERROR((#REF!/#REF!)*100,"") ->  | K39: =IFERROR((#REF!/#REF!)*100,"") ->  | L39: =IFERROR((#REF!/#REF!)*100,"") -> 
B40: =IFERROR(VLOOKUP($C40,#REF!,3,FALSE),"") ->  | I40: =IFERROR((#REF!/#REF!)*100,"") ->  | J40: =IFERROR((#REF!/#REF!)*100,"") ->  | K40: =IFERROR((#REF!/#REF!)*100,"") ->  | L40: =IFERROR((#REF!/#REF!)*100,"") -> 
B41: =IFERROR(VLOOKUP($C41,#REF!,3,FALSE),"") ->  | I41: =IFERROR((#REF!/#REF!)*100,"") ->  | J41: =IFERROR((#REF!/#REF!)*100,"") ->  | K41: =IFERROR((#REF!/#REF!)*100,"") ->  | L41: =IFERROR((#REF!/#REF!)*100,"") -> 
B42: =IFERROR(VLOOKUP($C42,#REF!,3,FALSE),"") ->  | I42: =IFERROR((#REF!/#REF!)*100,"") ->  | J42: =IFERROR((#REF!/#REF!)*100,"") ->  | K42: =IFERROR((#REF!/#REF!)*100,"") ->  | L42: =IFERROR((#REF!/#REF!)*100,"") -> 
B43: =IFERROR(VLOOKUP($C43,#REF!,3,FALSE),"") ->  | I43: =IFERROR((#REF!/#REF!)*100,"") ->  | J43: =IFERROR((#REF!/#REF!)*100,"") ->  | K43: =IFERROR((#REF!/#REF!)*100,"") ->  | L43: =IFERROR((#REF!/#REF!)*100,"") -> 
B44: =IFERROR(VLOOKUP($C44,#REF!,3,FALSE),"") ->  | I44: =IFERROR((#REF!/#REF!)*100,"") ->  | J44: =IFERROR((#REF!/#REF!)*100,"") ->  | K44: =IFERROR((#REF!/#REF!)*100,"") ->  | L44: =IFERROR((#REF!/#REF!)*100,"") -> 
B45: =IFERROR(VLOOKUP($C45,#REF!,3,FALSE),"") ->  | I45: =IFERROR((#REF!/#REF!)*100,"") ->  | J45: =IFERROR((#REF!/#REF!)*100,"") ->  | K45: =IFERROR((#REF!/#REF!)*100,"") ->  | L45: =IFERROR((#REF!/#REF!)*100,"") -> 
B46: =IFERROR(VLOOKUP($C46,#REF!,3,FALSE),"") ->  | I46: =IFERROR((#REF!/#REF!)*100,"") ->  | J46: =IFERROR((#REF!/#REF!)*100,"") ->  | K46: =IFERROR((#REF!/#REF!)*100,"") ->  | L46: =IFERROR((#REF!/#REF!)*100,"") -> 
B47: =IFERROR(VLOOKUP($C47,#REF!,3,FALSE),"") ->  | I47: =IFERROR((#REF!/#REF!)*100,"") ->  | J47: =IFERROR((#REF!/#REF!)*100,"") ->  | K47: =IFERROR((#REF!/#REF!)*100,"") ->  | L47: =IFERROR((#REF!/#REF!)*100,"") -> 
B50: PRINCIPALES ACCIONES REALIZADAS CON RECURSOS DE ORIGEN FEDERAL:
B51: Al periodo no hay acciones realizadas
B58: 221 274 K016-A través de la Obra por Administración se adicionan recusros del capítulo 2000, debido a que los de origen fueron insuficientes para realizar los trabajos de Matnimiento a diferentes tipos de inmuebles Públicos, las partidas autorizadas son: Refacciones y Accesorios, Arena y grava,la meta ejecutada se verá reflejada en el fondo NO ETIQUETADO RECURSOS FEDERALES-PARTICIPACIONES A ENTIDADES FEDERATIVAS Y MUNICIPIOS-FONDO DE COMPENSACIÓN DEL IMPUESTO DE AUTOMÓVILES NUEVOS (ISAN) -2022-ORIGINAL DE LA URG (15OC10), ya que estos recursos son complemento para la ejecución de la meta ejecutada.

Sheet PPI
B2: PPI PROGRAMAS Y PROYECTOS DE INVERSIÓN
B4: Unidad Responsable de Gasto: | D4: =Caratula!A13 -> 0
B5: Período: | D5: =Caratula!I17 -> 
B7: CLAVE PROYECTO DE INVERSIÓN | C7: DENOMINACIÓN DEL PROYECTO DE INVERSIÓN | D7: AVANCE % | E7: PRESUPUESTO (Pesos con dos decimales) | L7: DESCRIPCION DE ACCIONES REALIZADAS
E8: APROBADO | F8: MODIFICADO | G8: EJERCIDO | H8: SALDO DEL COMPROMISO | I8: DEVENGADO | J8: PAGADO | K8: EJERCIDO + COMPROMETIDO
B9: O21NR0058 | C9: Obras en el Marco del Presupuesto Participativo EJERCICIO 2020 | D9: 0 | E9: 90024788 | F9: 1409194.49 | G9: 1409194.49 | H9: 0 | I9: 0 | J9: 0 | K9: 0
B10: O21NR0076 | C10: Obras en el Marco del Presupuesto Participativo EJERCICIO 2021 | D10: 0 | E10: 87710757 | F10: 0 | G10: 0 | H10: 0 | I10: 0 | J10: 0 | K10: 0
B11: O21NR0079 | C11: Construcción y Rehabilitación de Resumideros | D11: 0.83 | E11: 24992990 | F11: 17933401.54 | G11: 17933401.54 | H11: 17933401.45 | I11: 17111498.35 | J11: 17111498.35 | K11: 17111498.35 | L11: Con 10 piezas en el proyecto denominado Construcción y Rehabilitación de Resumideros, con trabajos para la construcción de Resumideros en las siguientes colonias: 1.- Cultura Maya, 2.-Pueblo San Andrés Totoltepec, 4.-Pedregal de San Nicolas 2a. Sección, 5.- Pedregal de San Nicolás 3a sección, 7.-Torres de Padierna, 9.-Miguel Hidalgo 3ra. Sección,11.- Héroes de Padierna, 12.- Lomas de Padierna,13.-Pedregal de San Nicolas 1a. Sección, Trabajos terminados en cada uno de los frentes: Trazo y nivelación,corte y/o demolición de la carpeta asfáltica,excavación de la zanja hasta la profundidad que se encuentre la grieta, proteccion de las paredes de la zanja, extraccion del agua de la zanja, construcción de coladeras(todos los tipos), bocas de tormenta, construcción de muros de mampostería,suministro y colocación de acero de refuerzo, cimbra para losa tapa de concreto armado, colado de concreto, relleno de las zanjas con material de banco, compactación de terreno, reconstrucción de pavimento, decimbrado de losa tapa, acarreos, limpieza de rejillas y estructuras que contengan azolve, retiro de material del sitio y limpieza final. Se dejaron de atender las colonias: 3.- Pueblo San Miguel Topilejo, 6.-Pedregal Santa Úrsula Xitla, 8.-Pedregal de San Nicolás 4a sección, 10.- Lomas Hidalgo, 14.-Popular Santa Teresa,15.- Miguel Hidalgo 4a. Seccion, 16.- Miguel Hidalgo 2a. Seccion, debido a que los recursos se reorientaron a los capítulos: 2000, 3000 Y 4000 y así poder cubrir con las necesidades prioritarias de la Alcaldía; razón por la cual no se pudieron completar la meta programada
B12: O21NR0090 | C12: Mantenimiento, Conservación y Rehabilitación en Vialidades Secundarias. | D12: 1 | E12: 46295700 | F12: 13308786.89 | G12: 13308786.89 | H12: 13308786.89 | I12: 12131837.91 | J12: 12131837.91 | K12: 12131837.91 | L12: Se realizaron 20,785.39 m2 ) en el proyecto denominado: Mantenimiento, Conservación y Rehabilitación en Vialidades Secundarias en las siguientes colonias: 1.-San Andrés Totoltepec, 2.-Héroes de Padierna, 3.-Miguel Hidalgo Trabajos realizados en cada uno de los frentes: trazo y nivelación, fresado, brocales, barrido de la base para aplicar el riego de liga, carpeta de mezcla asfáltica, etc.
B13: O21NR0094 | C13: Construcción y Ampliación de Infraestructura de Agua Potable | D13: 1 | E13: 315230 | F13: 315077.04 | G13: 315077.04 | H13: 315077.04 | I13: 315077.04 | J13: 315077.04 | K13: 315077.04 | L13: Se realizaron 78.20 metros lineales en el proyecto denominado Construcción y Ampliación de Infraestructura de Agua Potable en el: 1.-Pueblo de San Pedro Mártir Trabajos realizados: instalación de tuberia de P.A.D. y tomas domiciliarias
B14: O21NR0102 | C14: Conservación y Rehabilitación de Banquetas | D14: 1 | E14: 2278928 | F14: 2191965.82 | G14: 2191965.82 | H14: 2191965.81 | I14: 1107253.91 | J14: 1107253.91 | K14: 1107253.91 | L14: Se realizaron 1,398.92 metros cuadrados en el proyecto denominado: Conservación y Rehabilitación de Banquetas en las siguientes colonias: 1.-Isidro Fabela, 2.-Miguel Hidalgo. Trabajos realizados:Trazo y nivelación, Extracción manual de tocón, Demolición por medios manuales de guarniciones y banquetas de concreto simple, preparación, conformación y compactación de subrasante para banquetas, Suministro y colocación de tepetate de 10 cm de espesor, Banqueta de 10 cm de espesor de concreto hidráulico. Acabado con volteador en las aristas de banquetas, Guarnición de concreto hidráulico, renivelación de rejillas de registro.
B15: O21NR0113 | C15: Construcción en Vialidades Secundarias. PROYECTO CANCELADO | D15: 0 | E15: 3411407 | F15: 0 | G15: 0 | H15: 0 | I15: 0 | J15: 0 | K15: 0 | L15: Cancelación del presente proyecto por un importe de $3,411,407.00, por instrucciones de la Dirección de Recursos Financieros y Presupuestales, los recursos se reorientan al Capítulo 2000 a las partidas: 2411 (Mezcla asfáltica) y 2511 (Productos químicos básicos)
B16: O21NR0123 | C16: Construcción y Ampliación de Banquetas | D16: 0 | E16: 635876 | F16: 0 | G16: 0 | H16: 0 | I16: 0 | J16: 0 | K16: 0 | L16: Cancelación del presente proyecto por un importe de $ 635,876.00, por instrucciones de la Dirección de Recursos Financieros y Presupuestales, los recursos se reorientan al Capítulo 2000 a las partidas: 2411 (Mezcla asfáltica)
B17: O21NR0133 | C17: Colocación de luminarias | D17: 1 | E17: 1685384 | F17: 1352285.83 | G17: 1352285.83 | H17: 1352285.81 | I17: 467824.86 | J17: 467824.86 | K17: 467824.86 | L17: Se relizó la colocación de luminarias 50 luminarias en el proyecto denominado: Colocación de luminariasen la colonia: 1.-Pueblo San Miguel Ajusco Trabajos realziados: Trazo y nivelación; suministro y colocación de tubos y coples conduit; suministro e instalación de cable; conexiones y pruebas; instalación de lámparas; suministro e instalación de pruebas de luminarias completas; construcción de cimiento para poste; construcción de registro; suministro, instalación y pintura de postes; corte con sierra de pavimento, demolición, carga y acarreo producto de la demolición; excavación y relleno; piso de concreto hidráulico
B18: O21NR0143 | C18: Conservación y Rehabilitación de Espacios Públicos | D18: 0.75 | E18: 20005525 | F18: 5313444.45 | G18: 5313444.45 | H18: 5313444.42 | I18: 1491976.64 | J18: 1491976.64 | K18: 1491976.64 | L18: Conservación y Rehabilitación de 3 Espacios Públicos 1.-Estabilización de talud en la colonia San Nicolás ll, con una superficie de 108.24 m3, 2.-Estabilización de talud en la colonia Cantera Puente de Piedra y Ampliación Isidro Fabela,con una superficie de 20.00 m3, 3.-Estabilización de talud en la colonia Comuneros de Santa Úrsula, con una superficie de 130.00 m3 Trabajos realizados en cada frente: Trazo y nivelación, excavación, cimbra, compacatación del terreno, filtros para drenes,trabajos con plantilla de concreto hidrahulico y trabajos de acero, así como el barrido y la limpieza del área. Se dejó de atender el frente : Construcción del Arco de Identidad del Pueblo Magdalena Petlacalco, por problemas de oposición vecinal.
B19: O21NR0152 | C19: Conservación y Rehabilitación de Espacios Deportivos | D19: 1 | E19: 37132990 | F19: 12799997.8 | G19: 12799997.8 | H19: 12799997.8 | I19: 10845522.81 | J19: 10845522.81 | K19: 10845522.81 | L19: Se relizaron 4 inmuebles en el proyecto denominado: Conservación y Rehabilitación de Espacios Deportivos en las siguientes ubicaciones: 1.-Deportivo CEFORMA, Col. Fuentes Brotantes, U.H. Fuentes Brotantes, Trabajos realizados: Rehabilitación de baños y exteriores, trabajos de iluminación interior y exterior, rehabilitación y cambio depisos, trabajos de herrería y para evitar acceso a palomas, aplicación de pintura en interiores y exteriores, 2.-Deportivo Parres el Guarda, Col. Parres el Guarda, Trabajos realizados: rehabilitación cancha de furbol soccer, , malla ciclónica e instalación eléctrica, 3.-Deportivo San Andrés Totoltepec, Pueblo San Andrés Totoltepec, Trabajos realizados: techumbre en alberca y panel solar, 4.-Deportivo Guayacanes, Col. Bosques del Pedregal, Trabajos realizados: Techumbre,estructura metálica,alumbrado publico,mantenimiento al area de juegos infantiles, aplicación de pintura,reconstrucción de muro.
B20: O21NR0161 | C20: Construcción y Adecuación de Espacios Deportivos | D20: 0 | E20: 21291768 | F20: 0 | G20: 0 | H20: 0 | I20: 0 | J20: 0 | K20: 0 | L20: Cancelación del presente proyecto se transfirieron a los capitulos 2000, 3000 y 4,000 del presupuesto participativo, con el fin de cumplir con prioridades de la Alcaldía de Tlalpan
B21: O21NR0170 | C21: Construir y adecuar Planteles Educativos del Nivel Básico | D21: 1 | E21: 26272990 | F21: 26272990 | G21: 26186164.7 | H21: 26272989.94 | I21: 6948168.88 | J21: 6948168.88 | K21: 6948168.88 | L21: Se han realizaron 15 inmuebles en el proyecto denominado: Construir y Adecuar Planteles Educativos del Nivel Básico en los siguientes planteles educativos: Jardín de Niños: 1.-Itzcalli, ubicada en calle Guadalajara s/n, Col. Miguel Hidalgo 1a sección, Trabajos realizados: construcción de techumbre, 2.-Kantuni, ubicada en calle lmani y Dzemul, S/N, Col. Pedregal de San Nicolás 4a Seccion, Trabajos realizados: construcción de techumbre, 3.-Año Internacional del Niño, ubicada en calle Hacienda San Nicolás Tolentino s/n, Col. Prado Coapa 3ra. Sección, Trabajos realizados: restructuración de pasillos, aplicación de pintura e impermeabilización, 4.-Año de la República Federal, ubicada en calle María Hernández Zarco y Roque Estrada, Col. Fraccionamiento Belisario Domínguez, Trabajos realizados: construcción de techumbre, 5.-Ana María Navarro Becerra, ubiada en calle Nahoas esquina Otomies S/N, Col. Tlalcoligía,Trabajos realziados: construcción de sanitarios e impermeabilización, 6.-Tzinti, ubicada en calle Cuauhtemoc S/N, Pueblo Quieto, Trabajos realizados: construcción de techumbre Escuelas Primarias: 7-Luis de la Brena, ubicada en calle Reforma No. 1, Pueblo San Miguel Xicalco, Trabajos realizados: reconstrucción de edificio de aulas, TIENE UN AVANCE FICISO DEL 50% CON UN CONVENIO DE AMPLIACIÓN DE TIEMPO, 8.-Lázaro Cárdenas, ubicada en Club Deportivo Universidad No. 300, Col. Fraccionamiento Villa Lázaro Cárdenas, Trabajos realizados:construcción de techumbre, 9-Niger, ubicadad en Calle Torreón S/N, Manzana 7, Unidad Habitacional Narciso Mendoza Super Manzana 7, Trabajos realizados: construcción de techumbre, 10.-De Participáción Social No. 5, ubicada en Avenida San Fernando No. 12, Col. Centro de Tlalpan, Trabajos realizados: sustitución de cancelería y puertas, aplicación de pintura, construcción de consultorio médico,11.-Somalia, ubicada en Avenida el Fortín # 46 y Andador 9 No. 3, Unidad Habitacional Narciso Mendoza Supermanzana 3, Trabajos realizados: construcción de techumbre y aplicación de pintura, 12.-Vidal Alcocer, ubicada en Calle Magisterio Nacional No. 102, Col. Centro de Tlalpan, Río Pánuco, Col. Toriello Guerra,Trabajos realizados: construcción de techumbre 13.-Río Panuco, ubicada en calle Puente de Piedra No. 72, Col. Toriello Guerra, Trabajos realizados: construcción de techumbre. Escuelas Secundarias: 14.-Técnica No. 96, ubicada en calle Guadalupe Victoria s/n, Pueblo Santo Tomás Ajusco, Trabajos realziados: construcción de rampas y loseta.15.-No. 155, ubicada en Callejón Zapote No. 148, Col. Isidro Fabela,Trabajos realizados: construcción de techumbre, 16.-No. 173, ubicada en calle Querétaro s/n, Col. Miguel Hidalgo 1a sección, Trabajos realizados: construcción de bebederos y pisos de loseta.
B22: O21NR0177 | C22: Mantener y Rehabilitar los Planteles Educativos del Nivel Básico | D22: 0.825 | E22: 32812990 | F22: 30987540.34 | G22: 30987540.34 | H22: 30987540.34 | I22: 30987540.34 | J22: 18422561.39 | K22: 0 | L22: Se realizaron 33 inmuebles para los trabajos referentes al proyecto denominado: Mantener y Rehabilitar los Planteles Educativos del Nivel Básico en: Jardines de Niños: 1.-Fidencio Soria Barajas, lote 326, mz 3, Fortín y Farol U.H. Narciso Mendoza SP.M. 3, Col. Villa Coapa, Trabajos realizados: Impermeabilización, aplicación de pintura, 2.-Salvador M. Lima, Avenida Acoxpa andador 68 mz. 6, Unidad Habitacional Narciso Mendoza SPM. 6, Col. Villa Coapa,Trabajos realizados: Impermeabilización, aplicación de pintura, 3.-Cámara Junior, San Juan Bosco No.1, Col. San Lorenzo Huipulco, 4.-Xochicalpilli, Av. Altillos s/n, Unidad Habitacional Narciso Mendoza Supermanzana 1,Trabajos realizados: Impermeabilización, aplicación de pintura, 5.-Chimalcoyotl,Cristobal Colón no. 12, Colonia Chimalcoyotl,Trabajos realizados: Impermeabilización, aplicación de pintura, 6.-Miguel Hidalgo, Avenida las Torres y Jesús Lecuona, Col. Miguel Hidalgo 2a Sección, Trabajos realizados:Sustitución de ciclopista, aplicación de pintura, impermeabilizante, mantenimiento a sanitarios,7.-Alberto Lenz Sr.,Calzada Zaragoza s/n.Colonia Miguel Hidalgo 1a Sección,Trabajos realizados: impermeabilización, aplicación de pintura, 8.-Tonalli, Tepozan 114, lt.5, Col. Pedregal de San Nicolás 1a seccion, Trabajos realizados: firmes de conreto, sustitución de luminarias,trabajos de herrería, 9.-Miauhatzintli, Club Deportivo Universidad s/n,Fracc. Villa Lázaro Cárdenas,Trabajos realizados: sustitución de firmes de concreto, cambio de luminarias, aplicación de pintura,10.-Miguel Angel Buonarroti, Tenorios No. 222, Unidad Habitacional Tenorios INFONAVIT 1, Col. Ex Hacienda Coapa, Trabajos realizados: Aplicación de pintura, sustitución de firmes de concreto, sustitución de mamparas y luminarias, 11.-Rotarios de Tlalpan, 4° poniente s/n, Colonia Isidro Fabela,Trabajos realizados: impermeabilización y aplicación de pintura, 12.-República de Argentina, Morelos No. 4, Colonia Centro de Tlalpan,Trabajos realizados:Construcción de esacaleras de emergencia, impermeabilización,13.-Tlalli, Unidad Habitacional Fuentes Brotantes,Trabajos realizados: Cambio de cancelería y Luminarias. Primarias: 14.-Estado de San Luis Potosí, Acueducto y San Juan Bosco, Col. San Lorenzo Huipulco, Trabajos realizados: Sustitución de firme de concreto,15.-Arabia Saudita, Avenida Silios No 34 super mza. 1, Unidad Habitacional Narciso Mendoza Supermanzana 1, Trabajos realizados: Impermeabilización, aplicación de pintura, 16.-Martina Islas, Enseñanza No. 3, Pueblo San Pedro Mártir, Trabajos realizados: sustitución de cancelería, 17.-Patria y Libertad, atrás del bloque I, Unidad Habitacional Fuentes Brotantes, Trabajos realizados:aplicación de pintura, sustitución de luminarias, 18.-Amanda Palafox, Monte Elbruz No. 15, Col. Los Volcanes,Trabajos realizados:Impermeabilización, aplicación de pintura, 19.-Isaac Ochoterena, Cristobal Colón No. 24, Col. Chimalcoyotl,Trabajos realizados:Impermeabilización, aplicación de pintura interior y exterior, 20.-Manuel Gallardo Zamora, Lacandones esq. Huastecos no. 6, Col. Pedregal de las Aguilas, Trabajos realizados:Impermeabilización, aplicación de pintura, 21.-Estado de Querétaro, Avenida Santa Úrsula no. 22, Colonia Santa Úrsula Xitla,Trabajos realizados: Impermeabilización,sustitución de luminarias, cambio de puertas, cambio de loseta,aplicación de pintura, 22.-Alfredo V.Bonfil, Alfredo V. Bonfil no. 151, mza. 10, Colonia. Miguel Hidalgo 3a Sección, Trabajos realizados: camnio de luminarias y pisos de loseta, 23.-Teófilo Álvarez Borboa, Escuela No. 127, Colonia Ex Hacienda de San Juan de Dios,Trabajos realizados: cambio de malla ciclónica, lámparas y tanque de gas, aplicación de pintura, 24.-Dra. María del Carmen Millán, Tenorios no. 222, Unidad Habitacional Tenorios INFONAVIT 1,Trabajos realziados: aplicación de pintura,impermeabilizante y cambio de luminarias, 25.-Héroes de Chapultepec, Otomies y Tepehuanos, Col. Tlalcoligia, Tconstrucción de techumbres y firme de concreto, 26.-Ignacio Rodríguez Galván, Magisterio Nacional y Morelos No. 118, Colonia Centro de Tlalpan,Trabajos realizados: Aplicación de pintura e impermeabilización, 27.-Felipe Ángeles, John F. Kennedy No. 1, Col. Isidro Fabela, trabajos realizados: aplicación de pintura y cambio de impermeabilizante y luminarias, 28.-Niño Artillero, Hidalgo y Magisterio No. 80,Colonia Centro de Tlalpan,Trabajos realizados:impermeabilizante, aplicación de pintura, sustitución de luminarias y firme de concreto, mantenimiento a equipo hidroneumático. Secundarias: 29.-No.181, Kantunil y Tixmehuac, Colonia Pedregal de San Nicolas 4a Sección, Trabajos realizados: impermeabilización y aplicación de pintura, 30.-Técnica No.19, Ruiseñor s/n. y Yucantepec, Col. Rincón del Mirador II, Trabajos realizados: sustitución de cancelería,cambio de lámparas, aplicación de pintura e impermeabilización, 31.-No. 230, Ing. Jesús Gómez González, Unidad Habitacional Jardines Villa Coapa, Trabajos realizados: cambio de multitecho, impermeabilizanterehabilitación de núcleos sanitarios, 32.-No. 276,Tarasco frenta a Chontales, Col.a Tlalcoligía, Trabajos realizados: Impermeabilización y cambio de luminarias. Centro de Atención Múltiples: 33.-CAM 15, San Buenaventura No. 86, Colonia Belizario Dominguez, Trabajos realizados: Sustitución de cancelería, construcción de techumbre. se dejaron de atender no se cumplió en su totalidad, debido a que contaba con recursos del FAIS, por lo que se habían considerado atender 7 inmuebles los cuales eran: 1.-Carlos Pellicer Cámara,Col. Lomas de Padierna, 2.-Elvira Jímenez Villa Fuerte, Col. Lomas de Padierna, 3.-Sebastián Lerdo de Tejada, Col. Miguel Hidalgo 4a Sección, 4.- No.93, U.H. Emilio Portes Gil, 5.-No. 112, Col. Vistas del Pedregal, 6.-Técnica No. 119, Col.Miguel Hidalgo 4a Sección, 7.-No.281, Col. Cuchilla de Padierna, sin embargo debido a que el FAIS tiene como objetivo fundamental el financiamiento de obras y acciones sociales básicas que beneficien directamente a sectores de población en condiciones de rezago social y pobreza extrema, los recursos fueron reorientados a la apertura de diferentes proyectos denominados: Rehabilitación del Sistema de Alumbrado Público, Rehabilitación de banquetas, Rehabilitacion de superficie de rodamiento (Repavimentación), Rehabilitación del Sistema de Alcantarillado Pluvial.
B24: O21NR0184 | C24: Construcción, Ampliación de Infraestructura Social | D24: 0.125 | E24: 29385693 | F24: 1462233.86 | G24: 1462233.86 | H24: 1462233.86 | I24: 1429523.06 | J24: 1429523.06 | K24: 1429523.06 | L24: Se realizó 1 inmueble en el proyecto denominado: Construcción, Ampliación de Infraestructura Social 1.-Construcción de la 2da. etapa del Auditorio Comunal de la Magdalena Petlacalco, Trabajos realizados: albañilería,azotea,instalación sanitaria,instalacion hidráulica,instalación eléctrica,herrería, carpintería,acabados. Se dejaron de atender 7 frentes : 1.-Construcción de Centro comunitario en la colonia Paraje Tecorral,2.-Construcción de la Casa del Adulto Mayor en el Pueblo San Miguel Ajusco,3.-Centro Integral de Esparcimiento Lúdico y Orientación en la colonia Isidro Fabela, 4.-Conclución de techo de la cancha de usos múltiples en la colonia Diamante,5.-Proyección y Construcción del CAO de la colonia Pedregal de San Nicolás 3ra. Sección,6.-Ampliación del CEDIC Cultura Maya,7.-Centro Comunitario Santo Tomás Ajusco, los recursos se reorientaron a los capitulo 2000, 3000 y 4000.
B25: O21NR0210 | C25: Construcción y Ampliación de Edificios Públicos | D25: 0.5 | E25: 3583376 | F25: 2499307.52 | G25: 2499307.52 | H25: 2499307.52 | I25: 0 | J25: 0 | K25: 0 | L25: Se realizó lleva el avance Físico del 50% en el inmueble : 1.-Construcción 2do Piso de la Subdelegación de Santo Tomás Ajusco Trabajos realziados: trazo y nivelación, preliminares, elementos de concreto reforzado, albañilerías, habilitado de cimbra y acero de refuerzo Se dejan de atender los siguientes frentes: 1.-Ampliación de la Sede del Consejo Comunitario en Pueblo San Andrés Totoltepec,2.-Construcción a la 2a etapa del Campamento Limantitla,3.-Construcción de Arco de identidad Magdalena Petlacalco., los recursos se reorientaron a los capitulos 2000, 3000 y 4000
B26: O21NR0211 | C26: Construcción y/o Adecuación de Infraestructura Cultural | D26: 0 | E26: 6283540 | F26: 0 | G26: 0 | H26: 0 | I26: 0 | J26: 0 | K26: 0 | L26: Cancelación del presente proyecto por un importe de $6,283,540.00, por instrucciones de la Dirección de Recursos Financieros y Presupuestales, los recursos se reorientan al Capítulo 2000 a las partidas: 2461 Material eléctrico y electrónico, 2471 Artículos metálicos para la construcción, 2481 Materiales complementarios, 2491 Otros materiales y artículos de construcción y reparación, 2541 Materiales, accesorios y suministro médico, 2561 Fibras sintéticas, hules, plásticos y derivados, 2911 Herramientas menores, por un importe de $6,119,000.00 y al capítulo 3000 partida. 3391 Servicios profesionales, científicos, técnicos integrales y otros, por un importe de $164,540.00 y no como se mando en la versión anterior.
B27: O21NR0212 | C27: Mantenimiento, Conservación y Rehabilitación a Centros de Desarrollo Social | D27: 1 | E27: 341768 | F27: 341768 | G27: 341768 | H27: 341768 | I27: 341768 | J27: 0 | K27: 0 | L27: Se realizó 1 inmueble con el proyecto denominado: Mantenimiento, Conservación y Rehabilitación a Centros de Desarrollo Social en : 1.-Centro de Servicios de Atención Ciudadana, ubicado adentro del Deportivo Vivanco ubicado en Calle Moneda 64, Tlalpan Centro I. Trabajos realizados: trabajos preliminares, albañileria, acabados, impermeabilización.
B28: O21NR0213 | C28: Mantenimiento y Rehabilitación a Mercados | E28: 2992067 | F28: 2992067 | G28: 2992067 | H28: 2987783.07 | I28: 990839.82 | J28: 990839.82 | K28: 990839.82 | L28: Se relizaron los trabajos en los siguientes frentes: 1.-Mercado Flores San Fernando, ubicado en Calzada de Tlalpan y avenida San Fernando, Colonia Barrio de Niño Jesús, Trabajos realizados: instalación eléctrica interna, módulos, instalación eléctrica exterior, 2.-Mercado Fuentes Brotantes, ubicado en Interior del Parque Nacional Fuentes Brotantes, colonia Fuentes Brotantes, Trabajos realizados: instalación eléctrica, sistema de drenaje, ampliación de baños, áreas verdes y juegos, 3.-Mercado Villa Coapa, ubicado en Avenida canal de Miramontes s/n entre avenida Acoxpa y Caporal, colonia Villa Coapa, Trabajos realizados: sustitución de luminaria led, alimentadores a locales, alimentador a hidroneumático, alumbrado exterior, alimentadores en baja tensión CCTV y telefonía, extracción de aire, 4.-Mercado Plaza Mexicana del Sur, ubicado en Avenida Acoxpa, entre Calzada de Tlalpan y Viaducto Tlalpan, Col. San Lorenzo Huipulco, Trabajos realizados: instalación eléctrica
B29: O21NR0214 | C29: Mantenimiento, Conservación y Rehabilitación a Edificios Públicos. | D29: 0 | E29: 15381690 | F29: 14949524.83 | G29: 14949524.83 | H29: 14949521.79 | I29: 11120947.67 | J29: 11120947.67 | K29: 11120947.67 | L29: Se realizó 2 inmubles en: 1.- Panteón de San Agustin Pueblo San Andrés Totoltepec, ubicado en Km 23.5 Carretera Federal a Cuernavaca, Pueblo San Andrés Totoltepec, Trabajos realizados: Trabajos generales, albañilería y acabados en general, 2.-2da. Etapa al Campamento Limantitla, Col.Tlalpan Centro, Trabajos realizados:trazo y nivelación, albañilería, estructura de concreto reforzado, instalaciones eléctricas, instalaciones hidráulicas, instalaciones sanitarias, acabados, cancelerías
B30: O21NR0215 | C30: Rehabilitación a la Red de Agua Potable | D30: 1 | E30: 15381690 | F30: 15381690 | G30: 15381690 | H30: 15381690 | I30: 15381690 | J30: 3111160.81 | K30: 0 | L30: Se realizaron 3,429.95 metros Rehabilitación a la Red de Agua Potable en las siguientes colonias: 1.-Tlalmille, 2.-Cruz del Farol, 3.-Los encinos, 4.-Torres de Padierna, 5.-Cultura Maya, 6.-Miguel Hidalgo 3ra. Sección, 7.-Héroes de Padierna, 8.-Miguel Hidalgo 2da Sección, 9.-San Andrés Totoltepec. Trabajos realizados: Trazo y nivelación, demoliciones, excavaciones, rellenos, cambio de tubería de polietileno de alta densidad de diferentes diámetros, construcción y/o sustitución de cajas de válvulas, trabajos de bacheo y Reparación de fugas de diversos diámetros, en válvulas y tubería de diferentes materiales.
B31: O21NR0227 | C31: Construcción, Rehabilitación y Proyecto Ejecutivo de Cárcamos para la Infraestructura del Sistema de Drenaje | D31: 1 | E31: 21442684 | F31: 3265334.26 | G31: 3265334.26 | H31: 3265334.26 | I31: 0 | J31: 0 | K31: 0 | L31: Los recursos ejercidos refieren al Proyecto Ejecutivo de Cárcamos para la Infraestructura del Sistema de Drenaje en las colonias: 1.-Cantera Puente de Piedra, 2.-Isidro Fabela, 3.- El Zapote, 4.-Ejidos de San Pedro Mártir Trabajos realizados:levantamientos físicos de necesidades en los 3 cárcamos para rehabilitar y la construcción de 1 cárcamo nuevo, realización de memoria descriptiva,memoria de cálculo deacuerdo con los requerimientos de cada cárcamo,planos ejecutivos.
B32: O21NR0228 | C32: Construcción y Ampliación de la Infraestructura del Sistema de Drenaje | D32: 0.91 | E32: 8632990 | F32: 5633831.67 | G32: 5633831.67 | H32: 5633830.65 | I32: 5633830.62 | J32: 5633830.62 | K32: 5633830.62 | L32: Se realizaron 0.678 kilómetros en el proyecto denominado: Construcción y Ampliación de la Infraestructura del Sistema de Drenaje 1.-Pueblo San Andrés Totoltepec, 2.- Cultura Maya. trabajos realziados: introducción de la Red de Drenaje, tendido de tubería,relleno y compactación, bacheo, retiro de material,producto de compactación. No se cumplió con l ameta debido a que se cancelaron los siguientes frentes :1.-Miguel Hidalgo 4ta. sección, 2.-Manantial Peña Pobre, 3.- Pueblo Chimalcoyoc, debido a que los recursos se reorientaron a los capítulos: 2000, 3000 Y 4000
B33: O21NR0235 | C33: Desazolve de la Red del Sistema de Drenaje | D33: 1 | E33: 8072990 | F33: 4901270.17 | G33: 4901270.17 | H33: 4901270.17 | I33: 4900733.6 | J33: 4900733.6 | K33: 4900733.6 | L33: Se realizaron 4,571.07 metros en las siguientes colonias: 1.-Héroes de Padierna, 2.Cuchilla de Padierna, 3.-Torres de Padierna, 4.-Miguel Hidalgo 3a. Sección, 5.-Miguel Hidalgo 4a. Sección, 6.-Pedregal de San Nicolás 2a. Sección, 7.-Pedregal de San Nicolás 3a. Sección, 8.-Bosques del Pedregal, 9.-Cultura Maya, 10.-La Primavera, 11.-Popular Santa Teresa, 12.-Lomas de Padierna, 13.-Miguel Hidalgo 1a. Sección, 14.- Miguel Hidalgo 2a. Sección, 15.-Jardines del Ajusco Trabajos realizados: Limpieza del sistema de alcantarillado sanitario, pluvial o combinado, considerando todos sus elementos de captación como pueden ser albañales, bocas de tormenta, rejillas, coladeras, tuberías, pozos de visita, cajas rompedoras de presión, canales encofrados o canales a cielo abierto, resumideros, etc., en los cuales se llevara a cabo el retiro de todo el azolve generado por tierra y basura que fue arrastrada por las lluvias, resumideros limpieza de la grieta natural por la cual el agua se filtra hasta los mantos acuíferos, y para la red secundaria se limpiaron las tuberías y pozos de visita realizando el desazolve por medios mecánicos, con el uso de malacates y del Camión Vactor. Se dejaron de atender las siguientes colonias: 1.-Pedregal de San Nicolás 1a. Sección,2.-Pedregal de San Nicolás 4a. Sección,3.-Lomas Altas de Padierna,4.-Lomas Hidalgo,5.-San Pedro Martir,6.-Cruz del Farol,7.-Zacatón,8.-2 de Octubre,9.-San Andrés Totoltepec,10.-Pueblo de San Miguel Xicalco,11.-Pueblo San Miguel Topilejo,12.-La Lonja, 13.-Cantera Puente de Piedra, 14.-Pedregal de Santa Úrsula Xitla,15.-Talcoligía,16.-San Pedro Apostol, los recursos se reorientaron para atender presupuesto participativo de los capitulos 6000, 2000, 3000 y 4000 Sin embargo aún reduciendo los recursos se lograron optimizarlos y se superó la meta programada.
B34: O21NR0236 | C34: Rehabilitación de las Redes de Drenaje | D34: 0 | E34: 13249550 | F34: 0 | G34: 0 | H34: 0 | I34: 0 | J34: 0 | K34: 0 | L34: Cancelación del prsnte proyecto por un importe de $13,249,550.00, los recursos se transfieren a la partida 3252 (Arrendamiento de equipo de transporte destinado a servicios públicos y la operación de programas públicos), de este mismo programa presupuestario.
B35: O21NR.0560 | C35: Realizar 7 Proyectos Ejecutivos para la elaboración de la Construcción de los Proyectos de Obra | D35: 1 | E35: 0 | F35: 1159960.81 | G35: 1159960.81 | H35: 1159960.81 | I35: 1159960.81 | J35: 1159960.81 | K35: 1159960.81 | L35: Realizar 7 Proyectos Ejecutivos para la elaboración de la Construcción de los Proyectos de Obra para los siguientes frentes : Proyecto Ejecutivo de la Casa del adulto Mayor y construcción de Biblioteca en el Pueblo de San Miguel Ajusco, 2.Proyecto ejecutivo para la Construcción de Módulos Sanitarios en la colonia Santísima Trinidad, 3.-Proyecto Ejecutivo para la construcción del Centro de Artes y Oficios de la colonia Pedregal de San Nicolás 3ra. Sección, 4.-Proyecto Ejecutivo para la Construcción del Centro Comunitario en el Pueblo Santo Tomás Ajusco, 5.-Proyecto Ejecutivo para la construcción del 2do piso de la subdelegación del Pueblo Santo Tomás Ajusco, 6.-Proyecto Ejecutivo para la construcción del Centro de Artes y Oficios de la colonia Tecorral, 7.-Proyecto Ejecutivo para la construcción del Centro de Desarrollo Integral Comunitario en la colonia Cultura Maya. Los proyectos consisten en la elaboración de: estudio mecánica de suelos,proyecto arquitectónico,proyecto estructural con aval de DRO, proyecto de instalaciones eléctricas con aval de corresponsal,proyecto de instalaciones hidráulicas, sanitarias y pluviales con aval de corresponsal. Trabajos realizados: Proyecto arquitectónico, proyecto estructural con aval de DRO, proyecto de instalaciones eléctricas con aval de corresponsal
B36: O21NR.0561 | C36: Elaboración de Proyectos Ejecutivos para Obras de Rehabilitación y Mantenimiento en la imagen Urbana dentro del perímetro de la Alcaldía de Tlalpan | D36: 1 | E36: 0 | F36: 409500 | G36: 409500 | H36: 409500 | I36: 295234.74 | J36: 295234.74 | K36: 295234.74 | L36: Elaboración de 4 Proyectos Ejecutivos para Obras de Rehabilitación y Mantenimiento en la imagen Urbana dentro del perímetro de la Alcaldía de Tlalpan: Elaboración de los proyectos de obra para la rehabilitación y mantenimiento de las obras públicas en: 1- Arco de Identidad en el Pueblo Magdalena Petlacalco, 2.- San Nicolás II, 3.- Comuneros de Santa Ursula y 4.- Parque Morelos dentro del perímetro de la Alcaldía Tlalpan.Trabajos realziados: proyecto arquitectónico,proyecto estructural con aval de DRO,proyecto de instalaciones eléctricas con aval de corresponsal.
B37: O21NR.0562 | C37: Realizar 6 Proyectos Ejecutivos para la elaboración de la Construcción de los Proyectos de Obra de Mercados Públicos | D37: 1 | E37: 0 | F37: 1460000 | G37: 1460000 | H37: 1457909.62 | I37: 1059966.89 | J37: 1059966.89 | K37: 1059966.89 | L37: Realización de Proyectos Ejecutivos y Eléctricos para 6 Mercados: 1.-Proyecto Eléctrico para el Mercado Plaza Mexicana del Sur, 2.-Proyecto Eléctrico para el Mercado Flores San Fernando, 3.-Proyecto Ejecutivo para la Construcción del Mercado Topilejo Pueblo San Miguel Topilejo, 4.-Proyecto Ejecutivo para la Construcción del Mercado Concentración 10 de Mayo 5.-Proyecto Eléctrico para el Mercado Villa Coapa, 6.- Proyecto Eléctrico para el Mercado Fuentes Brotantes. Los Proyectos Eléctricos consisten en: Desarrollo Eléctrico (Diagrama unifilar, Cuadros de carga, Distribución de circuitos, Análisis Sistema de alumbrado, Sistema de tierras, Cálculo de circuitos alimentadores (conductores, caídas de tensión, canalizaciones, conductor de puesta a tierra, protecciones), Cálculo de circuitos derivados (conductores, caídas de tensión, canalizaciones, conductor de puesta a tierra, protecciones), Firma de los planos que integran el proyecto eléctrico por un ingeniero electricista con cédula profesional, revisión y firma de planos por unidad verificadora de instalaciones eléctricas. (UVIE). Los Proyectos Ejecutivos consisten en: elaboración de Levantamiento Topográfico, Levantamiento Arquitectónico, Estudios de Mécanica de Suelos, Estudio de mecánica de suelos geofisicos-geoelectricos , Proyecto Arquitectónico (Planta de conjunto, Planos de plantas arquitectónicas, Planos de elevaciones arquitectónicas o alzados, Plano de cortes arquitectónicos o secciones, Planos de detalles arquitectónicos, Calculo Estructural con firma de DRO, Proyecto Eléctrico, Cálculo de circuitos alimentadores, Cálculo de circuitos derivados, Firma de los planos que integran el proyecto eléctrico por un ingeniero electricista con cédula profesional, revisión y firma de planos por unidad verificadora de instalaciones eléctricas. (UVIE), Proyecto de Instalaciones Hidráulicas y Proyecto de Instalación Sanitaria.
B38: 'O21NR.1154 | C38: Rehabilitación del Sistema de Alumbrado Público en diversas ubicaciones: Prado Coapa 2a sección, 2a sección Pedregal de San Nicolás, Pueblo Santo Tomás Ajusco, Pueblo San Andrés Totoltepec, Ampliación Miguel Hidalgo 3a sección,Jardines del Ajusco, Lomas del Pedregal, Cuchilla de Padierna,Pueblo San Miguel Ajusco. | D38: 0 | E38: 0 | F38: 14145604.53 | G38: 14145604.53 | H38: 14145604.53 | I38: 0 | J38: 0 | K38: 0 | L38: FAIS Estos recursos se contrataron a finales de noviembre por lo cual no hay avance físico realizado y será hasta el Cierre de la Cuenta Pública del ejercicio 2021, donde se verá la meta realizada al 100% terminada
B39: 'O21NR.1155 | C39: Rehabilitación de banquetas en: Prado Coapa 2a sección, 2a sección Pedregal de San Nicolás, Pueblo Santo TomÁs Ajusco, Pueblo San Andrés Totoltepec, Ampliación Miguel Hidalgo 3a sección,Jardines del Ajusco, Lomas del Pedregal, Cuchilla de Padierna,Pueblo San Miguel Ajusco. | D39: 0 | E39: 0 | F39: 4603116.5 | G39: 4603116.5 | H39: 4603116.5 | I39: 0 | J39: 0 | K39: 0 | L39: FAIS Estos recursos se contrataron a finales de noviembre por lo cual no hay avance físico realizado y será hasta el Cierre de la Cuenta Pública del ejercicio 2021, donde se verá la meta realizada al 100% terminada
B40: 'O21NR.1156 | C40: Rehabilitacion de superficie de rodamiento (Repavimentación) en diversas ubicaciones: Prado Coapa 2da secc., Pedregal de San Nicolás 2a sección, Pueblo Santo Tomás Ajusco, Pueblo San Andrés Totoltepec y San Miguel Ajusco, Miguel Hidalgo 2a secc., Jardines del Ajusco, Lomas del Pedregal, Cuchilla de Padierna | D40: 0 | E40: 0 | F40: 69447618.11 | G40: 68548945.11 | H40: 69447618.11 | I40: 0 | J40: 0 | K40: 0 | L40: FAIS Estos recursos se contrataron a finales de noviembre por lo cual no hay avance físico realizado y será hasta el Cierre de la Cuenta Pública del ejercicio 2021, donde se verá la meta realizada al 100% terminada
B41: 'O21NR.1157 | C41: Rehabilitación del Sistema de Alcantarillado Pluvial en: Héroes de Padierna,Pedregal de San Nicolás 4ta. Secc. Lomas de Pdierna,2 de Octubre, Fuentes Brotantes, La Joya,Cuicuilco, Isidro Fabela, Parques del Pedregal, Pueblo Magdalena Petlaclado, club de Golf México, SNTISSSTE-La Fama, Villa Coapa | D41: 0 | E41: 0 | F41: 3108985.73 | G41: 3108985.73 | H41: 3108985.73 | I41: 0 | J41: 0 | K41: 0 | L41: FAIS Estos recursos se contrataron a finales de noviembre por lo cual no hay avance físico realizado y será hasta el Cierre de la Cuenta Pública del ejercicio 2021, donde se verá la meta realizada al 100% terminada
B42: 'O21NR.1158 | C42: Verificación y seguimiento de las obras (FISMDF)(SUPERVISIÓN DE OBRA): Obras de Rehabilitación de superficie de rodamiento (Repavimentación), Rehabilitación de Banquetas, Rehabilitación del Sistema de Alumbrado Público, Rehabilitación del Sistema de Alcantarillado Pluvial, en: Prado Coapa 2a sección, 2a sección Pedregal de San Nicolás, Pueblo Santo Tomás Ajusco, Pueblo San Andrés Totoltepec,Miguel Hidalgo 3ra. Secc., SanNicolás, Cuchilla de Padierna, Lomas del Pedregal y San Miguel Ajusco | D42: 0 | E42: 0 | F42: 2835917.43 | G42: 2835917.43 | H42: 2835917.43 | I42: 0 | J42: 0 | K42: 0 | L42: FAIS Estos recursos se contrataron a finales de noviembre por lo cual no hay avance físico realizado y será hasta el Cierre de la Cuenta Pública del ejercicio 2021, donde se verá la meta realizada al 100% terminada
B43: O21NR.1159 | C43: Mantenimiento de Salón de usos múltiples en Granjas Coapa con clave 12-050 | D43: 0 | E43: 0 | F43: 482598 | G43: 482598 | H43: 482598 | I43: 0 | J43: 0 | K43: 0 | L43: Los trabajos se inciaron a finales del mes de noviembre; se relizaron los procesos de elaboración de fichas, suficiencias, licitaciones y contrataciones por lo que será hasta la Cuenta Pública donde se verán los Cierres definitivos de las obras de cada uno de los Comités del Presupuesto Participativo.
B44: O21NR.1160 | C44: Mantenimiento de Módulo de Vigilancia en: CTO.093-2021-colonia Mirador I con clave 12-100 | D44: 0 | E44: 0 | F44: 388903 | G44: 388903 | H44: 388903 | I44: 0 | J44: 0 | K44: 0 | L44: Los trabajos se inciaron a finales del mes de noviembre; se relizaron los procesos de elaboración de fichas, suficiencias, licitaciones y contrataciones por lo que será hasta la Cuenta Pública donde se verán los Cierres definitivos de las obras de cada uno de los Comités del Presupuesto Participativo.
B45: O21NR.1161 | C45: Construcción de salón de usos múltiples techado en Residencial Insurgentes Sur, (U. Hab.) con clave 12-139 | D45: 0 | E45: 0 | F45: 444900 | G45: 444900 | H45: 444900 | I45: 0 | J45: 0 | K45: 0 | L45: Los trabajos se inciaron a finales del mes de noviembre; se relizaron los procesos de elaboración de fichas, suficiencias, licitaciones y contrataciones por lo que será hasta la Cuenta Pública donde se verán los Cierres definitivos de las obras de cada uno de los Comités del Presupuesto Participativo.
B46: O21NR.1162 | C46: Construcción de Centro Cultural para exhibición de películas obras de teatro y danza en Calle las Torres frente a la base de RTP Xaxalco con clave 12-200 | D46: 0 | E46: 0 | F46: 847882 | G46: 847882 | H46: 847882 | I46: 0 | J46: 0 | K46: 0 | L46: Los trabajos se inciaron a finales del mes de noviembre; se relizaron los procesos de elaboración de fichas, suficiencias, licitaciones y contrataciones por lo que será hasta la Cuenta Pública donde se verán los Cierres definitivos de las obras de cada uno de los Comités del Presupuesto Participativo.
B47: 'O21NR.1163 | C47: Remodelación y Mejoramiento de Parque Busto de Juárez 2020 en Ampliación Miguel Hidalgo 2a. secc. con clave 12-002 | D47: 0 | E47: 0 | F47: 1004156 | G47: 1004156 | H47: 1004156 | I47: 0 | J47: 0 | K47: 0 | L47: Los trabajos se inciaron a finales del mes de noviembre; se relizaron los procesos de elaboración de fichas, suficiencias, licitaciones y contrataciones por lo que será hasta la Cuenta Pública donde se verán los Cierres definitivos de las obras de cada uno de los Comités del Presupuesto Participativo.
B48: 'O21NR.1164 | C48: Arreglos y Compostura del Parque "Martín Torres Padilla"en AMSA con clave 12-005 | D48: 0 | E48: 0 | F48: 344107 | G48: 344107 | H48: 344107 | I48: 0 | J48: 0 | K48: 0 | L48: Los trabajos se inciaron a finales del mes de noviembre; se relizaron los procesos de elaboración de fichas, suficiencias, licitaciones y contrataciones por lo que será hasta la Cuenta Pública donde se verán los Cierres definitivos de las obras de cada uno de los Comités del Presupuesto Participativo.
B49: 'O21NR.1165 | C49: Rehabilitación de Banquetas de calidad en Arboledas del Sur con clave 12-007 | D49: 0 | E49: 0 | F49: 483912 | G49: 483912 | H49: 483912 | I49: 0 | J49: 0 | K49: 0 | L49: Los trabajos se inciaron a finales del mes de noviembre; se relizaron los procesos de elaboración de fichas, suficiencias, licitaciones y contrataciones por lo que será hasta la Cuenta Pública donde se verán los Cierres definitivos de las obras de cada uno de los Comités del Presupuesto Participativo.
B50: O21NR.1166 | C50: Construcción de barreras anti inundación y válvulas check en Arenal Guadalupe Tlalpan con clave 12-008 | D50: 0 | E50: 0 | F50: 421186 | G50: 421186 | H50: 421186 | I50: 0 | J50: 0 | K50: 0 | L50: Los trabajos se inciaron a finales del mes de noviembre; se relizaron los procesos de elaboración de fichas, suficiencias, licitaciones y contrataciones por lo que será hasta la Cuenta Pública donde se verán los Cierres definitivos de las obras de cada uno de los Comités del Presupuesto Participativo.
B51: 'O21NR.1167 | C51: Recuperación del Área Verde de la calle Río San Buenaventura con esquina Periférico Sur en Arenal Puerta Tepepan con clave 12-009 | D51: 0 | E51: 0 | F51: 358047 | G51: 358047 | H51: 358047 | I51: 0 | J51: 0 | K51: 0 | L51: Los trabajos se inciaron a finales del mes de noviembre; se relizaron los procesos de elaboración de fichas, suficiencias, licitaciones y contrataciones por lo que será hasta la Cuenta Pública donde se verán los Cierres definitivos de las obras de cada uno de los Comités del Presupuesto Participativo.
B52: 'O21NR.1168 | C52: Rescate de Área Verde de la colonia Belvedere para habilitar pabellón para actividades culturales y ecológicas juegos lúdicos y bancas en Belvedere con clave 12-013 | D52: 0 | E52: 0 | F52: 574522 | G52: 574522 | H52: 574522 | I52: 0 | J52: 0 | K52: 0 | L52: Los trabajos se inciaron a finales del mes de noviembre; se relizaron los procesos de elaboración de fichas, suficiencias, licitaciones y contrataciones por lo que será hasta la Cuenta Pública donde se verán los Cierres definitivos de las obras de cada uno de los Comités del Presupuesto Participativo.
B53: 'O21NR.1169 | C53: Espacio Cultural y Educativo abierto en Calzada para todos en Cantera Pte. de Piedra Proyecto sostenible amigable con el Medio Ambiente 1ra. etapa, Cantera Puente de Piedra con clave 12-018 | D53: 0 | E53: 0 | F53: 520317 | G53: 520317 | H53: 520317 | I53: 0 | J53: 0 | K53: 0 | L53: Los trabajos se inciaron a finales del mes de noviembre; se relizaron los procesos de elaboración de fichas, suficiencias, licitaciones y contrataciones por lo que será hasta la Cuenta Pública donde se verán los Cierres definitivos de las obras de cada uno de los Comités del Presupuesto Participativo.
B54: 'O21NR.1170 | C54: Instalación de Corredor Recreativo Ecológico en Cruz del Farol con clave 12-029 | D54: 0 | E54: 0 | F54: 409324 | G54: 409324 | H54: 409324 | I54: 0 | J54: 0 | K54: 0 | L54: Los trabajos se inciaron a finales del mes de noviembre; se relizaron los procesos de elaboración de fichas, suficiencias, licitaciones y contrataciones por lo que será hasta la Cuenta Pública donde se verán los Cierres definitivos de las obras de cada uno de los Comités del Presupuesto Participativo.
B55: 'O21NR.1171 | C55: Instalación y Adquisición de Sistemas de Captación de Agua Pluvial enCuilotepec II con clave 12-031 | D55: 0 | E55: 0 | F55: 304527 | G55: 304527 | H55: 304527 | I55: 0 | J55: 0 | K55: 0 | L55: Los trabajos se inciaron a finales del mes de noviembre; se relizaron los procesos de elaboración de fichas, suficiencias, licitaciones y contrataciones por lo que será hasta la Cuenta Pública donde se verán los Cierres definitivos de las obras de cada uno de los Comités del Presupuesto Participativo.
B56: O21NR.1172 | C56: Mantenimiento del techado de cancha deportiva en Colonia Diamante en clave 12-033 | D56: 0 | E56: 0 | F56: 366848 | G56: 366848 | H56: 366848 | I56: 0 | J56: 0 | K56: 0 | L56: Los trabajos se inciaron a finales del mes de noviembre; se relizaron los procesos de elaboración de fichas, suficiencias, licitaciones y contrataciones por lo que será hasta la Cuenta Pública donde se verán los Cierres definitivos de las obras de cada uno de los Comités del Presupuesto Participativo.
B57: 'O21NR.1173 | C57: Rehabilitación de Juegos Infantiles y Colocación de Nuevos Juegos en Camellón Prolongación Canal de Miramontes, Ex hacienda de San Juan de Dios con clave 12-042 | D57: 0 | E57: 0 | F57: 520673 | G57: 520673 | H57: 520673 | I57: 0 | J57: 0 | K57: 0 | L57: Los trabajos se inciaron a finales del mes de noviembre; se relizaron los procesos de elaboración de fichas, suficiencias, licitaciones y contrataciones por lo que será hasta la Cuenta Pública donde se verán los Cierres definitivos de las obras de cada uno de los Comités del Presupuesto Participativo.
B58: 'O21NR.1174 | C58: Construir un Huerto Urbano y Arreglar las Banquetas en Camellón Prolongación Canal de Miramontes, floresta-prado-vergel coapa con clave 12-043 | D58: 0 | E58: 0 | F58: 444300 | G58: 444300 | H58: 444300 | I58: 0 | J58: 0 | K58: 0 | L58: Los trabajos se inciaron a finales del mes de noviembre; se relizaron los procesos de elaboración de fichas, suficiencias, licitaciones y contrataciones por lo que será hasta la Cuenta Pública donde se verán los Cierres definitivos de las obras de cada uno de los Comités del Presupuesto Participativo.
B59: 'O21NR.1175 | C59: Reparación y Recuperación de la Fuente de Parque los Ilusos en Colonia Fuentes del Pedregal, Camellón Prolongación Canal de Miramontes, Fuentes del Pedregal con clave 12-049 | D59: 0 | E59: 0 | F59: 605251 | G59: 605251 | H59: 605251 | I59: 0 | J59: 0 | K59: 0 | L59: Los trabajos se inciaron a finales del mes de noviembre; se relizaron los procesos de elaboración de fichas, suficiencias, licitaciones y contrataciones por lo que será hasta la Cuenta Pública donde se verán los Cierres definitivos de las obras de cada uno de los Comités del Presupuesto Participativo.
B60: 'O21NR.1176 | C60: Embellecimiento del Camellón en Calzada del Hueso y Restitución del Retorno, Granjas Coapa Oriente con clave 12-051 | D60: 0 | E60: 0 | F60: 371411 | G60: 371411 | H60: 371411 | I60: 0 | J60: 0 | K60: 0 | L60: Los trabajos se inciaron a finales del mes de noviembre; se relizaron los procesos de elaboración de fichas, suficiencias, licitaciones y contrataciones por lo que será hasta la Cuenta Pública donde se verán los Cierres definitivos de las obras de cada uno de los Comités del Presupuesto Participativo.
B61: 'O21NR.1177 | C61: Recuperación, Mantenimiento y Rescate de los Parques de la Colonia 1, ubicado en Prolongación Canal de Miramontes entre Xomali y Transmisiones en Hacienda San Juan-Rincón de San Juan-Chimali con clave 12-053 | D61: 0 | E61: 0 | F61: 541199 | G61: 541199 | H61: 541199 | I61: 0 | J61: 0 | K61: 0 | L61: Los trabajos se inciaron a finales del mes de noviembre; se relizaron los procesos de elaboración de fichas, suficiencias, licitaciones y contrataciones por lo que será hasta la Cuenta Pública donde se verán los Cierres definitivos de las obras de cada uno de los Comités del Presupuesto Participativo.
B62: 'O21NR.1178 | C62: Rehabilitación de Andador Peatonal en Parada la Palma, desde retorno la Palma hasta Capilla en calle Oyamel esquina Roble, La Palma con clave 12-075 | D62: 0 | E62: 0 | F62: 411551 | G62: 411551 | H62: 411551 | I62: 0 | J62: 0 | K62: 0 | L62: Los trabajos se inciaron a finales del mes de noviembre; se relizaron los procesos de elaboración de fichas, suficiencias, licitaciones y contrataciones por lo que será hasta la Cuenta Pública donde se verán los Cierres definitivos de las obras de cada uno de los Comités del Presupuesto Participativo.
B63: 'O21NR.1179 | C63: Rehabilitación de Banquetas, Caminando Seguros en Lomas Altas de Padierna Sur con clave 12-079 | D63: 0 | E63: 0 | F63: 571153 | G63: 571153 | H63: 571153 | I63: 0 | J63: 0 | K63: 0 | L63: Los trabajos se inciaron a finales del mes de noviembre; se relizaron los procesos de elaboración de fichas, suficiencias, licitaciones y contrataciones por lo que será hasta la Cuenta Pública donde se verán los Cierres definitivos de las obras de cada uno de los Comités del Presupuesto Participativo.
B64: 'O21NR.1180 | C64: Rehabilitación de Postes Luminarias de 7.5 metros en Colonia Lomas del Pedregal, Lomas del Pedregal con clave 12-085 | D64: 0 | E64: 0 | F64: 341072 | G64: 341072 | H64: 341072 | I64: 0 | J64: 0 | K64: 0 | L64: Los trabajos se inciaron a finales del mes de noviembre; se relizaron los procesos de elaboración de fichas, suficiencias, licitaciones y contrataciones por lo que será hasta la Cuenta Pública donde se verán los Cierres definitivos de las obras de cada uno de los Comités del Presupuesto Participativo.
B65: O21NR.1181 | C65: Rehabilitación y Mantenimiento de 5 pozos de absorción en Ma. Esther Zuno de Echeverria-Tlalpuente con clave 12-092 | D65: 0 | E65: 0 | F65: 391084 | G65: 391084 | H65: 391084 | I65: 0 | J65: 0 | K65: 0 | L65: Los trabajos se inciaron a finales del mes de noviembre; se relizaron los procesos de elaboración de fichas, suficiencias, licitaciones y contrataciones por lo que será hasta la Cuenta Pública donde se verán los Cierres definitivos de las obras de cada uno de los Comités del Presupuesto Participativo.
B66: 'O21NR.1182 | C66: Rehabilitación y Embellecimiento de toda la unidad territorial en Nueva Oriental Coapa-Ex hacienda Coapa con clave 12-109 | D66: 0 | E66: 0 | F66: 503636 | G66: 503636 | H66: 503636 | I66: 0 | J66: 0 | K66: 0 | L66: Los trabajos se inciaron a finales del mes de noviembre; se relizaron los procesos de elaboración de fichas, suficiencias, licitaciones y contrataciones por lo que será hasta la Cuenta Pública donde se verán los Cierres definitivos de las obras de cada uno de los Comités del Presupuesto Participativo.
B67: 'O21NR.1183 | C67: Instalación de Sistemas de Captación de agua pluvial en Calle Ave del Paraíso y alrededores, Ocotla-Ocotla Chico con clave 12-111 | D67: 0 | E67: 0 | F67: 343101 | G67: 343101 | H67: 343101 | I67: 0 | J67: 0 | K67: 0 | L67: Los trabajos se inciaron a finales del mes de noviembre; se relizaron los procesos de elaboración de fichas, suficiencias, licitaciones y contrataciones por lo que será hasta la Cuenta Pública donde se verán los Cierres definitivos de las obras de cada uno de los Comités del Presupuesto Participativo.
B68: 'O21NR.1184 | C68: Mantenimiento de cancha de usos múltiples (basquetbol, voleibol, futbol y actividades culturales)en Pedregal de San Nicolás 3a secc con clave 12-119 | D68: 0 | E68: 0 | F68: 906433 | G68: 906433 | H68: 906433 | I68: 0 | J68: 0 | K68: 0 | L68: Los trabajos se inciaron a finales del mes de noviembre; se relizaron los procesos de elaboración de fichas, suficiencias, licitaciones y contrataciones por lo que será hasta la Cuenta Pública donde se verán los Cierres definitivos de las obras de cada uno de los Comités del Presupuesto Participativo.
B69: 'O21NR.1185 | C69: Rehabilitación de Luminarias en la Vía Pública para mayor seguridad pública, retirando postes viejos y/o cambiando por postes nuevos en Plan de ayala con clave 12-125 | D69: 0 | E69: 0 | F69: 349182 | G69: 349182 | H69: 349182 | I69: 0 | J69: 0 | K69: 0 | L69: Los trabajos se inciaron a finales del mes de noviembre; se relizaron los procesos de elaboración de fichas, suficiencias, licitaciones y contrataciones por lo que será hasta la Cuenta Pública donde se verán los Cierres definitivos de las obras de cada uno de los Comités del Presupuesto Participativo.
B70: 'O21NR.1186 | C70: Rehabilitación de Área para Juegos en Jardín de Niños Bikit, Popular Sta. Teresa con clave 12-127 | D70: 0 | E70: 0 | F70: 635527 | G70: 635527 | H70: 635527 | I70: 0 | J70: 0 | K70: 0 | L70: Los trabajos se inciaron a finales del mes de noviembre; se relizaron los procesos de elaboración de fichas, suficiencias, licitaciones y contrataciones por lo que será hasta la Cuenta Pública donde se verán los Cierres definitivos de las obras de cada uno de los Comités del Presupuesto Participativo.
B71: 'O21NR.1187 | C71: Rehabilitación de Cuatro Parques de la colonia Temascaltepec-Carbonera, Carbonera-Corralejo, Corralejo-Jilotepec, Jilotepec-Jalteng en Prado Coapa 3a sección-Potrero Acoxpa con clave 12-131 | D71: 0 | E71: 0 | F71: 415734 | G71: 415734 | H71: 415734 | I71: 0 | J71: 0 | K71: 0 | L71: Los trabajos se inciaron a finales del mes de noviembre; se relizaron los procesos de elaboración de fichas, suficiencias, licitaciones y contrataciones por lo que será hasta la Cuenta Pública donde se verán los Cierres definitivos de las obras de cada uno de los Comités del Presupuesto Participativo.
B72: 'O21NR.1188 | C72: Mantenimiento General del Deportivo en Colonia Pueblo Quieto con clave 12-133 | D72: 0 | E72: 0 | F72: 354764 | G72: 354764 | H72: 354764 | I72: 0 | J72: 0 | K72: 0 | L72: Los trabajos se inciaron a finales del mes de noviembre; se relizaron los procesos de elaboración de fichas, suficiencias, licitaciones y contrataciones por lo que será hasta la Cuenta Pública donde se verán los Cierres definitivos de las obras de cada uno de los Comités del Presupuesto Participativo.
B73: 'O21NR.1189 | C73: Instalación de Lámparas Solares en Calzada las Brujas en la Unidad Territorial de Rincón las Hadas, Villa Royale, Fuentes y Arconada Coapa con clave 12-142 | D73: 0 | E73: 0 | F73: 351748 | G73: 351748 | H73: 351748 | I73: 0 | J73: 0 | K73: 0 | L73: Los trabajos se inciaron a finales del mes de noviembre; se relizaron los procesos de elaboración de fichas, suficiencias, licitaciones y contrataciones por lo que será hasta la Cuenta Pública donde se verán los Cierres definitivos de las obras de cada uno de los Comités del Presupuesto Participativo.
B74: 'O21NR.1190 | C74: Rehabilitación de Escaleras en la entrada de Tetequilo, Tezontitla-El Calvario (ampl) con clave 12-174 | D74: 0 | E74: 0 | F74: 298949 | G74: 298949 | H74: 298949 | I74: 0 | J74: 0 | K74: 0 | L74: Los trabajos se inciaron a finales del mes de noviembre; se relizaron los procesos de elaboración de fichas, suficiencias, licitaciones y contrataciones por lo que será hasta la Cuenta Pública donde se verán los Cierres definitivos de las obras de cada uno de los Comités del Presupuesto Participativo.
B75: 'O21NR.1191 | C75: Rehabilitación de Areas Verdes y Suelo Permeable en Valle Escondido con clave 12-184 | D75: 0 | E75: 0 | F75: 450897 | G75: 450897 | H75: 450897 | I75: 0 | J75: 0 | K75: 0 | L75: Los trabajos se inciaron a finales del mes de noviembre; se relizaron los procesos de elaboración de fichas, suficiencias, licitaciones y contrataciones por lo que será hasta la Cuenta Pública donde se verán los Cierres definitivos de las obras de cada uno de los Comités del Presupuesto Participativo.
B76: 'O21NR.1192 | C76: Remodelación Sustentable e Incluyente del Parque ubicado en Residencial Villa Capa Súper Manzana 5 en Villa Coapa (rdcial) con clave 12-191 | D76: 0 | E76: 0 | F76: 387417 | G76: 387417 | H76: 387417 | I76: 0 | J76: 0 | K76: 0 | L76: Los trabajos se inciaron a finales del mes de noviembre; se relizaron los procesos de elaboración de fichas, suficiencias, licitaciones y contrataciones por lo que será hasta la Cuenta Pública donde se verán los Cierres definitivos de las obras de cada uno de los Comités del Presupuesto Participativo.
B77: 'O21NR.1193 | C77: Rehabilitación de áreas verdes, camellones, espacios deportivos, iluminación y reencarpetado en Colonia Villa Lázaro Cárdenas, Villa Lázaro Cárdenas con clave 12-194 | D77: 0 | E77: 0 | F77: 532959 | G77: 532959 | H77: 532959 | I77: 0 | J77: 0 | K77: 0 | L77: Los trabajos se inciaron a finales del mes de noviembre; se relizaron los procesos de elaboración de fichas, suficiencias, licitaciones y contrataciones por lo que será hasta la Cuenta Pública donde se verán los Cierres definitivos de las obras de cada uno de los Comités del Presupuesto Participativo.
B78: 'O21NR.1194 | C78: Renovación de las Escalinatas en Calle Chabacano esq. Totoltepec, Vistas del Pedregal con clave 12-198 | D78: 0 | E78: 0 | F78: 352370 | G78: 352370 | H78: 352370 | I78: 0 | J78: 0 | K78: 0 | L78: Los trabajos se inciaron a finales del mes de noviembre; se relizaron los procesos de elaboración de fichas, suficiencias, licitaciones y contrataciones por lo que será hasta la Cuenta Pública donde se verán los Cierres definitivos de las obras de cada uno de los Comités del Presupuesto Participativo.
B79: 'O21NR.1195 | C79: Pavimentación Asfáltica de las calle en Primarias Prolongación Santa Cruz y Ayocatitla en la colonia Ayocatitla/Asunción las cuales se unifican adel, Ayocatitla, Asunción con clave 12-011 | D79: 0 | E79: 0 | F79: 369220 | G79: 369220 | H79: 369220 | I79: 0 | J79: 0 | K79: 0 | L79: Los trabajos se inciaron a finales del mes de noviembre; se relizaron los procesos de elaboración de fichas, suficiencias, licitaciones y contrataciones por lo que será hasta la Cuenta Pública donde se verán los Cierres definitivos de las obras de cada uno de los Comités del Presupuesto Participativo.
B80: 'O21NR.1196 | C80: Repavimentar ,en calle Sebastián Lerdo de Tejada, Jardinez Coapa-Belisario DomÍnguez con clave 12-064 | D80: 0 | E80: 0 | F80: 354466 | G80: 354466 | H80: 354466 | I80: 0 | J80: 0 | K80: 0 | L80: Los trabajos se inciaron a finales del mes de noviembre; se relizaron los procesos de elaboración de fichas, suficiencias, licitaciones y contrataciones por lo que será hasta la Cuenta Pública donde se verán los Cierres definitivos de las obras de cada uno de los Comités del Presupuesto Participativo.
B81: 'O21NR.1197 | C81: Reencarpetado en Calle Iztaccíhuatl, La Lonja con clave 12-069 | D81: 0 | E81: 0 | F81: 403182 | G81: 403182 | H81: 403182 | I81: 0 | J81: 0 | K81: 0 | L81: Los trabajos se inciaron a finales del mes de noviembre; se relizaron los procesos de elaboración de fichas, suficiencias, licitaciones y contrataciones por lo que será hasta la Cuenta Pública donde se verán los Cierres definitivos de las obras de cada uno de los Comités del Presupuesto Participativo.
B82: 'O21NR.1198 | C82: Continuación de la Pavimentación en Colonia en Camino los Arcos desde Camino vecinal hasta la Cerrada del Camino de los Arcos, La Guadalupana con clave 12-071 | D82: 0 | E82: 0 | F82: 399827 | G82: 399827 | H82: 399827 | I82: 0 | J82: 0 | K82: 0 | L82: Los trabajos se inciaron a finales del mes de noviembre; se relizaron los procesos de elaboración de fichas, suficiencias, licitaciones y contrataciones por lo que será hasta la Cuenta Pública donde se verán los Cierres definitivos de las obras de cada uno de los Comités del Presupuesto Participativo.
B83: 'O21NR.1199 | C83: Pavimentación de C. Francisco Javier Mina y C. Mariano Abasolo en La Libertad-Ixtlahuaca con clave 12-073 | D83: 0 | E83: 0 | F83: 333828 | G83: 333828 | H83: 333828 | I83: 0 | J83: 0 | K83: 0 | L83: Los trabajos se inciaron a finales del mes de noviembre; se relizaron los procesos de elaboración de fichas, suficiencias, licitaciones y contrataciones por lo que será hasta la Cuenta Pública donde se verán los Cierres definitivos de las obras de cada uno de los Comités del Presupuesto Participativo.
B84: 'O21NR.1200 | C84: Reencarpetado en Calle 3a.Cerrada Cañaverales, Col. Magisterial, Coapa-Villa Cuemanco con clave 12-093 | D84: 0 | E84: 0 | F84: 393728 | G84: 393728 | H84: 393728 | I84: 0 | J84: 0 | K84: 0 | L84: Los trabajos se inciaron a finales del mes de noviembre; se relizaron los procesos de elaboración de fichas, suficiencias, licitaciones y contrataciones por lo que será hasta la Cuenta Pública donde se verán los Cierres definitivos de las obras de cada uno de los Comités del Presupuesto Participativo.
B85: 'O21NR.1201 | C85: Mantenimiento del Adoquinado en Calle Zacatepetl y Alborada, Parques del Pedregal con clave 12-114 | D85: 0 | E85: 0 | F85: 423678 | G85: 423678 | H85: 423678 | I85: 0 | J85: 0 | K85: 0 | L85: Los trabajos se inciaron a finales del mes de noviembre; se relizaron los procesos de elaboración de fichas, suficiencias, licitaciones y contrataciones por lo que será hasta la Cuenta Pública donde se verán los Cierres definitivos de las obras de cada uno de los Comités del Presupuesto Participativo.
B86: 'O21NR.1202 | C86: Continuación de Empedrado y Muro de Contención en Camino Piedra Larga (rampa), Piedra Larga con clave 12-124 | D86: 0 | E86: 0 | F86: 314463 | G86: 314463 | H86: 314463 | I86: 0 | J86: 0 | K86: 0 | L86: Los trabajos se inciaron a finales del mes de noviembre; se relizaron los procesos de elaboración de fichas, suficiencias, licitaciones y contrataciones por lo que será hasta la Cuenta Pública donde se verán los Cierres definitivos de las obras de cada uno de los Comités del Presupuesto Participativo.
B87: 'O21NR.1203 | C87: Encarpetar todas las calles en Colonia Prado Coapa 2a sección con clave 12-130 | D87: 0 | E87: 0 | F87: 394615 | G87: 394615 | H87: 394615 | I87: 0 | J87: 0 | K87: 0 | L87: Los trabajos se inciaron a finales del mes de noviembre; se relizaron los procesos de elaboración de fichas, suficiencias, licitaciones y contrataciones por lo que será hasta la Cuenta Pública donde se verán los Cierres definitivos de las obras de cada uno de los Comités del Presupuesto Participativo.
B88: 'O21NR.1204 | C88: Reencarpetado en Calle Colonia Real del Sur-Villas del Sur-Residencial Acoxpa con clave 12-137 | D88: 0 | E88: 0 | F88: 385732 | G88: 385732 | H88: 385732 | I88: 0 | J88: 0 | K88: 0 | L88: Los trabajos se inciaron a finales del mes de noviembre; se relizaron los procesos de elaboración de fichas, suficiencias, licitaciones y contrataciones por lo que será hasta la Cuenta Pública donde se verán los Cierres definitivos de las obras de cada uno de los Comités del Presupuesto Participativo.
B89: 'O21NR.1205 | C89: Reacondicionamiento de la Carpeta Asfaltica en Tlalcoligia con clave 12-175 | D89: 0 | E89: 0 | F89: 685565 | G89: 685565 | H89: 685565 | I89: 0 | J89: 0 | K89: 0 | L89: Los trabajos se inciaron a finales del mes de noviembre; se relizaron los procesos de elaboración de fichas, suficiencias, licitaciones y contrataciones por lo que será hasta la Cuenta Pública donde se verán los Cierres definitivos de las obras de cada uno de los Comités del Presupuesto Participativo.
B90: 'O21NR.1206 | C90: Reencarpetado de Callejón de Tetitla, Toriello Guerra con clave 12-180 | D90: 0 | E90: 0 | F90: 750988 | G90: 750988 | H90: 750988 | I90: 0 | J90: 0 | K90: 0 | L90: Los trabajos se inciaron a finales del mes de noviembre; se relizaron los procesos de elaboración de fichas, suficiencias, licitaciones y contrataciones por lo que será hasta la Cuenta Pública donde se verán los Cierres definitivos de las obras de cada uno de los Comités del Presupuesto Participativo.
B91: 'O21NR.1207 | C91: Reencarpetado en Calles de las Colonias Vergel de Coyoacán y Vergel del Sur, Vergel de Coyoacán-Vergel del Sur con clave 12-188 | D91: 0 | E91: 0 | F91: 450333 | G91: 450333 | H91: 450333 | I91: 0 | J91: 0 | K91: 0 | L91: Los trabajos se inciaron a finales del mes de noviembre; se relizaron los procesos de elaboración de fichas, suficiencias, licitaciones y contrataciones por lo que será hasta la Cuenta Pública donde se verán los Cierres definitivos de las obras de cada uno de los Comités del Presupuesto Participativo.
B92: 'O21NR.1208 | C92: Pavimentación y Guarnición en Cerrada de Pirules y Prolongación la Palma,Viveros de Coactetlan con clave 12-199 | D92: 0 | E92: 0 | F92: 432927 | G92: 432927 | H92: 432927 | I92: 0 | J92: 0 | K92: 0 | L92: Los trabajos se inciaron a finales del mes de noviembre; se relizaron los procesos de elaboración de fichas, suficiencias, licitaciones y contrataciones por lo que será hasta la Cuenta Pública donde se verán los Cierres definitivos de las obras de cada uno de los Comités del Presupuesto Participativo.
B93: 'O21NR.1209 | C93: Pavimentación en toda la calle cerezos desde Cerrada y hasta el final Xaxalipac con clave 12-201 | D93: 0 | E93: 0 | F93: 376223 | G93: 376223 | H93: 376223 | I93: 0 | J93: 0 | K93: 0 | L93: Los trabajos se inciaron a finales del mes de noviembre; se relizaron los procesos de elaboración de fichas, suficiencias, licitaciones y contrataciones por lo que será hasta la Cuenta Pública donde se verán los Cierres definitivos de las obras de cada uno de los Comités del Presupuesto Participativo.
B94: O21NR.1210 | C94: Construcción de Tanque de Captación de Aguas Pluviales en Solidaridad Chimilli con clave 12-022 | D94: 0 | E94: 0 | F94: 448742 | G94: 448742 | H94: 448742 | I94: 0 | J94: 0 | K94: 0 | L94: Los trabajos se inciaron a finales del mes de noviembre; se relizaron los procesos de elaboración de fichas, suficiencias, licitaciones y contrataciones por lo que será hasta la Cuenta Pública donde se verán los Cierres definitivos de las obras de cada uno de los Comités del Presupuesto Participativo.
B95: O21NR.1211 | C95: Sustitución de Red de Agua Potable y Tomas en Calles Prolongación de Abasolo, Fuentes Buenas y calles perpendiculares a esta Fuentes y Pedregal de Tepepan con clave12-048 | D95: 0 | E95: 0 | F95: 513969 | G95: 513969 | H95: 513969 | I95: 0 | J95: 0 | K95: 0 | L95: Los trabajos se inciaron a finales del mes de noviembre; se relizaron los procesos de elaboración de fichas, suficiencias, licitaciones y contrataciones por lo que será hasta la Cuenta Pública donde se verán los Cierres definitivos de las obras de cada uno de los Comités del Presupuesto Participativo.
B96: 'O21NR.1212 | C96: Rehabilitación y Mantenimiento de Rampas de Acceso Principales para vehículos en Chimalcoyotl con clave 12-020 | D96: 0 | E96: 0 | F96: 553682 | G96: 553682 | H96: 553682 | I96: 0 | J96: 0 | K96: 0 | L96: Los trabajos se inciaron a finales del mes de noviembre; se relizaron los procesos de elaboración de fichas, suficiencias, licitaciones y contrataciones por lo que será hasta la Cuenta Pública donde se verán los Cierres definitivos de las obras de cada uno de los Comités del Presupuesto Participativo.
B97: 'O21NR.1213 | C97: Rehabilitación de área deportiva y recreativa para perros en Colinas del Bosque-Las Tórtolas con clave 12-025 | D97: 0 | E97: 0 | F97: 347278 | G97: 347278 | H97: 347278 | I97: 0 | J97: 0 | K97: 0 | L97: Los trabajos se inciaron a finales del mes de noviembre; se relizaron los procesos de elaboración de fichas, suficiencias, licitaciones y contrataciones por lo que será hasta la Cuenta Pública donde se verán los Cierres definitivos de las obras de cada uno de los Comités del Presupuesto Participativo.
B98: 'O21NR.1214 | C98: Mantenimiento de Alumbrado Público en todo el Condominio del bosque (fracc.)-bosque de tlalpan con clave 12-026 | D98: 0 | E98: 0 | F98: 329577 | G98: 329577 | H98: 329577 | I98: 0 | J98: 0 | K98: 0 | L98: Los trabajos se inciaron a finales del mes de noviembre; se relizaron los procesos de elaboración de fichas, suficiencias, licitaciones y contrataciones por lo que será hasta la Cuenta Pública donde se verán los Cierres definitivos de las obras de cada uno de los Comités del Presupuesto Participativo.
B99: 'O21NR.1215 | C99: Reparación de Filtraciones en Estacionamiento y Accesos, para la detención de daño estructural que representa riesgo inminente para la comunidad en Conjunto Habitacional Pedregal del Lago con clave 12-218 | D99: 0 | E99: 0 | F99: 336056 | G99: 336056 | H99: 336056 | I99: 0 | J99: 0 | K99: 0 | L99: Los trabajos se inciaron a finales del mes de noviembre; se relizaron los procesos de elaboración de fichas, suficiencias, licitaciones y contrataciones por lo que será hasta la Cuenta Pública donde se verán los Cierres definitivos de las obras de cada uno de los Comités del Presupuesto Participativo.
B100: 'O21NR.1216 | C100: Cambio de Cableado Eléctrico de todos los postes de la unidad Conjunto Urbano Cuemanco (u. hab) con clave 12-027 | D100: 0 | E100: 0 | F100: 340348 | G100: 340348 | H100: 340348 | I100: 0 | J100: 0 | K100: 0 | L100: Los trabajos se inciaron a finales del mes de noviembre; se relizaron los procesos de elaboración de fichas, suficiencias, licitaciones y contrataciones por lo que será hasta la Cuenta Pública donde se verán los Cierres definitivos de las obras de cada uno de los Comités del Presupuesto Participativo.
B101: 'O21NR.1217 | C101: Reparación de Cisterna de Agua Potable que Suministra a toda en la Unidad Emilio Portes Gil Pemex Picacho, por medio de bombeo Emilio portes Gil Pemex Picacho (U. Hab) con clave 12-040 | D101: 0 | E101: 0 | F101: 408917 | G101: 408917 | H101: 408917 | I101: 0 | J101: 0 | K101: 0 | L101: Los trabajos se inciaron a finales del mes de noviembre; se relizaron los procesos de elaboración de fichas, suficiencias, licitaciones y contrataciones por lo que será hasta la Cuenta Pública donde se verán los Cierres definitivos de las obras de cada uno de los Comités del Presupuesto Participativo.
B102: 'O21NR.1219 | C102: Reencarpetado dentro de la unidad del Hueso Periférico-ISSSFAM No. 7 (U. Habs) con clave 12-057 | D102: 0 | E102: 0 | F102: 399413 | G102: 399413 | H102: 399413 | I102: 0 | J102: 0 | K102: 0 | L102: Los trabajos se inciaron a finales del mes de noviembre; se relizaron los procesos de elaboración de fichas, suficiencias, licitaciones y contrataciones por lo que será hasta la Cuenta Pública donde se verán los Cierres definitivos de las obras de cada uno de los Comités del Presupuesto Participativo.
B103: 'O21NR.1220 | C103: Rehabilitación y Mantenimiento del Módulo de Juegos Infantiles en Áreas Verdes Comunes en la Unidad Ignacio Chávez dentro de los Regímenes I, II, III, V, VI y Deportivo Ignacio Chávez (u hab) con clave 12-059 | D103: 0 | E103: 0 | F103: 338479 | G103: 338479 | H103: 338479 | I103: 0 | J103: 0 | K103: 0 | L103: Los trabajos se inciaron a finales del mes de noviembre; se relizaron los procesos de elaboración de fichas, suficiencias, licitaciones y contrataciones por lo que será hasta la Cuenta Pública donde se verán los Cierres definitivos de las obras de cada uno de los Comités del Presupuesto Participativo.
B104: O21NR.1221 | C104: Cambio de tubos de albañal o Drenaje de casas, dúplex y edificios de la súper manzana 2 (que van de 5 a 10 metros por conexión a colectores) en: Narciso Mendoza-Villa Coapa Súper Manzana 2 (u hab) con clave 12-104 | D104: 0 | E104: 0 | F104: 433885 | G104: 433885 | H104: 433885 | I104: 0 | J104: 0 | K104: 0 | L104: Los trabajos se inciaron a finales del mes de noviembre; se relizaron los procesos de elaboración de fichas, suficiencias, licitaciones y contrataciones por lo que será hasta la Cuenta Pública donde se verán los Cierres definitivos de las obras de cada uno de los Comités del Presupuesto Participativo.
B105: 'O21NR.1222 | C105: Rehabilitación y Remodelación del parque y canchas de básquetbol en U.H. Narciso Mendoza-Villa Coapa súper manzana 7 (U. Hab.) conclave 12-107 | D105: 0 | E105: 0 | F105: 435714 | G105: 435714 | H105: 435714 | I105: 0 | J105: 0 | K105: 0 | L105: Los trabajos se inciaron a finales del mes de noviembre; se relizaron los procesos de elaboración de fichas, suficiencias, licitaciones y contrataciones por lo que será hasta la Cuenta Pública donde se verán los Cierres definitivos de las obras de cada uno de los Comités del Presupuesto Participativo.
B106: 'O21NR.1223 | C106: Instalación de Celdas Solares en Rancho los Colorines (fracc) con clave 12-136 | D106: 0 | E106: 0 | F106: 313832 | G106: 313832 | H106: 313832 | I106: 0 | J106: 0 | K106: 0 | L106: Los trabajos se inciaron a finales del mes de noviembre; se relizaron los procesos de elaboración de fichas, suficiencias, licitaciones y contrataciones por lo que será hasta la Cuenta Pública donde se verán los Cierres definitivos de las obras de cada uno de los Comités del Presupuesto Participativo.
B107: O21NR.1224 | C107: Construcción de aula para Construccion de salon de usos multiples techado en Residencial Insurgentes Sur (u hab)) con clave 12-139, | D107: 0 | E107: 0 | F107: 359000 | G107: 359000 | H107: 359000 | I107: 0 | J107: 0 | K107: 0 | L107: Los trabajos se inciaron a finales del mes de noviembre; se relizaron los procesos de elaboración de fichas, suficiencias, licitaciones y contrataciones por lo que será hasta la Cuenta Pública donde se verán los Cierres definitivos de las obras de cada uno de los Comités del Presupuesto Participativo.
B108: 'O21NR.1225 | C108: Mejoramiento de Espacios Públicos en Sauzales Cebadales (u hab) con clave 12-164 | D108: 0 | E108: 0 | F108: 346835 | G108: 346835 | H108: 346835 | I108: 0 | J108: 0 | K108: 0 | L108: Los trabajos se inciaron a finales del mes de noviembre; se relizaron los procesos de elaboración de fichas, suficiencias, licitaciones y contrataciones por lo que será hasta la Cuenta Pública donde se verán los Cierres definitivos de las obras de cada uno de los Comités del Presupuesto Participativo.
B109: O21NR.1226 | C109: Cambio de Red de Agua Potable en el interior de la U.H. Tenorios 222 (Tenorios INFONAVIT1 y 2 U Hab) con clave 12-168 | D109: 0 | E109: 0 | F109: 388492 | G109: 388492 | H109: 388492 | I109: 0 | J109: 0 | K109: 0 | L109: Los trabajos se inciaron a finales del mes de noviembre; se relizaron los procesos de elaboración de fichas, suficiencias, licitaciones y contrataciones por lo que será hasta la Cuenta Pública donde se verán los Cierres definitivos de las obras de cada uno de los Comités del Presupuesto Participativo.
B110: 'O21NR.1227 | C110: Reencarpetado en Calle Rincón Fresales, Villa del Puente FOVISSSTE (U. Hab) con clave 12-193 | D110: 0 | E110: 0 | F110: 318383 | G110: 318383 | H110: 318383 | I110: 0 | J110: 0 | K110: 0 | L110: Los trabajos se inciaron a finales del mes de noviembre; se relizaron los procesos de elaboración de fichas, suficiencias, licitaciones y contrataciones por lo que será hasta la Cuenta Pública donde se verán los Cierres definitivos de las obras de cada uno de los Comités del Presupuesto Participativo.
B111: O21NR.1228 | C111: Sustitución de Válvulas detereoradas de la Red Hidráulica en la unidad Villa Olimpica Libertador Miguel Hidalgo (U. Hab) con clave 12-195 | D111: 0 | E111: 0 | F111: 372362 | G111: 372362 | H111: 372362 | I111: 0 | J111: 0 | K111: 0 | L111: Los trabajos se inciaron a finales del mes de noviembre; se relizaron los procesos de elaboración de fichas, suficiencias, licitaciones y contrataciones por lo que será hasta la Cuenta Pública donde se verán los Cierres definitivos de las obras de cada uno de los Comités del Presupuesto Participativo.
B112: 'O21NR.1229 | C112: Rehabilitación Urbana a andador sin nombre en Zapote-Luis Donaldo Colosio (u habs) con clave 12-204 | D112: 0 | E112: 0 | F112: 337910 | G112: 337910 | H112: 337910 | I112: 0 | J112: 0 | K112: 0 | L112: Los trabajos se inciaron a finales del mes de noviembre; se relizaron los procesos de elaboración de fichas, suficiencias, licitaciones y contrataciones por lo que será hasta la Cuenta Pública donde se verán los Cierres definitivos de las obras de cada uno de los Comités del Presupuesto Participativo.
B113: O21NR.1230 | C113: Continuación de Proyecto Repación de la Red de HidrÁulica, mantenimiento y acondicionamiento en Avenida del arbolillo y Sendero Narciso Mendoza Villa Coapa supermanzana 8 (U. Hab) con clave 12-217 | D113: 0 | E113: 0 | F113: 393659 | G113: 393659 | H113: 393659 | I113: 0 | J113: 0 | K113: 0 | L113: Los trabajos se inciaron a finales del mes de noviembre; se relizaron los procesos de elaboración de fichas, suficiencias, licitaciones y contrataciones por lo que será hasta la Cuenta Pública donde se verán los Cierres definitivos de las obras de cada uno de los Comités del Presupuesto Participativo.
B114: O21NR.1231 | C114: Sustitución y Mantenimiento a la Red de Distribución de Agua Potable en Fuentes Brotantes Miguel Hidalgo (U. Hab) con clave 12-047 | D114: 0 | E114: 0 | F114: 556054 | G114: 556054 | H114: 556054 | I114: 0 | J114: 0 | K114: 0 | L114: Los trabajos se inciaron a finales del mes de noviembre; se relizaron los procesos de elaboración de fichas, suficiencias, licitaciones y contrataciones por lo que será hasta la Cuenta Pública donde se verán los Cierres definitivos de las obras de cada uno de los Comités del Presupuesto Participativo.
B115: O21NR.1239 | C115: Remodelación, Demolición, Ampliación, Construcción y Acabados del Salón de Usos Múltiples con baños y oficina, en el Jardín de Chimali (Hacienda San Juan-Rincón de San Juan-Chimali con clave 12-053 | D115: 0 | E115: 0 | F115: 545724 | G115: 545724 | H115: 545724 | I115: 0 | J115: 0 | K115: 0 | L115: Los trabajos se inciaron a finales del mes de noviembre; se relizaron los procesos de elaboración de fichas, suficiencias, licitaciones y contrataciones por lo que será hasta la Cuenta Pública donde se verán los Cierres definitivos de las obras de cada uno de los Comités del Presupuesto Participativo.
B116: 'O21NR.1240 | C116: Recuperación del Parque Niño Jesús para Rehabilitarlo para Recreación y Paseo de Perros en Niño Jesús (barr) con clave 12-108 | D116: 0 | E116: 0 | F116: 361176 | G116: 361176 | H116: 361176 | I116: 0 | J116: 0 | K116: 0 | L116: Los trabajos se inciaron a finales del mes de noviembre; se relizaron los procesos de elaboración de fichas, suficiencias, licitaciones y contrataciones por lo que será hasta la Cuenta Pública donde se verán los Cierres definitivos de las obras de cada uno de los Comités del Presupuesto Participativo.
B117: O21NR.1241 | C117: Continuación de la Barda de Contención del Centro Comunitario en (Ma. Esther Zuno de Echeverría-Tlalpuente con clave 12-092 | D117: 0 | E117: 0 | F117: 403053 | G117: 403053 | H117: 403053 | I117: 0 | J117: 0 | K117: 0 | L117: Los trabajos se inciaron a finales del mes de noviembre; se relizaron los procesos de elaboración de fichas, suficiencias, licitaciones y contrataciones por lo que será hasta la Cuenta Pública donde se verán los Cierres definitivos de las obras de cada uno de los Comités del Presupuesto Participativo.
B118: O21NR.1242 | C118: Adecuación del Módulo de Alheña en la colonia Movimiento Organizado de Tlalpan, como Módulo Multifuncional, Movimiento Organizado de Tlalpan-El Mirador (Rncda) con clave 12-102 | D118: 0 | E118: 0 | F118: 319770 | G118: 319770 | H118: 319770 | I118: 0 | J118: 0 | K118: 0 | L118: Los trabajos se inciaron a finales del mes de noviembre; se relizaron los procesos de elaboración de fichas, suficiencias, licitaciones y contrataciones por lo que será hasta la Cuenta Pública donde se verán los Cierres definitivos de las obras de cada uno de los Comités del Presupuesto Participativo.
B119: O21NR.1243 | C119: Mantenimiento al Salón de Usos Múltiples para Actividades Físicas y Manuales para personas de la tercera edad. jóvenes, adultos y niños en San Lorenzo Huipulco con clave 12-153 | D119: 0 | E119: 0 | F119: 665835 | G119: 665835 | H119: 665835 | I119: 0 | J119: 0 | K119: 0 | L119: Los trabajos se inciaron a finales del mes de noviembre; se relizaron los procesos de elaboración de fichas, suficiencias, licitaciones y contrataciones por lo que será hasta la Cuenta Pública donde se verán los Cierres definitivos de las obras de cada uno de los Comités del Presupuesto Participativo.
B120: O21NR.1244 | C120: Rehabilitación e Innovación San Fernando calle Nueva Tlalpan en Tlalpan centro con clave 12-177 | D120: 0 | E120: 0 | F120: 887082 | G120: 887082 | H120: 887082 | I120: 0 | J120: 0 | K120: 0 | L120: Los trabajos se inciaron a finales del mes de noviembre; se relizaron los procesos de elaboración de fichas, suficiencias, licitaciones y contrataciones por lo que será hasta la Cuenta Pública donde se verán los Cierres definitivos de las obras de cada uno de los Comités del Presupuesto Participativo.
B121: O21NR.1245 | C121: Obras de Término y Equipamiento, Planta Alta Centro Comunitario en Viveros de Coactetlan con clave 12-199 | D121: 0 | E121: 0 | F121: 450270 | G121: 450270 | H121: 450270 | I121: 0 | J121: 0 | K121: 0 | L121: Los trabajos se inciaron a finales del mes de noviembre; se relizaron los procesos de elaboración de fichas, suficiencias, licitaciones y contrataciones por lo que será hasta la Cuenta Pública donde se verán los Cierres definitivos de las obras de cada uno de los Comités del Presupuesto Participativo.
B122: 'O21NR.1246 | C122: Remodelación y Mejoramiento de Parque Busto de Juárez 2021en Ampliación Miguel Hidalgo 2a. secc. con clave 12-002 | D122: 0 | E122: 0 | F122: 1038834 | G122: 0 | H122: 1038834 | I122: 0 | J122: 0 | K122: 0 | L122: Los trabajos se inciaron a finales del mes de noviembre; se relizaron los procesos de elaboración de fichas, suficiencias, licitaciones y contrataciones por lo que será hasta la Cuenta Pública donde se verán los Cierres definitivos de las obras de cada uno de los Comités del Presupuesto Participativo.
B123: 'O21NR.1247 | C123: Iluminación del Parque “Concordia” ubicado en la calle Rio San Buenaventura y Cerrada Río San Buenaventura, Arenal Puerta Tepepancon clave 12-009 | D123: 0 | E123: 0 | F123: 356448 | G123: 356448 | H123: 356448 | I123: 0 | J123: 0 | K123: 0 | L123: Los trabajos se inciaron a finales del mes de noviembre; se relizaron los procesos de elaboración de fichas, suficiencias, licitaciones y contrataciones por lo que será hasta la Cuenta Pública donde se verán los Cierres definitivos de las obras de cada uno de los Comités del Presupuesto Participativo.
B124: 'O21NR.1248 | C124: Mantenimiento al Parque para las Madres en Calvario Camisetas con clave 12-017 | D124: 0 | E124: 0 | F124: 319806 | G124: 319806 | H124: 319806 | I124: 0 | J124: 0 | K124: 0 | L124: Los trabajos se inciaron a finales del mes de noviembre; se relizaron los procesos de elaboración de fichas, suficiencias, licitaciones y contrataciones por lo que será hasta la Cuenta Pública donde se verán los Cierres definitivos de las obras de cada uno de los Comités del Presupuesto Participativo.
B125: 'O21NR.1249 | C125: Rehabilitación de Juegos Infantiles y Colocación de Nuevos Juegos en Camellón Prolongación Canal de Miramontes, Ex Hacienda de San Juan de Dios con clave 12-042 | D125: 0 | E125: 0 | F125: 512105 | G125: 512105 | H125: 512105 | I125: 0 | J125: 0 | K125: 0 | L125: Los trabajos se inciaron a finales del mes de noviembre; se relizaron los procesos de elaboración de fichas, suficiencias, licitaciones y contrataciones por lo que será hasta la Cuenta Pública donde se verán los Cierres definitivos de las obras de cada uno de los Comités del Presupuesto Participativo.
B126: 'O21NR.1250 | C126: Cambio de Sistema de Alumbrado en la Colonia Floresta-Prado-Vergel Coapa con clave 12-043 | D126: 0 | E126: 0 | F126: 417912 | G126: 417912 | H126: 417912 | I126: 0 | J126: 0 | K126: 0 | L126: Los trabajos se inciaron a finales del mes de noviembre; se relizaron los procesos de elaboración de fichas, suficiencias, licitaciones y contrataciones por lo que será hasta la Cuenta Pública donde se verán los Cierres definitivos de las obras de cada uno de los Comités del Presupuesto Participativo.
B127: 'O21NR.1251 | C127: Construcción de Cisterna para Captación de Agua Pluvial para Riego del Parque los Ilusos en Fuentes del Pedregal con clave 12-049 | D127: 0 | E127: 0 | F127: 606944 | G127: 606944 | H127: 606944 | I127: 0 | J127: 0 | K127: 0 | L127: Los trabajos se inciaron a finales del mes de noviembre; se relizaron los procesos de elaboración de fichas, suficiencias, licitaciones y contrataciones por lo que será hasta la Cuenta Pública donde se verán los Cierres definitivos de las obras de cada uno de los Comités del Presupuesto Participativo.
B128: 'O21NR.1252 | C128: Instalación de 12 (lum) led en el Camellón de la calle Sauzales, Granjas Coapa Oriente con clave 12-051 | D128: 0 | E128: 0 | F128: 374300 | G128: 374300 | H128: 374300 | I128: 0 | J128: 0 | K128: 0 | L128: Los trabajos se inciaron a finales del mes de noviembre; se relizaron los procesos de elaboración de fichas, suficiencias, licitaciones y contrataciones por lo que será hasta la Cuenta Pública donde se verán los Cierres definitivos de las obras de cada uno de los Comités del Presupuesto Participativo.
B129: 'O21NR.1253 | C129: Rehabilitación de Banqueta para Caminar Seguro en Camino a la Marina, Héroes de 1910 con clave 12-055 | D129: 0 | E129: 0 | F129: 340952 | G129: 340952 | H129: 340952 | I129: 0 | J129: 0 | K129: 0 | L129: Los trabajos se inciaron a finales del mes de noviembre; se relizaron los procesos de elaboración de fichas, suficiencias, licitaciones y contrataciones por lo que será hasta la Cuenta Pública donde se verán los Cierres definitivos de las obras de cada uno de los Comités del Presupuesto Participativo.
B130: 'O21NR.1254 | C130: Recuperación de Espacios Públicos y Colocación de Malla con Protección con Tubulares y Refuerzos en Isidro Fabela, (ampl) con clave 12-061 | D130: 0 | E130: 0 | F130: 353535 | G130: 353535 | H130: 353535 | I130: 0 | J130: 0 | K130: 0 | L130: Los trabajos se inciaron a finales del mes de noviembre; se relizaron los procesos de elaboración de fichas, suficiencias, licitaciones y contrataciones por lo que será hasta la Cuenta Pública donde se verán los Cierres definitivos de las obras de cada uno de los Comités del Presupuesto Participativo.
B131: 'O21NR.1255 | C131: Cierre del Cruce entre calle Reforma Agraria y Viaducto Tlalpan en ISSSFAM No. 1, (U Hab)-Villa Tlalpan con clave 12-062 | D131: 0 | E131: 0 | F131: 353519 | G131: 353519 | H131: 353519 | I131: 0 | J131: 0 | K131: 0 | L131: Los trabajos se inciaron a finales del mes de noviembre; se relizaron los procesos de elaboración de fichas, suficiencias, licitaciones y contrataciones por lo que será hasta la Cuenta Pública donde se verán los Cierres definitivos de las obras de cada uno de los Comités del Presupuesto Participativo.
B132: 'O21NR.1256 | C132: Mantenimiento de 30 luminarias sub urbanas de led´s con poste metálico de 6 metros y brazo de 1 metro en Ampliación la Venta, Jardines de San Juan con clave 12-065 | D132: 0 | E132: 0 | F132: 577546 | G132: 577546 | H132: 577546 | I132: 0 | J132: 0 | K132: 0 | L132: Los trabajos se inciaron a finales del mes de noviembre; se relizaron los procesos de elaboración de fichas, suficiencias, licitaciones y contrataciones por lo que será hasta la Cuenta Pública donde se verán los Cierres definitivos de las obras de cada uno de los Comités del Presupuesto Participativo.
